Workbook

Sheet FOOD MASTER
B1: ROSWELL INDEPENDENT SCHOOL DISTRICT | I1: Vendor Name: | L1: RISD
B2: CAFETERIA FOOD BID 23-06 FOR SCHOOL YEAR 2023-24 | I2: Vendor Contact | L2: TRACEY WELLS
B3: MUST BE RECEIVED BY MAY 4, 2023 ON CD-R OR FLASH DRIVE SEALED WITH SUPPORTING DOCUMENTS | I3: Date | L3: 2023-05-26
B4: ITEM | C4: STOCK ID | D4: ITEM | E4: DESCRIPTION | F4: Approved Brand | G4: Product Code or UPC | H4: BID UNIT | I4: CASE PACK | K4: EST USAGE | L4: BID UNIT PRICE | M4: Extended Total | N4: per UNIT price | O4: VENDOR STOCK NO | P4: BRAND NAME | Q4: PACK SIZE | R4: SPECIAL ORDER YES NO | S4: BIDDERS NOTES
T5: Awarded To | U5: BEK | V5: Labatt | W5: Shamrock | X5: Sysco | Y5: El Charro | Z5: Peterson Farms | AA5: USA Beef
B6: 1 | C6: D1000 | D6: APPLESAUCE CANNED | E6: APPLESAUCE GRADE B FANCY NATURAL COLOR UNSWEETENED MUST MEET BUY AMERICAN REQUIREMENTS | F6: SPECIFY | H6: CS | I6: 6 | J6: 10 CN | K6: 400 | L6: 37.77 | M6: =IF(L6*K6= 0,"",L6*K6) -> 15108 | N6: =IF(L6/I6= 0,"",L6/I6) -> 6.295 | O6: 2004975 | P6: DEL MONTE | Q6: 6 / #10 | T6: Labatt | U6: 0 | V6: 37.77 | W6: 42.38 | X6: 45.47 | Z6: 0 | AA6: 0
B7: 2 | C7: D1001 | D7: APPLESAUCE CUPS CINNAMON | E7: CINNAMON UNSWEETENED APPLESAUCE MUST PROVIDE 1/2 CUP FRUIT EQUIVALENT UNDER THE NSLP. 100% ALL NATURAL INGREDIENTS SHELF-STABLE FOR 18 MONTHS NO HIGH FRUCTOSE CORN SYRUP OR ADDED SUGAR FAT FREE 100% VITAMIN C | F7: SPECIFY | H7: CS | I7: 96 | J7: 4.5 OZ | K7: 600 | L7: 28.28 | M7: 16968 | N7: 0.2945833333 | O7: ASA10013 | P7: Peterson Farms | Q7: 96/4.5oz | R7: No | T7: Peterson Farms | U7: 0 | V7: 38.57 | W7: 37.33 | X7: 0 | Y7: 0 | Z7: 28.28 | AA7: 0
B8: 3 | C8: D1002 | D8: APPLESAUCE CUPS PEACH | E8: PEACH UNSWEETENED APPLESAUCE MUST PROVIDE 1/2 CUP FRUIT EQUIVALENT UNDER THE NSLP. 100% ALL NATURAL INGREDIENTS SHELF-STABLE FOR 18 MONTHS NO HIGH FRUCTOSE CORN SYRUP OR ADDED SUGAR FAT FREE 100% VITAMIN C | F8: SPECIFY | H8: CS | I8: 96 | J8: 4.5 OZ | K8: 600 | L8: 28.28 | M8: 16968 | N8: 0.2945833333 | O8: ASA10017 | P8: Peterson Farms | Q8: 96/4.5oz | R8: No | T8: Peterson Farms | U8: 0 | V8: 38.59 | X8: 0 | Y8: 0 | Z8: 28.28 | AA8: 0
B9: 4 | C9: D1003 | D9: APPLESAUCE CUPS PLAIN | E9: PLAIN UNSWEETENED APPLESAUCE MUST PROVIDE 1/2 CUP FRUIT EQUIVALENT UNDER THE NSLP. 100% ALL NATURAL INGREDIENTS SHELF-STABLE FOR 18 MONTHS NO HIGH FRUCTOSE CORN SYRUP OR ADDED SUGAR FAT FREE 100% VITAMIN C | F9: SPECIFY | H9: CS | I9: 96 | J9: 4.5 OZ | K9: 600 | L9: 28.28 | M9: 16968 | N9: 0.2945833333 | O9: ASA10001 | P9: Peterson Farms | Q9: 96/4.5oz | R9: No | T9: Peterson Farms | U9: 0 | V9: 39.09 | W9: 37.33 | X9: 46.72 | Y9: 0 | Z9: 28.28 | AA9: 0
B10: 5 | C10: D1004 | D10: APPLESAUCE CUPS STRAWBERRY | E10: PLAIN UNSWEETENED APPLESAUCE MUST PROVIDE 1/2 CUP FRUIT EQUIVALENT UNDER THE NSLP. 100% ALL NATURAL INGREDIENTS SHELF-STABLE FOR 18 MONTHS NO HIGH FRUCTOSE CORN SYRUP OR ADDED SUGAR FAT FREE 100% VITAMIN C | F10: SPECIFY | H10: CS | I10: 96 | J10: 4.5 OZ | K10: 600 | L10: 28.28 | M10: 16968 | N10: 0.2945833333 | O10: ASA10014 | P10: Peterson Farms | Q10: 96/4.5oz | R10: No | T10: Peterson Farms | U10: 0 | V10: 38.82 | X10: 44.81 | Y10: 0 | Z10: 28.28 | AA10: 0
B11: 6 | C11: CTF7049 | D11: AVACADO PULP | E11: AVACADO PULP FROZEN CATERING | F11: SPECIFY | H11: CS | I11: 12 | J11: 1LBS | K11: 70 | L11: 45.91170213 | M11: 3213.819149 | N11: 3.825975177 | O11: 8337503 | P11: CASAIMP | Q11: 8/2#TRAY | R11: N | T11: Sysco | U11: 0 | V11: 52.16 | W11: 50.9 | X11: 45.91 | Y11: 0 | Z11: 0 | AA11: 0
B12: 7 | C12: F1000 | D12: BACON PIECES | E12: BACON ENDS & PIECES | F12: SPECIFY | H12: CS | I12: 12 | J12: 3 LB | K12: 425 | L12: 31.02 | M12: 13183.5 | N12: 2.585 | O12: 1911338 | P12: HERTG V | Q12: 1 / 10 LB | T12: Labatt | U12: 116.2 | V12: 31.02 | W12: 37.02 | X12: 42.54 | Y12: 0 | Z12: 0 | AA12: 0
B13: 8 | C13: F1001 | D13: BACON PRE-COOKED | E13: FULLY COOKED AND READY TO EAT - SIMPLY WARM & SERVE 100% REAL BACON | F13: HORMEL OR APPROVED EQUIVALENT | G13: 3729 | H13: CS | I13: 1 | J13: 300 | K13: 500 | L13: 34.99535 | M13: 17497.675 | N13: 34.99535 | O13: 4630091 | P13: PRCRO | Q13: 2/150/PK | R13: N | T13: Shamrock | U13: 0 | V13: 54.53 | W13: 35 | X13: 56.07 | Y13: 0 | Z13: 0 | AA13: 0
B14: 9 | C14: CTF7050 | D14: BACON SLICED THICK | E14: BACON THICK SLICED CATERING | F14: SPECIFY | H14: CS | I14: 15 | J14: LB | K14: 30 | L14: 48.45425 | M14: 1453.6275 | N14: 3.230283333 | O14: 4914511 | P14: PRCRD | Q14: 1/15/LB | R14: N | T14: Shamrock | U14: 117.43 | V14: 56.95 | W14: 48.45 | X14: 57.9 | Y14: 0 | Z14: 0 | AA14: 0
B15: 10 | C15: CTF7051 | D15: BACON SLICED THIN | E15: BACON THIN SLICED CATERNG | F15: SPECIFY | H15: CS | I15: 15 | J15: LB | K15: 15 | L15: 42.9845 | M15: 644.7675 | N15: 2.865633333 | O15: 4433951 | P15: PRCRF | Q15: 1/15/LB | R15: N | T15: Shamrock | U15: 50.63 | V15: 48.39 | W15: 42.98 | X15: 52.63 | Y15: 0 | Z15: 0 | AA15: 0
B16: 11 | C16: F1002 | D16: BAGEL BLUEBERRY | E16: BAGEL WG BLUEBERRY SLICED IW MUST BE WHOLE GRAIN RICH AND PROVIDE 2.0OZ GRAIN EQUIVALENTS. PORTION TO PROVIDE AT LEAST 115 CALORIES WITH NO MORE THAN 2 GRAMS OF FAT. | F16: BAKE CRAFTERS OR APPROVED EQUIVALENT | G16: 696 | H16: CS | I16: 84 | J16: 2 OZ | K16: 450 | L16: 36.44 | M16: 16398 | N16: 0.4338095238 | O16: 4031320 | P16: BAKECRAFTE | Q16: 84 / 2 OZ | S16: Lowest bids were wrong item and special order | T16: Labatt | U16: 0 | V16: 36.44 | W16: 35.72 | X16: 23.6 | Y16: 0 | Z16: 0 | AA16: 0
B17: 12 | C17: F1003 | D17: BAGEL PLAIN | E17: BAGEL WG BLUEBERRY IW MUST BE WHOLE GRAIN RICH AND PROVIDE 2.0OZ GRAIN EQUIVALENTS. PORTION TO PROVIDE AT LEAST 115 CALORIES WITH NO MORE THAN 2 GRAMS OF FAT. | F17: BAKE CRAFTERS OR APPROVED EQUIVALENT | G17: 982 | H17: CS | I17: 84 | J17: 2 OZ | K17: 450 | L17: 30.17755 | M17: 13579.8975 | N17: 0.3592565476 | O17: 3162701 | P17: LENDR | Q17: 72/2/OZ | R17: N | T17: Shamrock | U17: 0 | V17: 35.23 | W17: 30.18 | X17: 33.7 | Y17: 0 | Z17: 0 | AA17: 0
B18: 13 | C18: D1005 | D18: BAKING SODA | E18: SODIUM BICARBONATE | F18: SPECIFY | H18: CS | I18: 24 | J18: 1 LBS | K18: 60 | L18: 14.36914894 | M18: 862.1489362 | N18: 0.598714539 | O18: 4950598 | P18: SYS CLS | Q18: 12/24 OZ | R18: N | T18: Sysco | U18: 21.72 | V18: 22.15 | W18: 26.47 | X18: 14.37 | Y18: 0 | Z18: 0 | AA18: 0
B19: 14 | C19: F1004 | D19: BAR BREAKFAST APPLE | E19: BREAKFAST BAR APPLE THAT MEET 2OZ WG AND 1/2C FRUIT FOR CHILD NUTRITIONAL MEAL PATTERN | F19: DAVE'S OR APPROVED EQUIVALENT | G19: 4014 | H19: CS | I19: 64 | J19: 3 OZ | K19: 1000 | L19: 33.92765957 | M19: 33927.65957 | N19: 0.5301196809 | O19: 8610067 | P19: READIBK | Q19: 48/2.5 OZ | R19: N | T19: Sysco | U19: 0 | V19: 48.4 | W19: 44.75 | X19: 33.93 | Y19: 0 | Z19: 0 | AA19: 0
B20: 15 | C20: F1005 | D20: BAR BREAKFAST BANANA CHOCOLATE | E20: INDIVIDUALLY WRAPPED 51% WHOLE GRAIN BANANA CHOCOLATE CHUNK | F20: BeneFIT OR APPROVED EQUIVALENT | G20: 40402 | H20: CS | I20: 48 | J20: 2.5 OZ | K20: 1650 | L20: 20.74468085 | M20: 34228.7234 | N20: 0.4321808511 | O20: 8610051 | P20: READIBK | Q20: 48/2.5 OZ | R20: N | T20: Sysco | U20: 20.75 | V20: 22.11 | W20: 21.55 | X20: 20.74 | Y20: 0 | Z20: 0 | AA20: 0
B21: 16 | C21: F1006 | D21: BAR BREAKFAST BLUEBERRY | E21: BREAKFAST BAR BLUEBERRY THAT MEET 2OZ WG AND 1/2C FRUIT FOR CHILD NUTRITIONAL MEAL PATTERN | F21: DAVE'S OR APPROVED EQUIVALENT | G21: 4014 | H21: CS | I21: 64 | J21: 3 OZ | K21: 1000 | L21: 42.92553191 | M21: 42925.53191 | N21: 0.6707114362 | O21: 2837577 | P21: DAVE'S | Q21: 64/3 OZ | R21: N | T21: Sysco | U21: 0 | V21: 47.71 | W21: 44.75 | X21: 42.93 | Y21: 0 | Z21: 0 | AA21: 0
B22: 17 | C22: F1007 | D22: BAR BREAKFAST COCOA CHIP | E22: INDIVIDUALLY WRAPPED 51% WHOLE GRAIN COCOA CHIP | F22: BeneFIT OR APPROVED EQUIVALENT | G22: 40406 | H22: CS | I22: 48 | J22: 2.5 OZ | K22: 1650 | L22: 21.8 | M22: 35970 | N22: 0.4541666667 | O22: 413311 | P22: J&J snack | Q22: 48/2.5oz | R22: no | S22: WILL BRING IN IF AWARED | T22: BEK | U22: 21.8 | V22: 23.21 | W22: 22.65 | X22: 21.81 | Y22: 0 | Z22: 0 | AA22: 0
B23: 18 | C23: F1008 | D23: BAR BREAKFAST OATMEAL CHOCOLATE | E23: INDIVIDUALLY WRAPPED 51% WHOLE GRAIN OATMEAL CHOCOLATE CHIP | F23: BeneFIT OR APPROVED EQUIVALENT | G23: 40401 | H23: CS | I23: 48 | J23: 2.5 oz | K23: 1650 | L23: 20.74468085 | M23: 34228.7234 | N23: 0.4321808511 | O23: 8559417 | P23: READIBK | Q23: 48/2.5 OZ | R23: N | T23: Sysco | U23: 20.75 | V23: 22.11 | W23: 21.55 | X23: 20.74 | Y23: 0 | Z23: 0 | AA23: 0
B24: 19 | C24: F1009 | D24: BAR OATMEAL BLUEBERRY | E24: BLUEBERRY OATMEAL BARS 2.04 OZ 51% WHOLE GRAIN MEET 2 OZ GRAIN EQUIVALENT | F24: DARLINGTON SNACKS OR APPROVED EQUIVALENT | G24: 75600 | H24: CS | I24: 160 | J24: 2.4 OZ | K24: 1000 | L24: 77.23404255 | M24: 77234.04255 | N24: 0.482712766 | O24: 7154596 | P24: APPLWAY | Q24: 160/2.4 OZ | R24: N | T24: Sysco | U24: 0 | V24: 77.66 | X24: 77.23 | Y24: 0 | Z24: 0 | AA24: 0
B25: 20 | C25: C1000 | D25: BASE BEEF | E25: GRADE A TO CONTAIN BEEF LOW SODIUM- PASTE NON-CAKING READY TO DISSOLVE BEEF FLAVORED NO MSG | F25: SPECIFY | H25: CS | I25: 12 | J25: 1 LBS | K25: 200 | L25: 35.15957447 | M25: 7031.914894 | N25: 2.929964539 | O25: 7193534 | P25: CSTMCUL | Q25: 6/1 LB | R25: N | T25: Sysco | U25: 0 | V25: 49.41 | W25: 63.3 | X25: 35.16 | Y25: 0 | Z25: 0 | AA25: 0
B26: 21 | C26: C1001 | D26: BASE CHICKEN | E26: GRADE A TO CONTAIN CHICKEN LOW SODIUM - PASTE NON-CAKING READY TO DISSOLVE CHICKEN FLAVORED NO MSG | F26: SPECIFY | H26: CS | I26: 12 | J26: 1 LBS | K26: 200 | L26: 31.65957447 | M26: 6331.914894 | N26: 2.638297872 | O26: 7193578 | P26: CSTMCUL | Q26: 6/1 LB | R26: N | T26: Sysco | U26: 0 | V26: 80.79 | W26: 65.72 | X26: 31.66 | Y26: 0 | Z26: 0 | AA26: 0
B27: 22 | C27: CTF7009 | D27: BASE CHICKEN KNORR | E27: CHICKEN FLAVORED BOUILLON CATERING | F27: KNORR OR APPROVED EQUIVALENT | G27: 116300 | H27: BTL | I27: 1 | J27: 7.9 LB | K27: 5 | L27: 2.065 | M27: 10.325 | N27: 2.065 | O27: 4714467 | P27: KNORR | Q27: 1/7.9 OZ | R27: N | T27: Sysco | U27: 0 | V27: 80.53 | W27: 27.68 | X27: 2.06 | Y27: 0 | Z27: 0 | AA27: 0
B28: 23 | C28: C1002 | D28: BASE HAM | E28: GRADE A TO CONTAIN HAM LOW SODIUM - PASTE NON-CAKING READY TO DISSOLVE BEEF FLAVORED NO MSG | F28: SPECIFY | H28: CS | I28: 12 | J28: 1 LBS | K28: 300 | L28: 46.17021277 | M28: 13851.06383 | N28: 3.84751773 | O28: 5154752 | P28: CSTMCUL | Q28: 6/1 LB | R28: N | T28: Sysco | U28: 0 | V28: 59.32 | W28: 73.67 | X28: 46.17 | Y28: 0 | Z28: 0 | AA28: 0
B29: 24 | C29: D1006 | D29: BEANS BAKED | E29: REDUCED SODIUM VEGETARIAN BAKED BEANS | F29: BUSHS BEST OR APPROVED EQUIVALENT | H29: CS | I29: 6 | J29: #10 CANS | K29: 1500 | L29: 46.73404255 | M29: 70101.06383 | N29: 7.789007092 | O29: 3560143 | P29: BUSHBST | Q29: 6/#10 | R29: N | S29: Lowest bid wrong item, next was special order | U29: 47.95 | V29: 35.36 | W29: 45.12 | X29: 46.73 | Y29: 0 | Z29: 0 | AA29: 0
B30: 25 | C30: D1007 | D30: BEANS GARBANZO | E30: BRINE PACK. GARBANZO BEANS WATER SALT VINEGAR DISODIUM EDTA (TO PROMOTE COLOR AND RETENTION) AND CALCIUM CHLORIDE (A FIRMING AGENT). | F30: SPECIFY | H30: CS | I30: 6 | J30: 10 LB | K30: 65 | L30: 29.81914894 | M30: 1938.244681 | N30: 4.969858156 | O30: 0075048 | P30: BUSH | Q30: 6/#10 | R30: N | T30: Sysco | U30: 33.9 | V30: 33.72 | W30: 34.78 | X30: 29.82 | Y30: 0 | Z30: 0 | AA30: 0
B31: 26 | C31: CTF7010 | D31: BEANS KIDNEY | E31: CATERING | H31: CS | I31: 6 | J31: #10 CAN | K31: 50 | L31: 29.81914894 | M31: 1490.957447 | N31: 4.969858156 | O31: 0075079 | P31: BUSH | Q31: 6/#10 | R31: N | T31: Sysco | U31: 36.95 | V31: 33.97 | W31: 36.87 | X31: 29.82 | Y31: 0 | Z31: 0 | AA31: 0
B32: 27 | C32: D1008 | D32: BEANS PINTO CANNED | E32: PINTO BEANS WHOLE STYLE SEASONED VEGETARIAN CANNED IN BRINE US GRADE B LOW SODIUM (140 MILLIGRAMS OF SODIUM OR LESS PER SERVING) | F32: BUSH'S OR APPROVED EQUIVALENT | H32: CS | I32: 6 | J32: 10 CN | K32: 1300 | L32: 29.81914894 | M32: 38764.89362 | N32: 4.969858156 | O32: 0079584 | P32: BUSH | Q32: 6/#10 | R32: N | T32: Sysco | U32: 35.6 | V32: 33.01 | W32: 34.2 | X32: 29.82 | Y32: 0 | Z32: 0 | AA32: 0
B33: 28 | C33: D1009 | D33: BEANS PINTO DRY | E33: US #1 GRADE A CURRENT CROP 98% CLEAN FREE OF WEEVILS DIRT AND ROCKS. TRIPLE CLEANED. | F33: SPECIFY | H33: LB | I33: 50 | J33: LBS | K33: 250 | L33: 0.83 | M33: 207.5 | N33: 0.0166 | O33: 4183968 | P33: SYS CLS | Q33: 1/50 LB | R33: N | T33: Sysco | U33: 31.45 | V33: 41.65 | W33: 40.41 | X33: 0.83 | Y33: 0 | Z33: 0 | AA33: 0
B34: 29 | C34: D1010 | D34: BEANS RANCH | E34: PINTO BEANS WATER TOMATO PUREE LESS THAN 2% BLEND OF VEGETABLE OILS AND ANIMAL FAT SALT CHILI PEPPERS SUGAR PAPRIKA VINEGAR SPICES ONION POWDER GARLIC POWDER NATURAL FLAVORINGS SOY LECITHIN LOW SODIUM (140 MILLIGRAMS OF SODIUM OR LESS PER SERVING) | F34: RANCH STYLE OR APPROVED EQUIVALENT | G34: 4690000116 | H34: CS | I34: 6 | J34: 10 CN | K34: 300 | L34: 34.36 | M34: 10308 | N34: 5.726666667 | O34: 1557821 | P34: ALLENS | Q34: 6 / #10 | T34: Labatt | U34: 48.85 | V34: 34.36 | W34: 48.11 | X34: 38.31 | Y34: 0 | Z34: 0 | AA34: 0
B35: 30 | C35: D1011 | D35: BEANS REFRIED | E35: DEHYDRATED JUST ADD WATER TO COOK AND SERVE UNSEASONED. US GRADE A | F35: SANTIAGO OR APPROVED EQUIVALENT | G35: 10166 | H35: CS | I35: 6 | J35: 28.1 OZ | K35: 300 | L35: 36.43617021 | M35: 10930.85106 | N35: 6.072695035 | O35: 8649127 | P35: SANTAGO | Q35: 6/26.25Z | R35: N | S35: Lowest bid wrong item | T35: Sysco | U35: 36.35 | V35: 36.89 | X35: 36.44 | Y35: 0 | Z35: 0 | AA35: 0
B36: 31 | C36: CTF7052 | D36: BEEF BRISKET | E36: BEEF PACKER TRIM VACCUUM PACKED LARGE 14-22 LB CATERING | F36: SPECIFY | H36: LB | I36: 1 | J36: LB | K36: 2000 | L36: 3.755319149 | M36: 7510.638298 | N36: 3.755319149 | O36: 1044056 | P36: PACKER | Q36: 5/10#UP | R36: N | T36: Sysco | U36: 0 | V36: 306 | W36: 6.57 | X36: 3.76 | Y36: 0 | Z36: 0 | AA36: 0
B37: 32 | C37: CTF7053 | D37: BEEF CHICKEN FRIED STEAK | E37: EXCLUSIVE CUT™ WHOLE MUSCLE BEEF. BATTERED WITH A BUTTERMILK BLEND BREADED WITH A FLOUR-BASED BREADING. CATERING | F37: ADVANCE/PIERRE OR APPROVED EQUIVALENT | G37: 4541 | H37: CS | I37: 40 | J37: 4 OZ | K37: 25 | L37: 36.19095745 | M37: 904.7739362 | N37: 0.9047739362 | O37: 2454221 | P37: ADVANCE | Q37: 40/4 OZ | R37: N | T37: Sysco | U37: 65.75 | V37: 60.17 | W37: 63.63 | X37: 36.19 | Y37: 0 | Z37: 0 | AA37: 0
B38: 33 | C38: F1010 | D38: BEEF FAJITA STRIPS | E38: FORMED BEEF SEASONED FULLY COOKED AND SLICED INTO 3/8-INCH STRIPS. SOY ADDED. CHAR MARKED. | F38: ADVANCE/PIERRE OR APPROVED EQUIVALENT | G38: 56001 | H38: CS | I38: 2 | J38: 5 LB | K38: 100 | L38: 50.7162766 | M38: =IF(L38*K38= 0,"",L38*K38) -> 5071.62766 | N38: =IF(L38/I38= 0,"",L38/I38) -> 25.3581383 | O38: 8578809 | P38: SMRTSRV | Q38: 2/5 LB | R38: N | T38: Sysco | U38: 0 | V38: 72.12 | X38: 50.72 | Y38: 0 | Z38: 0 | AA38: 0
B39: 34 | C39: F1011 | D39: BEEF GROUND 85/15 | E39: 100 % BEEF, GROUND, RAW, FROZEN, UNSEASONED FINE GRIND 85/15 LEAN/FAT RATIO, NO FILLERS, MEET NEW MEXICO GROWN REQUIREMENTS, LESS THAN 100MG SODIUM PER 3OZ SERVING, INDIVIDUALLY WRAPPED 5 PACKS/10 POUNDS | F39: NEW MEXICO'S BEST OR APPROVED EQUIVALENT | G39: NMB8515GB | H39: CS | I39: 5 | J39: 10# | K39: 2000 | L39: 192.5 | M39: 385000 | N39: 38.5 | O39: 1757 | P39: New Mexico's Best | Q39: 5/10# | R39: No | S39: Lowest wasn't brand specific or corrct pack size | T39: USA Beef | U39: 0 | V39: 150.39 | W39: 65.2 | X39: 0 | Y39: 0 | Z39: 0 | AA39: 192.5
B40: 35 | C40: F1012 | D40: BEEF PATTY | E40: FULLY COOKED BEEF PATTIES, EACH 3.00 OZ FULLY COOKED BEEF PATTY PROVIDES 2.50 OZ EQUIVALENT MEAT FOR NSL, NO FILLERS, MEET NEW MEXICO GROWN REQUIREMENTS, LESS THAN 100MG SODIUM PER 3OZ SERVING | F40: NEW MEXICO'S BEST OR APPROVED EQUIVALENT | G40: NMB8020BPSFC | H40: CS | I40: 195 | J40: 3 OZ | K40: 600 | L40: 199.26 | M40: 119556 | N40: 1.021846154 | O40: 1763 | P40: New Mexico's Best | Q40: 195/3 OZ | R40: No | S40: Lowest weren't brand specific | T40: USA Beef | U40: 0 | V40: 57.66 | W40: 202.06 | X40: 0 | Y40: 0 | Z40: 0 | AA40: 199.26
B41: 36 | C41: F1013 | D41: BEEF PHILLY STEAK | E41: FULLY COOKED COOKED SLICED STEAK LESS THAN 230MG SODIUM PER SERVING | F41: ADVANCE/PIERRE OR APPROVED EQUIVALENT | G41: 69249 | H41: CS | I41: 170 | J41: 2.82 OZ | K41: 200 | L41: 107.27 | M41: 21454 | N41: 0.631 | O41: 163289 | P41: TYSON | Q41: 192/2.5OZ | R41: NO | S41: LOWEST DIDN'T MEET NUTRITIONALS WILL BRING IN IF AWARDED | T41: BEK | U41: 107.27 | V41: 78.48 | X41: 0 | Y41: 0 | Z41: 0 | AA41: 0
B42: 37 | C42: F1014 | D42: BEEF SHREDS | E42: BEEF SHREDS, EACH 2.36OZ MEET 2M/MA FOR NSLP NO FILLERS, MEET NEW MEXICO GROWN REQUIREMENTS, LESS THAN 100MG SODIUM PER 3OZ SERVING | F42: NEW MEXICO'S BEST OR APPROVED EQUIVALENT | G42: NMBBSFC | H42: CS | I42: 5 | J42: 10 LB | K42: 600 | L42: 262.5 | M42: 157500 | N42: 52.5 | O42: 1764 | P42: New Mexico's Best | Q42: 5/10 LB | R42: No | S42: Lowest weren't brand specific | T42: USA Beef | U42: 0 | V42: 101.52 | X42: 0 | Y42: 0 | Z42: 0 | AA42: 262.5
B43: 38 | C43: F1015 | D43: BEEF STEAK FINGERS WG | E43: BEEF STRIP, FULLY COOKED, BREADED, NO FILLERS, MEET NEW MEXICO GROWN REQUIREMENTS, LESS THAN 100MG SODIUM PER 3.6 OZ SERVING | F43: NEW MEXICO'S BEST OR APPROVED EQUIVALENT | G43: NMB8020BSSBSFC | H43: CS | I43: 534 | J43: .9 oz | K43: 450 | L43: 145.68 | M43: 65556 | N43: 0.2728089888 | O43: 1765 | P43: New Mexico's Best | Q43: 534/.9 oz | R43: No | S43: Lowest wasn't brand specific or corrct pack size | T43: USA Beef | U43: 0 | V43: 125.89 | W43: 108 | X43: 0 | Y43: 0 | Z43: 0 | AA43: 145.68
B44: 39 | C44: F1016 | D44: BEEF STEAK PATTIE BREADED | E44: BEEF PATTY, BREADED, FULLY COOKED, EACH 3.2 OZ PATTY PROVIDES 2OZ EQUIVALENT MEAT/MEAT ALTERNATE FOR NSLP, NO FILLERS, MEET NEW MEXICO GROWN REQUIREMENTS, LESS THAN 100MG SODIUM PER 3.2 OZ SERVING | F44: NEW MEXICO'S BEST OR APPROVED EQUIVALENT | G44: NMB8020BPBSFC | H44: CS | I44: 150 | J44: 3.2 oz | K44: 400 | L44: 145.5 | M44: 58200 | N44: 0.97 | O44: 1766 | P44: New Mexico's Best | Q44: 150/3.2 oz | R44: No | S44: Lowest weren't brand specific | T44: USA Beef | U44: 0 | V44: 72.02 | W44: 114.06 | X44: 0 | Y44: 0 | Z44: 0 | AA44: 145.5
B45: 40 | C45: F1017 | D45: BISCUIT WG | E45: HONEY WHOLE WHEAT HEAT & SERVE PRE-SLICED MEET 2 OZ/GR | F45: BRIDGEFORD OR APPROVED EQUIVALENT | G45: 6270 | H45: CS | I45: 100 | J45: 2.25 OZ | K45: 400 | L45: 30.9 | M45: 12360 | N45: 0.309 | O45: 170370 | P45: BRIDGFORD | Q45: 100/2.25OZ | R45: NO | S45: WILL BRING IN IF AWARDED | T45: BEK | U45: 30.9 | V45: 38.76 | W45: 32.1 | X45: 30.9 | Y45: 0 | Z45: 0 | AA45: 0
B46: 41 | C46: CTF7054 | D46: BISCUIT WHITE BUTTERMILK | E46: BISCUIT OLD SOUTH BUTTERMILK PRE-SLICED FULLY COOOKED 2.25 OZ CATERING | F46: BRIDGEFORD OR APPROVED EQUIVALENT | G46: 6170 | H46: CS | I46: 100 | J46: 2.25 OZ | K46: 300 | L46: 28.88 | M46: 8664 | N46: 0.2888 | O46: 399480 | P46: BRIDGFORD | Q46: 100/2.25OZ | R46: NO | S46: WILL BRING IN IF AWARDED | T46: BEK | U46: 28.88 | V46: 31.58 | W46: 30 | X46: 34.66 | Y46: 0 | Z46: 0 | AA46: 0
B47: 42 | C47: F1018 | D47: BOLI STRAWBERRY | E47: BOLI STRAWBERRY WG IW EACH 3.24 OZ PROVIDES 2.00 OZ EQ GRAINS OR NSP | F47: TASTY BRAND OR APPROVED EQUIVALENT | G47: 53205 | H47: CS | I47: 96 | J47: 3.24 OZ | K47: 850 | L47: 59.86170213 | M47: 50882.44681 | N47: 0.6235593972 | O47: 7159341C | P47: TASTY B | Q47: 96/3.24 oz | R47: N | T47: Sysco | U47: 0 | V47: 61.65 | W47: 62.18 | X47: 59.86 | Y47: 0 | Z47: 0 | AA47: 0
B48: 43 | C48: F1019 | D48: BOLI SWEET | E48: BOLI STRAWBERRY WG IW EACH 3.24 OZ PROVIDES 2.00 OZ EQ GRAINS OR NSP | F48: TASTY BRAND OR APPROVED EQUIVALENT | G48: 53204 | H48: CS | I48: 96 | J48: 3.24 OZ | K48: 850 | L48: 62.17835 | M48: 52851.5975 | N48: 0.6476911458 | O48: 4736861 | P48: TSTYB | Q48: 96/3.24/OZ | R48: N | T48: Shamrock | U48: 0 | W48: 62.18 | X48: 0 | Y48: 0 | Z48: 0 | AA48: 0
B49: 44 | C49: F1020 | D49: BOLILLO CHORIZO & CHEESE | E49: BOLLIOS, CHORIZO & CHEESE, BULK, EACH BOLILLO MUST MEET 1.5OZ GRAIN AND 1 M/MA FOR STUDENT NUTRITION PROGRAM | F49: ARDELLA'S OR APPROVED EQUIVALENT | G49: 10014 | H49: CS | I49: 72 | J49: 3.35 OZ | K49: 900 | S49: No Bids Offered | U49: 0 | X49: 0 | Y49: 0 | Z49: 0 | AA49: 0
B50: 45 | C50: F1021 | D50: BREAD BANANA SLICE | E50: 3.4OZ (96G) FROZEN IW THAW & SERVE CONTAINS ZERO TRANS-FAT > 51% WHOLE WHEAT FLOUR NON-DAIRY NO ARTIFICIAL COLORS FLAVORS OR PRESERVATIVES. MUST CONFORM TO USDA CHILD NUTRITION PROGRAM SPECIFICATIONS AND MEET 2 SERVINGS OF GRAIN. | F50: SUPER BAKERY OR APPROVED EQUIVALENT | G50: 6071 | H50: CS | I50: 70 | J50: 3.4 OZ | K50: 1200 | L50: 47.8 | M50: 57360 | N50: 0.6828571429 | O50: 183146 | P50: SUPER BAKERY | Q50: 75/3.4OZ | R50: NO | S50: WILL BRING IN IF AWARDED MFG 7501 | T50: BEK | U50: 47.8 | V50: 49.88 | W50: 49.66 | X50: 47.81 | Y50: 0 | Z50: 0 | AA50: 0
B51: 46 | C51: F1022 | D51: BREAD LEMON | E51: 3.4OZ (96G) FROZEN IW THAW & SERVE CONTAINS ZERO TRANS-FAT > 51% WHOLE WHEAT FLOUR NON-DAIRY NO ARTIFICIAL COLORS FLAVORS OR PRESERVATIVES. MUST CONFORM TO USDA CHILD NUTRITION PROGRAM SPECIFICATIONS AND MEET 2 SERVINGS OF GRAIN. | F51: SUPER BAKERY OR APPROVED EQUIVALENT | G51: 7507 | H51: CS | I51: 70 | J51: 3.4OZ | K51: 1200 | L51: 51.41 | M51: 61692 | N51: 0.7344285714 | O51: 165891 | P51: SUPER BAKERY | Q51: 70/3.45 oz | R51: no | S51: WILL BRING IN IF AWARDED MFG 7501 | T51: BEK | U51: 51.41 | V51: 53.41 | W51: 53.4 | X51: 51.41 | Y51: 0 | Z51: 0 | AA51: 0
B52: 47 | C52: F1023 | D52: BREADSTICK | E52: WHITE WHOLE WHEAT CHEESY GARLIC BREADSTICK DOUGH FROZEN RAW PROOF AND BAKE WHOLE GRAIN FLOUR CHEESE AND GARLIC FLAVORED. EACH STICK MUST PROVIDE A MINUMIM OF 1GB COMPONENT FOR NSLP | F52: BRIDGEFORD OR APPROVED EQUIVALENT | G52: 6787 | H52: CS | I52: 320 | J52: 1.125 oz | K52: 1500 | L52: 36.91 | M52: 55365 | N52: 0.11534375 | O52: 117356 | P52: BRIDGFORD | Q52: 72 | R52: NO | S52: WILL BRING IN IF AWARDED | T52: BEK | U52: 36.91 | V52: 38.22 | W52: 38.34 | X52: 36.91 | Y52: 0 | Z52: 0 | AA52: 0
B53: 48 | C53: F1024 | D53: BREADSTICK CHEESE FILLED WG | E53: BREAKSTICK CHEESE FILLED WG EACH BREADSTICK MEETS 1M/MA FOR CHILD NUTRITION MEAL PATTERN | F53: CLASSIC DELIGHT OR APPROVED EQUIVALENT | G53: A33045 | H53: CS | I53: 112 | J53: 2 OZ | K53: 800 | L53: 62.28723404 | M53: 49829.78723 | N53: 0.5561360182 | O53: 7018979C | P53: TOOLSCH | Q53: 112/2 OZ | R53: N | T53: Sysco | U53: 0 | V53: 64.92 | W53: 68.88 | X53: 62.29 | Y53: 0 | Z53: 0 | AA53: 0
B54: 49 | C54: F1025 | D54: BREAKFAST ROUNDS | E54: CINNAMON AND BROWN SUGAR BREAKFAST ROUND IW MUST MEET 2 GRAIN FOR SBP | F54: UBR/RICH'S OR APPROVED EQUIVALENT | G54: 8733 | H54: CS | I54: 126 | J54: 2.2 OZ | K54: 1000 | L54: 56.4 | M54: 56400 | N54: 0.4476190476 | O54: 9378728 | P54: RICH'S | Q54: 126 / 2.2 OZ | T54: Labatt | U54: 0 | V54: 56.4 | W54: 58.59 | X54: 56.4 | Y54: 0 | Z54: 0 | AA54: 0
B55: 50 | C55: F1026 | D55: BURRITO | E55: BEEF BEAN AND CHEESE BURRITO. A RED CHILI BEEF BEAN AND TEXTURED VEGETABLE PROTEIN FILLING WRAPPED IN A FLOUR TORTILLA. BURRITOS SHALL BE UNIFORMLY ROLLED WITH A UNIFORM DISTRIBUTION OF FILLING. NO EXESSIVELY FLATTENED OR IRREGULAR SHAPED PRODUCT. | F55: BUTCHERBOY/POSADA OR APPROVED EQUIVALENT | G55: 1020001 | H55: CS | I55: 72 | J55: 4 OZ | K55: 1000 | L55: 48.85106383 | M55: 48851.06383 | N55: 0.6784869976 | O55: 1654466 | P55: B/BOY | Q55: 72/4 OZ | R55: N | T55: Sysco | U55: 0 | V55: 85.4 | X55: 48.85 | Y55: 0 | Z55: 0 | AA55: 0
B56: 51 | C56: F1027 | D56: BURRITO BEAN & CHEESE de CHILE RELLENO | E56: BURRITO -FROZEN BEAN & CHEESE DE CHILE RELLENO-REFRIED BEANS TOPPED WITH MEXICAN STYLE RICE WITH RED SALSA WITH POBLANO CHILE AND PEPPER JACK CHEESE ON A WHOLEWHEAT FLOUR TORTILLA. EACH 7.66 OZ. BURRITO PROVIDES 2.00 OZ MEAT ALTERNATE AND 1/8 CUP OTHER VEGETABLE AND 2.25 OZ EQV GRAIN OR 1.00 OZ MEAT ALTERNATE AND 1/8 CUPOTHER VEGETABLE AND 1/4 CUP LEGUME VEGETABLE AND 2.25 OZ EQV GRAIN TOWARDS THE NSLP, WHOLE GRAIN RICH FLOUR TORTILLA. CN LABELED. BURRITOS ARE HAND-WRAPPED INOVENABLE FOIL SHEETS. 36 COUNT. PREPARATION INSTRUCTIONS INCLUDED ON BOX. NO MORE THAN 700 MG SODIUM, LESS THAN 15% CALORIES FROM SATURATED FAT, 0 TRANS FAT. NOLESS THAN 400 KCAL. HAND HELD, FULLY COOKED. HEAT & SERVE.-VEGETARIAN. CABO PRIMO BRAND 71683 | F56: LOS CABOS OR APPROVED EQUIVALENT | G56: 71683 | H56: CS | I56: 36 | J56: 7.66 OZ | K56: 600 | L56: 68.28 | M56: 40968 | N56: 1.896666667 | O56: 870046 | P56: CABO PRIMO | Q56: 36 / 7.66 OZ | T56: Labatt | U56: 0 | V56: 68.28 | W56: 73.78 | X56: 71.03 | Y56: 0 | Z56: 0 | AA56: 0
B57: 52 | C57: F1028 | D57: BURRITO PRE-FRIED BULK | E57: 4.75 OZ. CHEESE BEEF BEAN & RED CHILI BURRITO FULLY COOKED GROUND BEEF RED CHILI SAUCE AMERICAN CHEESE PINTO BEANS WRAPPED IN A WHOLE GRAIN RICH BLEND OF WHEAT AND CORN FLOUR TORTILLA 16g PROTEIN PER SERVING CN LABELED - SERVES 2 OZ. M/MA & 2 OZ. EQUIVALENT GRAINS PRE-FRIED | F57: FERNANDO'S OR APPROVED EQUIVALENT | G57: 21072 | H57: CS | I57: 72 | J57: 4.75 oz | K57: 1000 | L57: 74.92 | M57: 74920 | N57: 1.040555556 | O57: 8977070 | P57: FERNANDOS | Q57: 72 / 4.75 OZ | S57: Lowest bid wrong item | T57: Labatt | U57: 73.38 | V57: 74.92 | W57: 77.33 | X57: 54.84 | Y57: 0 | Z57: 0 | AA57: 0
B58: 53 | C58: D1012 | D58: BUTTER ALTERNATIVE | E58: PHASE® ZERO TRANS NO SODIUM LIQUID BUTTER ALTERNATIVE | F58: PHASE OR APPROVED EQUIVALENT | G58: 13688 | H58: CS | I58: 3 | J58: GAL | K58: 200 | L58: 42.39 | M58: 8478 | N58: 14.13 | O58: 176311 | P58: Ventura | Q58: 1/.17.5 lb | R58: no | T58: BEK | U58: 42.39 | V58: 48.36 | X58: 56.4 | Y58: 0 | Z58: 0 | AA58: 0
B59: 54 | C59: C1008 | D59: BUTTERMILK BAKING 1% | E59: BUTTERMILK BAKING 1% | F59: SPECIFY | H59: CS | I59: 4 | J59: GAL | K59: 100 | L59: 4.62 | M59: 462 | N59: 1.155 | O59: 8205046 | P59: BORDEN | Q59: 1 / HG | T59: Labatt | U59: 23.28 | V59: 4.62 | W59: 19.41 | X59: 20.04 | Y59: 0 | Z59: 0 | AA59: 0
B60: 55 | C60: D1013 | D60: CEREAL BLUEBERRY CHEX 2OZ | E60: BLUEBERRY CHEX AND SWEETENED RICE GLUTEN-FREE CEREAL. THIS READY-TO-EAT CUP PROVIDES CONVENIENT PORTION CONTROL AND ROOM FOR MILK. WHOLE GRAIN RICE – FIRST INGREDIENT. MEETS 2 OUNCE EQUIVALENT GRAINS USDA SMART SNACK CRITERIA AND IS CACFP ELIGIBLE. | F60: GENERAL MILLS OR APPROVED EQUIVALENT | G60: 17262000 | H60: CS | I60: 60 | J60: 2 OZ | K60: 500 | L60: 33.60638298 | M60: 16803.19149 | N60: 0.560106383 | O60: 7143888 | P60: GM | Q60: 60/2 OZ | R60: N | T60: Sysco | U60: 0 | V60: 36.94 | W60: 36.09 | X60: 33.61 | Y60: 0 | Z60: 0 | AA60: 0
B61: 56 | C61: D1014 | D61: CEREAL CHEERIOS 1 OZ | E61: READY TO EAT CEREALS: BOWL PACK WHOLE GRAIN OATS RINGS. MUST MEET 1G EQUIVALENCY FOR SBP | F61: GENERAL MILLS OR APPROVED EQUIVALENT | G61: 32262000 | H61: CS | I61: 96 | J61: 1 oz | K61: 250 | L61: 27.12765957 | M61: 6781.914894 | N61: 0.2825797872 | O61: 2177584 | P61: GM | Q61: 96/1 OZ | R61: N | T61: Sysco | U61: 0 | V61: 30.27 | W61: 27.54 | X61: 27.13 | Y61: 0 | Z61: 0 | AA61: 0
B62: 57 | C62: D1015 | D62: CEREAL CINNAMON CHEX 1 OZ | E62: CINNAMON CHEX™ IS MADE WITH REAL CINNAMON AND SWEETENED RICE GLUTEN-FREE CEREAL. THIS READY-TO-EAT CUP PROVIDES CONVENIENT PORTION CONTROL AND ROOM FOR MILK. WHOLE GRAIN RICE – FIRST INGREDIENT. MEETS 2 OUNCE EQUIVALENT GRAINS USDA SMART SNACK CRITERIA AND IS CACFP ELIGIBLE. | F62: GENERAL MILLS OR APPROVED EQUIVALENT | G62: 14883000 | H62: CS | I62: 60 | J62: 2 OZ | K62: 500 | L62: 33.60638298 | M62: 16803.19149 | N62: 0.560106383 | O62: 7072203 | P62: GM | Q62: 60/2 OZ | R62: N | T62: Sysco | U62: 0 | V62: 37.02 | W62: 34.12 | X62: 33.61 | Y62: 0 | Z62: 0 | AA62: 0
B63: 58 | C63: D1016 | D63: CEREAL CINNAMON TOAST 1 OZ | E63: READY TO EAT CEREALS: BOWL PACK WHOLE GRAIN 25% LESS SUGAR CINNAMON TOAST SQUARES. MUST MEET 1G EQUIVALENCY FOR SBP | F63: GENERAL MILLS OR APPROVED EQUIVALENT | G63: 294440000 | H63: CS | I63: 96 | J63: 1 OZ | K63: 250 | L63: 27.12765957 | M63: 6781.914894 | N63: 0.2825797872 | O63: 6055800 | P63: GM | Q63: 96/1 OZ | R63: N | T63: Sysco | U63: 0 | V63: 30.27 | W63: 27.54 | X63: 27.13 | Y63: 0 | Z63: 0 | AA63: 0
B64: 59 | C64: D1017 | D64: CEREAL CINNAMON TOAST 2OZ | E64: READY TO EAT CEREALS: BOWL PACK WHOLE GRAIN 25% LESS SUGAR CINNAMON TOAST SQUARES. MUST MEET 2G EQUIVALENCY FOR SBP | F64: GENERAL MILLS OR APPROVED EQUIVALENT | G64: 148861000 | H64: CS | I64: 60 | J64: 2 OZ | K64: 1000 | L64: 37.02 | M64: 37020 | N64: 0.617 | O64: 6490026 | P64: GEN MILLS | Q64: 60 / 2.0 OZ | S64: Lowest bid wrong pack size | T64: Labatt | U64: 0 | V64: 37.02 | W64: 27.54 | X64: 33.61 | Y64: 0 | Z64: 0 | AA64: 0
B65: 60 | C65: D1018 | D65: CEREAL COCOA PUFFS 2OZ | E65: READY TO EAT CEREALS: BOWL PACK WHOLE GRAIN COCOA PUFFS REDUCED SUGAR MUST MEET 2 GRAIN EQUIVALENCY FOR SBP | F65: GENERAL MILLS OR APPROVED EQUIVALENT | G65: 148854000 | H65: CS | I65: 60 | J65: 2 OZ | K65: 1000 | L65: 37.02 | M65: 37020 | N65: 0.617 | O65: 6490029 | P65: GEN MILLS | Q65: 60 / 2 OZ | S65: Lowest bids were wrong item and special order | T65: Labatt | U65: 0 | V65: 37.02 | W65: 34.12 | X65: 33.61 | Y65: 0 | Z65: 0 | AA65: 0
B66: 61 | C66: D1019 | D66: CEREAL CREAM OF WHEAT | E66: HOT CEREALS: ENRICHED PLAIN BULK QUICK COOK CREAM OF WHEAT WHOLE GRAIN. MUST MEET 1G EQUIVALENCY FOR SBP | F66: SPECIFY | H66: CS | I66: 12 | J66: 28 OZ | K66: 10 | L66: 25.76 | M66: 257.6 | N66: 2.146666667 | O66: 6621239 | P66: INTL HOME | Q66: 12 / 28 OZ. | T66: Labatt | U66: 0 | V66: 25.76 | W66: 59.93 | X66: 26.63 | Y66: 0 | Z66: 0 | AA66: 0
B67: 62 | C67: D1020 | D67: CEREAL LUCKY CHARMS 2OZ | E67: READY TO EAT CEREALS: BOWL PACK WHOLE GRAIN WITH MARSHMALLOWS ASSORTED BERRY PUFFS REDUCED SUGAR. MUST MEET 2G EQUIVALENCY FOR SBP | F67: GENERAL MILLS OR APPROVED EQUIVALENT | G67: 148847000 | H67: CS | I67: 60 | J67: 2 OZ | K67: 200 | L67: 34.1172 | M67: 6823.44 | N67: 0.56862 | O67: 4461851 | P67: GNRLM | Q67: 60/2/OZ | R67: N | S67: Lowest had wrong size | T67: Shamrock | U67: 0 | V67: 37.02 | W67: 34.12 | X67: 33.61 | Y67: 0 | Z67: 0 | AA67: 0
B68: 63 | C68: D1021 | D68: CEREAL OATMEAL | E68: OATS ROLLED INSTANT ENRICHED DRY | F68: SPECIFY | H68: CS | I68: 12 | J68: 42 OZ | K68: 20 | L68: 44.66 | M68: =IF(L68*K68= 0,"",L68*K68) -> 893.2 | N68: =IF(L68/I68= 0,"",L68/I68) -> 3.721666667 | O68: 4022711 | P68: HSPTL | Q68: 12/42/OZ | R68: N | T68: Shamrock | U68: 50.03 | V68: 57.42 | W68: 44.66 | X68: 48.13 | Y68: 0 | Z68: 0 | AA68: 0
B69: 64 | C69: D1022 | D69: CEREAL RICE KRISPIES BULK | E69: RICE BULK WHOLE GRAIN PLAIN PUFFS. MUST MEET 1G EQUIVALENCY FOR SBP | F69: SPECIFY | H69: CS | I69: 4 | J69: 35 OZ | K69: 900 | L69: 22.35531915 | M69: 20119.78723 | N69: 5.588829787 | O69: 6709455 | P69: HOSPTLY | Q69: 4/35 OZ | R69: N | T69: Sysco | U69: 22.87 | V69: 27.08 | W69: 28.99 | X69: 22.36 | Y69: 0 | Z69: 0 | AA69: 0
B70: 65 | C70: C1009 | D70: CHEESE AMERICAN SLICED | E70: CHEESE AMERICAN PROCESSED SLICED 1/2 OUNCE EACH UNWRAPPED. REDUCED FAT REDUCED SODIUM PRE-SLICED YELLOW AMERICAN PROCESSED CHEESE. IMITATION OR CHEESE BLENDS NOT ACCEPTED. FAT GRAMS NOT TO EXCEED 2G PER SLICE SODIUM NOT TO EXCEED 210MG PER SLICE. 1 SLICE/.5OZ .5OZMMA 6/5#LAND O LAKES PREFERRED - AVAILABLE FOR NET OFF INVOICE. FOR NOI PRICING | F70: BONGARDS OR APPROVED EQUIVALENT | G70: 111371 | H70: CS | I70: 6 | J70: 5 LB | K70: 675 | L70: 85.51 | M70: 57719.25 | N70: 14.25166667 | O70: 8660266 | P70: BONGARDS | Q70: 6/5lb | S70: Lowest wasn't brand specific | T70: Labatt | U70: 57.43 | V70: 76.17 | W70: 53.47 | X70: 45.95 | Y70: 0 | Z70: 0 | AA70: 0
B71: 66 | C71: C1010 | D71: CHEESE CHEDDAR SHREDDED | E71: CHEESE CHEDDAR SHREDDED REDUCED FAT REDUCED SODIUM MILD NO IMITATION ENZYMES AND ARTIFICIAL COLORING MAY BE ADDED. PASTEURIZED PLEASING ODOR AND FLAVOR SATISFACTORY MELTABILITY. FAT GRAMS NOT TO EXCEED 4.5G SODIUM NOT TO EXCEED 90MG. 4/5# AVAILABLE FOR NET OFF INVOICE. FOR NOI PRICING | F71: BONGARDS OR APPROVED EQUIVALENT | G71: 755191 | H71: CS | I71: 4 | J71: 5 LB | K71: 600 | L71: 62.95 | M71: 37770 | N71: 15.7375 | O71: 8662000 | P71: BONGARDS | Q71: 4/5lb | S71: Lowest wasn't brand specific | T71: Labatt | U71: 70.95 | V71: 60.34 | W71: 60.65 | X71: 57.07 | Y71: 0 | Z71: 0 | AA71: 0
B72: 67 | C72: CTF7000 | D72: CHEESE COTTAGE | E72: COTTAGE CHEESE SMALL CURD CATERING | F72: SPECIFY | H72: CS | I72: 1 | J72: 5 LB | K72: 75 | L72: 11.49 | M72: 861.75 | N72: 11.49 | O72: 8201266 | P72: SARAH FARM | Q72: 1 / 5 LB | T72: Labatt | U72: 47.5 | V72: 11.49 | W72: 25.88 | X72: 14.41 | Y72: 0 | Z72: 0 | AA72: 0
B73: 68 | C73: CTF7001 | D73: CHEESE CREAM BLOCK | E73: CREAM CHEESE BLOCK CATERING | F73: SPECIFY | H73: CS | I73: 10 | J73: 3 LB | K73: 20 | L73: 62.1787234 | M73: 1243.574468 | N73: 6.21787234 | O73: 1012566 | P73: WHLFIMP | Q73: 10/3 LB | R73: N | T73: Sysco | U73: 75.89 | V73: 77.07 | W73: 87.37 | X73: 62.18 | Y73: 0 | Z73: 0 | AA73: 0
B74: 69 | C74: C1011 | D74: CHEESE CREAM PLAIN PC | E74: .75 OZ PLAIN CREAM CHEESE PLASTIC PORTION CONTROL CUP | F74: KRAFT OR APPROVED EQUIVALENT | G74: 61089 | H74: CS | I74: 100 | J74: .75 OZ | K74: 900 | L74: 18.84468085 | M74: 16960.21277 | N74: 0.1884468085 | O74: 5156284 | P74: RASKAS | Q74: 100/1 OZ | R74: N | T74: Sysco | U74: 21.34 | V74: 22.01 | W74: 26.43 | X74: 18.84 | Y74: 0 | Z74: 0 | AA74: 0
B75: 70 | C75: C1012 | D75: CHEESE CREAM STRAWBERRY PC | E75: 1OZ STRAWBERRY CREAM CHEESE CUP. PLASTIC PORTION CONTROL CUP. | F75: KRAFT OR APPROVED EQUIVALENT | G75: 72683 | H75: CS | I75: 100 | J75: 1 OZ | K75: 900 | L75: 13.3787234 | M75: 12040.85106 | N75: 0.133787234 | O75: 6262000 | P75: BBRLIMP | Q75: 100/.75 OZ | R75: N | T75: Sysco | U75: 18.85 | V75: 19.07 | W75: 38.8 | X75: 13.38 | Y75: 0 | Z75: 0 | AA75: 0
B76: 71 | C76: C1013 | D76: CHEESE FETA | E76: FETA CHEESE CRUMBLES | F76: SPECIFY | H76: CS | I76: 4 | J76: 2.5 LB | K76: 50 | L76: 36.54840426 | M76: 1827.420213 | N76: 9.137101064 | O76: 135632 | P76: SYS IMP | Q76: 2/5 LB | R76: N | T76: Sysco | U76: 85.11 | V76: 37.09 | W76: 38.08 | X76: 36.55 | Y76: 0 | Z76: 0 | AA76: 0
B77: 72 | C77: C1014 | D77: CHEESE MOZZARELLA SHREDDED | E77: CHEESE MOZZARELLA SHREDDED: PART-SKIM 100% MOZZARELLA SHREDDED. FAT GRAMS NOT TO EXCEED 6G SODIUM NOT TO EXCEED 160MG. 1OZ SERVING MUST EQUAL 1OZ M/MA. 4/5# | F77: LAND O'LAKES OR APPROVED EQUIVALENT | G77: 41698 | H77: CS | I77: 4 | J77: 5 LB | K77: 270 | L77: 52.35617021 | M77: 14136.16596 | N77: 13.08904255 | O77: 2329413 | P77: AREZIMP | Q77: 4/5LB | R77: N | T77: Sysco | U77: 60.3 | V77: 59.63 | W77: 70.76 | X77: 52.36 | Y77: 0 | Z77: 0 | AA77: 0
B78: 73 | C78: C1015 | D78: CHEESE PEPPER JACK SLICES | E78: CHEESE SLICED PEPPER JACK NO IMITATION REDUCED FAT LOW SODIUM LOW FAT 160 CT | F78: SPECIFY | H78: CS | I78: 4 | J78: 5 LB | K78: 50 | L78: 28.54255319 | M78: 1427.12766 | N78: 7.135638298 | O78: 8315453 | P78: GR LAKE | Q78: 8/20 OZ | R78: N | T78: Sysco | U78: 43.69 | V78: 42.5 | W78: 67.3 | X78: 28.54 | Y78: 0 | Z78: 0 | AA78: 0
B79: 74 | C79: C1016 | D79: CHEESE PROVOLONE SLICES | E79: CHEESE SLICED NO IMITATION REDUCED FAT & SODIUM 160 CT | F79: SPECIFY | H79: CS | I79: 4 | J79: 5 LB | K79: 50 | L79: 39.35744681 | M79: 1967.87234 | N79: 9.839361702 | O79: 4605525 | P79: SCHRBER | Q79: 10/1 LB | R79: N | T79: Sysco | U79: 0 | V79: 58.58 | W79: 40.12 | X79: 39.36 | Y79: 0 | Z79: 0 | AA79: 0
B80: 75 | C80: F1029 | D80: CHEESE STICK BREADED | E80: CHEESE STICKS WG BREADED INDIVIDUALLY FROZEN. 6 STICKS PROVIDE 2 OZ EQUIVALENT MEAT ALTERNATE AND 2 OZ GRAINS. | F80: RICH'S OR APPROVED EQUIVALENT | G80: 65220 | H80: CS | I80: 8 | J80: 3 LB | K80: 500 | L80: 73.93617021 | M80: 36968.08511 | N80: 9.242021277 | O80: 6364861 | P80: FARMRIC | Q80: 8/3 LB | R80: N | T80: Sysco | U80: 0 | V80: 73.94 | W80: 76.8 | X80: 73.94 | Y80: 0 | Z80: 0 | AA80: 0
B81: 76 | C81: C1017 | D81: CHEESE STICK MARBLE IW | E81: CHEESE REDUCED FAT & SODIUM MARBLE IW FOR NOI PRICING | F81: BONGARDS OR APPROVED EQUIVALENT | G81: 402931 | H81: CS | I81: 168 | J81: 1 OZ | K81: 300 | L81: 45.35 | M81: 13605 | N81: 0.2699404762 | O81: 8660028 | P81: BONGARDS | Q81: 168 / 1 OZ | S81: Lowest was special order | T81: Labatt | U81: 0 | V81: 45.35 | W81: 43.81 | X81: 0 | Y81: 0 | Z81: 0 | AA81: 0
B82: 77 | C82: C1018 | D82: CHEESE STRING IW | E82: CHEESE: WHITE REDUCED FAT & SODIUM PORTION STICKS STRING PASTEURIZED LOW MOISTURE PART SKIM MOZZARELLA IW FOR NOI PRICING | F82: BONGARDS OR APPROVED EQUIVALENT | G82: 402951 | H82: CS | I82: 168 | J82: 1 OZ | K82: 300 | L82: 39.71 | M82: 11913 | N82: 0.2363690476 | O82: 8660032 | P82: BONGARDS | Q82: 168 / 1 OZ | S82: Lowest wasn't brand specific | T82: Labatt | U82: 0 | V82: 39.71 | W82: 38.51 | X82: 37.6 | Y82: 0 | Z82: 0 | AA82: 0
B83: 78 | C83: C1019 | D83: CHEESE SWISS SLICES | E83: SWISS CHEESE SLICES REDUCED FAT PRESLICED EASY TO SEPARATE. EACH SLICE 14G. 2 SLICES PROVIDES 1 M/MA FOR THE CHILD NUTRITION MEAL PROGRAM. | F83: LAND O'LAKES OR APPROVED EQUIVALENT | H83: CS | I83: 8 | J83: 1.5 LB | K83: 50 | L83: 41.0032 | M83: 2050.16 | N83: 5.1254 | O83: 4470831 | P83: CBLSO | Q83: 6/1.5/LB | R83: N | T83: Shamrock | U83: 0 | V83: 53.1 | W83: 41 | X83: 45.8 | Y83: 0 | Z83: 0 | AA83: 0
B84: 79 | C84: F1030 | D84: CHICKEN ASIAN CHERRY BLOOSOM | E84: FULLY COOKED CHICKEN CHUNKS WHOLE GRAIN SWEET AND SOUR CHERRY ASIAN STYLE | F84: ASIAN FOODS OR APPROVED EQUIVALENT | G84: 72005 | H84: CS | I84: 6 | J84: 7.15 LB | K84: 500 | L84: 176.35 | M84: 88175 | N84: 29.39166667 | O84: 3301761 | P84: ASIAN FOOD | Q84: 6 / 7.15 LB | T84: Shamrock | U84: 0 | V84: 176.35 | W84: 172.81 | X84: 180.38 | Y84: 0 | Z84: 0 | AA84: 0
B85: 80 | C85: CTF7055 | D85: CHICKEN BREAST RAW | E85: CHICKEN UNCOOKED BREAST BONELESS SKINLESS WHITE 6 OZ SIZE CATERING | F85: SPECIFY | H85: CS | I85: 4 | J85: 5LB | K85: 25 | L85: 53.63819149 | M85: 1340.954787 | N85: 13.40954787 | O85: 6631477 | P85: SYS CLS | Q85: 48/6 OZ | R85: N | T85: Sysco | U85: 0 | V85: 100.4 | W85: 73.67 | X85: 53.64 | Y85: 0 | Z85: 0 | AA85: 0
B86: 81 | C86: D1023 | D86: CHICKEN BROTH | E86: 100% NATURAL CHICKEN BROTH LOW SODIUM THANKSGIVING ONLY | F86: SWANSON OR APPROVED EQUIVALENT | H86: CS | I86: 12 | J86: 49 oz | K86: 50 | L86: 35.508 | M86: 1775.4 | N86: 2.959 | O86: 4472551 | P86: SWNSN | Q86: 12/32/OZ | R86: N | T86: Shamrock | U86: 0 | V86: 48.31 | W86: 35.51 | X86: 41.38 | Y86: 0 | Z86: 0 | AA86: 0
B87: 82 | C87: F1031 | D87: CHICKEN DICED | E87: FULLY COOKED DICED NO ADDED SPICES | F87: SPECIFY | H87: CS | I87: 2 | J87: 5 LBS | K87: 300 | L87: 24.44 | M87: 7332 | N87: 12.22 | O87: 143959 | P87: TYSON | Q87: 2/5# | R87: NO | S87: WILL BRING IN IF AWARDED | T87: BEK | U87: 24.44 | V87: 126.47 | W87: 43.66 | X87: 43.62 | Y87: 0 | Z87: 0 | AA87: 0
B88: 83 | C88: F1032 | D88: CHICKEN DRUMSTICK BBQ | E88: FULLY COOKED BBQ GLAZED DRUMSTICK MUST MEET 2.5OZ M/MA FOR NSLP NO ANTIBIOTICS | F88: TYSON OR APPROVED EQUIVALENT | G88: 10264350928 | H88: CS | I88: 95 | J88: 3.24 OZ | K88: 600 | L88: 30.25 | M88: 18150 | N88: 0.3184210526 | O88: 8861125 | P88: TYSON | Q88: 2 / 5 # | T88: Labatt | U88: 0 | V88: 30.25 | W88: 90.1 | X88: 30.5 | Y88: 0 | Z88: 0 | AA88: 0
B89: 84 | C89: F1033 | D89: CHICKEN DRUMSTICK BREADED | E89: FULLY COOKED BREADED DRUMSTICK MUST MEET 2 M/MA AND .75 OZ GRAIN FOR NSLP | F89: TYSON OR APPROVED EQUIVALENT | G89: 16660100928 | H89: CS | I89: 92 | J89: 3.31 OZ | K89: 700 | L89: 93.66 | M89: 65562 | N89: 1.018043478 | O89: 3552991 | P89: TYSON | Q89: 1/29/LB | R89: Y | T89: Shamrock | V89: 101 | W89: 93.66 | X89: 98.21 | Y89: 0 | Z89: 0 | AA89: 0
B90: 85 | C90: F1034 | D90: CHICKEN FAJITA STRIPS | E90: FAJITA STRIPS CHICKEN SEASONED FULLY COOKED. EACH 2.47 OZ MEETS 2OZ M/MA FOR NSLP. | F90: PILGRIM'S OR APPROVED EQUIVALENT | G90: 1250 | H90: CS | I90: 159 | J90: 3 OZ | K90: 800 | L90: 118.88 | M90: 95104 | N90: 0.747672956 | O90: 4361021 | P90: GLDKF | Q90: 1/30/LB | R90: N | S90: Lowest bid wrong brand and pack size | T90: Shamrock | U90: 55.14 | V90: 121.96 | W90: 118.88 | X90: 31.13 | Y90: 0 | Z90: 0 | AA90: 0
B91: 86 | C91: F1035 | D91: CHICKEN FILET | E91: FULLY COOKED WHOLE MUSCLE CHICKEN FILETS-CN LABELED EACH SERVING PROVIDED 2OZ M/MA AND 1 OZ GRAIN FOR NSLP | F91: PILGRIM'S OR APPROVED EQUIVALENT | G91: 7516 | H91: CS | I91: 122 | J91: 3.95 OZ | K91: 100 | S91: No one was brand specific | U91: 0 | V91: 149.85 | W91: 141.25 | X91: 76.95 | Y91: 0 | Z91: 0 | AA91: 0
B92: 87 | C92: F1036 | D92: CHICKEN NUGGET | E92: FULLY COOKED WG BREADED CN LABELED WHOLE MUSCLE 5 NUGGETS PROVIDE 2 OZ MEAT/MEAT ALTERNATIVE AND 1 GRAIN SERVING FOR NSLP COMMERICAL BACK-UP OF COMMODITY PRODUCT OR FOR NOI PRICING | F92: GOLK KIST FARMS OR APPROVED EQUIVALENT | G92: 7518 | H92: CS | I92: 101 | J92: 3.9 OZ | K92: 600 | L92: 91.77 | M92: 55062 | N92: 0.9086138614 | O92: 8867509 | P92: GOLD KIST | Q92: 6 / 5 LB | S92: Lowest wasn't brand specific | T92: Labatt | U92: 0 | V92: 91.77 | W92: 120.01 | X92: 24.45 | Y92: 0 | Z92: 0 | AA92: 0
B93: 88 | C93: F1037 | D93: CHICKEN PATTY BREADED | E93: FULLY COOKED WG BREADED CN LABELED EACH PATTY PROVIDES 2 OZ MEAT/MEAT ALTERNATIVE AND 1 GRAIN SERVING. | F93: GOLD KIST FARMS OR APPROVED EQUIVALENT | G93: 665400 | H93: CS | I93: 158 | J93: 3.03 OZ | K93: 450 | L93: 85.41 | M93: 38434.5 | N93: 0.5405696203 | O93: 3807031 | P93: GLDKF | Q93: 1/156/PK | R93: N | S93: Lowest wasn't brand specific | T93: Shamrock | U93: 0 | V93: 91.44 | W93: 85.41 | X93: 55.23 | Y93: 0 | Z93: 0 | AA93: 0
B94: 89 | C94: F1038 | D94: CHICKEN PATTY BREADED SPICY | E94: FULLY COOKED HOT N SPICY BREADED CHICKEN BREAST FILETS | F94: TYSON OR APPROVED EQUIVALENT | G94: 10383140928 | H94: CS | I94: 40 | J94: 3.95 OZ | K94: 300 | L94: 45.75 | M94: 13725 | N94: 1.14375 | O94: 2634181 | P94: TYSRD | Q94: 2/5/LB | R94: N | T94: Shamrock | U94: 92.95 | V94: 80.84 | W94: 45.75 | X94: 75.06 | Y94: 0 | Z94: 0 | AA94: 0
B95: 90 | C95: F1039 | D95: CHICKEN PATTY GRILLED | E95: FULLY COOKED GRILLED CHICKEN BREASTS 4OZ PATTY NO ANTIBIOTICS | F95: TYSON OR APPROVED EQUIVALENT | G95: 10000039685 | H95: CS | I95: 40 | J95: 3.95 OZ | K95: 300 | S95: No one bid correct item | U95: 0 | W95: 43.64 | X95: 76.95 | Y95: 0 | Z95: 0 | AA95: 0
B96: 91 | C96: F1040 | D96: CHICKEN POPCORN SMACKERS WG | E96: WHOLE GRAIN BREADED FULLY COOKED CN LABELED POPCORN CHICKEN PRODUCED FROM USDA 100103 DARK MEAT COMMODITY CHICKEN. NO ADDED SOY PROTEIN. BATTER BREADED WITH WHOLE GRAIN AND ENRICHED WHEAT FLOUR. TEN POPCORN PIECES @ 0.43 OZ EACH GUARANTEED BY CN LABEL TO PROVIDE 2 OUNCES MEAT/MEAT ALTERNATIVE AND 1 GRAIN SERVINGS. PRODUCT TO PROVIDE ZERO GRAMS TRANS FATS. CONTAINS: MILK SOY WHEAT. COMMERICAL BACK-UP OF COMMODITY PRODUCT OR FOR NOI PRICING | F96: GOLD KIST FARMS OR APPROVED EQUIVALENT | G96: 110458 | H96: CS | I96: 104 | J96: 4.23 OZ | K96: 900 | L96: 96.1 | M96: 86490 | N96: 0.9240384615 | O96: 3911851 | P96: GLDKF | Q96: 108/4.3/OZ | R96: N | S96: Lowest wasn't brand specific | T96: Shamrock | U96: 0 | V96: 102.77 | W96: 96.1 | X96: 91.07 | Y96: 0 | Z96: 0 | AA96: 0
B97: 92 | C97: F1041 | D97: CHICKEN STRIP WG | E97: WHOLE GRAIN HOMESTYLE BREADED FULLY-COOKED CN LABELED CHICKEN STRIPS PRODUCED FROM USDA 100103 NATURAL PROPORTION WHITE AND DARK MEAT COMMODITY CHICKEN WITH ISOLATED SOY PROTEIN. STRIPS ARE BATTER BREADED WITH WHOLE GRAIN WHEAT FLOUR HOMESTYLE BREADING. THREE STRIPS PROVIDE 2 OZ. MEAT/MEAT ALTERNATIVE AND 1 GRAIN SERVING. PRODUCT TO PROVIDE ZERO GRAMS TRANS FATS. COMMERICAL BACK-UP OF COMMODITY PRODUCT OR FOR NOI PRICING | F97: GOLD KIST FARMS OR APPROVED EQUIVALENT | G97: 7527 | H97: CS | I97: 107 | J97: 4.50 OZ | K97: 900 | L97: 148.37 | M97: 133533 | N97: 1.386635514 | O97: 8867004 | P97: GOLD KIST | Q97: 107 / 4.5 OZ | S97: Lowest weren't brand specific | T97: Labatt | U97: 0 | V97: 148.37 | W97: 113.26 | X97: 80.1 | Y97: 0 | Z97: 0 | AA97: 0
B98: 93 | C98: D1024 | D98: CHILI HOT DOG | E98: HOT DOG CHILI. HEARTY CHUNKS OF LEAN BEEF AND PLUMP TENDER BEANS | F98: LIBBY'S OR APPROVED EQUIVALENT | H98: CS | I98: 6 | J98: #10 CANS | K98: 800 | L98: 66.3 | M98: 53040 | N98: 11.05 | O98: 3221231 | P98: LIBBY | Q98: 6 / #10 | S98: Lowest wasn't brand specific | T98: Labatt | U98: 0 | V98: 66.3 | W98: 94.91 | X98: 31.87 | Y98: 0 | Z98: 0 | AA98: 0
B99: 94 | C99: D1025 | D99: CHIPS BAKED CHEETOS CRUNCHY | E99: CHIPS BAKED CRUNCHY CHEETOS | F99: FRITO LAY OR APPROVED EQUIVALENT | G99: 000-28400-21642-5 | H99: CS | I99: 104 | J99: .875 OZ | K99: 472 | L99: 30.62765957 | M99: 14456.25532 | N99: 0.2944967267 | O99: 9978982 | P99: CHEETOS | Q99: 104/.875OZ | R99: N | T99: Sysco | U99: 0 | V99: 43.88 | X99: 30.63 | Y99: 0 | Z99: 0 | AA99: 0
B100: 95 | C100: D1026 | D100: CHIPS BAKED DORITOS | E100: CHIPS BAKED DORITOS NACHO CHEESE | F100: FRITO LAY OR APPROVED EQUIVALENT | G100: 000-28400-20002-8 | H100: CS | I100: 88 | J100: .75 OZ | K100: 549 | L100: 32.5 | M100: 17842.5 | N100: 0.3693181818 | O100: 3777915 | P100: DORITOS | Q100: 72 / 1 OZ | T100: Labatt | U100: 0 | V100: 32.5 | X100: 42.11 | Y100: 0 | Z100: 0 | AA100: 0
B101: 96 | C101: D1027 | D101: CHIPS BAKED LAYS BBQ | E101: CRISPS BAKED LAYS BBQ FLAVOR | F101: FRITO LAY OR APPROVED EQUIVALENT | G101: 000-28400-32078-8 | H101: CS | I101: 60 | J101: .875 OZ | K101: 100 | L101: 22.858 | M101: 2285.8 | N101: 0.3809666667 | O101: 2435681 | P101: LAYS | Q101: 60/0.88/OZ | R101: N | T101: Shamrock | U101: 0 | V101: 27.9 | W101: 22.86 | X101: 37.39 | Y101: 0 | Z101: 0 | AA101: 0
B102: 97 | C102: D1028 | D102: CHIPS BAKED LAYS SC/ONION | E102: CRISPS BAKED LAYS SOUR CREAM & ONION | F102: FRITO LAY OR APPROVED EQUIVALENT | G102: 00028400-04702-9 | H102: CS | I102: 60 | J102: .875 OZ | K102: 400 | L102: 27.9 | M102: 11160 | N102: 0.465 | O102: 3778139 | P102: LAYS | Q102: 60 / .875 OZ | T102: Labatt | U102: 0 | V102: 27.9 | W102: 36.23 | X102: 29.28 | Y102: 0 | Z102: 0 | AA102: 0
B103: 98 | C103: D1029 | D103: CHIPS FRITOS | E103: ENRICHED REDUCED FAT CORN CHIPS WHOLE GRAIN | F103: FRITO LAY OR APPROVED EQUIVALENT | G103: 000-28400-57766-3 | H103: CS | I103: 8 | J103: 1 LB | K103: 1900 | L103: 18.56170213 | M103: 35267.23404 | N103: 2.320212766 | O103: 4073847 | P103: FRITOS | Q103: 8/16 OZ | R103: N | T103: Sysco | U103: 19.96 | V103: 21.73 | X103: 18.56 | Y103: 0 | Z103: 0 | AA103: 0
B104: 99 | C104: CTF7011 | D104: CHIPS KETTLE VARIETY | E104: VARIETY PACK OF KETTLE CHIPS CATERING | F104: SPECIFY | H104: CS | I104: 30 | J104: 1.5 OZ | K104: 25 | L104: 37.36382979 | M104: 934.0957447 | N104: 1.245460993 | O104: 7157248 | P104: MSVICKI | Q104: 2/30 CT | R104: N | T104: Sysco | U104: 0 | V104: 43.98 | W104: 40.79 | X104: 37.36 | Y104: 0 | Z104: 0 | AA104: 0
B105: 100 | C105: D1030 | D105: CHIPS SS CHEETO RED HOT | E105: CHIPS IND. PKG. RED HOT FRITO LAY BAKED: ENRICHED CORNMEAL PUFF STICK FLAVORED WITH RED HOT CHEESE SEASONING. 104/.875 OZ | F105: CHEETO'S OR APPROVED EQUIVALENT | G105: 62984 | H105: CS | I105: 104 | J105: .875 OZ | K105: 400 | L105: 42.2106383 | M105: 16884.25532 | N105: 0.4058715221 | O105: 4360776 | P105: CHEETOS | Q105: 104/.875OZ | R105: N | T105: Sysco | U105: 0 | V105: 43.88 | W105: 44.81 | X105: 42.21 | Y105: 0 | Z105: 0 | AA105: 0
B106: 101 | C106: D1031 | D106: CHIPS SS DORITOS COOL RANCH | E106: CHIPS IND. PKG. REDUCED FAT COOL RANCH FLAVORED CORN: BAKED TRIANGLE SHAPED CORN TORTILLA PIECES FLAVORED WITH RANCH SEASONING. 72/1 OZ. | F106: DORITOS OR APPROVED EQUIVALENT | G106: 36096 | H106: CS | I106: 72 | J106: 1 OZ | K106: 400 | L106: 26.23191489 | M106: 10492.76596 | N106: 0.3643321513 | O106: 5073130 | P106: DORITOS | Q106: 72/1 OZ | R106: N | T106: Sysco | U106: 0 | V106: 32.5 | W106: 29.22 | X106: 26.23 | Y106: 0 | Z106: 0 | AA106: 0
B107: 102 | C107: D1032 | D107: CHIPS SS DORITOS NACHO CHEESE | E107: CHIPS REDUCED FAT NACHO CHEESE FLAVOR. WG | F107: DORITOS OR APPROVED EQUIVALENT | G107: 31748 | H107: CS | I107: 72 | J107: 1 OZ | K107: 400 | L107: 28.93723404 | M107: 11574.89362 | N107: 0.4019060284 | O107: 6626774 | P107: DORITOS | Q107: 72/1 OZ | R107: N | T107: Sysco | U107: 0 | V107: 32.5 | W107: 31.76 | X107: 28.94 | Y107: 0 | Z107: 0 | AA107: 0
B108: 103 | C108: D1033 | D108: CHIPS SS POTATO | E108: CHIPS IND. PKG. BAKED REG. FLAVORED: BAKED POTATO PIECES SALTED PLAIN. NO MORE THAN 7.5 GRAMS OF FAT PER BAG. | F108: LAYS OR APPROVED EQUIVALENT | G108: 33625 | H108: CS | I108: 60 | J108: .875 OZ | K108: 300 | L108: 25 | M108: 7500 | N108: 0.4166666667 | O108: 3232527 | P108: BKDLAYS | Q108: 60/.875OZ | R108: N | T108: Sysco | U108: 0 | V108: 27.9 | X108: 25 | Y108: 0 | Z108: 0 | AA108: 0
B109: 104 | C109: D1034 | D109: CHIPS SS PUFF CHEESE | E109: CHIPS PUFFS RF WG | F109: CHEETO'S OR APPROVED EQUIVALENT | G109: 21910 | H109: CS | I109: 72 | J109: .7 OZ | K109: 300 | L109: 24.189 | M109: 7256.7 | N109: 0.3359583333 | O109: 3366951 | P109: CHETO | Q109: 72/0.7/OZ | R109: Y | T109: Shamrock | U109: 0 | V109: 32.54 | W109: 24.19 | X109: 30 | Y109: 0 | Z109: 0 | AA109: 0
B110: 105 | C110: D1035 | D110: CHIPS SS SOUR CREAM/ONION | E110: CHIPS IND. PKG. BAKED SOUR CRM. & ONION FLAVORED: BAKED POTATO PIECES FLAVORED WITH SOUR CREAM AND ONION SEASONING. 60/.875 OZ. WG | F110: LAYS OR APPROVED EQUIVALENT | G110: 33627 | H110: CS | I110: 60 | J110: .875 OZ | K110: 300 | L110: 25 | M110: 7500 | N110: 0.4166666667 | O110: 3232725 | P110: BKDLAYS | Q110: 60/.875OZ | R110: N | T110: Sysco | U110: 0 | V110: 27.9 | X110: 25 | Y110: 0 | Z110: 0 | AA110: 0
B111: 106 | C111: D1036 | D111: CHIPS TORTILLA ROUNDS | E111: ROUND SHAPED TORTILLA CHIP WHOLE GRAIN PREPARED FROM ENRICHED YELLOW CORN. TRANSFAT FREE 1 OZ MUST MEET 1 GR | F111: SPECIFY | H111: CS | I111: 6 | J111: 2 LB | K111: 2500 | L111: 15.1 | M111: 37750 | N111: 2.516666667 | P111: La Poblanita | Q111: 6/2lb bags | R111: no | S111: This product will be produced 24 hours prior to delivery to RISD. This product is certified NMTRUE. This product is produced in Roswell, NM. | T111: El Charro | U111: 0 | V111: 26.95 | W111: 20.32 | X111: 18.71 | Y111: 15.1 | Z111: 0 | AA111: 0
B112: 107 | C112: CTF7012 | D112: CHOCOLATE ENROBER | E112: CHOCOLATE FLAVORED ENROBER COATING IS A RICH CHOCOLATE COATING THAT HARDENS AT ROOM TEMPERATURE. THE PRODUCT IS IN A HARDENED CANDY STATE IN THE UNHEATED CAN. CATERING | F112: SPECIFY | H112: CS | I112: 3 | J112: 10 CN | K112: 15 | L112: 75.95 | M112: 1139.25 | N112: 25.31666667 | O112: 9396539 | P112: J.H.SMITH | Q112: 3 / 123.00 OZ | T112: Labatt | U112: 0 | V112: 75.95 | X112: 108.86 | Y112: 0 | Z112: 0 | AA112: 0
B113: 108 | C113: F1042 | D113: CHORIZO BULK | E113: SAUSAGE CHORIZO BULK MILD SEASONING LIGHT COLORED BULK | F113: SPECIFY | H113: CS | I113: 10 | J113: LB | K113: 450 | L113: 24.63829787 | M113: 11087.23404 | N113: 2.463829787 | O113: 2046118 | P113: NMFOODS | Q113: 1/10 LB | R113: N | T113: Sysco | U113: 36.85 | V113: 68.8 | W113: 45.16 | X113: 24.64 | Y113: 0 | Z113: 0 | AA113: 0
B114: 109 | C114: CTF7013 | D114: COCOA | E114: UNSWEETENED COCOA 22/24% BUTTER FAT CATERING | F114: SPECIFY | H114: CS | I114: 4 | J114: 2.5KG | K114: 20 | L114: 30.13 | M114: 602.6 | N114: 7.5325 | O114: 4960381 | P114: TRRSS | Q114: 1/2.2/LB | R114: N | T114: Shamrock | U114: 0 | V114: 233.7 | W114: 30.13 | X114: 194.36 | Y114: 0 | Z114: 0 | AA114: 0
B115: 110 | C115: D1037 | D115: COFFEE DECAF | E115: FOLGERS FILTER PACK COFFEE ULTRA DRY ROAST | F115: FOLGERS OR APPROVED EQUIVALENT | H115: CS | I115: 80 | J115: .9 OZ | K115: 20 | L115: 58.33510638 | M115: 1166.702128 | N115: 0.7291888298 | O115: 1151570 | P115: FOLGERS | Q115: 80/.9 OZ | R115: N | T115: Sysco | U115: 0 | V115: 60.9 | W115: 61.97 | X115: 58.34 | Y115: 0 | Z115: 0 | AA115: 0
B116: 111 | C116: D1038 | D116: COFFEE REGULAR | E116: FOLGERS FILTER PACK COFFEE ULTRA DRY ROAST | F116: FOLGERS OR APPROVED EQUIVALENT | H116: CS | I116: 160 | J116: .9 OZ | K116: 50 | L116: 101.3468085 | M116: 5067.340426 | N116: 0.6334175532 | O116: 1151679 | P116: FOLGERS | Q116: 160/.9 OZ | R116: N | T116: Sysco | U116: 0 | V116: 106.81 | W116: 104.2 | X116: 101.35 | Y116: 0 | Z116: 0 | AA116: 0
B117: 112 | C117: F1043 | D117: COOKIE DOUGH CARNIVAL WG | E117: COOKIE DOUGH CARNIVAL: 1.85OZ FROZEN WGR MADE WITH A MIXTURE OF CHOCOLATE CHIPS AND COLORFUL COATED CANDIES PRE-PORTIONED READY TO BAKE FAT GRAMS TO NOT EXCEED 6G SODIUM MG NOT TO EXCEED 120 MG CASE PACK 240 1.5OZ DECA | F117: OTIS SPUNKMEYER OR APPROVED EQUIVALENT | G117: 55688 | H117: CS | I117: 250 | J117: 1.5 OZ | K117: 75 | L117: 57.49 | M117: 4311.75 | N117: 0.22996 | O117: 4550018 | P117: OTIS | Q117: 240 / 1.5 OZ | T117: Labatt | U117: 0 | V117: 57.49 | W117: 60.36 | X117: 58.11 | Y117: 0 | Z117: 0 | AA117: 0
B118: 113 | C118: CTF7056 | D118: COOKIE DOUGH CHOCOLATE CHIP | E118: COOKIE DOUGH CHOCOLATE CHIP CATERING | F118: BRICKFIRE OR APPROVED EQUIVALENT | G118: 2340091 | H118: CS | I118: 170 | J118: 1.5 OZ | K118: 75 | L118: 36.2219 | M118: 2716.6425 | N118: 0.21307 | O118: 2340091 | P118: BRCKO | Q118: 170/1.5/OZ | R118: N | T118: Shamrock | U118: 0 | V118: 54.61 | W118: 36.22 | X118: 55.04 | Y118: 0 | Z118: 0 | AA118: 0
B119: 114 | C119: CTF7057 | D119: COOKIE DOUGH OATMEAL RAISIN | E119: COOKIE DOUGH OATMEAL RAISIN CATERING | F119: BRICKFIRE OR APPROVED EQUIVALENT | G119: 2340101 | H119: CS | I119: 170 | J119: 1.5 OZ | K119: 60 | L119: 34.7633 | M119: 2085.798 | N119: 0.20449 | O119: 2340101 | P119: BRCKO | Q119: 170/1.5/OZ | R119: N | T119: Shamrock | U119: 0 | V119: 54.58 | W119: 34.76 | X119: 51.6 | Y119: 0 | Z119: 0 | AA119: 0
B120: 115 | C120: F1044 | D120: COOKIE DOUGH RF CHOCOLATE BROWNIE | E120: COOKIE DOUGH REDUCED FAT CHOCOLATE BROWNIE DECA | F120: OTIS SPUNKMEYER OR APPROVED EQUIVALENT | G120: 55689 | H120: CS | I120: 240 | J120: 1.5 OZ | K120: 100 | L120: 54.47 | M120: 5447 | N120: 0.2269583333 | O120: 4550010 | P120: OTIS | Q120: 240 / 1.5 OZ | T120: Labatt | U120: 0 | V120: 54.47 | W120: 57.17 | X120: 54.87 | Y120: 0 | Z120: 0 | AA120: 0
B121: 116 | C121: F1045 | D121: COOKIE DOUGH RF CHOCOLATE CHIP | E121: COOKIE DOUGH REDUCED FAT CHOCOLATE CHIP DECA | F121: OTIS SPUNKMEYER OR APPROVED EQUIVALENT | G121: 55680 | H121: CS | I121: 240 | J121: 1.5 OZ | K121: 300 | L121: 54.61 | M121: 16383 | N121: 0.2275416667 | O121: 4555555 | P121: OTIS SPUN | Q121: 240 / 1.5 OZ | T121: Labatt | U121: 0 | V121: 54.61 | W121: 57.17 | X121: 55.04 | Y121: 0 | Z121: 0 | AA121: 0
B122: 117 | C122: F1046 | D122: COOKIE DOUGH RF OATMEAL RAISIN | E122: COOKIE DOUGH REDUCED FAT OATMEAL RAISIN DECA | F122: OTIS SPUNKMEYER OR APPROVED EQUIVALENT | G122: 55683 | H122: CS | I122: 240 | J122: 1.5 OZ | K122: 50 | L122: 51.59574468 | M122: 2579.787234 | N122: 0.2149822695 | O122: 7728466 | P122: OTSPKMY | Q122: 240/1.5 OZ | R122: N | T122: Sysco | U122: 0 | V122: 54.58 | W122: 57.17 | X122: 51.6 | Y122: 0 | Z122: 0 | AA122: 0
B123: 118 | C123: F1047 | D123: COOKIE DOUGH RF SUGAR | E123: COOKIE DOUGH SUGAR REDUCED FAT DECA | F123: OTIS SPUNKMEYER OR APPROVED EQUIVALENT | G123: 55684 | H123: CS | I123: 240 | J123: 1.5 OZ | K123: 45 | L123: 54.65 | M123: 2459.25 | N123: 0.2277083333 | O123: 4550017 | P123: OTIS | Q123: 240 / 1.5 OZ | T123: Labatt | U123: 0 | V123: 54.65 | W123: 57.17 | X123: 55.04 | Y123: 0 | Z123: 0 | AA123: 0
B124: 119 | C124: CTF7058 | D124: COOKIE DOUGH SUGAR | E124: COOKIE DOUGH SUGAR CATERING | F124: BRICKFIRE OR APPROVED EQUIVALENT | G124: 2340111 | H124: CS | I124: 170 | J124: 1.5 OZ | K124: 60 | L124: 34.6749 | M124: 2080.494 | N124: 0.20397 | O124: 2340111 | P124: BRCKO | Q124: 170/1.5/OZ | R124: N | T124: Shamrock | U124: 0 | V124: 54.65 | W124: 34.67 | X124: 69.35 | Y124: 0 | Z124: 0 | AA124: 0
B125: 120 | C125: CTF7059 | D125: COOKIE DOUGH WHITE MACADAMIA NUT | E125: COOKIE DOUGH WHITE MACADAMIA NUT CATERING | F125: BRICKFIRE OR APPROVED EQUIVALENT | G125: 2340361 | H125: CS | I125: 170 | J125: 1.5 OZ | K125: 60 | L125: 43.8685 | M125: 2632.11 | N125: 0.25805 | O125: 2340361 | P125: BRCKO | Q125: 170/1.5/OZ | R125: N | T125: Shamrock | U125: 0 | V125: 70.73 | W125: 43.87 | X125: 82.74 | Y125: 0 | Z125: 0 | AA125: 0
B126: 121 | C126: F1048 | D126: COOKIE GINGER BREAD | E126: COOKIE GINGER BREAD IW MEETS 2 GRAIN REQUIREMENT FOR NSP | F126: SPECIFY | H126: CS | I126: 140 | J126: 2 OZ | K126: 500 | L126: 20.30851064 | M126: 10154.25532 | N126: 0.1450607903 | O126: 0848933 | P126: FIELDST | Q126: 128/.74 OZ | R126: N | T126: Sysco | U126: 0 | V126: 52.37 | X126: 20.31 | Y126: 0 | Z126: 0 | AA126: 0
B127: 122 | C127: F1049 | D127: CORNDOG | E127: CORNDOG CHICKEN FRANK WHOLE GRAIN P/C 8/1 60 CT CN LABELED TO MEET 2 OZ MEAT REQUIREMENT | F127: FOSTER FARMS OR APPROVED EQUIVALENT | G127: 95150 | H127: CS | I127: 72 | J127: 4 OZ | K127: 2000 | L127: 44.04 | M127: 88080 | N127: 0.6116666667 | O127: 370119 | P127: FOSTER FARMS | Q127: 72/4OZ | R127: NO | T127: BEK | U127: 44.04 | V127: 44.43 | W127: 45.35 | X127: 61.61 | Y127: 0 | Z127: 0 | AA127: 0
B128: 123 | C128: D1039 | D128: CORNSTARCH | E128: CORNSTARCH | F128: SPECIFY | H128: CS | I128: 24 | J128: 1 LB | K128: 45 | L128: 32.68085106 | M128: 1470.638298 | N128: 1.361702128 | O128: 4032991 | P128: ARGO | Q128: 24/1LB | R128: N | T128: Sysco | U128: 51.88 | V128: 34.67 | W128: 39.05 | X128: 32.68 | Y128: 0 | Z128: 0 | AA128: 0
B129: 124 | C129: D1040 | D129: CRACKERS ANIMAL | E129: CRACKERS ANIMAL SHAPED 0 TRANSFAT WHOLE GRAIN RICH | F129: SPECIFY | H129: CS | I129: 100 | J129: 1 OZ | K129: 300 | L129: 35.38297872 | M129: 10614.89362 | N129: 0.3538297872 | O129: 5640214 | P129: KEEBLER | Q129: 150/1 OZ | R129: N | T129: Sysco | U129: 0 | V129: 38.97 | X129: 35.38 | Y129: 0 | Z129: 0 | AA129: 0
B130: 125 | C130: D1041 | D130: CRACKERS BUG BITES | E130: BUG BITES CINNAMON WHOLE GRAIN RICH | F130: KEEBLER OR APPROVED EQUIVALENT | G130: 30100-55644 | H130: CS | I130: 210 | J130: 1 OZ | K130: 1000 | L130: 45.07446809 | M130: 45074.46809 | N130: 0.2146403242 | O130: 0444598 | P130: KELLOGG | Q130: 210/1 OZ | R130: N | T130: Sysco | U130: 0 | V130: 47.92 | W130: 52.32 | X130: 45.07 | Y130: 0 | Z130: 0 | AA130: 0
B131: 126 | C131: D1042 | D131: CRACKERS GOLDFISH CHEDDAR | E131: CHEDDAR GOLDFISH WHOLE GRAIN: A 3/4 OUNCE SERVING CONTRIBUTES 1 SERVING OF GRAINS/BREADS TO THE USDA CHILD NUTRITION PROGRAMS WHOLE GRAIN RICH | F131: PEPPERIDGE FARMS OR APPROVED EQUIVALENT | G131: 18105 | H131: CS | I131: 300 | J131: 0.75 OZ | K131: 500 | L131: 60.80744681 | M131: 30403.7234 | N131: 0.2026914894 | O131: 6599405 | P131: PEPFARM | Q131: 300/.75 OZ | R131: N | T131: Sysco | U131: 0 | V131: 72.66 | W131: 65.27 | X131: 60.81 | Y131: 0 | Z131: 0 | AA131: 0
B132: 127 | C132: D1043 | D132: CRACKERS GOLDFISH GIANT CINNAMON | E132: CRACKERS GIANT GOLDFISH CINNAMON WHOLE GRAIN RICH | F132: PEPPERIDGE FARMS OR APPROVED EQUIVALENT | G132: 15094 | H132: CS | I132: 300 | J132: .9 OZ | K132: 300 | L132: 53.62446809 | M132: =IF(L132*K132= 0,"",L132*K132) -> 16087.34043 | N132: =IF(L132/I132= 0,"",L132/I132) -> 0.178748227 | O132: 5228774 | P132: PEPFARM | Q132: 300/0.9 OZ | R132: N | T132: Sysco | U132: 0 | V132: 60.34 | W132: 56.05 | X132: 53.62 | Y132: 0 | Z132: 0 | AA132: 0
B133: 128 | C133: D1044 | D133: CRACKERS GOLDFISH GIANT HONEY OAT | E133: CRACKER WHOLE GRAIN GIANT HONEY OAT GRAHAM 2 EA WHOLE GRAIN RICH | F133: PEPPERIDGE FARMS OR APPROVED EQUIVALENT | G133: 18432 | H133: CS | I133: 300 | J133: .9 OZ | K133: 300 | L133: 43.32978723 | M133: 12998.93617 | N133: 0.1444326241 | O133: 7492197 | P133: PEPFARM | Q133: 300/2 PK | R133: N | T133: Sysco | U133: 62.58 | V133: 58.79 | W133: 53.38 | X133: 43.33 | Y133: 0 | Z133: 0 | AA133: 0
B134: 129 | C134: D1045 | D134: CRACKERS GRAHAM 3-PK | E134: GRAHAM 3-PK WHOLE GRAIN RICH | F134: SPECIFY | H134: CS | I134: 150 | J134: 3 PK | K134: 2500 | L134: 22.52 | M134: 56300 | N134: 0.1501333333 | O134: 3730052 | P134: KEEBLER | Q134: 150 / 3 CT | T134: Labatt | U134: 33.65 | V134: 22.52 | W134: 27.19 | X134: 26.3 | Y134: 0 | Z134: 0 | AA134: 0
B135: 130 | C135: CTF7014 | D135: CRACKERS MEDLEY MIX | E135: CRACKER MEDLEY - TOASTEDS® WHEAT SESAME AND BUTTER CRISP CLUB® TOWN HOUSE® AND KEEBLER® WHOLE GRAIN WHEAT 25 SLEEVES CATERING | F135: KEEBLER OR APPROVED EQUIVALENT | G135: 30100 37739 | H135: CS | I135: 25 | J135: SLEEVES | K135: 5 | L135: 31.71 | M135: 158.55 | N135: 1.2684 | O135: 3765112 | P135: KEEBLER | Q135: 25 / 980 CT | T135: Labatt | U135: 0 | V135: 31.71 | W135: 34.72 | X135: 35.36 | Y135: 0 | Z135: 0 | AA135: 0
B136: 131 | D136: CRACKERS SALTINE IW | E136: SALTINE CRACKERS PC WHOLE GRAIN OR ENRICHED FLOUR TO MEET BREAD REQ. FOR NSLP 500/2 CT | F136: NABISCO OR APPROVED EQUIVALENT | H136: CS | I136: 500 | J136: 2 CT | K136: 500 | L136: 17.88297872 | M136: 8941.489362 | N136: 0.03576595745 | O136: 3608045 | P136: NABISCO | Q136: 500/2 PK | R136: N | S136: Lowest wasn't brand specific | T136: Sysco | U136: 26.46 | V136: 17.55 | W136: 20.35 | X136: 17.88 | Y136: 0 | Z136: 0 | AA136: 0
B137: 132 | C137: CTF7002 | D137: CREAMER NON-DAIRY | E137: NON-DAIRY CREAMER INIVIDUAL PACK LIQUID CATERING | F137: SPECIFY | H137: CS | I137: 400 | J137: EA | K137: 45 | L137: 8.419148936 | M137: 378.8617021 | N137: 0.02104787234 | O137: 6420608 | P137: WHLFCLS | Q137: 400/3/8 OZ | R137: N | T137: Sysco | U137: 15.68 | V137: 13.03 | W137: 12.76 | X137: 8.42 | Y137: 0 | Z137: 0 | AA137: 0
B138: 133 | C138: CTF7003 | D138: CREAMER NON-DAIRY CARAMEL MACCHIATO | E138: NON-DAIRY CREAMER CARAMEL MACCHIATO INIVIDUAL PACK LIQUID CATERING | F138: SPECIFY | H138: CS | I138: 288 | J138: 1ML | K138: 35 | L138: 15.7 | M138: 549.5 | N138: 0.05451388889 | O138: 639204 | P138: INT'L DELIGHT | Q138: 288/.5OZ | R138: NO | T138: BEK | U138: 15.7 | W138: 16.97 | X138: 15.7 | Y138: 0 | Z138: 0 | AA138: 0
B139: 134 | C139: CTF7004 | D139: CREAMER NON-DAIRY FRENCH VANILLA | E139: NON-DAIRY CREAMER FRENCH VANILLA INIVIDUAL PACK LIQUID CATERING | F139: SPECIFY | H139: CS | I139: 288 | J139: 1ML | K139: 35 | L139: 15.7 | M139: 549.5 | N139: 0.05451388889 | O139: 639048 | P139: INT'L DELIGHT | Q139: 288/.5OZ | R139: NO | T139: BEK | U139: 15.7 | V139: 16.56 | W139: 16.97 | X139: 15.7 | Y139: 0 | Z139: 0 | AA139: 0
B140: 135 | C140: CTF7005 | D140: CREAMER NON-DAIRY HAZEL NUT | E140: NON-DAIRY CREAMER HAZEL NUT INIVIDUAL PACK LIQUID CATERING | F140: SPECIFY | H140: CS | I140: 288 | J140: 1ML | K140: 35 | L140: 15.7 | M140: 549.5 | N140: 0.05451388889 | O140: 639047 | P140: INT'L DELIGHT | Q140: 288/.50OZ | R140: NO | T140: BEK | U140: 15.7 | V140: 16.56 | W140: 16.97 | X140: 15.7 | Y140: 0 | Z140: 0 | AA140: 0
B141: 136 | C141: F1050 | D141: CROISSANT | E141: CROISSANTS WG MARGARINE RF ROUND FULLY SLICED MUST PROVIDE 2.0 OZ GRAIN EQUIVALENTS. PORTION TO PROVIDE AT LEAST 145.0 CALORIES WITH NO MORE THAN 6 GRAMS OF FAT. | F141: BAKE CRAFTERS OR APPROVED EQUIVALENT | G141: 3286 | H141: CS | I141: 80 | J141: 2.2 OZ | K141: 800 | L141: 59.5 | M141: 47600 | N141: 0.74375 | O141: 9226001 | P141: BAKE CRAFT | Q141: 150 / 2.2 OZ | R141: N | S141: Lowest wasn't brand specific | T141: Labatt | U141: 0 | V141: 59.5 | X141: 58.2 | Y141: 0 | Z141: 0 | AA141: 0
B142: 137 | C142: CTF7060 | D142: CROISSANT CATERING 30Z | E142: FULLY COOKED FLAKEY BUTTERY CRUST PRESLICED ROUND SHAPED ROLL 3 OZ CATERING | F142: SPECIFY | H142: CS | I142: 32 | J142: 3 OZ | K142: 40 | L142: 34.7412 | M142: 1389.648 | N142: 1.0856625 | O142: 4623351 | P142: BRCKD | Q142: 1/32/PK | R142: N | T142: Shamrock | U142: 64.37 | V142: 59.5 | W142: 34.74 | X142: 59.81 | Y142: 0 | Z142: 0 | AA142: 0
B143: 138 | C143: CTF7061 | D143: CROISSANT CATERING 5OZ | E143: FULLY COOKED FLAKEY BUTTERY CRUST PRESLICED ROUND SHAPED ROLL 5 OZ CATERING | F143: SPECIFY | H143: CS | I143: 24 | J143: 5 OZ | K143: 25 | L143: 59.5 | M143: 1487.5 | N143: 2.479166667 | O143: 9226001 | P143: BAKE CRAFT | Q143: 150 / 2.2 OZ | T143: Labatt | U143: 0 | V143: 59.5 | X143: 0 | Y143: 0 | Z143: 0 | AA143: 0
B144: 139 | C144: CTF7015 | D144: CROUTONS | E144: CROUTONS/ HERB SEASONED ENRICHED SMALL CUBE CATERING | F144: SPECIFY | H144: CS | I144: 10 | J144: LB | K144: 150 | L144: 24.3321 | M144: 3649.815 | N144: 2.43321 | O144: 3182001 | P144: KATYO | Q144: 4/2.5/LB | R144: N | T144: Shamrock | U144: 25.04 | V144: 26.48 | W144: 24.33 | X144: 43.42 | Y144: 0 | Z144: 0 | AA144: 0
B145: 140 | C145: F1051 | D145: CRUMB SQUARE IW | E145: CRUMB SQUARE IW WHOLE GRAIN MEETS 2 OZ WG SERVING FOR SBP | F145: DAVE'S OR APPROVED EQUIVALENT | G145: 360 | H145: CS | I145: 28 | J145: 3.6 OZ | K145: 2120 | L145: 20.19148936 | M145: 42805.95745 | N145: 0.7211246201 | O145: 8850172 | P145: DAVE'S | Q145: 28/3.6 OZ | R145: N | T145: Sysco | U145: 0 | V145: 21.9 | W145: 20.88 | X145: 20.19 | Y145: 0 | Z145: 0 | AA145: 0
B146: 141 | C146: F1052 | D146: DONUT MINI CHOCOLATE | E146: 51% WG MINI DONUTS - CHOCOLATE. 72 - 3.3OZ FROZEN INDIVIDUALLY WRAPPED THAW & SERVE NICKEL STACK SIX PACKS OF 1/2 OZ CHOCOLATE ENROBED WHOLE GRAIN DONUTS. MUST CONFORM TO USDA CHILD NUTRITION PROGRAM SPECIFICATIONS AND MEET 2OZ GRAIN EQUIVALENT. | F146: SUPER BAKERY OR APPROVED EQUIVALENT | G146: 7786 | H146: CS | I146: 72 | J146: 3.3 OZ | K146: 1700 | L146: 70.73 | M146: 120241 | N146: 0.9823611111 | O146: 126587 | P146: SUPER BAKERY | Q146: 72/3.3OZ | R146: NO | T146: BEK | U146: 70.73 | V146: 72.61 | W146: 73.47 | X146: 70.73 | Y146: 0 | Z146: 0 | AA146: 0
B147: 142 | C147: F1053 | D147: DONUT MINI POWDERED SUGAR | E147: 51% WG MINI DONUTS - POWDERED SUGAR 72 - 3.3OZ FROZEN INDIVIDUALLY WRAPPED THAW & SERVE NICKEL STACK SIX PACKS OF 1/2 OZ CHOCOLATE ENROBED WHOLE GRAIN DONUTS. MUST CONFORM TO USDA CHILD NUTRITION PROGRAM SPECIFICATIONS AND MEET 2OZ GRAIN EQUIVALENT. | F147: SUPER BAKERY OR APPROVED EQUIVALENT | G147: 7787 | H147: CS | I147: 72 | J147: 3.3 OZ | K147: 1700 | L147: 62.91 | M147: 106947 | N147: 0.87375 | O147: 126588 | P147: SUPER BAKERY | Q147: 72/3.oz | R147: NO | T147: BEK | U147: 62.91 | V147: 65.01 | W147: 65.35 | X147: 62.91 | Y147: 0 | Z147: 0 | AA147: 0
B148: 143 | C148: F1054 | D148: DOUGH CRUST | E148: COBBLER CRUST DOUGH SHEET FROZEN | F148: SPECIFY | H148: CS | I148: 24 | J148: 1 LB | K148: 200 | L148: 62.5106383 | M148: 12502.12766 | N148: 2.604609929 | O148: 1865088 | P148: RICHS | Q148: 24/1 LB | R148: N | S148: Lowest bid wrong pack size | T148: Sysco | U148: 59.87 | V148: 64.42 | W148: 51.39 | X148: 62.51 | Y148: 0 | Z148: 0 | AA148: 0
B149: 144 | C149: C1020 | D149: DRESSING GAL COLESLAW | E149: DRESSING COLESLAW REDUCED FAT | F149: SPECIFY | H149: CS | I149: 4 | J149: GAL | K149: 25 | L149: 44.84 | M149: 1121 | N149: 11.21 | O149: 662132 | P149: Golden hrvest | Q149: 4/1 gal | R149: NO | T149: BEK | U149: 44.84 | V149: 65.31 | W149: 59.26 | X149: 51.11 | Y149: 0 | Z149: 0 | AA149: 0
B150: 145 | C150: C1021 | D150: DRESSING GAL RANCH REDUCED FAT | E150: DRESSING SALAD REDUCED FAT | F150: KEN'S OR APPROVED EQUIVALENT | G150: 100-413350-60816 | H150: CS | I150: 4 | J150: 1 GAL | K150: 600 | L150: 58.08 | M150: 34848 | N150: 14.52 | O150: 184603 | P150: Ken's | Q150: 4/1 gal | R150: NO | S150: Lowest wasn't brand specific or Reduced Fat | T150: BEK | U150: 58.08 | V150: 56.79 | W150: 61.01 | X150: 34.31 | Y150: 0 | Z150: 0 | AA150: 0
B151: 146 | C151: CTF7016 | D151: DRESSING ITALIAN | E151: ITALIAN DRESSING GOLDEN CATERING | F151: SPECIFY | H151: CS | I151: 4 | J151: GAL | K151: 10 | L151: 24.75319149 | M151: 247.5319149 | N151: 6.188297872 | O151: 5465695 | P151: SYS REL | Q151: 4/1 GAL | R151: N | T151: Sysco | U151: 28.57 | V151: 49.03 | W151: 52.27 | X151: 24.75 | Y151: 0 | Z151: 0 | AA151: 0
B152: 147 | C152: D1046 | D152: DRESSING PC ASIAN | E152: DRESSING ASIAN LIGHT PC | F152: SPECIFY | H152: CS | I152: 60 | J152: 1.5 OZ | K152: 15 | L152: 16.61702128 | M152: 249.2553191 | N152: 0.2769503546 | O152: 9640376 | P152: MARZETI | Q152: 60/1.5 OZ | R152: N | T152: Sysco | U152: 0 | V152: 21.37 | W152: 22.14 | X152: 16.62 | Y152: 0 | Z152: 0 | AA152: 0
B153: 148 | C153: D1047 | D153: DRESSING PC BALSAMIC VINAIGRETTE | E153: DRESSING BALSAMIC VINAIGRETTE LIGHT | F153: SPECIFY | H153: CS | I153: 60 | J153: 1.5 OZ | K153: 15 | L153: 15.1212766 | M153: 226.8191489 | N153: 0.2520212766 | O153: 4593224 | P153: NWMNOWN | Q153: 100/1.5 OZ | R153: N | T153: Sysco | U153: 18.37 | V153: 18.93 | W153: 19.34 | X153: 15.12 | Y153: 0 | Z153: 0 | AA153: 0
B154: 149 | C154: D1048 | D154: DRESSING PC FRENCH | E154: DRESSING SALAD REDUCED FAT FRENCH | F154: SPECIFY | H154: CS | I154: 60 | J154: 1.5 OZ | K154: 5 | L154: 17.2704 | M154: 86.352 | N154: 0.28784 | O154: 2274081 | P154: KENFD | Q154: 60/1.5/OZ | R154: Y | T154: Shamrock | U154: 23.75 | V154: 18.24 | W154: 17.27 | X154: 18.47 | Y154: 0 | Z154: 0 | AA154: 0
B155: 150 | C155: D1049 | D155: DRESSING PC GREEK | E155: DRESSING SALAD GREEK | F155: SPECIFY | H155: CS | I155: 60 | J155: 1.5 OZ | K155: 5 | L155: 19.78 | M155: 98.9 | N155: 0.3296666667 | O155: 6503086 | P155: KENS | Q155: 60 / 1.5 OZ | S155: Lowest missing info | T155: Labatt | U155: 0 | V155: 19.78 | W155: 20.04 | X155: 18.82 | Y155: 0 | Z155: 0 | AA155: 0
B156: 151 | C156: D1050 | D156: DRESSING PC ITALIAN | E156: DRESSING SALAD REDUCED FAT ITALIAN | F156: SPECIFY | H156: CS | I156: 60 | J156: 1.5 OZ | K156: 5 | L156: 13.96 | M156: 69.8 | N156: 0.2326666667 | O156: 674609 | P156: Kens | Q156: 60 /1.5 oz | R156: NO | T156: BEK | U156: 13.96 | V156: 15.7 | W156: 16.99 | X156: 14.91 | Y156: 0 | Z156: 0 | AA156: 0
B157: 152 | C157: D1051 | D157: DRESSING PC RANCH 12MG | E157: RANCH DRESSING REDUCED FAT PC | F157: SPECIFY | H157: CS | I157: 500 | J157: 12 MG | K157: 1000 | L157: 11.71382979 | M157: 11713.82979 | N157: 0.02342765957 | O157: 5112735 | P157: SYS CLS | Q157: 200/12 GM | R157: N | T157: Sysco | U157: 0 | V157: 12.14 | W157: 24.63 | X157: 11.71 | Y157: 0 | Z157: 0 | AA157: 0
B158: 153 | C158: D1052 | D158: DRESSING PC RANCH RF 1.5OZ | E158: DRESSING SALAD REDUCED FAT PC RANCH | F158: SPECIFY | H158: CS | I158: 60 | J158: 1.5 OZ | K158: 100 | L158: 12.14 | M158: 1214 | N158: 0.2023333333 | O158: 3474186 | P158: PPI | Q158: 200 / 12 GM | T158: Labatt | U158: 0 | V158: 12.14 | W158: 19.51 | X158: 22.31 | Y158: 0 | Z158: 0 | AA158: 0
B159: 154 | C159: D1053 | D159: DRESSING PC RASPBERRY VINAIGRETTE | E159: KRAFT RASPBERRY VINAIGRETTE FAT FREE DRESSING HAS THE SWEET TART FLAVOR OF RASPBERRIES IN A FAT FREE VINAIGRETTE. | F159: KRAFT | G159: 002-10006714400 | H159: CS | I159: 60 | J159: 1.5 OZ | K159: 50 | L159: 13.31914894 | M159: 665.9574468 | N159: 0.2219858156 | O159: 8919045 | P159: MARZETI | Q159: 60/1.5 OZ | R159: N | T159: Sysco | U159: 28.74 | V159: 22.2 | W159: 23.58 | X159: 13.32 | Y159: 0 | Z159: 0 | AA159: 0
B160: 155 | C160: CTF7017 | D160: DRESSING RASPBERRY VINAIGRETTE | E160: KRAFT RASPBERRY VINAIGRETTE FAT FREE DRESSING HAS THE SWEET TART FLAVOR OF RASPBERRIES IN A FAT FREE VINAIGRETTE. CATERING | F160: KRAFT OR APPROVED EQUIVALENT | G160: 21000647422 | H160: CS | I160: 4 | J160: 1 GAL | K160: 5 | L160: 19.62021277 | M160: 98.10106383 | N160: 4.905053191 | O160: 6475321 | P160: SYS IMP | Q160: 2/1 GAL | R160: N | T160: Sysco | U160: 71.38 | V160: 60.92 | W160: 67.58 | X160: 19.62 | Y160: 0 | Z160: 0 | AA160: 0
B161: 156 | C161: C1022 | D161: EGG BOIL N BAG | E161: EGGS RAW LIQUID WHOLE EGGS BOIL N BAG PASTURIZED | F161: SPECIFY | H161: CS | I161: 6 | J161: 5 LB | K161: 600 | L161: 42.63617021 | M161: 25581.70213 | N161: 7.106028369 | O161: 2366607 | P161: WHLFCLS | Q161: 15/2 LB | R161: N | T161: Sysco | U161: 52.46 | V161: 49.56 | W161: 60.91 | X161: 42.64 | Y161: 0 | Z161: 0 | AA161: 0
B162: 157 | C162: C1023 | D162: EGG PREBOILED | E162: HARD COOKED PEELED EGGS | F162: SPECIFY | H162: CS | I162: 8 | J162: 12 CT | K162: 500 | L162: 22.14255319 | M162: 11071.2766 | N162: 2.767819149 | O162: 3115532 | P162: WHLFCLS | Q162: 8/12 CT | R162: N | T162: Sysco | U162: 43.52 | V162: 38.27 | W162: 40.14 | X162: 22.14 | Y162: 0 | Z162: 0 | AA162: 0
B163: 158 | C163: F1055 | D163: EGGSTRAGANZA | E163: EACH 2.00 OZ. SERVING (BY WEIGHT) OF THE BLEND OF SCRAMBLED EGGS, CHEESE, AND BACON PIECES PROVIDES 1.75 OZ. EQUIVALENT MEAT ALTERNATE FOR THE CHILD NUTRITION MEAL PATTERN REQUIREMENTS. | F163: SUNNY FRESH OR APPROVED EQUIVALENT | G163: 40828 | H163: CS | I163: 4 | J163: 5 LB | K163: 735 | L163: 97.91 | M163: 71963.85 | N163: 24.4775 | O163: 4340181 | P163: SUNFR | Q163: 4/5/LB | R163: Y | T163: Shamrock | U163: 0 | V163: 98.75 | W163: 97.91 | X163: 100.7 | Y163: 0 | Z163: 0 | AA163: 0
B164: 159 | C164: CTF7018 | D164: FILLING PIE CHERRY | E164: CHERRY CATERING | F164: SPECIFY | H164: CS | I164: 3 | J164: #10 | K164: 15 | L164: 55.75 | M164: 836.25 | N164: 18.58333333 | O164: 149802 | P164: Ellington | Q164: 3 / #10 | T164: BEK | U164: 55.75 | V164: 59.18 | W164: 92.49 | X164: 77.58 | Y164: 0 | Z164: 0 | AA164: 0
B165: 160 | C165: CTF7019 | D165: FILLING PIE PEACH | E165: PEACH CATERING | F165: SPECIFY | H165: CS | I165: 3 | J165: #10 | K165: 15 | L165: 38.65 | M165: 579.75 | N165: 12.88333333 | O165: 149803 | P165: Ellington | Q165: 3 / #10 | T165: BEK | U165: 38.65 | V165: 45.8 | W165: 79.5 | X165: 67.77 | Y165: 0 | Z165: 0 | AA165: 0
B166: 161 | C166: D1054 | D166: FLOUR | E166: FLOUR ALL PURPOSE ENRICHED 50# U.S. NO. 2 GRADE OR BETTER BLEACHED WHEAT FLOUR ENRICHED WITH THIAMIN RIBOFLAVIN NIACIN FOLIC ACID IRON AND MAY HAVE ADDED CALCIUM | F166: SPECIFY | H166: BAG | I166: 50 | J166: LB | K166: 30 | L166: 17.23297872 | M166: 516.9893617 | N166: 0.3446595745 | O166: 8378111 | P166: SYS CLS | Q166: 1/50 LB | R166: N | T166: Sysco | U166: 31.39 | V166: 23.06 | W166: 22.79 | X166: 17.23 | Y166: 0 | Z166: 0 | AA166: 0
B167: 162 | C167: D1055 | D167: FOOD COLOR GREEN | E167: FOOD COLORING GREEEN | F167: SPECIFY | H167: EA | I167: 1 | J167: 16 OZ | K167: 7 | L167: 3.69 | M167: 25.83 | N167: 3.69 | O167: 6117202 | P167: DEAN | Q167: 1/16 OZ. | R167: N | T167: Sysco | U167: 0 | V167: 5.75 | W167: 7.16 | X167: 3.69 | Y167: 0 | Z167: 0 | AA167: 0
B168: 163 | C168: D1056 | D168: FOOD RELEASE | E168: RELEASE FOOD/PAN CONTAINS NO WATER ALCOHOL OR ARTIFICIAL FLAVORS HIGH SMOKE POINT >450° F | F168: SPECIFY | H168: CS | I168: 6 | J168: 17 OZ | K168: 75 | L168: 21.19 | M168: 1589.25 | N168: 3.531666667 | O168: 8034167 | P168: PAM | Q168: 6 / 17 OZ | T168: Labatt | U168: 36.82 | V168: 21.19 | W168: 22.95 | X168: 22.1 | Y168: 0 | Z168: 0 | AA168: 0
B169: 164 | C169: F1056 | D169: FRENCH TOAST STICKS BULK | E169: FRENCH TOAST STICKS WHOLE GRAIN CINNAMON GLAZED EACH SERVING 3 STICKS/2.90 OZ EQUALS 1 M/MA 1 GR. | F169: SUNNY FRESH OR APPROVED EQUIVALENT | G169: 40497 | H169: CS | I169: 100 | J169: 2.9 oz | K169: 900 | L169: 63.13 | M169: 56817 | N169: 0.6313 | O169: 8850074 | P169: SUNNYFRESH | Q169: 100 / 2.9 OZ | R169: N | S169: Lowest wasn't brand specific | T169: Labatt | U169: 0 | V169: 63.13 | W169: 48.57 | X169: 23.68 | Y169: 0 | Z169: 0 | AA169: 0
B170: 165 | C170: CTF7020 | D170: FRUIT CHERRY MARASCHINO HALVES | E170: CHERRIES MARACHINO HALVES CATERING | F170: PENNANT OR APPROVED EQUIVALENT | H170: CS | I170: 4 | J170: .5 GAL | K170: 100 | L170: 60.5245 | M170: 6052.45 | N170: 15.131125 | O170: 2622451 | P170: BHVSO | Q170: 4/.5/GL | R170: N | T170: Shamrock | U170: 0 | V170: 67.48 | W170: 60.52 | X170: 70.84 | Y170: 0 | Z170: 0 | AA170: 0
B171: 166 | C171: D1057 | D171: FRUIT COCKTAIL | E171: FRUIT COCKTAIL GRADE B CHOICE EXTRA LIGHT SYRUP MUST MEET BUY AMERICAN REQUIREMENTS | F171: SENACA, DEL MONTE, LIBBY'S, DOLE | H171: CS | I171: 6 | J171: 10 CN | K171: 1500 | L171: 43.68085106 | M171: 65521.2766 | N171: 7.280141844 | O171: 4989604 | P171: DOLE | Q171: 6/#10 | R171: N | T171: Sysco | U171: 54.44 | V171: 44.9 | W171: 57.68 | X171: 43.68 | Y171: 0 | Z171: 0 | AA171: 0
B172: 167 | C172: C1024 | D172: FRUIT CRANBERRIES DRIED | E172: SOFT AND MOIST DRIED CRANBERRIES | F172: SPECIFY | H172: CS | I172: 10 | J172: LB | K172: 150 | L172: 19.19680851 | M172: 2879.521277 | N172: 1.919680851 | O172: 7102403 | P172: SYS IMP | Q172: 1/5 LB | R172: N | T172: Sysco | U172: 28.25 | V172: 27.54 | W172: 26.46 | X172: 19.2 | Y172: 0 | Z172: 0 | AA172: 0
B173: 168 | C173: C1025 | D173: FRUIT DRIED IW | E173: FRUIT DRIED INDIVIDUALLY PACKAGES PEANUT FREE 16% CRANBERRYM 29% NATURAL RAISINS 24% GOLDEN RAISINS 28% PINEAPPLE 3% DRIED APPLE | F173: NATIONAL FOOD GROUP OR APPROVED EQUIVALENT | G173: 609271 | H173: CS | I173: 144 | J173: 1.3 OZ | K173: 650 | L173: 50.5 | M173: 32825 | N173: 0.3506944444 | O173: 1690158 | P173: ZEE ZEES | Q173: 120 / 1.33 OZ | R173: N | S173: Lowest wasn't brand specific | T173: Labatt | U173: 0 | V173: 50.5 | X173: 41.4 | Y173: 0 | Z173: 0 | AA173: 0
B174: 169 | C174: F1057 | D174: FRUIT MANGO DICED | E174: MANOS DICED IQF US GRADE A UNSWEETENED MUST MEET BUY AMERICAN REQUIREMENTS | F174: SENACA, DEL MONTE, LIBBY'S, DOLE | H174: CS | I174: 2 | J174: 5 LB | K174: 450 | L174: 26.76 | M174: 12042 | N174: 13.38 | O174: 5426520 | P174: DOLE | Q174: 2 / 5 LB | T174: Labatt | U174: 0 | V174: 26.76 | W174: 30.84 | X174: 28.56 | Y174: 0 | Z174: 0 | AA174: 0
B175: 170 | C175: D1058 | D175: FRUIT ORANGE MANDARIN | E175: MANDARIN ORANGE SLICES NATURAL JUICES NO SUGAR ADDED GRADE B CHOICE MUST MEET BUY AMERICAN REQUIREMENTS | F175: SENACA, DEL MONTE, LIBBY'S, DOLE | H175: CS | I175: 6 | J175: 10 CN | K175: 850 | L175: 67.45 | M175: 57332.5 | N175: 11.24166667 | O175: 600117 | P175: Dole | Q175: 6/106 oz | R175: NO | S175: Lowest didn't meet buy American | T175: BEK | U175: 67.45 | V175: 48.13 | W175: 45.72 | X175: 30.06 | Y175: 0 | Z175: 0 | AA175: 0
B176: 171 | C176: D1059 | D176: FRUIT PEACHES DICED | E176: PEACHES YELLOW CLING GRADE B CHOICE DICED NATURAL JUICES MIN DRAIN VT 71 OZ NO IRREGULAR MUST MEET BUY AMERICAN REQUIREMENTS | F176: SENACA, DEL MONTE, LIBBY'S, DOLE | H176: CS | I176: 6 | J176: 10 CN | K176: 1500 | L176: 51.47 | M176: 77205 | N176: 8.578333333 | O176: 23045 | P176: DEL MONTE | Q176: 6 / #10 | T176: Labatt | U176: 52.85 | V176: 51.47 | W176: 56.33 | X176: 52.64 | Y176: 0 | Z176: 0 | AA176: 0
B177: 172 | C177: D1060 | D177: FRUIT PEARS DICED | E177: PEARS DICED GRADE B CHOICE NATURAL JUICES MUST MEET BUY AMERICAN REQUIREMENTS | F177: SENACA, DEL MONTE, LIBBY'S, DOLE | H177: CS | I177: 6 | J177: 10 CN | K177: 500 | L177: 50.8 | M177: 25400 | N177: 8.466666667 | O177: 482202 | P177: DEL MONTE | Q177: 6 / #10 | T177: Labatt | U177: 53.61 | V177: 50.8 | W177: 72 | X177: 63.21 | Y177: 0 | Z177: 0 | AA177: 0
B178: 173 | C178: D1061 | D178: FRUIT PINEAPPLE | E178: PINEAPPLE TIDBITS IN JUICE GRADE B CHOICE SOLID PAK IN NATURAL JUICE MUST MEET BUY AMERICAN REQUIREMENTS | F178: SENACA, DEL MONTE, LIBBY'S, DOLE | H178: CS | I178: 6 | J178: 10 CN | K178: 2500 | L178: 51.44 | M178: 128600 | N178: 8.573333333 | O178: 600373 | P178: Dole | Q178: 6/106 oz | R178: NO | S178: Lowest didn't meet buy American | T178: BEK | U178: 51.44 | V178: 44.82 | W178: 40.16 | X178: 28.98 | Y178: 0 | Z178: 0 | AA178: 0
B179: 174 | C179: F1058 | D179: FRUIT STRAWBERRIES SLICED | E179: STRAWBERRYS SLICED IQF US GRADE A UNSWEETENED | F179: SPECIFY | H179: CS | I179: 1 | J179: 30 LB | K179: 700 | L179: 52.91 | M179: 37037 | N179: 52.91 | O179: 9077835 | P179: ANACAPA | Q179: 1 / 30 LB | T179: Labatt | U179: 0 | V179: 52.91 | W179: 65.82 | X179: 81.56 | Y179: 0 | Z179: 0 | AA179: 0
B180: 175 | C180: F1059 | D180: FRUIT STRAWBERRIES WHOLE | E180: STRAWBERRYS SLICED IQF US GRADE A WHOLE UNSWEETENED | F180: SPECIFY | H180: BKT | I180: 1 | J180: 30 LB | K180: 100 | L180: 52.67 | M180: 5267 | N180: 52.67 | O180: 310174 | P180: Markon | Q180: 30 lb | R180: NO | T180: BEK | U180: 52.67 | V180: 54.16 | W180: 72.17 | X180: 54.49 | Y180: 0 | Z180: 0 | AA180: 0
B181: 176 | C181: D1062 | D181: GELATIN CHERRY | E181: GELATIN MIX DRY | F181: SPECIFY | H181: CS | I181: 12 | J181: 24 OZ | K181: 75 | L181: 37.65319149 | M181: 2823.989362 | N181: 3.137765957 | O181: 4010351 | P181: SYS CLS | Q181: 12/24 OZ | R181: N | T181: Sysco | U181: 0 | V181: 41.88 | W181: 40.19 | X181: 37.65 | Y181: 0 | Z181: 0 | AA181: 0
B182: 177 | C182: D1063 | D182: GELATIN LIME | E182: GELATIN MIX DRY | F182: SPECIFY | H182: CS | I182: 12 | J182: 24 OZ | K182: 15 | L182: 37.65319149 | M182: 564.7978723 | N182: 3.137765957 | O182: 4010419 | P182: SYS CLS | Q182: 12/24 OZ | R182: N | T182: Sysco | U182: 41.1 | V182: 41.88 | W182: 42.66 | X182: 37.65 | Y182: 0 | Z182: 0 | AA182: 0
B183: 178 | C183: D1064 | D183: GELATIN ORANGE | E183: GELATIN MIX DRY | F183: SPECIFY | H183: CS | I183: 12 | J183: 24 OZ | K183: 15 | L183: 37.65319149 | M183: 564.7978723 | N183: 3.137765957 | O183: 4010443 | P183: SYS CLS | Q183: 12/24 OZ | R183: N | T183: Sysco | U183: 0 | V183: 41.88 | W183: 39.84 | X183: 37.65 | Y183: 0 | Z183: 0 | AA183: 0
B184: 179 | C184: D1065 | D184: GELATIN STRAWBERRY | E184: GELATIN MIX DRY | F184: SPECIFY | H184: CS | I184: 12 | J184: 24 OZ | K184: 75 | L184: 36.47553191 | M184: 2735.664894 | N184: 3.03962766 | O184: 4010476 | P184: SYS CLS | Q184: 12/24 OZ | R184: N | T184: Sysco | U184: 41.1 | V184: 41.88 | W184: 39.84 | X184: 36.48 | Y184: 0 | Z184: 0 | AA184: 0
B185: 180 | C185: F1060 | D185: GF BAGEL PLAIN | E185: PLAIN BAGEL GLUTEN FREE | F185: SPECIFY | H185: CS | I185: 6 | J185: 4 EA | K185: 200 | L185: 28.5753 | M185: 5715.06 | N185: 4.76255 | O185: 4270401 | P185: CANBA | Q185: 6/4/PK | R185: N | T185: Shamrock | U185: 35.52 | W185: 28.58 | X185: 33.29 | Y185: 0 | Z185: 0 | AA185: 0
B186: 181 | C186: C1026 | D186: GF BREAD WHITE SLICED | E186: WHITE BREAD SLICED GLUTEN FREE | F186: SPECIFY | H186: CS | I186: 6 | J186: 24 OZ | K186: 300 | L186: 56.88 | M186: 17064 | N186: 9.48 | O186: 141781 | P186: Udi's | T186: BEK | U186: 56.88 | W186: 59.08 | X186: 0 | Y186: 0 | Z186: 0 | AA186: 0
B187: 182 | C187: C1027 | D187: GF BUN HAMBURGER | E187: HAMBURGER BUNS GLUTEN FREE | F187: SPECIFY | H187: CS | I187: 6 | J187: 12 CT | K187: 200 | L187: 32.13 | M187: 6426 | N187: 5.355 | O187: 394634 | P187: Udi's | Q187: 24ct | R187: NO | T187: BEK | U187: 32.13 | W187: 33.38 | X187: 0 | Y187: 0 | Z187: 0 | AA187: 0
B188: 183 | C188: F1061 | D188: GF MUFFIN CHOCOLATE IW | E188: MUFFIN CHOCOLATE GLUTEN FREE IW | F188: SPECIFY | H188: CS | I188: 36 | J188: 3.6 EA | K188: 200 | L188: 51.8305 | M188: 10366.1 | N188: 1.439736111 | O188: 3171971 | P188: UDIS | Q188: 36/3.6/OZ | R188: N | T188: Shamrock | U188: 0 | W188: 51.83 | X188: 52.29 | Y188: 0 | Z188: 0 | AA188: 0
B189: 184 | C189: F1062 | D189: GF MUFFIN ENGLISH | E189: ENGLISH MUFFINS GLUTEN FREE | F189: SPECIFY | H189: CS | I189: 24 | J189: 2 OZ | K189: 300 | S189: No Bids Offered | U189: 0 | X189: 0 | Y189: 0 | Z189: 0 | AA189: 0
B190: 185 | C190: D1066 | D190: GF PASTA PENNE | E190: PASTA PENNE GLUTEN FREE | F190: SPECIFY | H190: CS | I190: 8 | J190: 12 OZ | K190: 200 | L190: 17.996 | M190: 3599.2 | N190: 2.2495 | O190: 2755411 | P190: HARTL | Q190: 6/12/OZ | R190: N | T190: Shamrock | U190: 19.65 | V190: 21.07 | W190: 18 | X190: 19.66 | Y190: 0 | Z190: 0 | AA190: 0
B191: 186 | C191: D1067 | D191: GF PASTA SPAGHETTI | E191: PASTA SPAGHETTI GLUTEN FREE | F191: SPECIFY | H191: CS | I191: 12 | J191: 12 OZ | K191: 200 | L191: 26.246 | M191: 5249.2 | N191: 2.187166667 | O191: 4940731 | P191: GAROF | Q191: 12/12/OZ | R191: N | T191: Shamrock | U191: 29.48 | V191: 30.21 | W191: 26.25 | X191: 29.49 | Y191: 0 | Z191: 0 | AA191: 0
B192: 187 | C192: CTF7021 | D192: GLAZE STAWBERRY | E192: STRAWBERRY GLAZE CATERING | F192: SPECIFY | H192: CS | I192: 1 | J192: 20LB | K192: 25 | L192: 26.63 | M192: 665.75 | N192: 26.63 | O192: 4097565 | P192: LAWRENCE | Q192: 1 / 20 LB | T192: Labatt | U192: 0 | V192: 26.63 | W192: 50.66 | X192: 29.02 | Y192: 0 | Z192: 0 | AA192: 0
B193: 188 | C193: D1068 | D193: GRANOLA BULK | E193: GRANOLA BULK | F193: SPECIFY | H193: CS | I193: 4 | J193: 50 OZ | K193: 250 | L193: 41.97 | M193: 10492.5 | N193: 10.4925 | O193: 3730027 | P193: KELLOGG'S | Q193: 4 / 50 OZ | T193: Labatt | U193: 61.37 | V193: 41.97 | W193: 57.01 | X193: 47.17 | Y193: 0 | Z193: 0 | AA193: 0
B194: 189 | C194: D1069 | D194: GRAVY BROWN | E194: GRAVY BROWN LIGHT | F194: PIONEER OR APPROVED EQUIVALENT | G194: 94541 | H194: CS | I194: 6 | J194: 13 OZ | K194: 700 | L194: 24.65 | M194: 17255 | N194: 4.108333333 | O194: 107942 | P194: Pioneer | Q194: 6/11.3 oz | R194: NO | S194: Lowest wasn't brand specific | T194: BEK | U194: 24.65 | V194: 15.83 | W194: 25.49 | X194: 24.65 | Y194: 0 | Z194: 0 | AA194: 0
B195: 190 | C195: D1070 | D195: GRAVY COUNTRY | E195: COUNTRY SKILLET CREAM GRAVY | F195: PIONEER OR APPROVED EQUIVALENT | G195: 96115 | H195: CS | I195: 6 | J195: 24 OZ | K195: 725 | L195: 27.79 | M195: 20147.75 | N195: 4.631666667 | O195: 3550029 | P195: PIONEER | Q195: 6 / 24 OZ | S195: Lowest bid wrong item | T195: Labatt | U195: 28.14 | V195: 27.79 | W195: 5.65 | X195: 28.14 | Y195: 0 | Z195: 0 | AA195: 0
B196: 191 | C196: CTF7062 | D196: HAM BUFFET | E196: HAM WATER ADDED CURED BONELESS AND FULLY COOKED. HAM IS 97% FAT FREE (3% FAT) AND APPROXIMATELY 4 TO 4½ INCHES IN DIAMETER. FROZEN PRODUCT. CATERING | F196: SPECIFY | H196: CS | I196: 1 | J196: LB | K196: 100 | L196: 2.4752 | M196: =IF(L196*K196= 0,"",L196*K196) -> 247.52 | N196: =IF(L196/I196= 0,"",L196/I196) -> 2.4752 | O196: 2324041 | P196: CBLSO | Q196: 2/12/LBAV | R196: N | T196: Shamrock | U196: 0 | V196: 91.92 | W196: 2.48 | X196: 2.81 | Y196: 0 | Z196: 0 | AA196: 0
B197: 192 | C197: F1063 | D197: HOT DOGS BEEF | E197: BEEF FRANKS LOWER SODIUM 8/1 6" CN LABELED TO MEET 2 OZ MEAT REQUIREMENT | F197: JOHN MORRELL OR APPROVED EQUIVALENT | G197: 100-701000-28560 | H197: CS | I197: 80 | J197: 2 OZ | K197: 600 | L197: 33.7025 | M197: 20221.5 | N197: 0.42128125 | O197: 2449031 | P197: PRCRD | Q197: 1/10/LB | R197: N | T197: Shamrock | U197: 0 | V197: 33.86 | W197: 33.7 | X197: 45.83 | Y197: 0 | Z197: 0 | AA197: 0
B198: 193 | C198: F1064 | D198: ICE CREAM SS BAR CARAMEL | E198: STICK BAR REDUCED FAT SALTY CARAMEL BROWNIE CRUNCH BAR | F198: HERSHEY'S OR APPROVED EQUIVALENT | G198: 31167 | H198: CS | I198: 36 | J198: 2.75 OZ | K198: 200 | S198: No Bids Offered | U198: 0 | X198: 0 | Y198: 0 | Z198: 0 | AA198: 0
B199: 194 | C199: F1065 | D199: ICE CREAM SS BAR STRAWBERRY | E199: STICK BAR STRAWBERRY SCOOTER | F199: HERSHEY'S OR APPROVED EQUIVALENT | G199: 31166 | H199: CS | I199: 36 | J199: 2.75 OZ | K199: 300 | L199: 19.47 | M199: 5841 | N199: 0.5408333333 | O199: 4221008 | P199: HERSHEY'S | Q199: 36 / 2.75 OZ | T199: Labatt | U199: 0 | V199: 19.47 | X199: 0 | Y199: 0 | Z199: 0 | AA199: 0
B200: 195 | C200: F1066 | D200: ICE CREAM SS BAR VANILLA | E200: ICE CREAM BAR VANILLA REDUCED FAT MUST BE SMART SNACK COMPLIANT <200 CALORIES < 35% FAT CALORIES < 230 MG SODIUM < 10% SATURATED FAT <35% OF WEIGHT FROM SUGARS | F200: SPECIFY | H200: CS | I200: 96 | J200: 3.0 OZ | K200: 100 | L200: 46.08 | M200: 4608 | N200: 0.48 | O200: 779838 | P200: BLUE BUNNY | Q200: 4 / 2 DZ | T200: Labatt | U200: 0 | V200: 46.08 | X200: 0 | Y200: 0 | Z200: 0 | AA200: 0
... 212 more rows

Sheet BEK (hidden)
B1: ROSWELL INDEPENDENT SCHOOL DISTRICT | I1: Vendor Name: | L1: Ben E Keith
B2: CAFETERIA FOOD BID 23-06 FOR SCHOOL YEAR 2023-24 | I2: Vendor Contact | L2: Bill Focke
B3: MUST BE RECEIVED BY MAY 4, 2023 ON CD-R OR FLASH DRIVE SEALED WITH SUPPORTING DOCUMENTS | I3: Date | L3: 2023-05-04
B4: ITEM | C4: STOCK ID | D4: ITEM | E4: DESCRIPTION | F4: Approved Brand | G4: Product Code or UPC | H4: BID UNIT | I4: CASE PACK | K4: EST USAGE | L4: BID UNIT PRICE | M4: Extended Total | N4: per UNIT price | O4: VENDOR STOCK NO | P4: BRAND NAME | Q4: PACK SIZE | R4: SPECIAL ORDER YES NO | S4: BIDDERS NOTES
B6: 1 | C6: D1000 | D6: APPLESAUCE CANNED | E6: APPLESAUCE GRADE B FANCY NATURAL COLOR UNSWEETENED MUST MEET BUY AMERICAN REQUIREMENTS | F6: SPECIFY | H6: CS | I6: 6 | J6: 10 CN | K6: 400 | M6: =IF(L6*K6= 0,"",L6*K6) ->  | N6: =IF(L6/I6= 0,"",L6/I6) -> 
B7: 2 | C7: D1001 | D7: APPLESAUCE CUPS CINNAMON | E7: CINNAMON UNSWEETENED APPLESAUCE MUST PROVIDE 1/2 CUP FRUIT EQUIVALENT UNDER THE NSLP. 100% ALL NATURAL INGREDIENTS SHELF-STABLE FOR 18 MONTHS NO HIGH FRUCTOSE CORN SYRUP OR ADDED SUGAR FAT FREE 100% VITAMIN C | F7: SPECIFY | H7: CS | I7: 96 | J7: 4.5 OZ | K7: 600
B8: 3 | C8: D1002 | D8: APPLESAUCE CUPS PEACH | E8: PEACH UNSWEETENED APPLESAUCE MUST PROVIDE 1/2 CUP FRUIT EQUIVALENT UNDER THE NSLP. 100% ALL NATURAL INGREDIENTS SHELF-STABLE FOR 18 MONTHS NO HIGH FRUCTOSE CORN SYRUP OR ADDED SUGAR FAT FREE 100% VITAMIN C | F8: SPECIFY | H8: CS | I8: 96 | J8: 4.5 OZ | K8: 600
B9: 4 | C9: D1003 | D9: APPLESAUCE CUPS PLAIN | E9: PLAIN UNSWEETENED APPLESAUCE MUST PROVIDE 1/2 CUP FRUIT EQUIVALENT UNDER THE NSLP. 100% ALL NATURAL INGREDIENTS SHELF-STABLE FOR 18 MONTHS NO HIGH FRUCTOSE CORN SYRUP OR ADDED SUGAR FAT FREE 100% VITAMIN C | F9: SPECIFY | H9: CS | I9: 96 | J9: 4.5 OZ | K9: 600
B10: 5 | C10: D1004 | D10: APPLESAUCE CUPS STRAWBERRY | E10: PLAIN UNSWEETENED APPLESAUCE MUST PROVIDE 1/2 CUP FRUIT EQUIVALENT UNDER THE NSLP. 100% ALL NATURAL INGREDIENTS SHELF-STABLE FOR 18 MONTHS NO HIGH FRUCTOSE CORN SYRUP OR ADDED SUGAR FAT FREE 100% VITAMIN C | F10: SPECIFY | H10: CS | I10: 96 | J10: 4.5 OZ | K10: 600
B11: 6 | C11: CTF7049 | D11: AVACADO PULP | E11: AVACADO PULP FROZEN CATERING | F11: SPECIFY | H11: CS | I11: 12 | J11: 1LBS | K11: 70
B12: 7 | C12: F1000 | D12: BACON PIECES | E12: BACON ENDS & PIECES | F12: SPECIFY | H12: CS | I12: 12 | J12: 3 LB | K12: 425 | L12: 116.2 | M12: 49385 | N12: 9.683333333 | O12: 121545 | P12: Wrights | Q12: 6/3lb | R12: no
B13: 8 | C13: F1001 | D13: BACON PRE-COOKED | E13: FULLY COOKED AND READY TO EAT - SIMPLY WARM & SERVE 100% REAL BACON | F13: HORMEL OR APPROVED EQUIVALENT | G13: 3729 | H13: CS | I13: 1 | J13: 300 | K13: 500 | O13: 530845 | P13: Fastneasy | Q13: 3/100 ct | R13: no
B14: 9 | C14: CTF7050 | D14: BACON SLICED THICK | E14: BACON THICK SLICED CATERING | F14: SPECIFY | H14: CS | I14: 15 | J14: LB | K14: 30 | L14: 117.43 | M14: 3522.9 | N14: 7.828666667 | O14: 172685 | P14: Wrights | Q14: 33 lb | R14: no
B15: 10 | C15: CTF7051 | D15: BACON SLICED THIN | E15: BACON THIN SLICED CATERNG | F15: SPECIFY | H15: CS | I15: 15 | J15: LB | K15: 15 | L15: 50.63 | M15: 759.45 | N15: 3.375333333 | O15: 530112 | P15: Wrights | Q15: 15 lb | R15: no
B16: 11 | C16: F1002 | D16: BAGEL BLUEBERRY | E16: BAGEL WG BLUEBERRY SLICED IW MUST BE WHOLE GRAIN RICH AND PROVIDE 2.0OZ GRAIN EQUIVALENTS. PORTION TO PROVIDE AT LEAST 115 CALORIES WITH NO MORE THAN 2 GRAMS OF FAT. | F16: BAKE CRAFTERS OR APPROVED EQUIVALENT | G16: 696 | H16: CS | I16: 84 | J16: 2 OZ | K16: 450
B17: 12 | C17: F1003 | D17: BAGEL PLAIN | E17: BAGEL WG BLUEBERRY IW MUST BE WHOLE GRAIN RICH AND PROVIDE 2.0OZ GRAIN EQUIVALENTS. PORTION TO PROVIDE AT LEAST 115 CALORIES WITH NO MORE THAN 2 GRAMS OF FAT. | F17: BAKE CRAFTERS OR APPROVED EQUIVALENT | G17: 982 | H17: CS | I17: 84 | J17: 2 OZ | K17: 450
B18: 13 | C18: D1005 | D18: BAKING SODA | E18: SODIUM BICARBONATE | F18: SPECIFY | H18: CS | I18: 24 | J18: 1 LBS | K18: 60 | L18: 21.72 | M18: 1303.2 | N18: 0.905 | O18: 696130 | P18: Hospitality | Q18: 24/1lb | R18: no
B19: 14 | C19: F1004 | D19: BAR BREAKFAST APPLE | E19: BREAKFAST BAR APPLE THAT MEET 2OZ WG AND 1/2C FRUIT FOR CHILD NUTRITIONAL MEAL PATTERN | F19: DAVE'S OR APPROVED EQUIVALENT | G19: 4014 | H19: CS | I19: 64 | J19: 3 OZ | K19: 1000
B20: 15 | C20: F1005 | D20: BAR BREAKFAST BANANA CHOCOLATE | E20: INDIVIDUALLY WRAPPED 51% WHOLE GRAIN BANANA CHOCOLATE CHUNK | F20: BeneFIT OR APPROVED EQUIVALENT | G20: 40402 | H20: CS | I20: 48 | J20: 2.5 OZ | K20: 1650 | L20: 20.75 | M20: 34237.5 | N20: 0.4322916667 | O20: 413310 | P20: J&J snack | Q20: 48/2.5 oz | R20: no | S20: WILL BRING IN IF AWARED
B21: 16 | C21: F1006 | D21: BAR BREAKFAST BLUEBERRY | E21: BREAKFAST BAR BLUEBERRY THAT MEET 2OZ WG AND 1/2C FRUIT FOR CHILD NUTRITIONAL MEAL PATTERN | F21: DAVE'S OR APPROVED EQUIVALENT | G21: 4014 | H21: CS | I21: 64 | J21: 3 OZ | K21: 1000
B22: 17 | C22: F1007 | D22: BAR BREAKFAST COCOA CHIP | E22: INDIVIDUALLY WRAPPED 51% WHOLE GRAIN COCOA CHIP | F22: BeneFIT OR APPROVED EQUIVALENT | G22: 40406 | H22: CS | I22: 48 | J22: 2.5 OZ | K22: 1650 | L22: 21.8 | M22: 35970 | N22: 0.4541666667 | O22: 413311 | P22: J&J snack | Q22: 48/2.5oz | R22: no | S22: WILL BRING IN IF AWARED
B23: 18 | C23: F1008 | D23: BAR BREAKFAST OATMEAL CHOCOLATE | E23: INDIVIDUALLY WRAPPED 51% WHOLE GRAIN OATMEAL CHOCOLATE CHIP | F23: BeneFIT OR APPROVED EQUIVALENT | G23: 40401 | H23: CS | I23: 48 | J23: 2.5 oz | K23: 1650 | L23: 20.75 | M23: 34237.5 | N23: 0.4322916667 | P23: J&J snack | Q23: 48 /2.5 opz | S23: Come back to
B24: 19 | C24: F1009 | D24: BAR OATMEAL BLUEBERRY | E24: BLUEBERRY OATMEAL BARS 2.04 OZ 51% WHOLE GRAIN MEET 2 OZ GRAIN EQUIVALENT | F24: DARLINGTON SNACKS OR APPROVED EQUIVALENT | G24: 75600 | H24: CS | I24: 160 | J24: 2.4 OZ | K24: 1000 | O24: 181157 | P24: Appleway | Q24: 160/2.4 oz
B25: 20 | C25: C1000 | D25: BASE BEEF | E25: GRADE A TO CONTAIN BEEF LOW SODIUM- PASTE NON-CAKING READY TO DISSOLVE BEEF FLAVORED NO MSG | F25: SPECIFY | H25: CS | I25: 12 | J25: 1 LBS | K25: 200 | O25: 811176 | P25: Minors | Q25: 6/1 lb | R25: no
B26: 21 | C26: C1001 | D26: BASE CHICKEN | E26: GRADE A TO CONTAIN CHICKEN LOW SODIUM - PASTE NON-CAKING READY TO DISSOLVE CHICKEN FLAVORED NO MSG | F26: SPECIFY | H26: CS | I26: 12 | J26: 1 LBS | K26: 200 | O26: 811080 | P26: Minors | Q26: 12/1 lb | R26: no
B27: 22 | C27: CTF7009 | D27: BASE CHICKEN KNORR | E27: CHICKEN FLAVORED BOUILLON CATERING | F27: KNORR OR APPROVED EQUIVALENT | G27: 116300 | H27: BTL | I27: 1 | J27: 7.9 LB | K27: 5
B28: 23 | C28: C1002 | D28: BASE HAM | E28: GRADE A TO CONTAIN HAM LOW SODIUM - PASTE NON-CAKING READY TO DISSOLVE BEEF FLAVORED NO MSG | F28: SPECIFY | H28: CS | I28: 12 | J28: 1 LBS | K28: 300 | O28: 811123 | P28: Minors | Q28: 6/1 lb | R28: no
B29: 24 | C29: D1006 | D29: BEANS BAKED | E29: REDUCED SODIUM VEGETARIAN BAKED BEANS | F29: BUSHS BEST OR APPROVED EQUIVALENT | H29: CS | I29: 6 | J29: #10 CANS | K29: 1500 | L29: 47.95 | M29: 71925 | N29: 7.991666667 | O29: 650066 | P29: Bush BROTHERS | Q29: 6 /#10 | R29: NO | S29: WILL BRING IN IF AWARDED
B30: 25 | C30: D1007 | D30: BEANS GARBANZO | E30: BRINE PACK. GARBANZO BEANS WATER SALT VINEGAR DISODIUM EDTA (TO PROMOTE COLOR AND RETENTION) AND CALCIUM CHLORIDE (A FIRMING AGENT). | F30: SPECIFY | H30: CS | I30: 6 | J30: 10 LB | K30: 65 | L30: 33.9 | M30: 2203.5 | N30: 5.65 | O30: 107998 | P30: Allen | Q30: 6/ #10 | R30: NO | S30: WILL BRING IN IF AWARDED
B31: 26 | C31: CTF7010 | D31: BEANS KIDNEY | E31: CATERING | H31: CS | I31: 6 | J31: #10 CAN | K31: 50 | L31: 36.95 | M31: 1847.5 | N31: 6.158333333 | O31: 650110 | P31: Allen | Q31: 6 / #10 | R31: NO | S31: WILL BRING IN IF AWARDED
B32: 27 | C32: D1008 | D32: BEANS PINTO CANNED | E32: PINTO BEANS WHOLE STYLE SEASONED VEGETARIAN CANNED IN BRINE US GRADE B LOW SODIUM (140 MILLIGRAMS OF SODIUM OR LESS PER SERVING) | F32: BUSH'S OR APPROVED EQUIVALENT | H32: CS | I32: 6 | J32: 10 CN | K32: 1300 | L32: 35.6 | M32: 46280 | N32: 5.933333333 | O32: 650080 | P32: Allen | Q32: 6 /#10 | R32: NO | S32: WILL BRING IN IF AWARDED
B33: 28 | C33: D1009 | D33: BEANS PINTO DRY | E33: US #1 GRADE A CURRENT CROP 98% CLEAN FREE OF WEEVILS DIRT AND ROCKS. TRIPLE CLEANED. | F33: SPECIFY | H33: LB | I33: 50 | J33: LBS | K33: 250 | L33: 31.45 | M33: 7862.5 | N33: 0.629 | O33: 652031 | P33: KELLY BEAN | Q33: 50LB | R33: NO
B34: 29 | C34: D1010 | D34: BEANS RANCH | E34: PINTO BEANS WATER TOMATO PUREE LESS THAN 2% BLEND OF VEGETABLE OILS AND ANIMAL FAT SALT CHILI PEPPERS SUGAR PAPRIKA VINEGAR SPICES ONION POWDER GARLIC POWDER NATURAL FLAVORINGS SOY LECITHIN LOW SODIUM (140 MILLIGRAMS OF SODIUM OR LESS PER SERVING) | F34: RANCH STYLE OR APPROVED EQUIVALENT | G34: 4690000116 | H34: CS | I34: 6 | J34: 10 CN | K34: 300 | L34: 48.85 | M34: 14655 | N34: 8.141666667 | O34: 650085 | P34: Rnachy | Q34: 6/111OZ | R34: NO
B35: 30 | C35: D1011 | D35: BEANS REFRIED | E35: DEHYDRATED JUST ADD WATER TO COOK AND SERVE UNSEASONED. US GRADE A | F35: SANTIAGO OR APPROVED EQUIVALENT | G35: 10166 | H35: CS | I35: 6 | J35: 28.1 OZ | K35: 300 | L35: 36.35 | M35: 10905 | N35: 6.058333333 | O35: 782051 | P35: Santigo | Q35: 6/29.77 oz | R35: no
B36: 31 | C36: CTF7052 | D36: BEEF BRISKET | E36: BEEF PACKER TRIM VACCUUM PACKED LARGE 14-22 LB CATERING | F36: SPECIFY | H36: LB | I36: 1 | J36: LB | K36: 2000 | O36: 161214 | P36: JBS | Q36: 5/12 lb | R36: no
B37: 32 | C37: CTF7053 | D37: BEEF CHICKEN FRIED STEAK | E37: EXCLUSIVE CUT™ WHOLE MUSCLE BEEF. BATTERED WITH A BUTTERMILK BLEND BREADED WITH A FLOUR-BASED BREADING. CATERING | F37: ADVANCE/PIERRE OR APPROVED EQUIVALENT | G37: 4541 | H37: CS | I37: 40 | J37: 4 OZ | K37: 25 | L37: 65.75 | M37: 1643.75 | N37: 1.64375 | O37: 508205 | P37: Advance | Q37: 40/4OZ | R37: NO | S37: WILL BRING IN IF AWARDED
B38: 33 | C38: F1010 | D38: BEEF FAJITA STRIPS | E38: FORMED BEEF SEASONED FULLY COOKED AND SLICED INTO 3/8-INCH STRIPS. SOY ADDED. CHAR MARKED. | F38: ADVANCE/PIERRE OR APPROVED EQUIVALENT | G38: 56001 | H38: CS | I38: 2 | J38: 5 LB | K38: 100 | O38: 509160 | P38: TYSON | Q38: 160/1OZ | R38: NO
B39: 34 | C39: F1011 | D39: BEEF GROUND 85/15 | E39: 100 % BEEF, GROUND, RAW, FROZEN, UNSEASONED FINE GRIND 85/15 LEAN/FAT RATIO, NO FILLERS, MEET NEW MEXICO GROWN REQUIREMENTS, LESS THAN 100MG SODIUM PER 3OZ SERVING, INDIVIDUALLY WRAPPED 5 PACKS/10 POUNDS | F39: NEW MEXICO'S BEST OR APPROVED EQUIVALENT | G39: NMB8515GB | H39: CS | I39: 5 | J39: 10# | K39: 2000
B40: 35 | C40: F1012 | D40: BEEF PATTY | E40: FULLY COOKED BEEF PATTIES, EACH 3.00 OZ FULLY COOKED BEEF PATTY PROVIDES 2.50 OZ EQUIVALENT MEAT FOR NSL, NO FILLERS, MEET NEW MEXICO GROWN REQUIREMENTS, LESS THAN 100MG SODIUM PER 3OZ SERVING | F40: NEW MEXICO'S BEST OR APPROVED EQUIVALENT | G40: NMB8020BPSFC | H40: CS | I40: 195 | J40: 3 OZ | K40: 600 | O40: 509202 | P40: TYSON | Q40: 53/3OZ | R40: NO | S40: Come back to
B41: 36 | C41: F1013 | D41: BEEF PHILLY STEAK | E41: FULLY COOKED COOKED SLICED STEAK LESS THAN 230MG SODIUM PER SERVING | F41: ADVANCE/PIERRE OR APPROVED EQUIVALENT | G41: 69249 | H41: CS | I41: 170 | J41: 2.82 OZ | K41: 200 | L41: 107.27 | M41: 21454 | N41: 0.631 | O41: 163289 | P41: TYSON | Q41: 192/2.5OZ | R41: NO | S41: WILL BRING IN IF AWARDED
B42: 37 | C42: F1014 | D42: BEEF SHREDS | E42: BEEF SHREDS, EACH 2.36OZ MEET 2M/MA FOR NSLP NO FILLERS, MEET NEW MEXICO GROWN REQUIREMENTS, LESS THAN 100MG SODIUM PER 3OZ SERVING | F42: NEW MEXICO'S BEST OR APPROVED EQUIVALENT | G42: NMBBSFC | H42: CS | I42: 5 | J42: 10 LB | K42: 600 | P42: Asian Foods | Q42: 5/7.2 lb | R42: NO
B43: 38 | C43: F1015 | D43: BEEF STEAK FINGERS WG | E43: BEEF STRIP, FULLY COOKED, BREADED, NO FILLERS, MEET NEW MEXICO GROWN REQUIREMENTS, LESS THAN 100MG SODIUM PER 3.6 OZ SERVING | F43: NEW MEXICO'S BEST OR APPROVED EQUIVALENT | G43: NMB8020BSSBSFC | H43: CS | I43: 534 | J43: .9 oz | K43: 450
B44: 39 | C44: F1016 | D44: BEEF STEAK PATTIE BREADED | E44: BEEF PATTY, BREADED, FULLY COOKED, EACH 3.2 OZ PATTY PROVIDES 2OZ EQUIVALENT MEAT/MEAT ALTERNATE FOR NSLP, NO FILLERS, MEET NEW MEXICO GROWN REQUIREMENTS, LESS THAN 100MG SODIUM PER 3.2 OZ SERVING | F44: NEW MEXICO'S BEST OR APPROVED EQUIVALENT | G44: NMB8020BPBSFC | H44: CS | I44: 150 | J44: 3.2 oz | K44: 400 | P44: Tyson | Q44: 150 / 3.2 | R44: no
B45: 40 | C45: F1017 | D45: BISCUIT WG | E45: HONEY WHOLE WHEAT HEAT & SERVE PRE-SLICED MEET 2 OZ/GR | F45: BRIDGEFORD OR APPROVED EQUIVALENT | G45: 6270 | H45: CS | I45: 100 | J45: 2.25 OZ | K45: 400 | L45: 30.9 | M45: 12360 | N45: 0.309 | O45: 170370 | P45: BRIDGFORD | Q45: 100/2.25OZ | R45: NO | S45: WILL BRING IN IF AWARDED
B46: 41 | C46: CTF7054 | D46: BISCUIT WHITE BUTTERMILK | E46: BISCUIT OLD SOUTH BUTTERMILK PRE-SLICED FULLY COOOKED 2.25 OZ CATERING | F46: BRIDGEFORD OR APPROVED EQUIVALENT | G46: 6170 | H46: CS | I46: 100 | J46: 2.25 OZ | K46: 300 | L46: 28.88 | M46: 8664 | N46: 0.2888 | O46: 399480 | P46: BRIDGFORD | Q46: 100/2.25OZ | R46: NO | S46: WILL BRING IN IF AWARDED
B47: 42 | C47: F1018 | D47: BOLI STRAWBERRY | E47: BOLI STRAWBERRY WG IW EACH 3.24 OZ PROVIDES 2.00 OZ EQ GRAINS OR NSP | F47: TASTY BRAND OR APPROVED EQUIVALENT | G47: 53205 | H47: CS | I47: 96 | J47: 3.24 OZ | K47: 850
B48: 43 | C48: F1019 | D48: BOLI SWEET | E48: BOLI STRAWBERRY WG IW EACH 3.24 OZ PROVIDES 2.00 OZ EQ GRAINS OR NSP | F48: TASTY BRAND OR APPROVED EQUIVALENT | G48: 53204 | H48: CS | I48: 96 | J48: 3.24 OZ | K48: 850
B49: 44 | C49: F1020 | D49: BOLILLO CHORIZO & CHEESE | E49: BOLLIOS, CHORIZO & CHEESE, BULK, EACH BOLILLO MUST MEET 1.5OZ GRAIN AND 1 M/MA FOR STUDENT NUTRITION PROGRAM | F49: ARDELLA'S OR APPROVED EQUIVALENT | G49: 10014 | H49: CS | I49: 72 | J49: 3.35 OZ | K49: 900
B50: 45 | C50: F1021 | D50: BREAD BANANA SLICE | E50: 3.4OZ (96G) FROZEN IW THAW & SERVE CONTAINS ZERO TRANS-FAT > 51% WHOLE WHEAT FLOUR NON-DAIRY NO ARTIFICIAL COLORS FLAVORS OR PRESERVATIVES. MUST CONFORM TO USDA CHILD NUTRITION PROGRAM SPECIFICATIONS AND MEET 2 SERVINGS OF GRAIN. | F50: SUPER BAKERY OR APPROVED EQUIVALENT | G50: 6071 | H50: CS | I50: 70 | J50: 3.4 OZ | K50: 1200 | L50: 47.8 | M50: 57360 | N50: 0.6828571429 | O50: 183146 | P50: SUPER BAKERY | Q50: 75/3.4OZ | R50: NO | S50: WILL BRING IN IF AWARDED MFG 7501
B51: 46 | C51: F1022 | D51: BREAD LEMON | E51: 3.4OZ (96G) FROZEN IW THAW & SERVE CONTAINS ZERO TRANS-FAT > 51% WHOLE WHEAT FLOUR NON-DAIRY NO ARTIFICIAL COLORS FLAVORS OR PRESERVATIVES. MUST CONFORM TO USDA CHILD NUTRITION PROGRAM SPECIFICATIONS AND MEET 2 SERVINGS OF GRAIN. | F51: SUPER BAKERY OR APPROVED EQUIVALENT | G51: 7507 | H51: CS | I51: 70 | J51: 3.4OZ | K51: 1200 | L51: 51.41 | M51: 61692 | N51: 0.7344285714 | O51: 165891 | P51: SUPER BAKERY | Q51: 70/3.45 oz | R51: no | S51: WILL BRING IN IF AWARDED MFG 7501
B52: 47 | C52: F1023 | D52: BREADSTICK | E52: WHITE WHOLE WHEAT CHEESY GARLIC BREADSTICK DOUGH FROZEN RAW PROOF AND BAKE WHOLE GRAIN FLOUR CHEESE AND GARLIC FLAVORED. EACH STICK MUST PROVIDE A MINUMIM OF 1GB COMPONENT FOR NSLP | F52: BRIDGEFORD OR APPROVED EQUIVALENT | G52: 6787 | H52: CS | I52: 320 | J52: 1.125 oz | K52: 1500 | L52: 36.91 | M52: 55365 | N52: 0.11534375 | O52: 117356 | P52: BRIDGFORD | Q52: 72 | R52: NO | S52: WILL BRING IN IF AWARDED
B53: 48 | C53: F1024 | D53: BREADSTICK CHEESE FILLED WG | E53: BREAKSTICK CHEESE FILLED WG EACH BREADSTICK MEETS 1M/MA FOR CHILD NUTRITION MEAL PATTERN | F53: CLASSIC DELIGHT OR APPROVED EQUIVALENT | G53: A33045 | H53: CS | I53: 112 | J53: 2 OZ | K53: 800 | P53: Tools for school | Q53: 112./2oz | R53: no | S53: WILL BRING IN IF AWARDED
B54: 49 | C54: F1025 | D54: BREAKFAST ROUNDS | E54: CINNAMON AND BROWN SUGAR BREAKFAST ROUND IW MUST MEET 2 GRAIN FOR SBP | F54: UBR/RICH'S OR APPROVED EQUIVALENT | G54: 8733 | H54: CS | I54: 126 | J54: 2.2 OZ | K54: 1000
B55: 50 | C55: F1026 | D55: BURRITO | E55: BEEF BEAN AND CHEESE BURRITO. A RED CHILI BEEF BEAN AND TEXTURED VEGETABLE PROTEIN FILLING WRAPPED IN A FLOUR TORTILLA. BURRITOS SHALL BE UNIFORMLY ROLLED WITH A UNIFORM DISTRIBUTION OF FILLING. NO EXESSIVELY FLATTENED OR IRREGULAR SHAPED PRODUCT. | F55: BUTCHERBOY/POSADA OR APPROVED EQUIVALENT | G55: 1020001 | H55: CS | I55: 72 | J55: 4 OZ | K55: 1000
B56: 51 | C56: F1027 | D56: BURRITO BEAN & CHEESE de CHILE RELLENO | E56: BURRITO -FROZEN BEAN & CHEESE DE CHILE RELLENO-REFRIED BEANS TOPPED WITH MEXICAN STYLE RICE WITH RED SALSA WITH POBLANO CHILE AND PEPPER JACK CHEESE ON A WHOLEWHEAT FLOUR TORTILLA. EACH 7.66 OZ. BURRITO PROVIDES 2.00 OZ MEAT ALTERNATE AND 1/8 CUP OTHER VEGETABLE AND 2.25 OZ EQV GRAIN OR 1.00 OZ MEAT ALTERNATE AND 1/8 CUPOTHER VEGETABLE AND 1/4 CUP LEGUME VEGETABLE AND 2.25 OZ EQV GRAIN TOWARDS THE NSLP, WHOLE GRAIN RICH FLOUR TORTILLA. CN LABELED. BURRITOS ARE HAND-WRAPPED INOVENABLE FOIL SHEETS. 36 COUNT. PREPARATION INSTRUCTIONS INCLUDED ON BOX. NO MORE THAN 700 MG SODIUM, LESS THAN 15% CALORIES FROM SATURATED FAT, 0 TRANS FAT. NOLESS THAN 400 KCAL. HAND HELD, FULLY COOKED. HEAT & SERVE.-VEGETARIAN. CABO PRIMO BRAND 71683 | F56: LOS CABOS OR APPROVED EQUIVALENT | G56: 71683 | H56: CS | I56: 36 | J56: 7.66 OZ | K56: 600
B57: 52 | C57: F1028 | D57: BURRITO PRE-FRIED BULK | E57: 4.75 OZ. CHEESE BEEF BEAN & RED CHILI BURRITO FULLY COOKED GROUND BEEF RED CHILI SAUCE AMERICAN CHEESE PINTO BEANS WRAPPED IN A WHOLE GRAIN RICH BLEND OF WHEAT AND CORN FLOUR TORTILLA 16g PROTEIN PER SERVING CN LABELED - SERVES 2 OZ. M/MA & 2 OZ. EQUIVALENT GRAINS PRE-FRIED | F57: FERNANDO'S OR APPROVED EQUIVALENT | G57: 21072 | H57: CS | I57: 72 | J57: 4.75 oz | K57: 1000 | L57: 73.38 | M57: 73380 | N57: 1.019166667 | O57: 385021 | P57: FOSTER FARMS | Q57: 72/4.0 oz | R57: NO | S57: WILL BRING IN IF AWARDED
B58: 53 | C58: D1012 | D58: BUTTER ALTERNATIVE | E58: PHASE® ZERO TRANS NO SODIUM LIQUID BUTTER ALTERNATIVE | F58: PHASE OR APPROVED EQUIVALENT | G58: 13688 | H58: CS | I58: 3 | J58: GAL | K58: 200 | L58: 42.39 | M58: 8478 | N58: 14.13 | O58: 176311 | P58: Ventura | Q58: 1/.17.5 lb | R58: no
B59: 54 | C59: C1008 | D59: BUTTERMILK BAKING 1% | E59: BUTTERMILK BAKING 1% | F59: SPECIFY | H59: CS | I59: 4 | J59: GAL | K59: 100 | L59: 23.28 | M59: 2328 | N59: 5.82 | O59: 152020 | P59: Dairy Pure | Q59: 9/ .5 gal | R59: no
B60: 55 | C60: D1013 | D60: CEREAL BLUEBERRY CHEX 2OZ | E60: BLUEBERRY CHEX AND SWEETENED RICE GLUTEN-FREE CEREAL. THIS READY-TO-EAT CUP PROVIDES CONVENIENT PORTION CONTROL AND ROOM FOR MILK. WHOLE GRAIN RICE – FIRST INGREDIENT. MEETS 2 OUNCE EQUIVALENT GRAINS USDA SMART SNACK CRITERIA AND IS CACFP ELIGIBLE. | F60: GENERAL MILLS OR APPROVED EQUIVALENT | G60: 17262000 | H60: CS | I60: 60 | J60: 2 OZ | K60: 500 | O60: 171482 | P60: GENERAL MILLS | Q60: 60/2OZ | R60: NO | S60: WILL BRING IN IF AWARDED
B61: 56 | C61: D1014 | D61: CEREAL CHEERIOS 1 OZ | E61: READY TO EAT CEREALS: BOWL PACK WHOLE GRAIN OATS RINGS. MUST MEET 1G EQUIVALENCY FOR SBP | F61: GENERAL MILLS OR APPROVED EQUIVALENT | G61: 32262000 | H61: CS | I61: 96 | J61: 1 oz | K61: 250 | O61: 108117 | P61: GENERAL MILLS | Q61: 96/1 OZ | R61: NO | S61: WILL BRING IN IF AWARDED
B62: 57 | C62: D1015 | D62: CEREAL CINNAMON CHEX 1 OZ | E62: CINNAMON CHEX™ IS MADE WITH REAL CINNAMON AND SWEETENED RICE GLUTEN-FREE CEREAL. THIS READY-TO-EAT CUP PROVIDES CONVENIENT PORTION CONTROL AND ROOM FOR MILK. WHOLE GRAIN RICE – FIRST INGREDIENT. MEETS 2 OUNCE EQUIVALENT GRAINS USDA SMART SNACK CRITERIA AND IS CACFP ELIGIBLE. | F62: GENERAL MILLS OR APPROVED EQUIVALENT | G62: 14883000 | H62: CS | I62: 60 | J62: 2 OZ | K62: 500 | O62: 173933 | P62: GENERAL MILLS | Q62: 96/1OZ | R62: NO | S62: WILL BRING IN IF AWARDED
B63: 58 | C63: D1016 | D63: CEREAL CINNAMON TOAST 1 OZ | E63: READY TO EAT CEREALS: BOWL PACK WHOLE GRAIN 25% LESS SUGAR CINNAMON TOAST SQUARES. MUST MEET 1G EQUIVALENCY FOR SBP | F63: GENERAL MILLS OR APPROVED EQUIVALENT | G63: 294440000 | H63: CS | I63: 96 | J63: 1 OZ | K63: 250 | O63: 799303 | P63: GENERAL MILLS | Q63: 96/1OZ | R63: NO | S63: WILL BRING IN IF AWARDED
B64: 59 | C64: D1017 | D64: CEREAL CINNAMON TOAST 2OZ | E64: READY TO EAT CEREALS: BOWL PACK WHOLE GRAIN 25% LESS SUGAR CINNAMON TOAST SQUARES. MUST MEET 2G EQUIVALENCY FOR SBP | F64: GENERAL MILLS OR APPROVED EQUIVALENT | G64: 148861000 | H64: CS | I64: 60 | J64: 2 OZ | K64: 1000 | O64: 150495 | P64: GENERAL MILLS | Q64: 60/2OZ | R64: NO | S64: WILL BRING IN IF AWARDED
B65: 60 | C65: D1018 | D65: CEREAL COCOA PUFFS 2OZ | E65: READY TO EAT CEREALS: BOWL PACK WHOLE GRAIN COCOA PUFFS REDUCED SUGAR MUST MEET 2 GRAIN EQUIVALENCY FOR SBP | F65: GENERAL MILLS OR APPROVED EQUIVALENT | G65: 148854000 | H65: CS | I65: 60 | J65: 2 OZ | K65: 1000 | O65: 150494 | P65: GENERAL MILLS | Q65: 96/1.06OZ | R65: NO | S65: WILL BRING IN IF AWARDED
B66: 61 | C66: D1019 | D66: CEREAL CREAM OF WHEAT | E66: HOT CEREALS: ENRICHED PLAIN BULK QUICK COOK CREAM OF WHEAT WHOLE GRAIN. MUST MEET 1G EQUIVALENCY FOR SBP | F66: SPECIFY | H66: CS | I66: 12 | J66: 28 OZ | K66: 10 | O66: 799229 | P66: INT';L HOME FOODS | Q66: 12/28OZ | R66: NO
B67: 62 | C67: D1020 | D67: CEREAL LUCKY CHARMS 2OZ | E67: READY TO EAT CEREALS: BOWL PACK WHOLE GRAIN WITH MARSHMALLOWS ASSORTED BERRY PUFFS REDUCED SUGAR. MUST MEET 2G EQUIVALENCY FOR SBP | F67: GENERAL MILLS OR APPROVED EQUIVALENT | G67: 148847000 | H67: CS | I67: 60 | J67: 2 OZ | K67: 200 | O67: 150493 | P67: GENERAL MILLS | Q67: 60/2OZ | R67: NO | S67: WILL BRING IN IF AWARDED
B68: 63 | C68: D1021 | D68: CEREAL OATMEAL | E68: OATS ROLLED INSTANT ENRICHED DRY | F68: SPECIFY | H68: CS | I68: 12 | J68: 42 OZ | K68: 20 | L68: 50.03 | M68: 1000.6 | N68: 4.169166667 | O68: 799349 | P68: Hospitiality | Q68: 12/42OZZ | R68: NO
B69: 64 | C69: D1022 | D69: CEREAL RICE KRISPIES BULK | E69: RICE BULK WHOLE GRAIN PLAIN PUFFS. MUST MEET 1G EQUIVALENCY FOR SBP | F69: SPECIFY | H69: CS | I69: 4 | J69: 35 OZ | K69: 900 | L69: 22.87 | M69: 20583 | N69: 5.7175 | O69: 799235 | P69: Hospitiality | Q69: 4/35OZ | R69: NO
B70: 65 | C70: C1009 | D70: CHEESE AMERICAN SLICED | E70: CHEESE AMERICAN PROCESSED SLICED 1/2 OUNCE EACH UNWRAPPED. REDUCED FAT REDUCED SODIUM PRE-SLICED YELLOW AMERICAN PROCESSED CHEESE. IMITATION OR CHEESE BLENDS NOT ACCEPTED. FAT GRAMS NOT TO EXCEED 2G PER SLICE SODIUM NOT TO EXCEED 210MG PER SLICE. 1 SLICE/.5OZ .5OZMMA 6/5#LAND O LAKES PREFERRED - AVAILABLE FOR NET OFF INVOICE. FOR NOI PRICING | F70: BONGARDS OR APPROVED EQUIVALENT | G70: 111371 | H70: CS | I70: 6 | J70: 5 LB | K70: 675 | L70: 57.43 | M70: =IF(L70*K70= 0,"",L70*K70) -> 38765.25 | N70: =IF(L70/I70= 0,"",L70/I70) -> 9.571666667 | O70: 735028 | P70: Zgolden harvest | Q70: 4/5 lb | R70: no
B71: 66 | C71: C1010 | D71: CHEESE CHEDDAR SHREDDED | E71: CHEESE CHEDDAR SHREDDED REDUCED FAT REDUCED SODIUM MILD NO IMITATION ENZYMES AND ARTIFICIAL COLORING MAY BE ADDED. PASTEURIZED PLEASING ODOR AND FLAVOR SATISFACTORY MELTABILITY. FAT GRAMS NOT TO EXCEED 4.5G SODIUM NOT TO EXCEED 90MG. 4/5# AVAILABLE FOR NET OFF INVOICE. FOR NOI PRICING | F71: BONGARDS OR APPROVED EQUIVALENT | G71: 755191 | H71: CS | I71: 4 | J71: 5 LB | K71: 600 | L71: 70.95 | M71: 42570 | N71: 17.7375 | O71: 139445 | P71: Schreiber | Q71: 4/5 lb | R71: no
B72: 67 | C72: CTF7000 | D72: CHEESE COTTAGE | E72: COTTAGE CHEESE SMALL CURD CATERING | F72: SPECIFY | H72: CS | I72: 1 | J72: 5 LB | K72: 75 | L72: 47.5 | M72: 3562.5 | N72: 47.5 | O72: 150501 | P72: Gldn harvest | Q72: 4/5 lb | R72: no
B73: 68 | C73: CTF7001 | D73: CHEESE CREAM BLOCK | E73: CREAM CHEESE BLOCK CATERING | F73: SPECIFY | H73: CS | I73: 10 | J73: 3 LB | K73: 20 | L73: 75.89 | M73: 1517.8 | N73: 7.589 | O73: 742002 | P73: Gldn harvest | Q73: 10/3 lb | R73: no
B74: 69 | C74: C1011 | D74: CHEESE CREAM PLAIN PC | E74: .75 OZ PLAIN CREAM CHEESE PLASTIC PORTION CONTROL CUP | F74: KRAFT OR APPROVED EQUIVALENT | G74: 61089 | H74: CS | I74: 100 | J74: .75 OZ | K74: 900 | L74: 21.34 | M74: 19206 | N74: 0.2134 | O74: 132429 | P74: Gldn harvest | Q74: 100 /1.oz | R74: no
B75: 70 | C75: C1012 | D75: CHEESE CREAM STRAWBERRY PC | E75: 1OZ STRAWBERRY CREAM CHEESE CUP. PLASTIC PORTION CONTROL CUP. | F75: KRAFT OR APPROVED EQUIVALENT | G75: 72683 | H75: CS | I75: 100 | J75: 1 OZ | K75: 900 | L75: 18.85 | M75: 16965 | N75: 0.1885 | O75: 140778 | P75: Schreiber | Q75: 100 /.75 oz | R75: no
B76: 71 | C76: C1013 | D76: CHEESE FETA | E76: FETA CHEESE CRUMBLES | F76: SPECIFY | H76: CS | I76: 4 | J76: 2.5 LB | K76: 50 | L76: 85.11 | M76: 4255.5 | N76: 21.2775 | O76: 164209 | P76: Stella | Q76: 4/5 lb | R76: no
B77: 72 | C77: C1014 | D77: CHEESE MOZZARELLA SHREDDED | E77: CHEESE MOZZARELLA SHREDDED: PART-SKIM 100% MOZZARELLA SHREDDED. FAT GRAMS NOT TO EXCEED 6G SODIUM NOT TO EXCEED 160MG. 1OZ SERVING MUST EQUAL 1OZ M/MA. 4/5# | F77: LAND O'LAKES OR APPROVED EQUIVALENT | G77: 41698 | H77: CS | I77: 4 | J77: 5 LB | K77: 270 | L77: 60.3 | M77: 16281 | N77: 15.075 | O77: 747146 | P77: Great Lakes | Q77: 6/5 lb | R77: no
B78: 73 | C78: C1015 | D78: CHEESE PEPPER JACK SLICES | E78: CHEESE SLICED PEPPER JACK NO IMITATION REDUCED FAT LOW SODIUM LOW FAT 160 CT | F78: SPECIFY | H78: CS | I78: 4 | J78: 5 LB | K78: 50 | L78: 43.69 | M78: 2184.5 | N78: 10.9225 | O78: 746028 | P78: L O Lakes | Q78: 8/1.5 lb | R78: no
B79: 74 | C79: C1016 | D79: CHEESE PROVOLONE SLICES | E79: CHEESE SLICED NO IMITATION REDUCED FAT & SODIUM 160 CT | F79: SPECIFY | H79: CS | I79: 4 | J79: 5 LB | K79: 50 | Q79: 8/1.5 lb | R79: no
B80: 75 | C80: F1029 | D80: CHEESE STICK BREADED | E80: CHEESE STICKS WG BREADED INDIVIDUALLY FROZEN. 6 STICKS PROVIDE 2 OZ EQUIVALENT MEAT ALTERNATE AND 2 OZ GRAINS. | F80: RICH'S OR APPROVED EQUIVALENT | G80: 65220 | H80: CS | I80: 8 | J80: 3 LB | K80: 500 | O80: 173929 | P80: RICH'S | Q80: 8/3LB | R80: NO
B81: 76 | C81: C1017 | D81: CHEESE STICK MARBLE IW | E81: CHEESE REDUCED FAT & SODIUM MARBLE IW FOR NOI PRICING | F81: BONGARDS OR APPROVED EQUIVALENT | G81: 402931 | H81: CS | I81: 168 | J81: 1 OZ | K81: 300
B82: 77 | C82: C1018 | D82: CHEESE STRING IW | E82: CHEESE: WHITE REDUCED FAT & SODIUM PORTION STICKS STRING PASTEURIZED LOW MOISTURE PART SKIM MOZZARELLA IW FOR NOI PRICING | F82: BONGARDS OR APPROVED EQUIVALENT | G82: 402951 | H82: CS | I82: 168 | J82: 1 OZ | K82: 300
B83: 78 | C83: C1019 | D83: CHEESE SWISS SLICES | E83: SWISS CHEESE SLICES REDUCED FAT PRESLICED EASY TO SEPARATE. EACH SLICE 14G. 2 SLICES PROVIDES 1 M/MA FOR THE CHILD NUTRITION MEAL PROGRAM. | F83: LAND O'LAKES OR APPROVED EQUIVALENT | H83: CS | I83: 8 | J83: 1.5 LB | K83: 50
B84: 79 | C84: F1030 | D84: CHICKEN ASIAN CHERRY BLOOSOM | E84: FULLY COOKED CHICKEN CHUNKS WHOLE GRAIN SWEET AND SOUR CHERRY ASIAN STYLE | F84: ASIAN FOODS OR APPROVED EQUIVALENT | G84: 72005 | H84: CS | I84: 6 | J84: 7.15 LB | K84: 500
B85: 80 | C85: CTF7055 | D85: CHICKEN BREAST RAW | E85: CHICKEN UNCOOKED BREAST BONELESS SKINLESS WHITE 6 OZ SIZE CATERING | F85: SPECIFY | H85: CS | I85: 4 | J85: 5LB | K85: 25
B86: 81 | C86: D1023 | D86: CHICKEN BROTH | E86: 100% NATURAL CHICKEN BROTH LOW SODIUM THANKSGIVING ONLY | F86: SWANSON OR APPROVED EQUIVALENT | H86: CS | I86: 12 | J86: 49 oz | K86: 50
B87: 82 | C87: F1031 | D87: CHICKEN DICED | E87: FULLY COOKED DICED NO ADDED SPICES | F87: SPECIFY | H87: CS | I87: 2 | J87: 5 LBS | K87: 300 | L87: 24.44 | M87: 7332 | N87: 12.22 | O87: 143959 | P87: TYSON | Q87: 2/5# | R87: NO | S87: WILL BRING IN IF AWARDED
B88: 83 | C88: F1032 | D88: CHICKEN DRUMSTICK BBQ | E88: FULLY COOKED BBQ GLAZED DRUMSTICK MUST MEET 2.5OZ M/MA FOR NSLP NO ANTIBIOTICS | F88: TYSON OR APPROVED EQUIVALENT | G88: 10264350928 | H88: CS | I88: 95 | J88: 3.24 OZ | K88: 600 | O88: 487128 | P88: TYSON | Q88: 2/5LB | R88: NO | S88: WILL BRING IN IF AWARDED
B89: 84 | C89: F1033 | D89: CHICKEN DRUMSTICK BREADED | E89: FULLY COOKED BREADED DRUMSTICK MUST MEET 2 M/MA AND .75 OZ GRAIN FOR NSLP | F89: TYSON OR APPROVED EQUIVALENT | G89: 16660100928 | H89: CS | I89: 92 | J89: 3.31 OZ | K89: 700 | L89: 63.51. | O89: 108599 | P89: TYSON | Q89: 72-113 | R89: NO | S89: WILL BRING IN IF AWARDED
B90: 85 | C90: F1034 | D90: CHICKEN FAJITA STRIPS | E90: FAJITA STRIPS CHICKEN SEASONED FULLY COOKED. EACH 2.47 OZ MEETS 2OZ M/MA FOR NSLP. | F90: PILGRIM'S OR APPROVED EQUIVALENT | G90: 1250 | H90: CS | I90: 159 | J90: 3 OZ | K90: 800 | L90: 55.14 | M90: 44112 | N90: 0.3467924528 | O90: 110311 | P90: TYSON | Q90: 160/3OZ | R90: NO | S90: WILL BRING IN IF AWARDED
B91: 86 | C91: F1035 | D91: CHICKEN FILET | E91: FULLY COOKED WHOLE MUSCLE CHICKEN FILETS-CN LABELED EACH SERVING PROVIDED 2OZ M/MA AND 1 OZ GRAIN FOR NSLP | F91: PILGRIM'S OR APPROVED EQUIVALENT | G91: 7516 | H91: CS | I91: 122 | J91: 3.95 OZ | K91: 100 | O91: 114470 | P91: TYSON | Q91: 104-136/4OZ | R91: NO
B92: 87 | C92: F1036 | D92: CHICKEN NUGGET | E92: FULLY COOKED WG BREADED CN LABELED WHOLE MUSCLE 5 NUGGETS PROVIDE 2 OZ MEAT/MEAT ALTERNATIVE AND 1 GRAIN SERVING FOR NSLP COMMERICAL BACK-UP OF COMMODITY PRODUCT OR FOR NOI PRICING | F92: GOLK KIST FARMS OR APPROVED EQUIVALENT | G92: 7518 | H92: CS | I92: 101 | J92: 3.9 OZ | K92: 600
B93: 88 | C93: F1037 | D93: CHICKEN PATTY BREADED | E93: FULLY COOKED WG BREADED CN LABELED EACH PATTY PROVIDES 2 OZ MEAT/MEAT ALTERNATIVE AND 1 GRAIN SERVING. | F93: GOLD KIST FARMS OR APPROVED EQUIVALENT | G93: 665400 | H93: CS | I93: 158 | J93: 3.03 OZ | K93: 450
B94: 89 | C94: F1038 | D94: CHICKEN PATTY BREADED SPICY | E94: FULLY COOKED HOT N SPICY BREADED CHICKEN BREAST FILETS | F94: TYSON OR APPROVED EQUIVALENT | G94: 10383140928 | H94: CS | I94: 40 | J94: 3.95 OZ | K94: 300 | L94: 92.95 | M94: 27885 | N94: 2.32375 | O94: 488252 | P94: TYSON | Q94: 150/3.49OZ | R94: NO | S94: WILL BRING IN IF AWARDED
B95: 90 | C95: F1039 | D95: CHICKEN PATTY GRILLED | E95: FULLY COOKED GRILLED CHICKEN BREASTS 4OZ PATTY NO ANTIBIOTICS | F95: TYSON OR APPROVED EQUIVALENT | G95: 10000039685 | H95: CS | I95: 40 | J95: 3.95 OZ | K95: 300
B96: 91 | C96: F1040 | D96: CHICKEN POPCORN SMACKERS WG | E96: WHOLE GRAIN BREADED FULLY COOKED CN LABELED POPCORN CHICKEN PRODUCED FROM USDA 100103 DARK MEAT COMMODITY CHICKEN. NO ADDED SOY PROTEIN. BATTER BREADED WITH WHOLE GRAIN AND ENRICHED WHEAT FLOUR. TEN POPCORN PIECES @ 0.43 OZ EACH GUARANTEED BY CN LABEL TO PROVIDE 2 OUNCES MEAT/MEAT ALTERNATIVE AND 1 GRAIN SERVINGS. PRODUCT TO PROVIDE ZERO GRAMS TRANS FATS. CONTAINS: MILK SOY WHEAT. COMMERICAL BACK-UP OF COMMODITY PRODUCT OR FOR NOI PRICING | F96: GOLD KIST FARMS OR APPROVED EQUIVALENT | G96: 110458 | H96: CS | I96: 104 | J96: 4.23 OZ | K96: 900 | O96: 487128 | P96: TYSON | Q96: 2/5LB | R96: NO
B97: 92 | C97: F1041 | D97: CHICKEN STRIP WG | E97: WHOLE GRAIN HOMESTYLE BREADED FULLY-COOKED CN LABELED CHICKEN STRIPS PRODUCED FROM USDA 100103 NATURAL PROPORTION WHITE AND DARK MEAT COMMODITY CHICKEN WITH ISOLATED SOY PROTEIN. STRIPS ARE BATTER BREADED WITH WHOLE GRAIN WHEAT FLOUR HOMESTYLE BREADING. THREE STRIPS PROVIDE 2 OZ. MEAT/MEAT ALTERNATIVE AND 1 GRAIN SERVING. PRODUCT TO PROVIDE ZERO GRAMS TRANS FATS. COMMERICAL BACK-UP OF COMMODITY PRODUCT OR FOR NOI PRICING | F97: GOLD KIST FARMS OR APPROVED EQUIVALENT | G97: 7527 | H97: CS | I97: 107 | J97: 4.50 OZ | K97: 900 | Q97: 72-113 | R97: NO
B98: 93 | C98: D1024 | D98: CHILI HOT DOG | E98: HOT DOG CHILI. HEARTY CHUNKS OF LEAN BEEF AND PLUMP TENDER BEANS | F98: LIBBY'S OR APPROVED EQUIVALENT | H98: CS | I98: 6 | J98: #10 CANS | K98: 800 | O98: 110311 | P98: TYSON | Q98: 160/3OZ | R98: NO
B99: 94 | C99: D1025 | D99: CHIPS BAKED CHEETOS CRUNCHY | E99: CHIPS BAKED CRUNCHY CHEETOS | F99: FRITO LAY OR APPROVED EQUIVALENT | G99: 000-28400-21642-5 | H99: CS | I99: 104 | J99: .875 OZ | K99: 472 | O99: 126577 | P99: Frito lay | Q99: 104 /.875 oz | R99: NO
B100: 95 | C100: D1026 | D100: CHIPS BAKED DORITOS | E100: CHIPS BAKED DORITOS NACHO CHEESE | F100: FRITO LAY OR APPROVED EQUIVALENT | G100: 000-28400-20002-8 | H100: CS | I100: 88 | J100: .75 OZ | K100: 549
B101: 96 | C101: D1027 | D101: CHIPS BAKED LAYS BBQ | E101: CRISPS BAKED LAYS BBQ FLAVOR | F101: FRITO LAY OR APPROVED EQUIVALENT | G101: 000-28400-32078-8 | H101: CS | I101: 60 | J101: .875 OZ | K101: 100
B102: 97 | C102: D1028 | D102: CHIPS BAKED LAYS SC/ONION | E102: CRISPS BAKED LAYS SOUR CREAM & ONION | F102: FRITO LAY OR APPROVED EQUIVALENT | G102: 00028400-04702-9 | H102: CS | I102: 60 | J102: .875 OZ | K102: 400
B103: 98 | C103: D1029 | D103: CHIPS FRITOS | E103: ENRICHED REDUCED FAT CORN CHIPS WHOLE GRAIN | F103: FRITO LAY OR APPROVED EQUIVALENT | G103: 000-28400-57766-3 | H103: CS | I103: 8 | J103: 1 LB | K103: 1900 | L103: 19.96 | M103: 37924 | N103: 2.495 | O103: 699399 | P103: Frito lay | Q103: 8/1 lb | R103: NO
B104: 99 | C104: CTF7011 | D104: CHIPS KETTLE VARIETY | E104: VARIETY PACK OF KETTLE CHIPS CATERING | F104: SPECIFY | H104: CS | I104: 30 | J104: 1.5 OZ | K104: 25
B105: 100 | C105: D1030 | D105: CHIPS SS CHEETO RED HOT | E105: CHIPS IND. PKG. RED HOT FRITO LAY BAKED: ENRICHED CORNMEAL PUFF STICK FLAVORED WITH RED HOT CHEESE SEASONING. 104/.875 OZ | F105: CHEETO'S OR APPROVED EQUIVALENT | G105: 62984 | H105: CS | I105: 104 | J105: .875 OZ | K105: 400
B106: 101 | C106: D1031 | D106: CHIPS SS DORITOS COOL RANCH | E106: CHIPS IND. PKG. REDUCED FAT COOL RANCH FLAVORED CORN: BAKED TRIANGLE SHAPED CORN TORTILLA PIECES FLAVORED WITH RANCH SEASONING. 72/1 OZ. | F106: DORITOS OR APPROVED EQUIVALENT | G106: 36096 | H106: CS | I106: 72 | J106: 1 OZ | K106: 400
B107: 102 | C107: D1032 | D107: CHIPS SS DORITOS NACHO CHEESE | E107: CHIPS REDUCED FAT NACHO CHEESE FLAVOR. WG | F107: DORITOS OR APPROVED EQUIVALENT | G107: 31748 | H107: CS | I107: 72 | J107: 1 OZ | K107: 400
B108: 103 | C108: D1033 | D108: CHIPS SS POTATO | E108: CHIPS IND. PKG. BAKED REG. FLAVORED: BAKED POTATO PIECES SALTED PLAIN. NO MORE THAN 7.5 GRAMS OF FAT PER BAG. | F108: LAYS OR APPROVED EQUIVALENT | G108: 33625 | H108: CS | I108: 60 | J108: .875 OZ | K108: 300
B109: 104 | C109: D1034 | D109: CHIPS SS PUFF CHEESE | E109: CHIPS PUFFS RF WG | F109: CHEETO'S OR APPROVED EQUIVALENT | G109: 21910 | H109: CS | I109: 72 | J109: .7 OZ | K109: 300
B110: 105 | C110: D1035 | D110: CHIPS SS SOUR CREAM/ONION | E110: CHIPS IND. PKG. BAKED SOUR CRM. & ONION FLAVORED: BAKED POTATO PIECES FLAVORED WITH SOUR CREAM AND ONION SEASONING. 60/.875 OZ. WG | F110: LAYS OR APPROVED EQUIVALENT | G110: 33627 | H110: CS | I110: 60 | J110: .875 OZ | K110: 300
B111: 106 | C111: D1036 | D111: CHIPS TORTILLA ROUNDS | E111: ROUND SHAPED TORTILLA CHIP WHOLE GRAIN PREPARED FROM ENRICHED YELLOW CORN. TRANSFAT FREE 1 OZ MUST MEET 1 GR | F111: SPECIFY | H111: CS | I111: 6 | J111: 2 LB | K111: 2500
B112: 107 | C112: CTF7012 | D112: CHOCOLATE ENROBER | E112: CHOCOLATE FLAVORED ENROBER COATING IS A RICH CHOCOLATE COATING THAT HARDENS AT ROOM TEMPERATURE. THE PRODUCT IS IN A HARDENED CANDY STATE IN THE UNHEATED CAN. CATERING | F112: SPECIFY | H112: CS | I112: 3 | J112: 10 CN | K112: 15
B113: 108 | C113: F1042 | D113: CHORIZO BULK | E113: SAUSAGE CHORIZO BULK MILD SEASONING LIGHT COLORED BULK | F113: SPECIFY | H113: CS | I113: 10 | J113: LB | K113: 450 | L113: 36.85 | M113: 16582.5 | N113: 3.685 | O113: 146990 | P113: KELLEY FOODS | Q113: 2/5LB | R113: NO
B114: 109 | C114: CTF7013 | D114: COCOA | E114: UNSWEETENED COCOA 22/24% BUTTER FAT CATERING | F114: SPECIFY | H114: CS | I114: 4 | J114: 2.5KG | K114: 20
B115: 110 | C115: D1037 | D115: COFFEE DECAF | E115: FOLGERS FILTER PACK COFFEE ULTRA DRY ROAST | F115: FOLGERS OR APPROVED EQUIVALENT | H115: CS | I115: 80 | J115: .9 OZ | K115: 20
B116: 111 | C116: D1038 | D116: COFFEE REGULAR | E116: FOLGERS FILTER PACK COFFEE ULTRA DRY ROAST | F116: FOLGERS OR APPROVED EQUIVALENT | H116: CS | I116: 160 | J116: .9 OZ | K116: 50
B117: 112 | C117: F1043 | D117: COOKIE DOUGH CARNIVAL WG | E117: COOKIE DOUGH CARNIVAL: 1.85OZ FROZEN WGR MADE WITH A MIXTURE OF CHOCOLATE CHIPS AND COLORFUL COATED CANDIES PRE-PORTIONED READY TO BAKE FAT GRAMS TO NOT EXCEED 6G SODIUM MG NOT TO EXCEED 120 MG CASE PACK 240 1.5OZ DECA | F117: OTIS SPUNKMEYER OR APPROVED EQUIVALENT | G117: 55688 | H117: CS | I117: 250 | J117: 1.5 OZ | K117: 75
B118: 113 | C118: CTF7056 | D118: COOKIE DOUGH CHOCOLATE CHIP | E118: COOKIE DOUGH CHOCOLATE CHIP CATERING | F118: BRICKFIRE OR APPROVED EQUIVALENT | G118: 2340091 | H118: CS | I118: 170 | J118: 1.5 OZ | K118: 75 | P118: CH Guenther
B119: 114 | C119: CTF7057 | D119: COOKIE DOUGH OATMEAL RAISIN | E119: COOKIE DOUGH OATMEAL RAISIN CATERING | F119: BRICKFIRE OR APPROVED EQUIVALENT | G119: 2340101 | H119: CS | I119: 170 | J119: 1.5 OZ | K119: 60
B120: 115 | C120: F1044 | D120: COOKIE DOUGH RF CHOCOLATE BROWNIE | E120: COOKIE DOUGH REDUCED FAT CHOCOLATE BROWNIE DECA | F120: OTIS SPUNKMEYER OR APPROVED EQUIVALENT | G120: 55689 | H120: CS | I120: 240 | J120: 1.5 OZ | K120: 100
B121: 116 | C121: F1045 | D121: COOKIE DOUGH RF CHOCOLATE CHIP | E121: COOKIE DOUGH REDUCED FAT CHOCOLATE CHIP DECA | F121: OTIS SPUNKMEYER OR APPROVED EQUIVALENT | G121: 55680 | H121: CS | I121: 240 | J121: 1.5 OZ | K121: 300
B122: 117 | C122: F1046 | D122: COOKIE DOUGH RF OATMEAL RAISIN | E122: COOKIE DOUGH REDUCED FAT OATMEAL RAISIN DECA | F122: OTIS SPUNKMEYER OR APPROVED EQUIVALENT | G122: 55683 | H122: CS | I122: 240 | J122: 1.5 OZ | K122: 50
B123: 118 | C123: F1047 | D123: COOKIE DOUGH RF SUGAR | E123: COOKIE DOUGH SUGAR REDUCED FAT DECA | F123: OTIS SPUNKMEYER OR APPROVED EQUIVALENT | G123: 55684 | H123: CS | I123: 240 | J123: 1.5 OZ | K123: 45
B124: 119 | C124: CTF7058 | D124: COOKIE DOUGH SUGAR | E124: COOKIE DOUGH SUGAR CATERING | F124: BRICKFIRE OR APPROVED EQUIVALENT | G124: 2340111 | H124: CS | I124: 170 | J124: 1.5 OZ | K124: 60
B125: 120 | C125: CTF7059 | D125: COOKIE DOUGH WHITE MACADAMIA NUT | E125: COOKIE DOUGH WHITE MACADAMIA NUT CATERING | F125: BRICKFIRE OR APPROVED EQUIVALENT | G125: 2340361 | H125: CS | I125: 170 | J125: 1.5 OZ | K125: 60
B126: 121 | C126: F1048 | D126: COOKIE GINGER BREAD | E126: COOKIE GINGER BREAD IW MEETS 2 GRAIN REQUIREMENT FOR NSP | F126: SPECIFY | H126: CS | I126: 140 | J126: 2 OZ | K126: 500
B127: 122 | C127: F1049 | D127: CORNDOG | E127: CORNDOG CHICKEN FRANK WHOLE GRAIN P/C 8/1 60 CT CN LABELED TO MEET 2 OZ MEAT REQUIREMENT | F127: FOSTER FARMS OR APPROVED EQUIVALENT | G127: 95150 | H127: CS | I127: 72 | J127: 4 OZ | K127: 2000 | L127: 44.04 | M127: 88080 | N127: 0.6116666667 | O127: 370119 | P127: FOSTER FARMS | Q127: 72/4OZ | R127: NO
B128: 123 | C128: D1039 | D128: CORNSTARCH | E128: CORNSTARCH | F128: SPECIFY | H128: CS | I128: 24 | J128: 1 LB | K128: 45 | L128: 51.88 | M128: 2334.6 | N128: 2.161666667 | O128: 697120 | P128: ARGO | Q128: 24/1LB | R128: NO
B129: 124 | C129: D1040 | D129: CRACKERS ANIMAL | E129: CRACKERS ANIMAL SHAPED 0 TRANSFAT WHOLE GRAIN RICH | F129: SPECIFY | H129: CS | I129: 100 | J129: 1 OZ | K129: 300 | O129: 771828 | P129: KELLOGG'S | Q129: 100/1OZ | R129: NO
B130: 125 | C130: D1041 | D130: CRACKERS BUG BITES | E130: BUG BITES CINNAMON WHOLE GRAIN RICH | F130: KEEBLER OR APPROVED EQUIVALENT | G130: 30100-55644 | H130: CS | I130: 210 | J130: 1 OZ | K130: 1000 | O130: 771759 | P130: KELLOGG'S | Q130: 210/1OZ | R130: NO
B131: 126 | C131: D1042 | D131: CRACKERS GOLDFISH CHEDDAR | E131: CHEDDAR GOLDFISH WHOLE GRAIN: A 3/4 OUNCE SERVING CONTRIBUTES 1 SERVING OF GRAINS/BREADS TO THE USDA CHILD NUTRITION PROGRAMS WHOLE GRAIN RICH | F131: PEPPERIDGE FARMS OR APPROVED EQUIVALENT | G131: 18105 | H131: CS | I131: 300 | J131: 0.75 OZ | K131: 500
B132: 127 | C132: D1043 | D132: CRACKERS GOLDFISH GIANT CINNAMON | E132: CRACKERS GIANT GOLDFISH CINNAMON WHOLE GRAIN RICH | F132: PEPPERIDGE FARMS OR APPROVED EQUIVALENT | G132: 15094 | H132: CS | I132: 300 | J132: .9 OZ | K132: 300
B133: 128 | C133: D1044 | D133: CRACKERS GOLDFISH GIANT HONEY OAT | E133: CRACKER WHOLE GRAIN GIANT HONEY OAT GRAHAM 2 EA WHOLE GRAIN RICH | F133: PEPPERIDGE FARMS OR APPROVED EQUIVALENT | G133: 18432 | H133: CS | I133: 300 | J133: .9 OZ | K133: 300 | L133: 62.58 | M133: 18774 | N133: 0.2086 | O133: 146287 | P133: Pepper farm | Q133: 300/.9 oz | R133: NO
B134: 129 | C134: D1045 | D134: CRACKERS GRAHAM 3-PK | E134: GRAHAM 3-PK WHOLE GRAIN RICH | F134: SPECIFY | H134: CS | I134: 150 | J134: 3 PK | K134: 2500 | L134: 33.65 | M134: =IF(L134*K134= 0,"",L134*K134) -> 84125 | N134: =IF(L134/I134= 0,"",L134/I134) -> 0.2243333333 | O134: 101156 | P134: NABISCO | Q134: 150/3PK | R134: NO | S134: WILL BRING IN IF AWARDED
B135: 130 | C135: CTF7014 | D135: CRACKERS MEDLEY MIX | E135: CRACKER MEDLEY - TOASTEDS® WHEAT SESAME AND BUTTER CRISP CLUB® TOWN HOUSE® AND KEEBLER® WHOLE GRAIN WHEAT 25 SLEEVES CATERING | F135: KEEBLER OR APPROVED EQUIVALENT | G135: 30100 37739 | H135: CS | I135: 25 | J135: SLEEVES | K135: 5 | O135: 771500 | P135: KELLOGG'S | Q135: 25/1.54OZ | R135: YES
B136: 131 | D136: CRACKERS SALTINE IW | E136: SALTINE CRACKERS PC WHOLE GRAIN OR ENRICHED FLOUR TO MEET BREAD REQ. FOR NSLP 500/2 CT | F136: NABISCO OR APPROVED EQUIVALENT | H136: CS | I136: 500 | J136: 2 CT | K136: 500 | L136: 26.46 | M136: 13230 | N136: 0.05292 | O136: 771005 | P136: KELLOGG'S | Q136: 500/2CT | R136: NO
B137: 132 | C137: CTF7002 | D137: CREAMER NON-DAIRY | E137: NON-DAIRY CREAMER INIVIDUAL PACK LIQUID CATERING | F137: SPECIFY | H137: CS | I137: 400 | J137: EA | K137: 45 | L137: 15.68 | M137: 705.6 | N137: 0.0392 | O137: 108308 | P137: INT'L DELIGHT | Q137: 384/.3OZ | R137: NO
B138: 133 | C138: CTF7003 | D138: CREAMER NON-DAIRY CARAMEL MACCHIATO | E138: NON-DAIRY CREAMER CARAMEL MACCHIATO INIVIDUAL PACK LIQUID CATERING | F138: SPECIFY | H138: CS | I138: 288 | J138: 1ML | K138: 35 | L138: 15.7 | M138: 549.5 | N138: 0.05451388889 | O138: 639204 | P138: INT'L DELIGHT | Q138: 288/.5OZ | R138: NO
B139: 134 | C139: CTF7004 | D139: CREAMER NON-DAIRY FRENCH VANILLA | E139: NON-DAIRY CREAMER FRENCH VANILLA INIVIDUAL PACK LIQUID CATERING | F139: SPECIFY | H139: CS | I139: 288 | J139: 1ML | K139: 35 | L139: 15.7 | M139: 549.5 | N139: 0.05451388889 | O139: 639048 | P139: INT'L DELIGHT | Q139: 288/.5OZ | R139: NO
B140: 135 | C140: CTF7005 | D140: CREAMER NON-DAIRY HAZEL NUT | E140: NON-DAIRY CREAMER HAZEL NUT INIVIDUAL PACK LIQUID CATERING | F140: SPECIFY | H140: CS | I140: 288 | J140: 1ML | K140: 35 | L140: 15.7 | M140: 549.5 | N140: 0.05451388889 | O140: 639047 | P140: INT'L DELIGHT | Q140: 288/.50OZ | R140: NO
B141: 136 | C141: F1050 | D141: CROISSANT | E141: CROISSANTS WG MARGARINE RF ROUND FULLY SLICED MUST PROVIDE 2.0 OZ GRAIN EQUIVALENTS. PORTION TO PROVIDE AT LEAST 145.0 CALORIES WITH NO MORE THAN 6 GRAMS OF FAT. | F141: BAKE CRAFTERS OR APPROVED EQUIVALENT | G141: 3286 | H141: CS | I141: 80 | J141: 2.2 OZ | K141: 800
B142: 137 | C142: CTF7060 | D142: CROISSANT CATERING 30Z | E142: FULLY COOKED FLAKEY BUTTERY CRUST PRESLICED ROUND SHAPED ROLL 3 OZ CATERING | F142: SPECIFY | H142: CS | I142: 32 | J142: 3 OZ | K142: 40 | L142: 64.37 | M142: 2574.8 | N142: 2.0115625 | O142: 398023 | P142: PILLSBURY | Q142: 48/3OZ | R142: NO
B143: 138 | C143: CTF7061 | D143: CROISSANT CATERING 5OZ | E143: FULLY COOKED FLAKEY BUTTERY CRUST PRESLICED ROUND SHAPED ROLL 5 OZ CATERING | F143: SPECIFY | H143: CS | I143: 24 | J143: 5 OZ | K143: 25
B144: 139 | C144: CTF7015 | D144: CROUTONS | E144: CROUTONS/ HERB SEASONED ENRICHED SMALL CUBE CATERING | F144: SPECIFY | H144: CS | I144: 10 | J144: LB | K144: 150 | L144: 25.04 | M144: 3756 | N144: 2.504 | O144: 128504 | P144: SUGAR FOODS | Q144: 10LB | R144: NO
B145: 140 | C145: F1051 | D145: CRUMB SQUARE IW | E145: CRUMB SQUARE IW WHOLE GRAIN MEETS 2 OZ WG SERVING FOR SBP | F145: DAVE'S OR APPROVED EQUIVALENT | G145: 360 | H145: CS | I145: 28 | J145: 3.6 OZ | K145: 2120
B146: 141 | C146: F1052 | D146: DONUT MINI CHOCOLATE | E146: 51% WG MINI DONUTS - CHOCOLATE. 72 - 3.3OZ FROZEN INDIVIDUALLY WRAPPED THAW & SERVE NICKEL STACK SIX PACKS OF 1/2 OZ CHOCOLATE ENROBED WHOLE GRAIN DONUTS. MUST CONFORM TO USDA CHILD NUTRITION PROGRAM SPECIFICATIONS AND MEET 2OZ GRAIN EQUIVALENT. | F146: SUPER BAKERY OR APPROVED EQUIVALENT | G146: 7786 | H146: CS | I146: 72 | J146: 3.3 OZ | K146: 1700 | L146: 70.73 | M146: 120241 | N146: 0.9823611111 | O146: 126587 | P146: SUPER BAKERY | Q146: 72/3.3OZ | R146: NO
B147: 142 | C147: F1053 | D147: DONUT MINI POWDERED SUGAR | E147: 51% WG MINI DONUTS - POWDERED SUGAR 72 - 3.3OZ FROZEN INDIVIDUALLY WRAPPED THAW & SERVE NICKEL STACK SIX PACKS OF 1/2 OZ CHOCOLATE ENROBED WHOLE GRAIN DONUTS. MUST CONFORM TO USDA CHILD NUTRITION PROGRAM SPECIFICATIONS AND MEET 2OZ GRAIN EQUIVALENT. | F147: SUPER BAKERY OR APPROVED EQUIVALENT | G147: 7787 | H147: CS | I147: 72 | J147: 3.3 OZ | K147: 1700 | L147: 62.91 | M147: 106947 | N147: 0.87375 | O147: 126588 | P147: SUPER BAKERY | Q147: 72/3.oz | R147: NO
B148: 143 | C148: F1054 | D148: DOUGH CRUST | E148: COBBLER CRUST DOUGH SHEET FROZEN | F148: SPECIFY | H148: CS | I148: 24 | J148: 1 LB | K148: 200 | L148: 59.87 | M148: 11974 | N148: 2.494583333 | O148: 412059 | P148: Richs
B149: 144 | C149: C1020 | D149: DRESSING GAL COLESLAW | E149: DRESSING COLESLAW REDUCED FAT | F149: SPECIFY | H149: CS | I149: 4 | J149: GAL | K149: 25 | L149: 44.84 | M149: 1121 | N149: 11.21 | O149: 662132 | P149: Golden hrvest | Q149: 4/1 gal | R149: NO
B150: 145 | C150: C1021 | D150: DRESSING GAL RANCH REDUCED FAT | E150: DRESSING SALAD REDUCED FAT | F150: KEN'S OR APPROVED EQUIVALENT | G150: 100-413350-60816 | H150: CS | I150: 4 | J150: 1 GAL | K150: 600 | L150: 58.08 | M150: 34848 | N150: 14.52 | O150: 184603 | P150: Ken's | Q150: 4/1 gal | R150: NO
B151: 146 | C151: CTF7016 | D151: DRESSING ITALIAN | E151: ITALIAN DRESSING GOLDEN CATERING | F151: SPECIFY | H151: CS | I151: 4 | J151: GAL | K151: 10 | L151: 28.57 | M151: 285.7 | N151: 7.1425 | O151: 119440 | P151: Elington | Q151: 4/1 gal | R151: NO
B152: 147 | C152: D1046 | D152: DRESSING PC ASIAN | E152: DRESSING ASIAN LIGHT PC | F152: SPECIFY | H152: CS | I152: 60 | J152: 1.5 OZ | K152: 15 | P152: Kens | Q152: 60/1.5 oz
B153: 148 | C153: D1047 | D153: DRESSING PC BALSAMIC VINAIGRETTE | E153: DRESSING BALSAMIC VINAIGRETTE LIGHT | F153: SPECIFY | H153: CS | I153: 60 | J153: 1.5 OZ | K153: 15 | L153: 18.37 | M153: 275.55 | N153: 0.3061666667 | O153: 147834 | P153: Kens
B154: 149 | C154: D1048 | D154: DRESSING PC FRENCH | E154: DRESSING SALAD REDUCED FAT FRENCH | F154: SPECIFY | H154: CS | I154: 60 | J154: 1.5 OZ | K154: 5 | L154: 23.75 | M154: 118.75 | N154: 0.3958333333 | O154: 674654 | P154: Hidden Valley | Q154: 84 /1.5 oz | R154: NO
B155: 150 | C155: D1049 | D155: DRESSING PC GREEK | E155: DRESSING SALAD GREEK | F155: SPECIFY | H155: CS | I155: 60 | J155: 1.5 OZ | K155: 5
B156: 151 | C156: D1050 | D156: DRESSING PC ITALIAN | E156: DRESSING SALAD REDUCED FAT ITALIAN | F156: SPECIFY | H156: CS | I156: 60 | J156: 1.5 OZ | K156: 5 | L156: 13.96 | M156: 69.8 | N156: 0.2326666667 | O156: 674609 | P156: Kens | Q156: 60 /1.5 oz | R156: NO
B157: 152 | C157: D1051 | D157: DRESSING PC RANCH 12MG | E157: RANCH DRESSING REDUCED FAT PC | F157: SPECIFY | H157: CS | I157: 500 | J157: 12 MG | K157: 1000
B158: 153 | C158: D1052 | D158: DRESSING PC RANCH RF 1.5OZ | E158: DRESSING SALAD REDUCED FAT PC RANCH | F158: SPECIFY | H158: CS | I158: 60 | J158: 1.5 OZ | K158: 100 | P158: Kens | Q158: 60 /1.5 oz | R158: no
B159: 154 | C159: D1053 | D159: DRESSING PC RASPBERRY VINAIGRETTE | E159: KRAFT RASPBERRY VINAIGRETTE FAT FREE DRESSING HAS THE SWEET TART FLAVOR OF RASPBERRIES IN A FAT FREE VINAIGRETTE. | F159: KRAFT | G159: 002-10006714400 | H159: CS | I159: 60 | J159: 1.5 OZ | K159: 50 | L159: 28.74 | M159: 1437 | N159: 0.479 | O159: 662593 | P159: Kraft | Q159: 60/1.5 oz | R159: NO
B160: 155 | C160: CTF7017 | D160: DRESSING RASPBERRY VINAIGRETTE | E160: KRAFT RASPBERRY VINAIGRETTE FAT FREE DRESSING HAS THE SWEET TART FLAVOR OF RASPBERRIES IN A FAT FREE VINAIGRETTE. CATERING | F160: KRAFT OR APPROVED EQUIVALENT | G160: 21000647422 | H160: CS | I160: 4 | J160: 1 GAL | K160: 5 | L160: 71.38 | M160: 356.9 | N160: 17.845 | O160: 662484 | P160: Kraft | Q160: 4/1 gal | R160: NO
B161: 156 | C161: C1022 | D161: EGG BOIL N BAG | E161: EGGS RAW LIQUID WHOLE EGGS BOIL N BAG PASTURIZED | F161: SPECIFY | H161: CS | I161: 6 | J161: 5 LB | K161: 600 | L161: 52.46 | M161: 31476 | N161: 8.743333333 | O161: 393373 | P161: papettis | Q161: NO
B162: 157 | C162: C1023 | D162: EGG PREBOILED | E162: HARD COOKED PEELED EGGS | F162: SPECIFY | H162: CS | I162: 8 | J162: 12 CT | K162: 500 | L162: 43.52 | M162: 21760 | N162: 5.44 | O162: 393125 | P162: papettis | Q162: 12/12ct | R162: NO
B163: 158 | C163: F1055 | D163: EGGSTRAGANZA | E163: EACH 2.00 OZ. SERVING (BY WEIGHT) OF THE BLEND OF SCRAMBLED EGGS, CHEESE, AND BACON PIECES PROVIDES 1.75 OZ. EQUIVALENT MEAT ALTERNATE FOR THE CHILD NUTRITION MEAL PATTERN REQUIREMENTS. | F163: SUNNY FRESH OR APPROVED EQUIVALENT | G163: 40828 | H163: CS | I163: 4 | J163: 5 LB | K163: 735 | P163: Sunny Fresh | Q163: 4 / 5 lb | R163: no
B164: 159 | C164: CTF7018 | D164: FILLING PIE CHERRY | E164: CHERRY CATERING | F164: SPECIFY | H164: CS | I164: 3 | J164: #10 | K164: 15 | L164: 55.75 | M164: 836.25 | N164: 18.58333333 | O164: 149802 | P164: Ellington | Q164: 3 / #10
B165: 160 | C165: CTF7019 | D165: FILLING PIE PEACH | E165: PEACH CATERING | F165: SPECIFY | H165: CS | I165: 3 | J165: #10 | K165: 15 | L165: 38.65 | M165: 579.75 | N165: 12.88333333 | O165: 149803 | P165: Ellington | Q165: 3 / #10
B166: 161 | C166: D1054 | D166: FLOUR | E166: FLOUR ALL PURPOSE ENRICHED 50# U.S. NO. 2 GRADE OR BETTER BLEACHED WHEAT FLOUR ENRICHED WITH THIAMIN RIBOFLAVIN NIACIN FOLIC ACID IRON AND MAY HAVE ADDED CALCIUM | F166: SPECIFY | H166: BAG | I166: 50 | J166: LB | K166: 30 | L166: 31.39 | M166: 941.7 | N166: 0.6278 | O166: 119163 | P166: GH Gunther | Q166: 50 lb | R166: NO
B167: 162 | C167: D1055 | D167: FOOD COLOR GREEN | E167: FOOD COLORING GREEEN | F167: SPECIFY | H167: EA | I167: 1 | J167: 16 OZ | K167: 7
B168: 163 | C168: D1056 | D168: FOOD RELEASE | E168: RELEASE FOOD/PAN CONTAINS NO WATER ALCOHOL OR ARTIFICIAL FLAVORS HIGH SMOKE POINT >450° F | F168: SPECIFY | H168: CS | I168: 6 | J168: 17 OZ | K168: 75 | L168: 36.82 | M168: 2761.5 | N168: 6.136666667 | O168: 698004 | P168: VEGALENE | Q168: 6/21OZ | R168: NO
B169: 164 | C169: F1056 | D169: FRENCH TOAST STICKS BULK | E169: FRENCH TOAST STICKS WHOLE GRAIN CINNAMON GLAZED EACH SERVING 3 STICKS/2.90 OZ EQUALS 1 M/MA 1 GR. | F169: SUNNY FRESH OR APPROVED EQUIVALENT | G169: 40497 | H169: CS | I169: 100 | J169: 2.9 oz | K169: 900 | P169: Sunny Fresh | Q169: 100 / 2.9 oz
B170: 165 | C170: CTF7020 | D170: FRUIT CHERRY MARASCHINO HALVES | E170: CHERRIES MARACHINO HALVES CATERING | F170: PENNANT OR APPROVED EQUIVALENT | H170: CS | I170: 4 | J170: .5 GAL | K170: 100
B171: 166 | C171: D1057 | D171: FRUIT COCKTAIL | E171: FRUIT COCKTAIL GRADE B CHOICE EXTRA LIGHT SYRUP MUST MEET BUY AMERICAN REQUIREMENTS | F171: SENACA, DEL MONTE, LIBBY'S, DOLE | H171: CS | I171: 6 | J171: 10 CN | K171: 1500 | L171: 54.44 | M171: 81660 | N171: 9.073333333 | O171: 125647 | P171: Keith Valley | Q171: 6/ 10 cn | R171: NO
B172: 167 | C172: C1024 | D172: FRUIT CRANBERRIES DRIED | E172: SOFT AND MOIST DRIED CRANBERRIES | F172: SPECIFY | H172: CS | I172: 10 | J172: LB | K172: 150 | L172: 28.25 | M172: 4237.5 | N172: 2.825 | O172: 800070 | P172: Ocean Spray | Q172: 10 lb | R172: NO
B173: 168 | C173: C1025 | D173: FRUIT DRIED IW | E173: FRUIT DRIED INDIVIDUALLY PACKAGES PEANUT FREE 16% CRANBERRYM 29% NATURAL RAISINS 24% GOLDEN RAISINS 28% PINEAPPLE 3% DRIED APPLE | F173: NATIONAL FOOD GROUP OR APPROVED EQUIVALENT | G173: 609271 | H173: CS | I173: 144 | J173: 1.3 OZ | K173: 650
B174: 169 | C174: F1057 | D174: FRUIT MANGO DICED | E174: MANOS DICED IQF US GRADE A UNSWEETENED MUST MEET BUY AMERICAN REQUIREMENTS | F174: SENACA, DEL MONTE, LIBBY'S, DOLE | H174: CS | I174: 2 | J174: 5 LB | K174: 450 | O174: 311185 | P174: Dole | Q174: 2/5 lb | R174: NO
B175: 170 | C175: D1058 | D175: FRUIT ORANGE MANDARIN | E175: MANDARIN ORANGE SLICES NATURAL JUICES NO SUGAR ADDED GRADE B CHOICE MUST MEET BUY AMERICAN REQUIREMENTS | F175: SENACA, DEL MONTE, LIBBY'S, DOLE | H175: CS | I175: 6 | J175: 10 CN | K175: 850 | L175: 67.45 | M175: 57332.5 | N175: 11.24166667 | O175: 600117 | P175: Dole | Q175: 6/106 oz | R175: NO
B176: 171 | C176: D1059 | D176: FRUIT PEACHES DICED | E176: PEACHES YELLOW CLING GRADE B CHOICE DICED NATURAL JUICES MIN DRAIN VT 71 OZ NO IRREGULAR MUST MEET BUY AMERICAN REQUIREMENTS | F176: SENACA, DEL MONTE, LIBBY'S, DOLE | H176: CS | I176: 6 | J176: 10 CN | K176: 1500 | L176: 52.85 | M176: 79275 | N176: 8.808333333 | O176: 137271 | P176: Natures Orchard | Q176: 6/10 cn | R176: NO
B177: 172 | C177: D1060 | D177: FRUIT PEARS DICED | E177: PEARS DICED GRADE B CHOICE NATURAL JUICES MUST MEET BUY AMERICAN REQUIREMENTS | F177: SENACA, DEL MONTE, LIBBY'S, DOLE | H177: CS | I177: 6 | J177: 10 CN | K177: 500 | L177: 53.61 | M177: 26805 | N177: 8.935 | O177: 125640 | P177: Keith Valley | Q177: 6/10 cn | R177: NO
B178: 173 | C178: D1061 | D178: FRUIT PINEAPPLE | E178: PINEAPPLE TIDBITS IN JUICE GRADE B CHOICE SOLID PAK IN NATURAL JUICE MUST MEET BUY AMERICAN REQUIREMENTS | F178: SENACA, DEL MONTE, LIBBY'S, DOLE | H178: CS | I178: 6 | J178: 10 CN | K178: 2500 | L178: 51.44 | M178: 128600 | N178: 8.573333333 | O178: 600373 | P178: Dole | Q178: 6/106 oz | R178: NO
B179: 174 | C179: F1058 | D179: FRUIT STRAWBERRIES SLICED | E179: STRAWBERRYS SLICED IQF US GRADE A UNSWEETENED | F179: SPECIFY | H179: CS | I179: 1 | J179: 30 LB | K179: 700
B180: 175 | C180: F1059 | D180: FRUIT STRAWBERRIES WHOLE | E180: STRAWBERRYS SLICED IQF US GRADE A WHOLE UNSWEETENED | F180: SPECIFY | H180: BKT | I180: 1 | J180: 30 LB | K180: 100 | L180: 52.67 | M180: 5267 | N180: 52.67 | O180: 310174 | P180: Markon | Q180: 30 lb | R180: NO
B181: 176 | C181: D1062 | D181: GELATIN CHERRY | E181: GELATIN MIX DRY | F181: SPECIFY | H181: CS | I181: 12 | J181: 24 OZ | K181: 75
B182: 177 | C182: D1063 | D182: GELATIN LIME | E182: GELATIN MIX DRY | F182: SPECIFY | H182: CS | I182: 12 | J182: 24 OZ | K182: 15 | L182: 41.1 | M182: 616.5 | N182: 3.425 | O182: 767043 | P182: Royal Fds | Q182: 12 / 24 oz | R182: NO
B183: 178 | C183: D1064 | D183: GELATIN ORANGE | E183: GELATIN MIX DRY | F183: SPECIFY | H183: CS | I183: 12 | J183: 24 OZ | K183: 15
B184: 179 | C184: D1065 | D184: GELATIN STRAWBERRY | E184: GELATIN MIX DRY | F184: SPECIFY | H184: CS | I184: 12 | J184: 24 OZ | K184: 75 | L184: 41.1 | M184: 3082.5 | N184: 3.425 | O184: 767033 | P184: Royal Fds | Q184: 12 / 24 oz | R184: NO
B185: 180 | C185: F1060 | D185: GF BAGEL PLAIN | E185: PLAIN BAGEL GLUTEN FREE | F185: SPECIFY | H185: CS | I185: 6 | J185: 4 EA | K185: 200 | L185: 35.52 | M185: 7104 | N185: 5.92 | O185: 104135 | P185: Udi's
B186: 181 | C186: C1026 | D186: GF BREAD WHITE SLICED | E186: WHITE BREAD SLICED GLUTEN FREE | F186: SPECIFY | H186: CS | I186: 6 | J186: 24 OZ | K186: 300 | L186: 56.88 | M186: 17064 | N186: 9.48 | O186: 141781 | P186: Udi's
B187: 182 | C187: C1027 | D187: GF BUN HAMBURGER | E187: HAMBURGER BUNS GLUTEN FREE | F187: SPECIFY | H187: CS | I187: 6 | J187: 12 CT | K187: 200 | L187: 32.13 | M187: 6426 | N187: 5.355 | O187: 394634 | P187: Udi's | Q187: 24ct | R187: NO
B188: 183 | C188: F1061 | D188: GF MUFFIN CHOCOLATE IW | E188: MUFFIN CHOCOLATE GLUTEN FREE IW | F188: SPECIFY | H188: CS | I188: 36 | J188: 3.6 EA | K188: 200
B189: 184 | C189: F1062 | D189: GF MUFFIN ENGLISH | E189: ENGLISH MUFFINS GLUTEN FREE | F189: SPECIFY | H189: CS | I189: 24 | J189: 2 OZ | K189: 300
B190: 185 | C190: D1066 | D190: GF PASTA PENNE | E190: PASTA PENNE GLUTEN FREE | F190: SPECIFY | H190: CS | I190: 8 | J190: 12 OZ | K190: 200 | L190: 19.65 | M190: 3930 | N190: 2.45625 | O190: 121306 | P190: Barilla | Q190: 8 /12 oz | R190: NO
B191: 186 | C191: D1067 | D191: GF PASTA SPAGHETTI | E191: PASTA SPAGHETTI GLUTEN FREE | F191: SPECIFY | H191: CS | I191: 12 | J191: 12 OZ | K191: 200 | L191: 29.48 | M191: 5896 | N191: 2.456666667 | Q191: 12/12 oz | S191: wiLL BRING IN IF AWARDED
B192: 187 | C192: CTF7021 | D192: GLAZE STAWBERRY | E192: STRAWBERRY GLAZE CATERING | F192: SPECIFY | H192: CS | I192: 1 | J192: 20LB | K192: 25
B193: 188 | C193: D1068 | D193: GRANOLA BULK | E193: GRANOLA BULK | F193: SPECIFY | H193: CS | I193: 4 | J193: 50 OZ | K193: 250 | L193: 61.37 | M193: 15342.5 | N193: 15.3425 | O193: 799137 | P193: KELLOGG'S | Q193: 4 / 50 oz | R193: NO
B194: 189 | C194: D1069 | D194: GRAVY BROWN | E194: GRAVY BROWN LIGHT | F194: PIONEER OR APPROVED EQUIVALENT | G194: 94541 | H194: CS | I194: 6 | J194: 13 OZ | K194: 700 | L194: 24.65 | M194: 17255 | N194: 4.108333333 | O194: 107942 | P194: Pioneer | Q194: 6/11.3 oz | R194: NO
B195: 190 | C195: D1070 | D195: GRAVY COUNTRY | E195: COUNTRY SKILLET CREAM GRAVY | F195: PIONEER OR APPROVED EQUIVALENT | G195: 96115 | H195: CS | I195: 6 | J195: 24 OZ | K195: 725 | L195: 28.14 | M195: 20401.5 | N195: 4.69 | O195: 797059 | P195: Pioneer | Q195: 6/24 oz | R195: NO
B196: 191 | C196: CTF7062 | D196: HAM BUFFET | E196: HAM WATER ADDED CURED BONELESS AND FULLY COOKED. HAM IS 97% FAT FREE (3% FAT) AND APPROXIMATELY 4 TO 4½ INCHES IN DIAMETER. FROZEN PRODUCT. CATERING | F196: SPECIFY | H196: CS | I196: 1 | J196: LB | K196: 100 | P196: Specify
B197: 192 | C197: F1063 | D197: HOT DOGS BEEF | E197: BEEF FRANKS LOWER SODIUM 8/1 6" CN LABELED TO MEET 2 OZ MEAT REQUIREMENT | F197: JOHN MORRELL OR APPROVED EQUIVALENT | G197: 100-701000-28560 | H197: CS | I197: 80 | J197: 2 OZ | K197: 600 | P197: John
B198: 193 | C198: F1064 | D198: ICE CREAM SS BAR CARAMEL | E198: STICK BAR REDUCED FAT SALTY CARAMEL BROWNIE CRUNCH BAR | F198: HERSHEY'S OR APPROVED EQUIVALENT | G198: 31167 | H198: CS | I198: 36 | J198: 2.75 OZ | K198: 200 | M198: =IF(L198*K198= 0,"",L198*K198) ->  | N198: =IF(L198/I198= 0,"",L198/I198) ->  | P198: Hershey's
B199: 194 | C199: F1065 | D199: ICE CREAM SS BAR STRAWBERRY | E199: STICK BAR STRAWBERRY SCOOTER | F199: HERSHEY'S OR APPROVED EQUIVALENT | G199: 31166 | H199: CS | I199: 36 | J199: 2.75 OZ | K199: 300 | P199: Hershey's
B200: 195 | C200: F1066 | D200: ICE CREAM SS BAR VANILLA | E200: ICE CREAM BAR VANILLA REDUCED FAT MUST BE SMART SNACK COMPLIANT <200 CALORIES < 35% FAT CALORIES < 230 MG SODIUM < 10% SATURATED FAT <35% OF WEIGHT FROM SUGARS | F200: SPECIFY | H200: CS | I200: 96 | J200: 3.0 OZ | K200: 100 | P200: Specify
B201: 196 | C201: F1067 | D201: ICE CREAM SS CUP CHOCOLATE SUNDAE | E201: LOW FAT CHOCOLATE SUNDAE DESSERT CUP | F201: HERSHEY'S OR APPROVED EQUIVALENT | G201: 31662 | H201: CS | I201: 48 | J201: 3 OZ | K201: 400 | P201: Hershey's
... 211 more rows

Sheet Labatt (hidden)
B1: ROSWELL INDEPENDENT SCHOOL DISTRICT | I1: Vendor Name: | L1: Labatt Food Service
B2: CAFETERIA FOOD BID 23-06 FOR SCHOOL YEAR 2023-24 | I2: Vendor Contact | L2: Jared Darnell
B3: MUST BE RECEIVED BY MAY 4, 2023 ON CD-R OR FLASH DRIVE SEALED WITH SUPPORTING DOCUMENTS | I3: Date | L3: 2023-05-04
B4: ITEM | C4: STOCK ID | D4: ITEM | E4: DESCRIPTION | F4: Approved Brand | G4: Product Code or UPC | H4: BID UNIT | I4: CASE PACK | K4: EST USAGE | L4: BID UNIT PRICE | M4: Extended Total | N4: per UNIT price | O4: VENDOR STOCK NO | P4: BRAND NAME | Q4: PACK SIZE | R4: SPECIAL ORDER YES NO | S4: BIDDERS NOTES
B6: 1 | C6: D1000 | D6: APPLESAUCE CANNED | E6: APPLESAUCE GRADE B FANCY NATURAL COLOR UNSWEETENED MUST MEET BUY AMERICAN REQUIREMENTS | F6: SPECIFY | H6: CS | I6: 6 | J6: 10 CN | K6: 400 | L6: 37.77 | M6: =IF(L6*K6= 0,"",L6*K6) -> 15108 | N6: =IF(L6/I6= 0,"",L6/I6) -> 6.295 | O6: 2004975 | P6: DEL MONTE | Q6: 6 / #10 | S6: 2004975 / APPLE SAUCE UNSWEETENED
B7: 2 | C7: D1001 | D7: APPLESAUCE CUPS CINNAMON | E7: CINNAMON UNSWEETENED APPLESAUCE MUST PROVIDE 1/2 CUP FRUIT EQUIVALENT UNDER THE NSLP. 100% ALL NATURAL INGREDIENTS SHELF-STABLE FOR 18 MONTHS NO HIGH FRUCTOSE CORN SYRUP OR ADDED SUGAR FAT FREE 100% VITAMIN C | F7: SPECIFY | H7: CS | I7: 96 | J7: 4.5 OZ | K7: 600 | L7: 38.57 | M7: 23142 | N7: 0.4017708333 | O7: 1690012 | P7: ZEE ZEES | Q7: 96 / 4.5 OZ | S7: 1690012 / APPLESAUCE CINNAMON
B8: 3 | C8: D1002 | D8: APPLESAUCE CUPS PEACH | E8: PEACH UNSWEETENED APPLESAUCE MUST PROVIDE 1/2 CUP FRUIT EQUIVALENT UNDER THE NSLP. 100% ALL NATURAL INGREDIENTS SHELF-STABLE FOR 18 MONTHS NO HIGH FRUCTOSE CORN SYRUP OR ADDED SUGAR FAT FREE 100% VITAMIN C | F8: SPECIFY | H8: CS | I8: 96 | J8: 4.5 OZ | K8: 600 | L8: 38.59 | M8: 23154 | N8: 0.4019791667 | O8: 1690084 | P8: ZEE ZEES | Q8: 96 / 4.5 OZ | S8: 1690084 / APPLESAUCE MANGO PEACH UNSW
B9: 4 | C9: D1003 | D9: APPLESAUCE CUPS PLAIN | E9: PLAIN UNSWEETENED APPLESAUCE MUST PROVIDE 1/2 CUP FRUIT EQUIVALENT UNDER THE NSLP. 100% ALL NATURAL INGREDIENTS SHELF-STABLE FOR 18 MONTHS NO HIGH FRUCTOSE CORN SYRUP OR ADDED SUGAR FAT FREE 100% VITAMIN C | F9: SPECIFY | H9: CS | I9: 96 | J9: 4.5 OZ | K9: 600 | L9: 39.09 | M9: 23454 | N9: 0.4071875 | O9: 1690027 | P9: ZEE ZEES | Q9: 96 / 4.5 OZ | S9: 1690027 / APPLESAUCE ORIGINAL UNSWT
B10: 5 | C10: D1004 | D10: APPLESAUCE CUPS STRAWBERRY | E10: PLAIN UNSWEETENED APPLESAUCE MUST PROVIDE 1/2 CUP FRUIT EQUIVALENT UNDER THE NSLP. 100% ALL NATURAL INGREDIENTS SHELF-STABLE FOR 18 MONTHS NO HIGH FRUCTOSE CORN SYRUP OR ADDED SUGAR FAT FREE 100% VITAMIN C | F10: SPECIFY | H10: CS | I10: 96 | J10: 4.5 OZ | K10: 600 | L10: 38.82 | M10: 23292 | N10: 0.404375 | O10: 1690025 | P10: ZEE ZEES | Q10: 96 / 4.5 OZ | S10: 1690025 / APPLESAUCE STRAW BAN UNSWEET
B11: 6 | C11: CTF7049 | D11: AVACADO PULP | E11: AVACADO PULP FROZEN CATERING | F11: SPECIFY | H11: CS | I11: 12 | J11: 1LBS | K11: 70 | L11: 52.16 | M11: 3651.2 | N11: 4.346666667 | O11: 9084559 | P11: HARVEST FR | Q11: 6 / 3 LB | S11: 9084559 / AVOCADO PULP
B12: 7 | C12: F1000 | D12: BACON PIECES | E12: BACON ENDS & PIECES | F12: SPECIFY | H12: CS | I12: 12 | J12: 3 LB | K12: 425 | L12: 31.02 | M12: 13183.5 | N12: 2.585 | O12: 1911338 | P12: HERTG V | Q12: 1 / 10 LB | S12: 1911338 / BACON, ENDS & PIECES FZN
B13: 8 | C13: F1001 | D13: BACON PRE-COOKED | E13: FULLY COOKED AND READY TO EAT - SIMPLY WARM & SERVE 100% REAL BACON | F13: HORMEL OR APPROVED EQUIVALENT | G13: 3729 | H13: CS | I13: 1 | J13: 300 | K13: 500 | L13: 54.53 | M13: 27265 | N13: 54.53 | O13: 114040 | P13: HORMEL | Q13: 1 / 300 CT | S13: 114040 / BACON SDWCH STYLE FC
B14: 9 | C14: CTF7050 | D14: BACON SLICED THICK | E14: BACON THICK SLICED CATERING | F14: SPECIFY | H14: CS | I14: 15 | J14: LB | K14: 30 | L14: 56.95 | M14: 1708.5 | N14: 3.796666667 | O14: 13925 | P14: WRIGHT | Q14: 1 / 15 LB | S14: 13925 / BACON, 10/14 THK SLCD
B15: 10 | C15: CTF7051 | D15: BACON SLICED THIN | E15: BACON THIN SLICED CATERNG | F15: SPECIFY | H15: CS | I15: 15 | J15: LB | K15: 15 | L15: 48.39 | M15: 725.85 | N15: 3.226 | O15: 8931216 | P15: JIMMY DE | Q15: 1 / 300 CT | S15: 8931216 / BACON, FC THN SLCD FZN
B16: 11 | C16: F1002 | D16: BAGEL BLUEBERRY | E16: BAGEL WG BLUEBERRY SLICED IW MUST BE WHOLE GRAIN RICH AND PROVIDE 2.0OZ GRAIN EQUIVALENTS. PORTION TO PROVIDE AT LEAST 115 CALORIES WITH NO MORE THAN 2 GRAMS OF FAT. | F16: BAKE CRAFTERS OR APPROVED EQUIVALENT | G16: 696 | H16: CS | I16: 84 | J16: 2 OZ | K16: 450 | L16: 36.44 | M16: 16398 | N16: 0.4338095238 | O16: 4031320 | P16: BAKECRAFTE | Q16: 84 / 2 OZ | S16: 4031320 / BAGELS, BLUEBERRY WG SL IW
B17: 12 | C17: F1003 | D17: BAGEL PLAIN | E17: BAGEL WG BLUEBERRY IW MUST BE WHOLE GRAIN RICH AND PROVIDE 2.0OZ GRAIN EQUIVALENTS. PORTION TO PROVIDE AT LEAST 115 CALORIES WITH NO MORE THAN 2 GRAMS OF FAT. | F17: BAKE CRAFTERS OR APPROVED EQUIVALENT | G17: 982 | H17: CS | I17: 84 | J17: 2 OZ | K17: 450 | L17: 35.23 | M17: 15853.5 | N17: 0.4194047619 | O17: 4034237 | P17: BAKE CRAFT | Q17: 84 / 2 OZ | S17: 4034237 / BAGELS, WG WHITE SL IW
B18: 13 | C18: D1005 | D18: BAKING SODA | E18: SODIUM BICARBONATE | F18: SPECIFY | H18: CS | I18: 24 | J18: 1 LBS | K18: 60 | L18: 22.15 | M18: 1329 | N18: 0.9229166667 | O18: 6415681 | P18: DIAM CRYST | Q18: 12 / 1 LB | S18: 6415681 / BAKING SODA
B19: 14 | C19: F1004 | D19: BAR BREAKFAST APPLE | E19: BREAKFAST BAR APPLE THAT MEET 2OZ WG AND 1/2C FRUIT FOR CHILD NUTRITIONAL MEAL PATTERN | F19: DAVE'S OR APPROVED EQUIVALENT | G19: 4014 | H19: CS | I19: 64 | J19: 3 OZ | K19: 1000 | L19: 48.4 | M19: 48400 | N19: 0.75625 | O19: 4039023 | P19: DAVE'S | Q19: 64 / 3.0 OZ | S19: 4039023 / APPLE BAR, WG BREAKFAST IW
B20: 15 | C20: F1005 | D20: BAR BREAKFAST BANANA CHOCOLATE | E20: INDIVIDUALLY WRAPPED 51% WHOLE GRAIN BANANA CHOCOLATE CHUNK | F20: BeneFIT OR APPROVED EQUIVALENT | G20: 40402 | H20: CS | I20: 48 | J20: 2.5 OZ | K20: 1650 | L20: 22.11 | M20: 36481.5 | N20: 0.460625 | O20: 9403882 | P20: J & J | Q20: 48 / 2.5 OZ | S20: 9403882 / BRKFST BAR BAN CHOC CHUNK WG
B21: 16 | C21: F1006 | D21: BAR BREAKFAST BLUEBERRY | E21: BREAKFAST BAR BLUEBERRY THAT MEET 2OZ WG AND 1/2C FRUIT FOR CHILD NUTRITIONAL MEAL PATTERN | F21: DAVE'S OR APPROVED EQUIVALENT | G21: 4014 | H21: CS | I21: 64 | J21: 3 OZ | K21: 1000 | L21: 47.71 | M21: 47710 | N21: 0.74546875 | O21: 4039018 | P21: DAVE'S | Q21: 64 / 3 OZ | S21: 4039018 / BLUEBERRY BAR, WG BREAKFAST
B22: 17 | C22: F1007 | D22: BAR BREAKFAST COCOA CHIP | E22: INDIVIDUALLY WRAPPED 51% WHOLE GRAIN COCOA CHIP | F22: BeneFIT OR APPROVED EQUIVALENT | G22: 40406 | H22: CS | I22: 48 | J22: 2.5 OZ | K22: 1650 | L22: 23.21 | M22: 38296.5 | N22: 0.4835416667 | O22: 9409846 | P22: READI-BAKE | Q22: 48 / 2.5 OZ | S22: 9409846 / COCOA CHIP BARS, WHOLE GRAIN
B23: 18 | C23: F1008 | D23: BAR BREAKFAST OATMEAL CHOCOLATE | E23: INDIVIDUALLY WRAPPED 51% WHOLE GRAIN OATMEAL CHOCOLATE CHIP | F23: BeneFIT OR APPROVED EQUIVALENT | G23: 40401 | H23: CS | I23: 48 | J23: 2.5 oz | K23: 1650 | L23: 22.11 | M23: 36481.5 | N23: 0.460625 | O23: 9363885 | P23: J&J | Q23: 48 / 2.5 OZ | S23: 9363885 / BRKFST BAR OAT CHOC CHIP WG
B24: 19 | C24: F1009 | D24: BAR OATMEAL BLUEBERRY | E24: BLUEBERRY OATMEAL BARS 2.04 OZ 51% WHOLE GRAIN MEET 2 OZ GRAIN EQUIVALENT | F24: DARLINGTON SNACKS OR APPROVED EQUIVALENT | G24: 75600 | H24: CS | I24: 160 | J24: 2.4 OZ | K24: 1000 | L24: 77.66 | M24: 77660 | N24: 0.485375 | O24: 0 | P24: APPLEWAYS | Q24: 160 / 2.4 OZ | S24: 0 / OATMEAL BAR, STRAWBERRY WG
B25: 20 | C25: C1000 | D25: BASE BEEF | E25: GRADE A TO CONTAIN BEEF LOW SODIUM- PASTE NON-CAKING READY TO DISSOLVE BEEF FLAVORED NO MSG | F25: SPECIFY | H25: CS | I25: 12 | J25: 1 LBS | K25: 200 | L25: 49.41 | M25: 9882 | N25: 4.1175 | O25: 2417988 | P25: KNORR | Q25: 6 / 1 LB | S25: 2417988 / BASE, BEEF ULT L SOD NO MSG
B26: 21 | C26: C1001 | D26: BASE CHICKEN | E26: GRADE A TO CONTAIN CHICKEN LOW SODIUM - PASTE NON-CAKING READY TO DISSOLVE CHICKEN FLAVORED NO MSG | F26: SPECIFY | H26: CS | I26: 12 | J26: 1 LBS | K26: 200 | L26: 80.79 | M26: 16158 | N26: 6.7325 | O26: 2422574 | P26: KNORR | Q26: 12 / 1 LB | S26: 2422574 / BASE, CHICKEN LOW SODIUM
B27: 22 | C27: CTF7009 | D27: BASE CHICKEN KNORR | E27: CHICKEN FLAVORED BOUILLON CATERING | F27: KNORR OR APPROVED EQUIVALENT | G27: 116300 | H27: BTL | I27: 1 | J27: 7.9 LB | K27: 5 | L27: 80.53 | M27: 402.65 | N27: 80.53 | O27: 2416783 | P27: KNORR | Q27: 4 / 7.9 LB | S27: 2416783 / BASE, CALDO DE POLLO CHKN
B28: 23 | C28: C1002 | D28: BASE HAM | E28: GRADE A TO CONTAIN HAM LOW SODIUM - PASTE NON-CAKING READY TO DISSOLVE BEEF FLAVORED NO MSG | F28: SPECIFY | H28: CS | I28: 12 | J28: 1 LBS | K28: 300 | L28: 59.32 | M28: 17796 | N28: 4.943333333 | O28: 2422988 | P28: KNORR | Q28: 6 / 1 LB | S28: 2422988 / BASE, ULT HAM
B29: 24 | C29: D1006 | D29: BEANS BAKED | E29: REDUCED SODIUM VEGETARIAN BAKED BEANS | F29: BUSHS BEST OR APPROVED EQUIVALENT | H29: CS | I29: 6 | J29: #10 CANS | K29: 1500 | L29: 35.36 | M29: 53040 | N29: 5.893333333 | O29: 1554420 | P29: ALLENS | Q29: 6 / #10 | S29: 1554420 / BEANS, VEGETARIAN LS
B30: 25 | C30: D1007 | D30: BEANS GARBANZO | E30: BRINE PACK. GARBANZO BEANS WATER SALT VINEGAR DISODIUM EDTA (TO PROMOTE COLOR AND RETENTION) AND CALCIUM CHLORIDE (A FIRMING AGENT). | F30: SPECIFY | H30: CS | I30: 6 | J30: 10 LB | K30: 65 | L30: 33.72 | M30: 2191.8 | N30: 5.62 | O30: 1557421 | P30: ALLENS | Q30: 6 / #10 | S30: 1557421 / BEANS, GARBANZO
B31: 26 | C31: CTF7010 | D31: BEANS KIDNEY | E31: CATERING | H31: CS | I31: 6 | J31: #10 CAN | K31: 50 | L31: 33.97 | M31: 1698.5 | N31: 5.661666667 | O31: 1554123 | P31: ALLENS | Q31: 6 / #10 | S31: 1554123 / BEANS, DARK RED KIDNEY
B32: 27 | C32: D1008 | D32: BEANS PINTO CANNED | E32: PINTO BEANS WHOLE STYLE SEASONED VEGETARIAN CANNED IN BRINE US GRADE B LOW SODIUM (140 MILLIGRAMS OF SODIUM OR LESS PER SERVING) | F32: BUSH'S OR APPROVED EQUIVALENT | H32: CS | I32: 6 | J32: 10 CN | K32: 1300 | L32: 33.01 | M32: 42913 | N32: 5.501666667 | O32: 1553521 | P32: ALLENS | Q32: 6 / #10 | S32: 1553521 / BEANS, PINTO
B33: 28 | C33: D1009 | D33: BEANS PINTO DRY | E33: US #1 GRADE A CURRENT CROP 98% CLEAN FREE OF WEEVILS DIRT AND ROCKS. TRIPLE CLEANED. | F33: SPECIFY | H33: LB | I33: 50 | J33: LBS | K33: 250 | L33: 41.65 | M33: 10412.5 | N33: 0.833 | O33: 4356002 | P33: JACKRABBIT | Q33: 1 / 50 LB | S33: 4356002 / BEANS,PINTO US #1 TRIPLE C
B34: 29 | C34: D1010 | D34: BEANS RANCH | E34: PINTO BEANS WATER TOMATO PUREE LESS THAN 2% BLEND OF VEGETABLE OILS AND ANIMAL FAT SALT CHILI PEPPERS SUGAR PAPRIKA VINEGAR SPICES ONION POWDER GARLIC POWDER NATURAL FLAVORINGS SOY LECITHIN LOW SODIUM (140 MILLIGRAMS OF SODIUM OR LESS PER SERVING) | F34: RANCH STYLE OR APPROVED EQUIVALENT | G34: 4690000116 | H34: CS | I34: 6 | J34: 10 CN | K34: 300 | L34: 34.36 | M34: 10308 | N34: 5.726666667 | O34: 1557821 | P34: ALLENS | Q34: 6 / #10 | S34: 1557821 / BEANS, CHILI MEXICAN STYLE
B35: 30 | C35: D1011 | D35: BEANS REFRIED | E35: DEHYDRATED JUST ADD WATER TO COOK AND SERVE UNSEASONED. US GRADE A | F35: SANTIAGO OR APPROVED EQUIVALENT | G35: 10166 | H35: CS | I35: 6 | J35: 28.1 OZ | K35: 300 | L35: 36.89 | M35: 11067 | N35: 6.148333333 | O35: 2103563 | P35: SANTIAGO | Q35: 6 / 28.1 OZ | S35: 2103563 / BEANS, REFRIED SEASONED VEG
B36: 31 | C36: CTF7052 | D36: BEEF BRISKET | E36: BEEF PACKER TRIM VACCUUM PACKED LARGE 14-22 LB CATERING | F36: SPECIFY | H36: LB | I36: 1 | J36: LB | K36: 2000 | L36: 306 | M36: 612000 | N36: 306 | O36: 5403872 | P36: IBP | Q36: 5 / 15 LB | S36: 5403872 / 120 FR SEL BRISKET - $4.08/LB - Priced Per Pound
B37: 32 | C37: CTF7053 | D37: BEEF CHICKEN FRIED STEAK | E37: EXCLUSIVE CUT™ WHOLE MUSCLE BEEF. BATTERED WITH A BUTTERMILK BLEND BREADED WITH A FLOUR-BASED BREADING. CATERING | F37: ADVANCE/PIERRE OR APPROVED EQUIVALENT | G37: 4541 | H37: CS | I37: 40 | J37: 4 OZ | K37: 25 | L37: 60.17 | M37: 1504.25 | N37: 1.50425 | O37: 8942849 | P37: ADVANCE | Q37: 40 / 4 OZ | S37: 8942849 / CFS NATURAL RAW EXCLUSIVE
B38: 33 | C38: F1010 | D38: BEEF FAJITA STRIPS | E38: FORMED BEEF SEASONED FULLY COOKED AND SLICED INTO 3/8-INCH STRIPS. SOY ADDED. CHAR MARKED. | F38: ADVANCE/PIERRE OR APPROVED EQUIVALENT | G38: 56001 | H38: CS | I38: 2 | J38: 5 LB | K38: 100 | L38: 72.12 | M38: 7212 | N38: 36.06 | O38: 8943556 | P38: ADVANCE | Q38: 2 / 5 LB | S38: 8943556 / BF FAJITA STRIP SOY 3/8" FC
B39: 34 | C39: F1011 | D39: BEEF GROUND 85/15 | E39: 100 % BEEF, GROUND, RAW, FROZEN, UNSEASONED FINE GRIND 85/15 LEAN/FAT RATIO, NO FILLERS, MEET NEW MEXICO GROWN REQUIREMENTS, LESS THAN 100MG SODIUM PER 3OZ SERVING, INDIVIDUALLY WRAPPED 5 PACKS/10 POUNDS | F39: NEW MEXICO'S BEST OR APPROVED EQUIVALENT | G39: NMB8515GB | H39: CS | I39: 5 | J39: 10# | K39: 2000 | L39: 150.39 | M39: 300780 | N39: 30.078 | O39: 8789257 | P39: PACKER | Q39: 8 / 5 LB | S39: 8789257 / 136 FZ GRD BF 85/15 W/O LFTB
B40: 35 | C40: F1012 | D40: BEEF PATTY | E40: FULLY COOKED BEEF PATTIES, EACH 3.00 OZ FULLY COOKED BEEF PATTY PROVIDES 2.50 OZ EQUIVALENT MEAT FOR NSL, NO FILLERS, MEET NEW MEXICO GROWN REQUIREMENTS, LESS THAN 100MG SODIUM PER 3OZ SERVING | F40: NEW MEXICO'S BEST OR APPROVED EQUIVALENT | G40: NMB8020BPSFC | H40: CS | I40: 195 | J40: 3 OZ | K40: 600 | L40: 57.66 | M40: 34596 | N40: 0.2956923077 | O40: 5527832 | P40: ADVANCE | Q40: 53 / 3 OZ | S40: 5527832 / BURGER CHARBROILED PUBSTEAK
B41: 36 | C41: F1013 | D41: BEEF PHILLY STEAK | E41: FULLY COOKED COOKED SLICED STEAK LESS THAN 230MG SODIUM PER SERVING | F41: ADVANCE/PIERRE OR APPROVED EQUIVALENT | G41: 69249 | H41: CS | I41: 170 | J41: 2.82 OZ | K41: 200 | L41: 78.48 | M41: 15696 | N41: 0.4616470588 | O41: 8958177 | P41: ADVANCE | Q41: 4 / 2.5 LB | S41: 8958177 / PHILLY BEEF SLICES FC
B42: 37 | C42: F1014 | D42: BEEF SHREDS | E42: BEEF SHREDS, EACH 2.36OZ MEET 2M/MA FOR NSLP NO FILLERS, MEET NEW MEXICO GROWN REQUIREMENTS, LESS THAN 100MG SODIUM PER 3OZ SERVING | F42: NEW MEXICO'S BEST OR APPROVED EQUIVALENT | G42: NMBBSFC | H42: CS | I42: 5 | J42: 10 LB | K42: 600 | L42: 101.52 | M42: 60912 | N42: 20.304 | O42: 7040574 | P42: DSM COOK | Q42: 4 / 3 LB | S42: 7040574 / FC CHIPPED STEAK - $8.46/LB - Priced Per Pound
B43: 38 | C43: F1015 | D43: BEEF STEAK FINGERS WG | E43: BEEF STRIP, FULLY COOKED, BREADED, NO FILLERS, MEET NEW MEXICO GROWN REQUIREMENTS, LESS THAN 100MG SODIUM PER 3.6 OZ SERVING | F43: NEW MEXICO'S BEST OR APPROVED EQUIVALENT | G43: NMB8020BSSBSFC | H43: CS | I43: 534 | J43: .9 oz | K43: 450 | L43: 125.89 | M43: 56650.5 | N43: 0.2357490637 | O43: 8952748 | P43: ADVANCE | Q43: 495 / .97 OZ | S43: 8952748 / BF FINGER WG APLSC CN
B44: 39 | C44: F1016 | D44: BEEF STEAK PATTIE BREADED | E44: BEEF PATTY, BREADED, FULLY COOKED, EACH 3.2 OZ PATTY PROVIDES 2OZ EQUIVALENT MEAT/MEAT ALTERNATE FOR NSLP, NO FILLERS, MEET NEW MEXICO GROWN REQUIREMENTS, LESS THAN 100MG SODIUM PER 3.2 OZ SERVING | F44: NEW MEXICO'S BEST OR APPROVED EQUIVALENT | G44: NMB8020BPBSFC | H44: CS | I44: 150 | J44: 3.2 oz | K44: 400 | L44: 72.02 | M44: 28808 | N44: 0.4801333333 | O44: 8952800 | P44: ADVANCE | Q44: 150 / 3.2 OZ | S44: 8952800 / BF PATTY BRD APLSC WG COMM
B45: 40 | C45: F1017 | D45: BISCUIT WG | E45: HONEY WHOLE WHEAT HEAT & SERVE PRE-SLICED MEET 2 OZ/GR | F45: BRIDGEFORD OR APPROVED EQUIVALENT | G45: 6270 | H45: CS | I45: 100 | J45: 2.25 OZ | K45: 400 | L45: 38.76 | M45: 15504 | N45: 0.3876 | O45: 4568025 | P45: BAKE CRAFT | Q45: 144 / 2 OZ | S45: 4568025 / BISCUIT, HNY WHEAT, WG SL
B46: 41 | C46: CTF7054 | D46: BISCUIT WHITE BUTTERMILK | E46: BISCUIT OLD SOUTH BUTTERMILK PRE-SLICED FULLY COOOKED 2.25 OZ CATERING | F46: BRIDGEFORD OR APPROVED EQUIVALENT | G46: 6170 | H46: CS | I46: 100 | J46: 2.25 OZ | K46: 300 | L46: 31.58 | M46: 9474 | N46: 0.3158 | O46: 9236655 | P46: BRIDGFORD | Q46: 100 / 2.25 OZ | S46: 9236655 / BISCUIT, BUTRMLK H&S SLCD 3"
B47: 42 | C47: F1018 | D47: BOLI STRAWBERRY | E47: BOLI STRAWBERRY WG IW EACH 3.24 OZ PROVIDES 2.00 OZ EQ GRAINS OR NSP | F47: TASTY BRAND OR APPROVED EQUIVALENT | G47: 53205 | H47: CS | I47: 96 | J47: 3.24 OZ | K47: 850 | L47: 61.65 | M47: 52402.5 | N47: 0.6421875 | O47: 8910071 | P47: TASTY BRND | Q47: 96 / 3.24 OZ | S47: 8910071 / STRAWBERRY BOLI, WG IW
B48: 43 | C48: F1019 | D48: BOLI SWEET | E48: BOLI STRAWBERRY WG IW EACH 3.24 OZ PROVIDES 2.00 OZ EQ GRAINS OR NSP | F48: TASTY BRAND OR APPROVED EQUIVALENT | G48: 53204 | H48: CS | I48: 96 | J48: 3.24 OZ | K48: 850 | L48: No Bid | O48: No Bid | P48: No Bid | Q48: No Bid | R48: No Bid | S48: No Bid
B49: 44 | C49: F1020 | D49: BOLILLO CHORIZO & CHEESE | E49: BOLLIOS, CHORIZO & CHEESE, BULK, EACH BOLILLO MUST MEET 1.5OZ GRAIN AND 1 M/MA FOR STUDENT NUTRITION PROGRAM | F49: ARDELLA'S OR APPROVED EQUIVALENT | G49: 10014 | H49: CS | I49: 72 | J49: 3.35 OZ | K49: 900 | L49: No Bid | O49: No Bid | P49: No Bid | Q49: No Bid | R49: No Bid | S49: No Bid
B50: 45 | C50: F1021 | D50: BREAD BANANA SLICE | E50: 3.4OZ (96G) FROZEN IW THAW & SERVE CONTAINS ZERO TRANS-FAT > 51% WHOLE WHEAT FLOUR NON-DAIRY NO ARTIFICIAL COLORS FLAVORS OR PRESERVATIVES. MUST CONFORM TO USDA CHILD NUTRITION PROGRAM SPECIFICATIONS AND MEET 2 SERVINGS OF GRAIN. | F50: SUPER BAKERY OR APPROVED EQUIVALENT | G50: 6071 | H50: CS | I50: 70 | J50: 3.4 OZ | K50: 1200 | L50: 49.88 | M50: =IF(L50*K50= 0,"",L50*K50) -> 59856 | N50: =IF(L50/I50= 0,"",L50/I50) -> 0.7125714286 | O50: 8917073 | P50: SUPER BAKE | Q50: 75 / 3.4 OZ | S50: 8917073 / BANANA BREAD, SLICED, WG, IW
B51: 46 | C51: F1022 | D51: BREAD LEMON | E51: 3.4OZ (96G) FROZEN IW THAW & SERVE CONTAINS ZERO TRANS-FAT > 51% WHOLE WHEAT FLOUR NON-DAIRY NO ARTIFICIAL COLORS FLAVORS OR PRESERVATIVES. MUST CONFORM TO USDA CHILD NUTRITION PROGRAM SPECIFICATIONS AND MEET 2 SERVINGS OF GRAIN. | F51: SUPER BAKERY OR APPROVED EQUIVALENT | G51: 7507 | H51: CS | I51: 70 | J51: 3.4OZ | K51: 1200 | L51: 53.41 | M51: 64092 | N51: 0.763 | O51: 8917099 | P51: SUPER BAKE | Q51: 75 / 3.4 OZ | S51: 8917099 / LEMON SLCD,BREAD, RS, IW, W
B52: 47 | C52: F1023 | D52: BREADSTICK | E52: WHITE WHOLE WHEAT CHEESY GARLIC BREADSTICK DOUGH FROZEN RAW PROOF AND BAKE WHOLE GRAIN FLOUR CHEESE AND GARLIC FLAVORED. EACH STICK MUST PROVIDE A MINUMIM OF 1GB COMPONENT FOR NSLP | F52: BRIDGEFORD OR APPROVED EQUIVALENT | G52: 6787 | H52: CS | I52: 320 | J52: 1.125 oz | K52: 1500 | L52: 38.22 | M52: 57330 | N52: 0.1194375 | O52: 8721016 | P52: BRIDGFORD | Q52: 320 / 1.12 OZ | S52: 8721016 / BREADSTICK DGH, CHS/GARL WW
B53: 48 | C53: F1024 | D53: BREADSTICK CHEESE FILLED WG | E53: BREAKSTICK CHEESE FILLED WG EACH BREADSTICK MEETS 1M/MA FOR CHILD NUTRITION MEAL PATTERN | F53: CLASSIC DELIGHT OR APPROVED EQUIVALENT | G53: A33045 | H53: CS | I53: 112 | J53: 2 OZ | K53: 800 | L53: 64.92 | M53: 51936 | N53: 0.5796428571 | O53: 8880015 | P53: GOODSOURCE | Q53: 112 / 2 OZ | S53: 8880015 / BREAD STICKS, WG CHEESE
B54: 49 | C54: F1025 | D54: BREAKFAST ROUNDS | E54: CINNAMON AND BROWN SUGAR BREAKFAST ROUND IW MUST MEET 2 GRAIN FOR SBP | F54: UBR/RICH'S OR APPROVED EQUIVALENT | G54: 8733 | H54: CS | I54: 126 | J54: 2.2 OZ | K54: 1000 | L54: 56.4 | M54: 56400 | N54: 0.4476190476 | O54: 9378728 | P54: RICH'S | Q54: 126 / 2.2 OZ | S54: 9378728 / UBR, CINN WG IW ROUND
B55: 50 | C55: F1026 | D55: BURRITO | E55: BEEF BEAN AND CHEESE BURRITO. A RED CHILI BEEF BEAN AND TEXTURED VEGETABLE PROTEIN FILLING WRAPPED IN A FLOUR TORTILLA. BURRITOS SHALL BE UNIFORMLY ROLLED WITH A UNIFORM DISTRIBUTION OF FILLING. NO EXESSIVELY FLATTENED OR IRREGULAR SHAPED PRODUCT. | F55: BUTCHERBOY/POSADA OR APPROVED EQUIVALENT | G55: 1020001 | H55: CS | I55: 72 | J55: 4 OZ | K55: 1000 | L55: 85.4 | M55: 85400 | N55: 1.186111111 | O55: 8977084 | P55: LOS CABOS | Q55: 96 / 5.2 OZ | S55: 8977084 / BURRITO BF/BN/RD CHILI WG IW
B56: 51 | C56: F1027 | D56: BURRITO BEAN & CHEESE de CHILE RELLENO | E56: BURRITO -FROZEN BEAN & CHEESE DE CHILE RELLENO-REFRIED BEANS TOPPED WITH MEXICAN STYLE RICE WITH RED SALSA WITH POBLANO CHILE AND PEPPER JACK CHEESE ON A WHOLEWHEAT FLOUR TORTILLA. EACH 7.66 OZ. BURRITO PROVIDES 2.00 OZ MEAT ALTERNATE AND 1/8 CUP OTHER VEGETABLE AND 2.25 OZ EQV GRAIN OR 1.00 OZ MEAT ALTERNATE AND 1/8 CUPOTHER VEGETABLE AND 1/4 CUP LEGUME VEGETABLE AND 2.25 OZ EQV GRAIN TOWARDS THE NSLP, WHOLE GRAIN RICH FLOUR TORTILLA. CN LABELED. BURRITOS ARE HAND-WRAPPED INOVENABLE FOIL SHEETS. 36 COUNT. PREPARATION INSTRUCTIONS INCLUDED ON BOX. NO MORE THAN 700 MG SODIUM, LESS THAN 15% CALORIES FROM SATURATED FAT, 0 TRANS FAT. NOLESS THAN 400 KCAL. HAND HELD, FULLY COOKED. HEAT & SERVE.-VEGETARIAN. CABO PRIMO BRAND 71683 | F56: LOS CABOS OR APPROVED EQUIVALENT | G56: 71683 | H56: CS | I56: 36 | J56: 7.66 OZ | K56: 600 | L56: 68.28 | M56: 40968 | N56: 1.896666667 | O56: 870046 | P56: CABO PRIMO | Q56: 36 / 7.66 OZ | S56: 870046 / BURRITO BEAN CHEESE CHILE RE
B57: 52 | C57: F1028 | D57: BURRITO PRE-FRIED BULK | E57: 4.75 OZ. CHEESE BEEF BEAN & RED CHILI BURRITO FULLY COOKED GROUND BEEF RED CHILI SAUCE AMERICAN CHEESE PINTO BEANS WRAPPED IN A WHOLE GRAIN RICH BLEND OF WHEAT AND CORN FLOUR TORTILLA 16g PROTEIN PER SERVING CN LABELED - SERVES 2 OZ. M/MA & 2 OZ. EQUIVALENT GRAINS PRE-FRIED | F57: FERNANDO'S OR APPROVED EQUIVALENT | G57: 21072 | H57: CS | I57: 72 | J57: 4.75 oz | K57: 1000 | L57: 74.92 | M57: 74920 | N57: 1.040555556 | O57: 8977070 | P57: FERNANDOS | Q57: 72 / 4.75 OZ | S57: 8977070 / BRTO,BF/BN/CH RDCHILI PF CN
B58: 53 | C58: D1012 | D58: BUTTER ALTERNATIVE | E58: PHASE® ZERO TRANS NO SODIUM LIQUID BUTTER ALTERNATIVE | F58: PHASE OR APPROVED EQUIVALENT | G58: 13688 | H58: CS | I58: 3 | J58: GAL | K58: 200 | L58: 48.36 | M58: 9672 | N58: 16.12 | O58: 8080003 | P58: BUNGE | Q58: 3 / 1 GL | S58: 8080003 / BUTTER ALT LIQ,GLDN AWARD NT
B59: 54 | C59: C1008 | D59: BUTTERMILK BAKING 1% | E59: BUTTERMILK BAKING 1% | F59: SPECIFY | H59: CS | I59: 4 | J59: GAL | K59: 100 | L59: 4.62 | M59: 462 | N59: 1.155 | O59: 8205046 | P59: BORDEN | Q59: 1 / HG | S59: 8205046 / BUTTERMILK, BAKING 1%
B60: 55 | C60: D1013 | D60: CEREAL BLUEBERRY CHEX 2OZ | E60: BLUEBERRY CHEX AND SWEETENED RICE GLUTEN-FREE CEREAL. THIS READY-TO-EAT CUP PROVIDES CONVENIENT PORTION CONTROL AND ROOM FOR MILK. WHOLE GRAIN RICE – FIRST INGREDIENT. MEETS 2 OUNCE EQUIVALENT GRAINS USDA SMART SNACK CRITERIA AND IS CACFP ELIGIBLE. | F60: GENERAL MILLS OR APPROVED EQUIVALENT | G60: 17262000 | H60: CS | I60: 60 | J60: 2 OZ | K60: 500 | L60: 36.94 | M60: 18470 | N60: 0.6156666667 | O60: 6490031 | P60: CHEX | Q60: 60 / 2 OZ | S60: 6490031 / CEREAL, BLUEBERRY CHEX
B61: 56 | C61: D1014 | D61: CEREAL CHEERIOS 1 OZ | E61: READY TO EAT CEREALS: BOWL PACK WHOLE GRAIN OATS RINGS. MUST MEET 1G EQUIVALENCY FOR SBP | F61: GENERAL MILLS OR APPROVED EQUIVALENT | G61: 32262000 | H61: CS | I61: 96 | J61: 1 oz | K61: 250 | L61: 30.27 | M61: 7567.5 | N61: 0.3153125 | O61: 6490011 | P61: GEN MILLS | Q61: 96 / 1 OZ | S61: 6490011 / CEREAL, CHEERIOS WG, BP GF
B62: 57 | C62: D1015 | D62: CEREAL CINNAMON CHEX 1 OZ | E62: CINNAMON CHEX™ IS MADE WITH REAL CINNAMON AND SWEETENED RICE GLUTEN-FREE CEREAL. THIS READY-TO-EAT CUP PROVIDES CONVENIENT PORTION CONTROL AND ROOM FOR MILK. WHOLE GRAIN RICE – FIRST INGREDIENT. MEETS 2 OUNCE EQUIVALENT GRAINS USDA SMART SNACK CRITERIA AND IS CACFP ELIGIBLE. | F62: GENERAL MILLS OR APPROVED EQUIVALENT | G62: 14883000 | H62: CS | I62: 60 | J62: 2 OZ | K62: 500 | L62: 37.02 | M62: 18510 | N62: 0.617 | O62: 6490027 | P62: GEN MILLS | Q62: 60 / 2 OZ | S62: 6490027 / CEREAL, CINN CHEX EQ GRAIN
B63: 58 | C63: D1016 | D63: CEREAL CINNAMON TOAST 1 OZ | E63: READY TO EAT CEREALS: BOWL PACK WHOLE GRAIN 25% LESS SUGAR CINNAMON TOAST SQUARES. MUST MEET 1G EQUIVALENCY FOR SBP | F63: GENERAL MILLS OR APPROVED EQUIVALENT | G63: 294440000 | H63: CS | I63: 96 | J63: 1 OZ | K63: 250 | L63: 30.27 | M63: 7567.5 | N63: 0.3153125 | O63: 6495114 | P63: GEN MILLS | Q63: 96 / 1 OZ | S63: 6495114 / CEREAL CIN TOAST CRNCH,WG,RS
B64: 59 | C64: D1017 | D64: CEREAL CINNAMON TOAST 2OZ | E64: READY TO EAT CEREALS: BOWL PACK WHOLE GRAIN 25% LESS SUGAR CINNAMON TOAST SQUARES. MUST MEET 2G EQUIVALENCY FOR SBP | F64: GENERAL MILLS OR APPROVED EQUIVALENT | G64: 148861000 | H64: CS | I64: 60 | J64: 2 OZ | K64: 1000 | L64: 37.02 | M64: 37020 | N64: 0.617 | O64: 6490026 | P64: GEN MILLS | Q64: 60 / 2.0 OZ | S64: 6490026 / CEREAL, CTC LS,EQ GRAIN
B65: 60 | C65: D1018 | D65: CEREAL COCOA PUFFS 2OZ | E65: READY TO EAT CEREALS: BOWL PACK WHOLE GRAIN COCOA PUFFS REDUCED SUGAR MUST MEET 2 GRAIN EQUIVALENCY FOR SBP | F65: GENERAL MILLS OR APPROVED EQUIVALENT | G65: 148854000 | H65: CS | I65: 60 | J65: 2 OZ | K65: 1000 | L65: 37.02 | M65: 37020 | N65: 0.617 | O65: 6490029 | P65: GEN MILLS | Q65: 60 / 2 OZ | S65: 6490029 / CEREAL, COCOA PUFFS LS, EG
B66: 61 | C66: D1019 | D66: CEREAL CREAM OF WHEAT | E66: HOT CEREALS: ENRICHED PLAIN BULK QUICK COOK CREAM OF WHEAT WHOLE GRAIN. MUST MEET 1G EQUIVALENCY FOR SBP | F66: SPECIFY | H66: CS | I66: 12 | J66: 28 OZ | K66: 10 | L66: 25.76 | M66: 257.6 | N66: 2.146666667 | O66: 6621239 | P66: INTL HOME | Q66: 12 / 28 OZ. | S66: 6621239 / FARINA, MAYPO CREAM OF WHEAT
B67: 62 | C67: D1020 | D67: CEREAL LUCKY CHARMS 2OZ | E67: READY TO EAT CEREALS: BOWL PACK WHOLE GRAIN WITH MARSHMALLOWS ASSORTED BERRY PUFFS REDUCED SUGAR. MUST MEET 2G EQUIVALENCY FOR SBP | F67: GENERAL MILLS OR APPROVED EQUIVALENT | G67: 148847000 | H67: CS | I67: 60 | J67: 2 OZ | K67: 200 | L67: 37.02 | M67: 7404 | N67: 0.617 | O67: 6490030 | P67: GEN MILLS | Q67: 60 / 2 OZ | S67: 6490030 / CEREAL, LUCKY CHARMS EQ GRAI
B68: 63 | C68: D1021 | D68: CEREAL OATMEAL | E68: OATS ROLLED INSTANT ENRICHED DRY | F68: SPECIFY | H68: CS | I68: 12 | J68: 42 OZ | K68: 20 | L68: 57.42 | M68: 1148.4 | N68: 4.785 | O68: 6602502 | P68: QUAKER | Q68: 12 / 42 OZ | S68: 6602502 / OATS QUICK WG
B69: 64 | C69: D1022 | D69: CEREAL RICE KRISPIES BULK | E69: RICE BULK WHOLE GRAIN PLAIN PUFFS. MUST MEET 1G EQUIVALENCY FOR SBP | F69: SPECIFY | H69: CS | I69: 4 | J69: 35 OZ | K69: 900 | L69: 27.08 | M69: 24372 | N69: 6.77 | O69: 6585558 | P69: KELLOGGS | Q69: 4 / 27 OZ | S69: 6585558 / CEREAL RICE KRISPIES BULK
B70: 65 | C70: C1009 | D70: CHEESE AMERICAN SLICED | E70: CHEESE AMERICAN PROCESSED SLICED 1/2 OUNCE EACH UNWRAPPED. REDUCED FAT REDUCED SODIUM PRE-SLICED YELLOW AMERICAN PROCESSED CHEESE. IMITATION OR CHEESE BLENDS NOT ACCEPTED. FAT GRAMS NOT TO EXCEED 2G PER SLICE SODIUM NOT TO EXCEED 210MG PER SLICE. 1 SLICE/.5OZ .5OZMMA 6/5#LAND O LAKES PREFERRED - AVAILABLE FOR NET OFF INVOICE. FOR NOI PRICING | F70: BONGARDS OR APPROVED EQUIVALENT | G70: 111371 | H70: CS | I70: 6 | J70: 5 LB | K70: 675 | L70: 85.51 | M70: 57719.25 | N70: 14.25166667 | O70: 8660266 | P70: BONGARDS | Q70: 6/5lb
B71: 66 | C71: C1010 | D71: CHEESE CHEDDAR SHREDDED | E71: CHEESE CHEDDAR SHREDDED REDUCED FAT REDUCED SODIUM MILD NO IMITATION ENZYMES AND ARTIFICIAL COLORING MAY BE ADDED. PASTEURIZED PLEASING ODOR AND FLAVOR SATISFACTORY MELTABILITY. FAT GRAMS NOT TO EXCEED 4.5G SODIUM NOT TO EXCEED 90MG. 4/5# AVAILABLE FOR NET OFF INVOICE. FOR NOI PRICING | F71: BONGARDS OR APPROVED EQUIVALENT | G71: 755191 | H71: CS | I71: 4 | J71: 5 LB | K71: 600 | L71: 62.95 | M71: 37770 | N71: 15.7375 | O71: 8662000 | P71: BONGARDS | Q71: 4/5lb
B72: 67 | C72: CTF7000 | D72: CHEESE COTTAGE | E72: COTTAGE CHEESE SMALL CURD CATERING | F72: SPECIFY | H72: CS | I72: 1 | J72: 5 LB | K72: 75 | L72: 11.49 | M72: 861.75 | N72: 11.49 | O72: 8201266 | P72: SARAH FARM | Q72: 1 / 5 LB | S72: 8201266 / COTTAGE CHEESE LOW FAT
B73: 68 | C73: CTF7001 | D73: CHEESE CREAM BLOCK | E73: CREAM CHEESE BLOCK CATERING | F73: SPECIFY | H73: CS | I73: 10 | J73: 3 LB | K73: 20 | L73: 77.07 | M73: 1541.4 | N73: 7.707 | O73: 8701990 | P73: RASKAS | Q73: 1 / 30 LB | S73: 8701990 / CREAM CHEESE, BULK
B74: 69 | C74: C1011 | D74: CHEESE CREAM PLAIN PC | E74: .75 OZ PLAIN CREAM CHEESE PLASTIC PORTION CONTROL CUP | F74: KRAFT OR APPROVED EQUIVALENT | G74: 61089 | H74: CS | I74: 100 | J74: .75 OZ | K74: 900 | L74: 22.01 | M74: 19809 | N74: 0.2201 | O74: 8701724 | P74: RASKAS | Q74: 100 / 1 OZ | S74: 8701724 / CREAM CHEESE SPREAD PC
B75: 70 | C75: C1012 | D75: CHEESE CREAM STRAWBERRY PC | E75: 1OZ STRAWBERRY CREAM CHEESE CUP. PLASTIC PORTION CONTROL CUP. | F75: KRAFT OR APPROVED EQUIVALENT | G75: 72683 | H75: CS | I75: 100 | J75: 1 OZ | K75: 900 | L75: 19.07 | M75: 17163 | N75: 0.1907 | O75: 8701799 | P75: RASKAS | Q75: 100 / .75 OZ | S75: 8701799 / CREAM CHEESE, STRAWBERRY PC
B76: 71 | C76: C1013 | D76: CHEESE FETA | E76: FETA CHEESE CRUMBLES | F76: SPECIFY | H76: CS | I76: 4 | J76: 2.5 LB | K76: 50 | L76: 37.09 | M76: 1854.5 | N76: 9.2725 | O76: 8652133 | P76: KLONDIKE | Q76: 2 / 5 LB | S76: 8652133 / FETA, CRUMBLED
B77: 72 | C77: C1014 | D77: CHEESE MOZZARELLA SHREDDED | E77: CHEESE MOZZARELLA SHREDDED: PART-SKIM 100% MOZZARELLA SHREDDED. FAT GRAMS NOT TO EXCEED 6G SODIUM NOT TO EXCEED 160MG. 1OZ SERVING MUST EQUAL 1OZ M/MA. 4/5# | F77: LAND O'LAKES OR APPROVED EQUIVALENT | G77: 41698 | H77: CS | I77: 4 | J77: 5 LB | K77: 270 | L77: 59.63 | M77: 16100.1 | N77: 14.9075 | O77: 8642028 | P77: LANDOLAKES | Q77: 4 / 5 LB | S77: 8642028 / SHRED MOZZARELLA LMPS
B78: 73 | C78: C1015 | D78: CHEESE PEPPER JACK SLICES | E78: CHEESE SLICED PEPPER JACK NO IMITATION REDUCED FAT LOW SODIUM LOW FAT 160 CT | F78: SPECIFY | H78: CS | I78: 4 | J78: 5 LB | K78: 50 | L78: 42.5 | M78: 2125 | N78: 10.625 | O78: 8660038 | P78: BONGARDS | Q78: 8 / 1.5 LB | S78: 8660038 / SLICED PEPPER JACK .75OZ 32C
B79: 74 | C79: C1016 | D79: CHEESE PROVOLONE SLICES | E79: CHEESE SLICED NO IMITATION REDUCED FAT & SODIUM 160 CT | F79: SPECIFY | H79: CS | I79: 4 | J79: 5 LB | K79: 50 | L79: 58.58 | M79: 2929 | N79: 14.645 | O79: 8660276 | P79: BONGARDS | Q79: 4 / 5 LB | S79: 8660276 / SLICE PROVOLONE BLEND 160CTP
B80: 75 | C80: F1029 | D80: CHEESE STICK BREADED | E80: CHEESE STICKS WG BREADED INDIVIDUALLY FROZEN. 6 STICKS PROVIDE 2 OZ EQUIVALENT MEAT ALTERNATE AND 2 OZ GRAINS. | F80: RICH'S OR APPROVED EQUIVALENT | G80: 65220 | H80: CS | I80: 8 | J80: 3 LB | K80: 500 | L80: 73.94 | M80: 36970 | N80: 9.2425 | O80: 9371212 | P80: RICH'S | Q80: 8 / 3 LB | S80: 9371212 / CHEESE STICKS, RF, 51% WG
B81: 76 | C81: C1017 | D81: CHEESE STICK MARBLE IW | E81: CHEESE REDUCED FAT & SODIUM MARBLE IW FOR NOI PRICING | F81: BONGARDS OR APPROVED EQUIVALENT | G81: 402931 | H81: CS | I81: 168 | J81: 1 OZ | K81: 300 | L81: 45.35 | M81: 13605 | N81: 0.2699404762 | O81: 8660028 | P81: BONGARDS | Q81: 168 / 1 OZ | S81: 8660028 / CHEESE STICKS MARBLE JACK IW
B82: 77 | C82: C1018 | D82: CHEESE STRING IW | E82: CHEESE: WHITE REDUCED FAT & SODIUM PORTION STICKS STRING PASTEURIZED LOW MOISTURE PART SKIM MOZZARELLA IW FOR NOI PRICING | F82: BONGARDS OR APPROVED EQUIVALENT | G82: 402951 | H82: CS | I82: 168 | J82: 1 OZ | K82: 300 | L82: 39.71 | M82: 11913 | N82: 0.2363690476 | O82: 8660032 | P82: BONGARDS | Q82: 168 / 1 OZ | S82: 8660032 / STRING CHEESE MOZZARELLA IW
B83: 78 | C83: C1019 | D83: CHEESE SWISS SLICES | E83: SWISS CHEESE SLICES REDUCED FAT PRESLICED EASY TO SEPARATE. EACH SLICE 14G. 2 SLICES PROVIDES 1 M/MA FOR THE CHILD NUTRITION MEAL PROGRAM. | F83: LAND O'LAKES OR APPROVED EQUIVALENT | H83: CS | I83: 8 | J83: 1.5 LB | K83: 50 | L83: 53.1 | M83: 2655 | N83: 6.6375 | O83: 8645648 | P83: LANDOLAKES | Q83: 8 / 1.5 LB | S83: 8645648 / SLICED, CHEESE SWISS RED FAT
B84: 79 | C84: F1030 | D84: CHICKEN ASIAN CHERRY BLOOSOM | E84: FULLY COOKED CHICKEN CHUNKS WHOLE GRAIN SWEET AND SOUR CHERRY ASIAN STYLE | F84: ASIAN FOODS OR APPROVED EQUIVALENT | G84: 72005 | H84: CS | I84: 6 | J84: 7.15 LB | K84: 500 | L84: 176.35 | M84: 88175 | N84: 29.39166667 | O84: 9407024 | P84: ASIAN FOOD | Q84: 6 / 7.15 LB | S84: 9407024 / CHICKEN, CHERRY BLOSSOM
B85: 80 | C85: CTF7055 | D85: CHICKEN BREAST RAW | E85: CHICKEN UNCOOKED BREAST BONELESS SKINLESS WHITE 6 OZ SIZE CATERING | F85: SPECIFY | H85: CS | I85: 4 | J85: 5LB | K85: 25 | L85: 100.4 | M85: 2510 | N85: 25.1 | O85: 5450567 | P85: DSM CHIX | Q85: 4 / 5 LB | S85: 5450567 / BRST FZ 6 OZ FILET NF - $5.02/LB - Priced Per Pound
B86: 81 | C86: D1023 | D86: CHICKEN BROTH | E86: 100% NATURAL CHICKEN BROTH LOW SODIUM THANKSGIVING ONLY | F86: SWANSON OR APPROVED EQUIVALENT | H86: CS | I86: 12 | J86: 49 oz | K86: 50 | L86: 48.31 | M86: 2415.5 | N86: 4.025833333 | O86: 2527505 | P86: SWANSON | Q86: 12 / 49.5 OZ | S86: 2527505 / BROTH, CHICKEN CLEAR
B87: 82 | C87: F1031 | D87: CHICKEN DICED | E87: FULLY COOKED DICED NO ADDED SPICES | F87: SPECIFY | H87: CS | I87: 2 | J87: 5 LBS | K87: 300 | L87: 126.47 | M87: 37941 | N87: 63.235 | O87: 8878248 | P87: GOLD KIST | Q87: 1 / 29.92 LB | S87: 8878248 / FC DICED 1/2" WH/DK CHICKEN
B88: 83 | C88: F1032 | D88: CHICKEN DRUMSTICK BBQ | E88: FULLY COOKED BBQ GLAZED DRUMSTICK MUST MEET 2.5OZ M/MA FOR NSLP NO ANTIBIOTICS | F88: TYSON OR APPROVED EQUIVALENT | G88: 10264350928 | H88: CS | I88: 95 | J88: 3.24 OZ | K88: 600 | L88: 30.25 | M88: 18150 | N88: 0.3184210526 | O88: 8861125 | P88: TYSON | Q88: 2 / 5 # | S88: 8861125 / CHICKEN, SLUGGERS BBQ FC
B89: 84 | C89: F1033 | D89: CHICKEN DRUMSTICK BREADED | E89: FULLY COOKED BREADED DRUMSTICK MUST MEET 2 M/MA AND .75 OZ GRAIN FOR NSLP | F89: TYSON OR APPROVED EQUIVALENT | G89: 16660100928 | H89: CS | I89: 92 | J89: 3.31 OZ | K89: 700 | L89: 101 | M89: 70700 | N89: 1.097826087 | O89: 9911023 | P89: TYSON | Q89: 1 / 30 LB | S89: 9911023 / FC WG CHICK DRUMSTICK BONEIN
B90: 85 | C90: F1034 | D90: CHICKEN FAJITA STRIPS | E90: FAJITA STRIPS CHICKEN SEASONED FULLY COOKED. EACH 2.47 OZ MEETS 2OZ M/MA FOR NSLP. | F90: PILGRIM'S OR APPROVED EQUIVALENT | G90: 1250 | H90: CS | I90: 159 | J90: 3 OZ | K90: 800 | L90: 121.96 | M90: 97568 | N90: 0.7670440252 | O90: 8869441 | P90: TYSON | Q90: 6 / 5 LB | S90: 8869441 / CHICKEN FAJITA FC DARK STRIP
B91: 86 | C91: F1035 | D91: CHICKEN FILET | E91: FULLY COOKED WHOLE MUSCLE CHICKEN FILETS-CN LABELED EACH SERVING PROVIDED 2OZ M/MA AND 1 OZ GRAIN FOR NSLP | F91: PILGRIM'S OR APPROVED EQUIVALENT | G91: 7516 | H91: CS | I91: 122 | J91: 3.95 OZ | K91: 100 | L91: 149.85 | M91: 14985 | N91: 1.228278689 | O91: 8867507 | P91: CHRIS P | Q91: 1 / 30 LB | S91: 8867507 / BRD CHICKEN BRST FILET, WG
B92: 87 | C92: F1036 | D92: CHICKEN NUGGET | E92: FULLY COOKED WG BREADED CN LABELED WHOLE MUSCLE 5 NUGGETS PROVIDE 2 OZ MEAT/MEAT ALTERNATIVE AND 1 GRAIN SERVING FOR NSLP COMMERICAL BACK-UP OF COMMODITY PRODUCT OR FOR NOI PRICING | F92: GOLK KIST FARMS OR APPROVED EQUIVALENT | G92: 7518 | H92: CS | I92: 101 | J92: 3.9 OZ | K92: 600 | L92: 91.77 | M92: 55062 | N92: 0.9086138614 | O92: 8867509 | P92: GOLD KIST | Q92: 6 / 5 LB | S92: 8867509 / BRD CHICKN NUGGET WG FC
B93: 88 | C93: F1037 | D93: CHICKEN PATTY BREADED | E93: FULLY COOKED WG BREADED CN LABELED EACH PATTY PROVIDES 2 OZ MEAT/MEAT ALTERNATIVE AND 1 GRAIN SERVING. | F93: GOLD KIST FARMS OR APPROVED EQUIVALENT | G93: 665400 | H93: CS | I93: 158 | J93: 3.03 OZ | K93: 450 | L93: 91.44 | M93: 41148 | N93: 0.5787341772 | O93: 8867565 | P93: GOLD KIST | Q93: 156 / 3.05 OZ | S93: 8867565 / CHICKEN PATTY, BRD, WG FC
B94: 89 | C94: F1038 | D94: CHICKEN PATTY BREADED SPICY | E94: FULLY COOKED HOT N SPICY BREADED CHICKEN BREAST FILETS | F94: TYSON OR APPROVED EQUIVALENT | G94: 10383140928 | H94: CS | I94: 40 | J94: 3.95 OZ | K94: 300 | L94: 80.84 | M94: 24252 | N94: 2.021 | O94: 9011076 | P94: TYSON | Q94: 173 / 3.0 OZ | S94: 9011076 / CHICKEN PATTY WG H&S CN
B95: 90 | C95: F1039 | D95: CHICKEN PATTY GRILLED | E95: FULLY COOKED GRILLED CHICKEN BREASTS 4OZ PATTY NO ANTIBIOTICS | F95: TYSON OR APPROVED EQUIVALENT | G95: 10000039685 | H95: CS | I95: 40 | J95: 3.95 OZ | K95: 300 | L95: No Bid | O95: No Bid | P95: No Bid | Q95: No Bid | R95: No Bid | S95: No Bid
B96: 91 | C96: F1040 | D96: CHICKEN POPCORN SMACKERS WG | E96: WHOLE GRAIN BREADED FULLY COOKED CN LABELED POPCORN CHICKEN PRODUCED FROM USDA 100103 DARK MEAT COMMODITY CHICKEN. NO ADDED SOY PROTEIN. BATTER BREADED WITH WHOLE GRAIN AND ENRICHED WHEAT FLOUR. TEN POPCORN PIECES @ 0.43 OZ EACH GUARANTEED BY CN LABEL TO PROVIDE 2 OUNCES MEAT/MEAT ALTERNATIVE AND 1 GRAIN SERVINGS. PRODUCT TO PROVIDE ZERO GRAMS TRANS FATS. CONTAINS: MILK SOY WHEAT. COMMERICAL BACK-UP OF COMMODITY PRODUCT OR FOR NOI PRICING | F96: GOLD KIST FARMS OR APPROVED EQUIVALENT | G96: 110458 | H96: CS | I96: 104 | J96: 4.23 OZ | K96: 900 | L96: 102.77 | M96: =IF(L96*K96= 0,"",L96*K96) -> 92493 | N96: =IF(L96/I96= 0,"",L96/I96) -> 0.9881730769 | O96: 8867500 | P96: GOLD KIST | Q96: 111 / 4.3 OZ | S96: 8867500 / CHXN,SMACKERS DRKMT FC,WG,CN
B97: 92 | C97: F1041 | D97: CHICKEN STRIP WG | E97: WHOLE GRAIN HOMESTYLE BREADED FULLY-COOKED CN LABELED CHICKEN STRIPS PRODUCED FROM USDA 100103 NATURAL PROPORTION WHITE AND DARK MEAT COMMODITY CHICKEN WITH ISOLATED SOY PROTEIN. STRIPS ARE BATTER BREADED WITH WHOLE GRAIN WHEAT FLOUR HOMESTYLE BREADING. THREE STRIPS PROVIDE 2 OZ. MEAT/MEAT ALTERNATIVE AND 1 GRAIN SERVING. PRODUCT TO PROVIDE ZERO GRAMS TRANS FATS. COMMERICAL BACK-UP OF COMMODITY PRODUCT OR FOR NOI PRICING | F97: GOLD KIST FARMS OR APPROVED EQUIVALENT | G97: 7527 | H97: CS | I97: 107 | J97: 4.50 OZ | K97: 900 | L97: 148.37 | M97: 133533 | N97: 1.386635514 | O97: 8867004 | P97: GOLD KIST | Q97: 107 / 4.5 OZ | S97: 8867004 / CHICKEN STRIPS WG FC
B98: 93 | C98: D1024 | D98: CHILI HOT DOG | E98: HOT DOG CHILI. HEARTY CHUNKS OF LEAN BEEF AND PLUMP TENDER BEANS | F98: LIBBY'S OR APPROVED EQUIVALENT | H98: CS | I98: 6 | J98: #10 CANS | K98: 800 | L98: 66.3 | M98: 53040 | N98: 11.05 | O98: 3221231 | P98: LIBBY | Q98: 6 / #10 | S98: 3221231 / SAUCE, CHILI HOT DOG
B99: 94 | C99: D1025 | D99: CHIPS BAKED CHEETOS CRUNCHY | E99: CHIPS BAKED CRUNCHY CHEETOS | F99: FRITO LAY OR APPROVED EQUIVALENT | G99: 000-28400-21642-5 | H99: CS | I99: 104 | J99: .875 OZ | K99: 472 | L99: 43.88 | M99: 20711.36 | N99: 0.4219230769 | O99: 3778074 | P99: CHEETOS | Q99: 104 / .875 OZ | S99: 3778074 / CHIPS OVEN BAKED CRUNCHY WG
B100: 95 | C100: D1026 | D100: CHIPS BAKED DORITOS | E100: CHIPS BAKED DORITOS NACHO CHEESE | F100: FRITO LAY OR APPROVED EQUIVALENT | G100: 000-28400-20002-8 | H100: CS | I100: 88 | J100: .75 OZ | K100: 549 | L100: 32.5 | M100: 17842.5 | N100: 0.3693181818 | O100: 3777915 | P100: DORITOS | Q100: 72 / 1 OZ | S100: 3777915 / CHIPS NACHO CHEESE RF WG
B101: 96 | C101: D1027 | D101: CHIPS BAKED LAYS BBQ | E101: CRISPS BAKED LAYS BBQ FLAVOR | F101: FRITO LAY OR APPROVED EQUIVALENT | G101: 000-28400-32078-8 | H101: CS | I101: 60 | J101: .875 OZ | K101: 100 | L101: 27.9 | M101: 2790 | N101: 0.465 | O101: 3778056 | P101: LAYS | Q101: 60 / 0.875 OZ | S101: 3778056 / CHIPS BAKED KCM BBQ
B102: 97 | C102: D1028 | D102: CHIPS BAKED LAYS SC/ONION | E102: CRISPS BAKED LAYS SOUR CREAM & ONION | F102: FRITO LAY OR APPROVED EQUIVALENT | G102: 00028400-04702-9 | H102: CS | I102: 60 | J102: .875 OZ | K102: 400 | L102: 27.9 | M102: 11160 | N102: 0.465 | O102: 3778139 | P102: LAYS | Q102: 60 / .875 OZ | S102: 3778139 / CHIPS BAKED SOUR CRM&ONION
B103: 98 | C103: D1029 | D103: CHIPS FRITOS | E103: ENRICHED REDUCED FAT CORN CHIPS WHOLE GRAIN | F103: FRITO LAY OR APPROVED EQUIVALENT | G103: 000-28400-57766-3 | H103: CS | I103: 8 | J103: 1 LB | K103: 1900 | L103: 21.73 | M103: 41287 | N103: 2.71625 | O103: 3777018 | P103: FRITOS | Q103: 8 / 16 OZ | S103: 3777018 / CHIPS CORN BULK
B104: 99 | C104: CTF7011 | D104: CHIPS KETTLE VARIETY | E104: VARIETY PACK OF KETTLE CHIPS CATERING | F104: SPECIFY | H104: CS | I104: 30 | J104: 1.5 OZ | K104: 25 | L104: 43.98 | M104: 1099.5 | N104: 1.466 | O104: 3778089 | P104: MISSVICKIE | Q104: 60 / 1.375 OZ | S104: 3778089 / CHIPS VARIETY PK LSS
B105: 100 | C105: D1030 | D105: CHIPS SS CHEETO RED HOT | E105: CHIPS IND. PKG. RED HOT FRITO LAY BAKED: ENRICHED CORNMEAL PUFF STICK FLAVORED WITH RED HOT CHEESE SEASONING. 104/.875 OZ | F105: CHEETO'S OR APPROVED EQUIVALENT | G105: 62984 | H105: CS | I105: 104 | J105: .875 OZ | K105: 400 | L105: 43.88 | M105: 17552 | N105: 0.4219230769 | O105: 3777906 | P105: CHEETOS | Q105: 104 / .875 OZ | S105: 3777906 / CHIPS OVEN BAKED FLAM HOT WG
B106: 101 | C106: D1031 | D106: CHIPS SS DORITOS COOL RANCH | E106: CHIPS IND. PKG. REDUCED FAT COOL RANCH FLAVORED CORN: BAKED TRIANGLE SHAPED CORN TORTILLA PIECES FLAVORED WITH RANCH SEASONING. 72/1 OZ. | F106: DORITOS OR APPROVED EQUIVALENT | G106: 36096 | H106: CS | I106: 72 | J106: 1 OZ | K106: 400 | L106: 32.5 | M106: 13000 | N106: 0.4513888889 | O106: 9390302 | P106: DORITOS | Q106: 72 / 1 OZ | S106: 9390302 / CHIPS COOL RANCH RF WG
B107: 102 | C107: D1032 | D107: CHIPS SS DORITOS NACHO CHEESE | E107: CHIPS REDUCED FAT NACHO CHEESE FLAVOR. WG | F107: DORITOS OR APPROVED EQUIVALENT | G107: 31748 | H107: CS | I107: 72 | J107: 1 OZ | K107: 400 | L107: 32.5 | M107: 13000 | N107: 0.4513888889 | O107: 3777915 | P107: DORITOS | Q107: 72 / 1 OZ | S107: 3777915 / CHIPS NACHO CHEESE RF WG
B108: 103 | C108: D1033 | D108: CHIPS SS POTATO | E108: CHIPS IND. PKG. BAKED REG. FLAVORED: BAKED POTATO PIECES SALTED PLAIN. NO MORE THAN 7.5 GRAMS OF FAT PER BAG. | F108: LAYS OR APPROVED EQUIVALENT | G108: 33625 | H108: CS | I108: 60 | J108: .875 OZ | K108: 300 | L108: 27.9 | M108: 8370 | N108: 0.465 | O108: 6602001 | P108: LAYS | Q108: 60 / .875 OZ | S108: 6602001 / CHIPS BAKED ORIGINAL
B109: 104 | C109: D1034 | D109: CHIPS SS PUFF CHEESE | E109: CHIPS PUFFS RF WG | F109: CHEETO'S OR APPROVED EQUIVALENT | G109: 21910 | H109: CS | I109: 72 | J109: .7 OZ | K109: 300 | L109: 32.54 | M109: 9762 | N109: 0.4519444444 | O109: 3777900 | P109: CHEETOS | Q109: 72 / .7 OZ | S109: 3777900 / CHIPS PUFFS RF WG
B110: 105 | C110: D1035 | D110: CHIPS SS SOUR CREAM/ONION | E110: CHIPS IND. PKG. BAKED SOUR CRM. & ONION FLAVORED: BAKED POTATO PIECES FLAVORED WITH SOUR CREAM AND ONION SEASONING. 60/.875 OZ. WG | F110: LAYS OR APPROVED EQUIVALENT | G110: 33627 | H110: CS | I110: 60 | J110: .875 OZ | K110: 300 | L110: 27.9 | M110: 8370 | N110: 0.465 | O110: 3778139 | P110: LAYS | Q110: 60 / .875 OZ | S110: 3778139 / CHIPS BAKED SOUR CRM&ONION
B111: 106 | C111: D1036 | D111: CHIPS TORTILLA ROUNDS | E111: ROUND SHAPED TORTILLA CHIP WHOLE GRAIN PREPARED FROM ENRICHED YELLOW CORN. TRANSFAT FREE 1 OZ MUST MEET 1 GR | F111: SPECIFY | H111: CS | I111: 6 | J111: 2 LB | K111: 2500 | L111: 26.95 | M111: 67375 | N111: 4.491666667 | O111: 4172117 | P111: RUDYS | Q111: 6 / 2 LB | S111: 4172117 / CHIP YELLOW ROUND WG
B112: 107 | C112: CTF7012 | D112: CHOCOLATE ENROBER | E112: CHOCOLATE FLAVORED ENROBER COATING IS A RICH CHOCOLATE COATING THAT HARDENS AT ROOM TEMPERATURE. THE PRODUCT IS IN A HARDENED CANDY STATE IN THE UNHEATED CAN. CATERING | F112: SPECIFY | H112: CS | I112: 3 | J112: 10 CN | K112: 15 | L112: 75.95 | M112: 1139.25 | N112: 25.31666667 | O112: 9396539 | P112: J.H.SMITH | Q112: 3 / 123.00 OZ | S112: 9396539 /CHOCOLATE ENROBER
B113: 108 | C113: F1042 | D113: CHORIZO BULK | E113: SAUSAGE CHORIZO BULK MILD SEASONING LIGHT COLORED BULK | F113: SPECIFY | H113: CS | I113: 10 | J113: LB | K113: 450 | L113: 68.8 | M113: 30960 | N113: 6.88 | O113: 5450992 | P113: DSM PORK | Q113: 10 / 2 LB | S113: 5450992 / FZ PORK CHORIZO - $3.44/LB - Priced Per Pound
B114: 109 | C114: CTF7013 | D114: COCOA | E114: UNSWEETENED COCOA 22/24% BUTTER FAT CATERING | F114: SPECIFY | H114: CS | I114: 4 | J114: 2.5KG | K114: 20 | L114: 233.7 | M114: 4674 | N114: 58.425 | O114: 3695558 | P114: DIAM CRYST | Q114: 6 / 5 LB. | S114: 3695558 / COCOA, 22/24%
B115: 110 | C115: D1037 | D115: COFFEE DECAF | E115: FOLGERS FILTER PACK COFFEE ULTRA DRY ROAST | F115: FOLGERS OR APPROVED EQUIVALENT | H115: CS | I115: 80 | J115: .9 OZ | K115: 20 | L115: 60.9 | M115: 1218 | N115: 0.76125 | O115: 8245680 | P115: FOLGERS | Q115: 80 / 0.90 OZ | S115: 8245680 / COFFEE, DECAFFINATED FP
B116: 111 | C116: D1038 | D116: COFFEE REGULAR | E116: FOLGERS FILTER PACK COFFEE ULTRA DRY ROAST | F116: FOLGERS OR APPROVED EQUIVALENT | H116: CS | I116: 160 | J116: .9 OZ | K116: 50 | L116: 106.81 | M116: 5340.5 | N116: 0.6675625 | O116: 8245656 | P116: FOLGERS | Q116: 160 / .9 OZ | S116: 8245656 / COFFEE, REGULAR FPG
B117: 112 | C117: F1043 | D117: COOKIE DOUGH CARNIVAL WG | E117: COOKIE DOUGH CARNIVAL: 1.85OZ FROZEN WGR MADE WITH A MIXTURE OF CHOCOLATE CHIPS AND COLORFUL COATED CANDIES PRE-PORTIONED READY TO BAKE FAT GRAMS TO NOT EXCEED 6G SODIUM MG NOT TO EXCEED 120 MG CASE PACK 240 1.5OZ DECA | F117: OTIS SPUNKMEYER OR APPROVED EQUIVALENT | G117: 55688 | H117: CS | I117: 250 | J117: 1.5 OZ | K117: 75 | L117: 57.49 | M117: 4311.75 | N117: 0.22996 | O117: 4550018 | P117: OTIS | Q117: 240 / 1.5 OZ | S117: 4550018 / COOKIE DOUGH, CARNIVAL WG DE
B118: 113 | C118: CTF7056 | D118: COOKIE DOUGH CHOCOLATE CHIP | E118: COOKIE DOUGH CHOCOLATE CHIP CATERING | F118: BRICKFIRE OR APPROVED EQUIVALENT | G118: 2340091 | H118: CS | I118: 170 | J118: 1.5 OZ | K118: 75 | L118: 54.61 | M118: 4095.75 | N118: 0.3212352941 | O118: 4555555 | P118: OTIS SPUN | Q118: 240 / 1.5 OZ | S118: 4555555 / COOKIE DOUGH, CHOCCHIP 51%WG
B119: 114 | C119: CTF7057 | D119: COOKIE DOUGH OATMEAL RAISIN | E119: COOKIE DOUGH OATMEAL RAISIN CATERING | F119: BRICKFIRE OR APPROVED EQUIVALENT | G119: 2340101 | H119: CS | I119: 170 | J119: 1.5 OZ | K119: 60 | L119: 54.58 | M119: 3274.8 | N119: 0.3210588235 | O119: 4550019 | P119: OTIS | Q119: 240 / 1.5 OZ | S119: 4550019 / COOKIE DOUGH, OAT RAIS RF WG
B120: 115 | C120: F1044 | D120: COOKIE DOUGH RF CHOCOLATE BROWNIE | E120: COOKIE DOUGH REDUCED FAT CHOCOLATE BROWNIE DECA | F120: OTIS SPUNKMEYER OR APPROVED EQUIVALENT | G120: 55689 | H120: CS | I120: 240 | J120: 1.5 OZ | K120: 100 | L120: 54.47 | M120: 5447 | N120: 0.2269583333 | O120: 4550010 | P120: OTIS | Q120: 240 / 1.5 OZ | S120: 4550010 / COOKIE DOUGH,CH BRWNIE RF WG
B121: 116 | C121: F1045 | D121: COOKIE DOUGH RF CHOCOLATE CHIP | E121: COOKIE DOUGH REDUCED FAT CHOCOLATE CHIP DECA | F121: OTIS SPUNKMEYER OR APPROVED EQUIVALENT | G121: 55680 | H121: CS | I121: 240 | J121: 1.5 OZ | K121: 300 | L121: 54.61 | M121: 16383 | N121: 0.2275416667 | O121: 4555555 | P121: OTIS SPUN | Q121: 240 / 1.5 OZ | S121: 4555555 / COOKIE DOUGH, CHOCCHIP 51%WG
B122: 117 | C122: F1046 | D122: COOKIE DOUGH RF OATMEAL RAISIN | E122: COOKIE DOUGH REDUCED FAT OATMEAL RAISIN DECA | F122: OTIS SPUNKMEYER OR APPROVED EQUIVALENT | G122: 55683 | H122: CS | I122: 240 | J122: 1.5 OZ | K122: 50 | L122: 54.58 | M122: 2729 | N122: 0.2274166667 | O122: 4550019 | P122: OTIS | Q122: 240 / 1.5 OZ | S122: 4550019 / COOKIE DOUGH, OAT RAIS RF WG
B123: 118 | C123: F1047 | D123: COOKIE DOUGH RF SUGAR | E123: COOKIE DOUGH SUGAR REDUCED FAT DECA | F123: OTIS SPUNKMEYER OR APPROVED EQUIVALENT | G123: 55684 | H123: CS | I123: 240 | J123: 1.5 OZ | K123: 45 | L123: 54.65 | M123: 2459.25 | N123: 0.2277083333 | O123: 4550017 | P123: OTIS | Q123: 240 / 1.5 OZ | S123: 4550017 / COOKIE DOUGH, SUGAR RF WG
B124: 119 | C124: CTF7058 | D124: COOKIE DOUGH SUGAR | E124: COOKIE DOUGH SUGAR CATERING | F124: BRICKFIRE OR APPROVED EQUIVALENT | G124: 2340111 | H124: CS | I124: 170 | J124: 1.5 OZ | K124: 60 | L124: 54.65 | M124: 3279 | N124: 0.3214705882 | O124: 4550017 | P124: OTIS | Q124: 240 / 1.5 OZ | S124: 4550017 / COOKIE DOUGH, SUGAR RF WG
B125: 120 | C125: CTF7059 | D125: COOKIE DOUGH WHITE MACADAMIA NUT | E125: COOKIE DOUGH WHITE MACADAMIA NUT CATERING | F125: BRICKFIRE OR APPROVED EQUIVALENT | G125: 2340361 | H125: CS | I125: 170 | J125: 1.5 OZ | K125: 60 | L125: 70.73 | M125: 4243.8 | N125: 0.4160588235 | O125: 4556965 | P125: OTIS SPUNK | Q125: 240 / 1.33 OZ | S125: 4556965 / COOKIE DOUGH,WHTCHOC MAC(SD)
B126: 121 | C126: F1048 | D126: COOKIE GINGER BREAD | E126: COOKIE GINGER BREAD IW MEETS 2 GRAIN REQUIREMENT FOR NSP | F126: SPECIFY | H126: CS | I126: 140 | J126: 2 OZ | K126: 500 | L126: 52.37 | M126: 26185 | N126: 0.3740714286 | O126: 9391659 | P126: LUX BAKE | Q126: 100 / 2.25 OZ | S126: 9391659 / GINGERBREAD PEOPLE WG IW
B127: 122 | C127: F1049 | D127: CORNDOG | E127: CORNDOG CHICKEN FRANK WHOLE GRAIN P/C 8/1 60 CT CN LABELED TO MEET 2 OZ MEAT REQUIREMENT | F127: FOSTER FARMS OR APPROVED EQUIVALENT | G127: 95150 | H127: CS | I127: 72 | J127: 4 OZ | K127: 2000 | L127: 44.43 | M127: 88860 | N127: 0.6170833333 | O127: 8883937 | P127: FOSTER FRM | Q127: 72 / 4 OZ | S127: 8883937 / CORN DOG CHKN LOWFAT WG CN
B128: 123 | C128: D1039 | D128: CORNSTARCH | E128: CORNSTARCH | F128: SPECIFY | H128: CS | I128: 24 | J128: 1 LB | K128: 45 | L128: 34.67 | M128: 1560.15 | N128: 1.444583333 | O128: 6453005 | P128: ARGO | Q128: 24 / 16 OZ | S128: 6453005 / STARCH, CORN/EDIBLE
B129: 124 | C129: D1040 | D129: CRACKERS ANIMAL | E129: CRACKERS ANIMAL SHAPED 0 TRANSFAT WHOLE GRAIN RICH | F129: SPECIFY | H129: CS | I129: 100 | J129: 1 OZ | K129: 300 | L129: 38.97 | M129: 11691 | N129: 0.3897 | O129: 3732153 | P129: KEEBLER | Q129: 150 / 1 OZ | S129: 3732153 / ANIMAL CRACKERS WG
B130: 125 | C130: D1041 | D130: CRACKERS BUG BITES | E130: BUG BITES CINNAMON WHOLE GRAIN RICH | F130: KEEBLER OR APPROVED EQUIVALENT | G130: 30100-55644 | H130: CS | I130: 210 | J130: 1 OZ | K130: 1000 | L130: 47.92 | M130: 47920 | N130: 0.2281904762 | O130: 3738935 | P130: KEEBLER | Q130: 210 / 1 OZ | S130: 3738935 / BUG BITES CINN GRAHAMS WG
B131: 126 | C131: D1042 | D131: CRACKERS GOLDFISH CHEDDAR | E131: CHEDDAR GOLDFISH WHOLE GRAIN: A 3/4 OUNCE SERVING CONTRIBUTES 1 SERVING OF GRAINS/BREADS TO THE USDA CHILD NUTRITION PROGRAMS WHOLE GRAIN RICH | F131: PEPPERIDGE FARMS OR APPROVED EQUIVALENT | G131: 18105 | H131: CS | I131: 300 | J131: 0.75 OZ | K131: 500 | L131: 72.66 | M131: 36330 | N131: 0.2422 | O131: 3735110 | P131: PEPPERIDGE | Q131: 300 / .75 OZ | S131: 3735110 / GOLDFISH, CHEDDAR WG
B132: 127 | C132: D1043 | D132: CRACKERS GOLDFISH GIANT CINNAMON | E132: CRACKERS GIANT GOLDFISH CINNAMON WHOLE GRAIN RICH | F132: PEPPERIDGE FARMS OR APPROVED EQUIVALENT | G132: 15094 | H132: CS | I132: 300 | J132: .9 OZ | K132: 300 | L132: 60.34 | M132: 18102 | N132: 0.2011333333 | O132: 3736101 | P132: PEPPERIDGE | Q132: 300 / 0.9 OZ | S132: 3736101 / GRAHAMS,XL CINN GOLDFISH, WG
B133: 128 | C133: D1044 | D133: CRACKERS GOLDFISH GIANT HONEY OAT | E133: CRACKER WHOLE GRAIN GIANT HONEY OAT GRAHAM 2 EA WHOLE GRAIN RICH | F133: PEPPERIDGE FARMS OR APPROVED EQUIVALENT | G133: 18432 | H133: CS | I133: 300 | J133: .9 OZ | K133: 300 | L133: 58.79 | M133: 17637 | N133: 0.1959666667 | O133: 3730039 | P133: PEPPERIDGE | Q133: 300 / 0.9 OZ | S133: 3730039 / GOLDFISH, GRAHAM VANILLA, WG
B134: 129 | C134: D1045 | D134: CRACKERS GRAHAM 3-PK | E134: GRAHAM 3-PK WHOLE GRAIN RICH | F134: SPECIFY | H134: CS | I134: 150 | J134: 3 PK | K134: 2500 | L134: 22.52 | M134: 56300 | N134: 0.1501333333 | O134: 3730052 | P134: KEEBLER | Q134: 150 / 3 CT | S134: 3730052 / GRAHAM CRACKER W/CALC WG
B135: 130 | C135: CTF7014 | D135: CRACKERS MEDLEY MIX | E135: CRACKER MEDLEY - TOASTEDS® WHEAT SESAME AND BUTTER CRISP CLUB® TOWN HOUSE® AND KEEBLER® WHOLE GRAIN WHEAT 25 SLEEVES CATERING | F135: KEEBLER OR APPROVED EQUIVALENT | G135: 30100 37739 | H135: CS | I135: 25 | J135: SLEEVES | K135: 5 | L135: 31.71 | M135: 158.55 | N135: 1.2684 | O135: 3765112 | P135: KEEBLER | Q135: 25 / 980 CT | S135: 3765112 / CRACKER MEDLEY VARIETY PACK
B136: 131 | D136: CRACKERS SALTINE IW | E136: SALTINE CRACKERS PC WHOLE GRAIN OR ENRICHED FLOUR TO MEET BREAD REQ. FOR NSLP 500/2 CT | F136: NABISCO OR APPROVED EQUIVALENT | H136: CS | I136: 500 | J136: 2 CT | K136: 500 | L136: 17.55 | M136: 8775 | N136: 0.0351 | O136: 3770086 | P136: LANCE | Q136: 500 / 2 CT | S136: 3770086 / SALTINE CRACKER
B137: 132 | C137: CTF7002 | D137: CREAMER NON-DAIRY | E137: NON-DAIRY CREAMER INIVIDUAL PACK LIQUID CATERING | F137: SPECIFY | H137: CS | I137: 400 | J137: EA | K137: 45 | L137: 13.03 | M137: 586.35 | N137: 0.032575 | O137: 8205000 | P137: INSTABLEND | Q137: 400 / 3 | S137: 8205000 / CREAMER, NON DAIRY
B138: 133 | C138: CTF7003 | D138: CREAMER NON-DAIRY CARAMEL MACCHIATO | E138: NON-DAIRY CREAMER CARAMEL MACCHIATO INIVIDUAL PACK LIQUID CATERING | F138: SPECIFY | H138: CS | I138: 288 | J138: 1ML | K138: 35 | L138: No Bid | O138: No Bid | P138: No Bid | Q138: No Bid | R138: No Bid | S138: No Bid
B139: 134 | C139: CTF7004 | D139: CREAMER NON-DAIRY FRENCH VANILLA | E139: NON-DAIRY CREAMER FRENCH VANILLA INIVIDUAL PACK LIQUID CATERING | F139: SPECIFY | H139: CS | I139: 288 | J139: 1ML | K139: 35 | L139: 16.56 | M139: =IF(L139*K139= 0,"",L139*K139) -> 579.6 | N139: =IF(L139/I139= 0,"",L139/I139) -> 0.0575 | O139: 71975 | P139: INTL DEL | Q139: 288 / .5 OZ | S139: 71975 / CREAMER FRENCH VANILLA
B140: 135 | C140: CTF7005 | D140: CREAMER NON-DAIRY HAZEL NUT | E140: NON-DAIRY CREAMER HAZEL NUT INIVIDUAL PACK LIQUID CATERING | F140: SPECIFY | H140: CS | I140: 288 | J140: 1ML | K140: 35 | L140: 16.56 | M140: 579.6 | N140: 0.0575 | O140: 71970 | P140: INTL DEL | Q140: 288 / .5 OZ | S140: 71970 / CREAMER HAZELNUT
B141: 136 | C141: F1050 | D141: CROISSANT | E141: CROISSANTS WG MARGARINE RF ROUND FULLY SLICED MUST PROVIDE 2.0 OZ GRAIN EQUIVALENTS. PORTION TO PROVIDE AT LEAST 145.0 CALORIES WITH NO MORE THAN 6 GRAMS OF FAT. | F141: BAKE CRAFTERS OR APPROVED EQUIVALENT | G141: 3286 | H141: CS | I141: 80 | J141: 2.2 OZ | K141: 800 | L141: 59.5 | M141: 47600 | N141: 0.74375 | O141: 9226001 | P141: BAKE CRAFT | Q141: 150 / 2.2 OZ | S141: 9226001 / CROISSANT, MARG RD WG RF SL
B142: 137 | C142: CTF7060 | D142: CROISSANT CATERING 30Z | E142: FULLY COOKED FLAKEY BUTTERY CRUST PRESLICED ROUND SHAPED ROLL 3 OZ CATERING | F142: SPECIFY | H142: CS | I142: 32 | J142: 3 OZ | K142: 40 | L142: 59.5 | M142: 2380 | N142: 1.859375 | O142: 9226001 | P142: BAKE CRAFT | Q142: 150 / 2.2 OZ | S142: 9226001 / CROISSANT, MARG RD WG RF SL
B143: 138 | C143: CTF7061 | D143: CROISSANT CATERING 5OZ | E143: FULLY COOKED FLAKEY BUTTERY CRUST PRESLICED ROUND SHAPED ROLL 5 OZ CATERING | F143: SPECIFY | H143: CS | I143: 24 | J143: 5 OZ | K143: 25 | L143: 59.5 | M143: 1487.5 | N143: 2.479166667 | O143: 9226001 | P143: BAKE CRAFT | Q143: 150 / 2.2 OZ | S143: 9226001 / CROISSANT, MARG RD WG RF SL
B144: 139 | C144: CTF7015 | D144: CROUTONS | E144: CROUTONS/ HERB SEASONED ENRICHED SMALL CUBE CATERING | F144: SPECIFY | H144: CS | I144: 10 | J144: LB | K144: 150 | L144: 26.48 | M144: 3972 | N144: 2.648 | O144: 3772323 | P144: FRESH GOUR | Q144: 1 / 10 LB | S144: 3772323 / CROUTONS,SEA.CUBE T/FAT FREE
B145: 140 | C145: F1051 | D145: CRUMB SQUARE IW | E145: CRUMB SQUARE IW WHOLE GRAIN MEETS 2 OZ WG SERVING FOR SBP | F145: DAVE'S OR APPROVED EQUIVALENT | G145: 360 | H145: CS | I145: 28 | J145: 3.6 OZ | K145: 2120 | L145: 21.9 | M145: 46428 | N145: 0.7821428571 | O145: 4037800 | P145: DAVE'S | Q145: 28 / 3.6 OZ | S145: 4037800 / CRUMB SQUARE WG
B146: 141 | C146: F1052 | D146: DONUT MINI CHOCOLATE | E146: 51% WG MINI DONUTS - CHOCOLATE. 72 - 3.3OZ FROZEN INDIVIDUALLY WRAPPED THAW & SERVE NICKEL STACK SIX PACKS OF 1/2 OZ CHOCOLATE ENROBED WHOLE GRAIN DONUTS. MUST CONFORM TO USDA CHILD NUTRITION PROGRAM SPECIFICATIONS AND MEET 2OZ GRAIN EQUIVALENT. | F146: SUPER BAKERY OR APPROVED EQUIVALENT | G146: 7786 | H146: CS | I146: 72 | J146: 3.3 OZ | K146: 1700 | L146: 72.61 | M146: 123437 | N146: 1.008472222 | O146: 1306645 | P146: SUPER BAKE | Q146: 72 / 3 OZ | S146: 1306645 / MINI DONUT, CHOCOLATE, WG IW
B147: 142 | C147: F1053 | D147: DONUT MINI POWDERED SUGAR | E147: 51% WG MINI DONUTS - POWDERED SUGAR 72 - 3.3OZ FROZEN INDIVIDUALLY WRAPPED THAW & SERVE NICKEL STACK SIX PACKS OF 1/2 OZ CHOCOLATE ENROBED WHOLE GRAIN DONUTS. MUST CONFORM TO USDA CHILD NUTRITION PROGRAM SPECIFICATIONS AND MEET 2OZ GRAIN EQUIVALENT. | F147: SUPER BAKERY OR APPROVED EQUIVALENT | G147: 7787 | H147: CS | I147: 72 | J147: 3.3 OZ | K147: 1700 | L147: 65.01 | M147: 110517 | N147: 0.9029166667 | O147: 1306646 | P147: SUPER BAKE | Q147: 72 / 3 OZ | S147: 1306646 / MINI DONUT, PWDRD, WG
B148: 143 | C148: F1054 | D148: DOUGH CRUST | E148: COBBLER CRUST DOUGH SHEET FROZEN | F148: SPECIFY | H148: CS | I148: 24 | J148: 1 LB | K148: 200 | L148: 64.42 | M148: 12884 | N148: 2.684166667 | O148: 9231242 | P148: RICH'S | Q148: 24 / 1 LB | S148: 9231242 / COBBLER CRUST DOUGH SHEET
B149: 144 | C149: C1020 | D149: DRESSING GAL COLESLAW | E149: DRESSING COLESLAW REDUCED FAT | F149: SPECIFY | H149: CS | I149: 4 | J149: GAL | K149: 25 | L149: 65.31 | M149: 1632.75 | N149: 16.3275 | O149: 3458973 | P149: KEN'S | Q149: 4 / 1 GL | S149: 3458973 / DRESSING, COLE SLAW SPEC BLN
B150: 145 | C150: C1021 | D150: DRESSING GAL RANCH REDUCED FAT | E150: DRESSING SALAD REDUCED FAT | F150: KEN'S OR APPROVED EQUIVALENT | G150: 100-413350-60816 | H150: CS | I150: 4 | J150: 1 GAL | K150: 600 | L150: 56.79 | M150: 34074 | N150: 14.1975 | O150: 3329679 | P150: KEN'S | Q150: 4 / 1 GAL. | S150: 3329679 / DRESSING, RANCH FAT FREE
B151: 146 | C151: CTF7016 | D151: DRESSING ITALIAN | E151: ITALIAN DRESSING GOLDEN CATERING | F151: SPECIFY | H151: CS | I151: 4 | J151: GAL | K151: 10 | L151: 49.03 | M151: 490.3 | N151: 12.2575 | O151: 3432297 | P151: KRAFT | Q151: 4 / 1 GAL | S151: 3432297 / DRESSING, ITALIAN GOLDEN
B152: 147 | C152: D1046 | D152: DRESSING PC ASIAN | E152: DRESSING ASIAN LIGHT PC | F152: SPECIFY | H152: CS | I152: 60 | J152: 1.5 OZ | K152: 15 | L152: 21.37 | M152: 320.55 | N152: 0.3561666667 | O152: 9404040 | P152: KEN'S | Q152: 60 / 1.5 OZ | S152: 9404040 / PAN ASIAN ORIENTAL DRESSING
B153: 148 | C153: D1047 | D153: DRESSING PC BALSAMIC VINAIGRETTE | E153: DRESSING BALSAMIC VINAIGRETTE LIGHT | F153: SPECIFY | H153: CS | I153: 60 | J153: 1.5 OZ | K153: 15 | L153: 18.93 | M153: 283.95 | N153: 0.3155 | O153: 6503090 | P153: KEN'S | Q153: 60 / 1.5 OZ | S153: 6503090 / DRESSING, METRO BALSAMIC VIN
B154: 149 | C154: D1048 | D154: DRESSING PC FRENCH | E154: DRESSING SALAD REDUCED FAT FRENCH | F154: SPECIFY | H154: CS | I154: 60 | J154: 1.5 OZ | K154: 5 | L154: 18.24 | M154: 91.2 | N154: 0.304 | O154: 3478906 | P154: KEN'S | Q154: 60 / 1.5 OZ | S154: 3478906 / DRESSING, CALIF FRENCH FF
B155: 150 | C155: D1049 | D155: DRESSING PC GREEK | E155: DRESSING SALAD GREEK | F155: SPECIFY | H155: CS | I155: 60 | J155: 1.5 OZ | K155: 5 | L155: 19.78 | M155: 98.9 | N155: 0.3296666667 | O155: 6503086 | P155: KENS | Q155: 60 / 1.5 OZ | S155: 6503086 / DRESSING, GREEK PC
B156: 151 | C156: D1050 | D156: DRESSING PC ITALIAN | E156: DRESSING SALAD REDUCED FAT ITALIAN | F156: SPECIFY | H156: CS | I156: 60 | J156: 1.5 OZ | K156: 5 | L156: 15.7 | M156: 78.5 | N156: 0.2616666667 | O156: 3478905 | P156: KEN'S | Q156: 60 / 1.5 OZ | S156: 3478905 / DRESSING, ITALIAN FF PC
B157: 152 | C157: D1051 | D157: DRESSING PC RANCH 12MG | E157: RANCH DRESSING REDUCED FAT PC | F157: SPECIFY | H157: CS | I157: 500 | J157: 12 MG | K157: 1000 | L157: 12.14 | M157: 12140 | N157: 0.02428 | O157: 3474186 | P157: PPI | Q157: 200 / 12 GM | S157: 3474186 / DRESSING, BM RANCH FFREE 12G
B158: 153 | C158: D1052 | D158: DRESSING PC RANCH RF 1.5OZ | E158: DRESSING SALAD REDUCED FAT PC RANCH | F158: SPECIFY | H158: CS | I158: 60 | J158: 1.5 OZ | K158: 100 | L158: 12.14 | M158: 1214 | N158: 0.2023333333 | O158: 3474186 | P158: PPI | Q158: 200 / 12 GM | S158: 3474186 / DRESSING, BM RANCH FFREE 12G
B159: 154 | C159: D1053 | D159: DRESSING PC RASPBERRY VINAIGRETTE | E159: KRAFT RASPBERRY VINAIGRETTE FAT FREE DRESSING HAS THE SWEET TART FLAVOR OF RASPBERRIES IN A FAT FREE VINAIGRETTE. | F159: KRAFT | G159: 002-10006714400 | H159: CS | I159: 60 | J159: 1.5 OZ | K159: 50 | L159: 22.2 | M159: 1110 | N159: 0.37 | O159: 3471005 | P159: KRAFT | Q159: 60 / 1.5 OZ | S159: 3471005 / DRESSING, RASPBERRY VING FF
B160: 155 | C160: CTF7017 | D160: DRESSING RASPBERRY VINAIGRETTE | E160: KRAFT RASPBERRY VINAIGRETTE FAT FREE DRESSING HAS THE SWEET TART FLAVOR OF RASPBERRIES IN A FAT FREE VINAIGRETTE. CATERING | F160: KRAFT OR APPROVED EQUIVALENT | G160: 21000647422 | H160: CS | I160: 4 | J160: 1 GAL | K160: 5 | L160: 60.92 | M160: 304.6 | N160: 15.23 | O160: 3471127 | P160: KRAFT | Q160: 4 / 1 GAL | S160: 3471127 / DRESSING, RASPBERRY VING FF
B161: 156 | C161: C1022 | D161: EGG BOIL N BAG | E161: EGGS RAW LIQUID WHOLE EGGS BOIL N BAG PASTURIZED | F161: SPECIFY | H161: CS | I161: 6 | J161: 5 LB | K161: 600 | L161: 49.56 | M161: 29736 | N161: 8.26 | O161: 8858059 | P161: SUNNYFRESH | Q161: 6 / 5 LB | S161: 8858059 / EGGS SCRAMBLED MIX FRZN
B162: 157 | C162: C1023 | D162: EGG PREBOILED | E162: HARD COOKED PEELED EGGS | F162: SPECIFY | H162: CS | I162: 8 | J162: 12 CT | K162: 500 | L162: 38.27 | M162: 19135 | N162: 4.78375 | O162: 4560030 | P162: DEB EL | Q162: 12 / 12 CT | S162: 4560030 / EGGS, HARD COOKED PEELED
B163: 158 | C163: F1055 | D163: EGGSTRAGANZA | E163: EACH 2.00 OZ. SERVING (BY WEIGHT) OF THE BLEND OF SCRAMBLED EGGS, CHEESE, AND BACON PIECES PROVIDES 1.75 OZ. EQUIVALENT MEAT ALTERNATE FOR THE CHILD NUTRITION MEAL PATTERN REQUIREMENTS. | F163: SUNNY FRESH OR APPROVED EQUIVALENT | G163: 40828 | H163: CS | I163: 4 | J163: 5 LB | K163: 735 | L163: 98.75 | M163: 72581.25 | N163: 24.6875 | O163: 8850055 | P163: SUNNYFRESH | Q163: 4 / 5 LB | S163: 8850055 / EGGSTRAVAGANZA, BACON & CHS
B164: 159 | C164: CTF7018 | D164: FILLING PIE CHERRY | E164: CHERRY CATERING | F164: SPECIFY | H164: CS | I164: 3 | J164: #10 | K164: 15 | L164: 59.18 | M164: 887.7 | N164: 19.72666667 | O164: 589525 | P164: LUCKY LF | Q164: 3 / #10 | S164: 589525 / PIE FILLING CHERRY CANE SWT
B165: 160 | C165: CTF7019 | D165: FILLING PIE PEACH | E165: PEACH CATERING | F165: SPECIFY | H165: CS | I165: 3 | J165: #10 | K165: 15 | L165: 45.8 | M165: 687 | N165: 15.26666667 | O165: 589540 | P165: LUCKY LF | Q165: 3 / #10 | S165: 589540 / PIE FILLING PEACH CLEAN LABL
B166: 161 | C166: D1054 | D166: FLOUR | E166: FLOUR ALL PURPOSE ENRICHED 50# U.S. NO. 2 GRADE OR BETTER BLEACHED WHEAT FLOUR ENRICHED WITH THIAMIN RIBOFLAVIN NIACIN FOLIC ACID IRON AND MAY HAVE ADDED CALCIUM | F166: SPECIFY | H166: BAG | I166: 50 | J166: LB | K166: 30 | L166: 23.06 | M166: 691.8 | N166: 0.4612 | O166: 3823372 | P166: CLIMAX | Q166: 1 / 50 LB | S166: 3823372 / FLOUR, H & R ALL PURPOSE
B167: 162 | C167: D1055 | D167: FOOD COLOR GREEN | E167: FOOD COLORING GREEEN | F167: SPECIFY | H167: EA | I167: 1 | J167: 16 OZ | K167: 7 | L167: 5.75 | M167: 40.25 | N167: 5.75 | O167: 6186076 | P167: DURKEE | Q167: 1 / 16 OZ | S167: 6186076 / FOOD COLOR, LIQUID GREEN
B168: 163 | C168: D1056 | D168: FOOD RELEASE | E168: RELEASE FOOD/PAN CONTAINS NO WATER ALCOHOL OR ARTIFICIAL FLAVORS HIGH SMOKE POINT >450° F | F168: SPECIFY | H168: CS | I168: 6 | J168: 17 OZ | K168: 75 | L168: 21.19 | M168: 1589.25 | N168: 3.531666667 | O168: 8034167 | P168: PAM | Q168: 6 / 17 OZ | S168: 8034167 / SAUTE & GRILL SPRAY
B169: 164 | C169: F1056 | D169: FRENCH TOAST STICKS BULK | E169: FRENCH TOAST STICKS WHOLE GRAIN CINNAMON GLAZED EACH SERVING 3 STICKS/2.90 OZ EQUALS 1 M/MA 1 GR. | F169: SUNNY FRESH OR APPROVED EQUIVALENT | G169: 40497 | H169: CS | I169: 100 | J169: 2.9 oz | K169: 900 | L169: 63.13 | M169: 56817 | N169: 0.6313 | O169: 8850074 | P169: SUNNYFRESH | Q169: 100 / 2.9 OZ | S169: 8850074 / FRENCH TOAST STK WG CIN GLZ
B170: 165 | C170: CTF7020 | D170: FRUIT CHERRY MARASCHINO HALVES | E170: CHERRIES MARACHINO HALVES CATERING | F170: PENNANT OR APPROVED EQUIVALENT | H170: CS | I170: 4 | J170: .5 GAL | K170: 100 | L170: 67.48 | M170: 6748 | N170: 16.87 | O170: 20119 | P170: PENNANT | Q170: 6 / 1 | S170: 20119 / CHERRIES, MARA HALVES
B171: 166 | C171: D1057 | D171: FRUIT COCKTAIL | E171: FRUIT COCKTAIL GRADE B CHOICE EXTRA LIGHT SYRUP MUST MEET BUY AMERICAN REQUIREMENTS | F171: SENACA, DEL MONTE, LIBBY'S, DOLE | H171: CS | I171: 6 | J171: 10 CN | K171: 1500 | L171: 44.9 | M171: 67350 | N171: 7.483333333 | O171: 566860 | P171: GFT OF NAT | Q171: 6 / #10 | S171: 566860 / TROPICAL FRUIT SALAD
B172: 167 | C172: C1024 | D172: FRUIT CRANBERRIES DRIED | E172: SOFT AND MOIST DRIED CRANBERRIES | F172: SPECIFY | H172: CS | I172: 10 | J172: LB | K172: 150 | L172: 27.54 | M172: 4131 | N172: 2.754 | O172: 790667 | P172: OCEANSPRAY | Q172: 1 / 10 LB | S172: 790667 / CRAISINS
B173: 168 | C173: C1025 | D173: FRUIT DRIED IW | E173: FRUIT DRIED INDIVIDUALLY PACKAGES PEANUT FREE 16% CRANBERRYM 29% NATURAL RAISINS 24% GOLDEN RAISINS 28% PINEAPPLE 3% DRIED APPLE | F173: NATIONAL FOOD GROUP OR APPROVED EQUIVALENT | G173: 609271 | H173: CS | I173: 144 | J173: 1.3 OZ | K173: 650 | L173: 50.5 | M173: 32825 | N173: 0.3506944444 | O173: 1690158 | P173: ZEE ZEES | Q173: 120 / 1.33 OZ | S173: 1690158 / DRIED FRUIT, MIXED BLEND IW
B174: 169 | C174: F1057 | D174: FRUIT MANGO DICED | E174: MANOS DICED IQF US GRADE A UNSWEETENED MUST MEET BUY AMERICAN REQUIREMENTS | F174: SENACA, DEL MONTE, LIBBY'S, DOLE | H174: CS | I174: 2 | J174: 5 LB | K174: 450 | L174: 26.76 | M174: 12042 | N174: 13.38 | O174: 5426520 | P174: DOLE | Q174: 2 / 5 LB | S174: 5426520 / MANGO CHUNKS, IQF
B175: 170 | C175: D1058 | D175: FRUIT ORANGE MANDARIN | E175: MANDARIN ORANGE SLICES NATURAL JUICES NO SUGAR ADDED GRADE B CHOICE MUST MEET BUY AMERICAN REQUIREMENTS | F175: SENACA, DEL MONTE, LIBBY'S, DOLE | H175: CS | I175: 6 | J175: 10 CN | K175: 850 | L175: 48.13 | M175: 40910.5 | N175: 8.021666667 | O175: 22510 | P175: GFT OF NAT | Q175: 6 / #10 | S175: 22510 / MANDARIN ORANGES, WH SEC LS
B176: 171 | C176: D1059 | D176: FRUIT PEACHES DICED | E176: PEACHES YELLOW CLING GRADE B CHOICE DICED NATURAL JUICES MIN DRAIN VT 71 OZ NO IRREGULAR MUST MEET BUY AMERICAN REQUIREMENTS | F176: SENACA, DEL MONTE, LIBBY'S, DOLE | H176: CS | I176: 6 | J176: 10 CN | K176: 1500 | L176: 51.47 | M176: 77205 | N176: 8.578333333 | O176: 23045 | P176: DEL MONTE | Q176: 6 / #10 | S176: 23045 / PEACHES, SL CLING N PEAR JCE
B177: 172 | C177: D1060 | D177: FRUIT PEARS DICED | E177: PEARS DICED GRADE B CHOICE NATURAL JUICES MUST MEET BUY AMERICAN REQUIREMENTS | F177: SENACA, DEL MONTE, LIBBY'S, DOLE | H177: CS | I177: 6 | J177: 10 CN | K177: 500 | L177: 50.8 | M177: 25400 | N177: 8.466666667 | O177: 482202 | P177: DEL MONTE | Q177: 6 / #10 | S177: 482202 / DICED PEARS IN PEAR JUICE
B178: 173 | C178: D1061 | D178: FRUIT PINEAPPLE | E178: PINEAPPLE TIDBITS IN JUICE GRADE B CHOICE SOLID PAK IN NATURAL JUICE MUST MEET BUY AMERICAN REQUIREMENTS | F178: SENACA, DEL MONTE, LIBBY'S, DOLE | H178: CS | I178: 6 | J178: 10 CN | K178: 2500 | L178: 44.82 | M178: 112050 | N178: 7.47 | O178: 566844 | P178: GFT OF NAT | Q178: 6 / #10 | S178: 566844 / PINEAPPLE, TIDBITS NAT JUICE
B179: 174 | C179: F1058 | D179: FRUIT STRAWBERRIES SLICED | E179: STRAWBERRYS SLICED IQF US GRADE A UNSWEETENED | F179: SPECIFY | H179: CS | I179: 1 | J179: 30 LB | K179: 700 | L179: 52.91 | M179: 37037 | N179: 52.91 | O179: 9077835 | P179: ANACAPA | Q179: 1 / 30 LB | S179: 9077835 / STRAWBERRIES, SLICED 4+1
B180: 175 | C180: F1059 | D180: FRUIT STRAWBERRIES WHOLE | E180: STRAWBERRYS SLICED IQF US GRADE A WHOLE UNSWEETENED | F180: SPECIFY | H180: BKT | I180: 1 | J180: 30 LB | K180: 100 | L180: 54.16 | M180: 5416 | N180: 54.16 | O180: 9097827 | P180: ANACAPA | Q180: 1 / 30 LB | S180: 9097827 / STRAWBERRIES, WHOLE IQF
B181: 176 | C181: D1062 | D181: GELATIN CHERRY | E181: GELATIN MIX DRY | F181: SPECIFY | H181: CS | I181: 12 | J181: 24 OZ | K181: 75 | L181: 41.88 | M181: 3141 | N181: 3.49 | O181: 4161005 | P181: ROYAL | Q181: 12 / 24 OZ | S181: 4161005 / GELATIN, CHERRY
B182: 177 | C182: D1063 | D182: GELATIN LIME | E182: GELATIN MIX DRY | F182: SPECIFY | H182: CS | I182: 12 | J182: 24 OZ | K182: 15 | L182: 41.88 | M182: 628.2 | N182: 3.49 | O182: 4161007 | P182: ROYAL | Q182: 12 / 24 OZ | S182: 4161007 / GELATIN, LIME
B183: 178 | C183: D1064 | D183: GELATIN ORANGE | E183: GELATIN MIX DRY | F183: SPECIFY | H183: CS | I183: 12 | J183: 24 OZ | K183: 15 | L183: 41.88 | M183: 628.2 | N183: 3.49 | O183: 4161008 | P183: ROYAL | Q183: 12 / 24 OZ | S183: 4161008 / GELATIN, ORANGE
B184: 179 | C184: D1065 | D184: GELATIN STRAWBERRY | E184: GELATIN MIX DRY | F184: SPECIFY | H184: CS | I184: 12 | J184: 24 OZ | K184: 75 | L184: 41.88 | M184: 3141 | N184: 3.49 | O184: 4161010 | P184: ROYAL | Q184: 12 / 24 OZ | S184: 4161010 / GELATIN, STRAWBERRY
B185: 180 | C185: F1060 | D185: GF BAGEL PLAIN | E185: PLAIN BAGEL GLUTEN FREE | F185: SPECIFY | H185: CS | I185: 6 | J185: 4 EA | K185: 200 | L185: No Bid | O185: No Bid | P185: No Bid | Q185: No Bid | R185: No Bid | S185: No Bid
B186: 181 | C186: C1026 | D186: GF BREAD WHITE SLICED | E186: WHITE BREAD SLICED GLUTEN FREE | F186: SPECIFY | H186: CS | I186: 6 | J186: 24 OZ | K186: 300 | L186: No Bid | O186: No Bid | P186: No Bid | Q186: No Bid | R186: No Bid | S186: No Bid
B187: 182 | C187: C1027 | D187: GF BUN HAMBURGER | E187: HAMBURGER BUNS GLUTEN FREE | F187: SPECIFY | H187: CS | I187: 6 | J187: 12 CT | K187: 200 | L187: No Bid | O187: No Bid | P187: No Bid | Q187: No Bid | R187: No Bid | S187: No Bid
B188: 183 | C188: F1061 | D188: GF MUFFIN CHOCOLATE IW | E188: MUFFIN CHOCOLATE GLUTEN FREE IW | F188: SPECIFY | H188: CS | I188: 36 | J188: 3.6 EA | K188: 200 | L188: No Bid | O188: No Bid | P188: No Bid | Q188: No Bid | R188: No Bid | S188: No Bid
B189: 184 | C189: F1062 | D189: GF MUFFIN ENGLISH | E189: ENGLISH MUFFINS GLUTEN FREE | F189: SPECIFY | H189: CS | I189: 24 | J189: 2 OZ | K189: 300 | L189: No Bid | O189: No Bid | P189: No Bid | Q189: No Bid | R189: No Bid | S189: No Bid
B190: 185 | C190: D1066 | D190: GF PASTA PENNE | E190: PASTA PENNE GLUTEN FREE | F190: SPECIFY | H190: CS | I190: 8 | J190: 12 OZ | K190: 200 | L190: 21.07 | M190: =IF(L190*K190= 0,"",L190*K190) -> 4214 | N190: =IF(L190/I190= 0,"",L190/I190) -> 2.63375 | O190: 4305769 | P190: BARILLA | Q190: 8 / 12 OZ | S190: 4305769 / PENNE, GLUTEN FREE
B191: 186 | C191: D1067 | D191: GF PASTA SPAGHETTI | E191: PASTA SPAGHETTI GLUTEN FREE | F191: SPECIFY | H191: CS | I191: 12 | J191: 12 OZ | K191: 200 | L191: 30.21 | M191: 6042 | N191: 2.5175 | O191: 9408914 | P191: BARILLA | Q191: 12 / 12 OZ | S191: 9408914 / SPAGHETTI, GLUTEN FREE
B192: 187 | C192: CTF7021 | D192: GLAZE STAWBERRY | E192: STRAWBERRY GLAZE CATERING | F192: SPECIFY | H192: CS | I192: 1 | J192: 20LB | K192: 25 | L192: 26.63 | M192: 665.75 | N192: 26.63 | O192: 4097565 | P192: LAWRENCE | Q192: 1 / 20 LB | S192: 4097565 / GLAZE, STRAWBERRY
B193: 188 | C193: D1068 | D193: GRANOLA BULK | E193: GRANOLA BULK | F193: SPECIFY | H193: CS | I193: 4 | J193: 50 OZ | K193: 250 | L193: 41.97 | M193: 10492.5 | N193: 10.4925 | O193: 3730027 | P193: KELLOGG'S | Q193: 4 / 50 OZ | S193: 3730027 / CEREAL, LF GRANOLA NO RAISIN
B194: 189 | C194: D1069 | D194: GRAVY BROWN | E194: GRAVY BROWN LIGHT | F194: PIONEER OR APPROVED EQUIVALENT | G194: 94541 | H194: CS | I194: 6 | J194: 13 OZ | K194: 700 | L194: 15.83 | M194: 11081 | N194: 2.638333333 | O194: 3445692 | P194: SHAWNEE | Q194: 6 / 13 OZ | S194: 3445692 / GRAVY, FF BROWN
B195: 190 | C195: D1070 | D195: GRAVY COUNTRY | E195: COUNTRY SKILLET CREAM GRAVY | F195: PIONEER OR APPROVED EQUIVALENT | G195: 96115 | H195: CS | I195: 6 | J195: 24 OZ | K195: 725 | L195: 27.79 | M195: 20147.75 | N195: 4.631666667 | O195: 3550029 | P195: PIONEER | Q195: 6 / 24 OZ | S195: 3550029 / GRAVY MIX, CNTRY SKLLT CREAM
B196: 191 | C196: CTF7062 | D196: HAM BUFFET | E196: HAM WATER ADDED CURED BONELESS AND FULLY COOKED. HAM IS 97% FAT FREE (3% FAT) AND APPROXIMATELY 4 TO 4½ INCHES IN DIAMETER. FROZEN PRODUCT. CATERING | F196: SPECIFY | H196: CS | I196: 1 | J196: LB | K196: 100 | L196: 91.92 | M196: 9192 | N196: 91.92 | O196: 8923033 | P196: WRIGHT | Q196: 2 / 12 LB | S196: 8923033 / HAM, BUFFET EXTRA LN, WA R - $3.83/LB - Priced Per Pound
B197: 192 | C197: F1063 | D197: HOT DOGS BEEF | E197: BEEF FRANKS LOWER SODIUM 8/1 6" CN LABELED TO MEET 2 OZ MEAT REQUIREMENT | F197: JOHN MORRELL OR APPROVED EQUIVALENT | G197: 100-701000-28560 | H197: CS | I197: 80 | J197: 2 OZ | K197: 600 | L197: 33.86 | M197: 20316 | N197: 0.42325 | O197: 8778001 | P197: BALL PARK | Q197: 2 / 5 LB | S197: 8778001 / FRANK ALL MEAT 8/1 CN 6"
B198: 193 | C198: F1064 | D198: ICE CREAM SS BAR CARAMEL | E198: STICK BAR REDUCED FAT SALTY CARAMEL BROWNIE CRUNCH BAR | F198: HERSHEY'S OR APPROVED EQUIVALENT | G198: 31167 | H198: CS | I198: 36 | J198: 2.75 OZ | K198: 200 | L198: No Bid | O198: No Bid | P198: No Bid | Q198: No Bid | R198: No Bid | S198: No Bid
B199: 194 | C199: F1065 | D199: ICE CREAM SS BAR STRAWBERRY | E199: STICK BAR STRAWBERRY SCOOTER | F199: HERSHEY'S OR APPROVED EQUIVALENT | G199: 31166 | H199: CS | I199: 36 | J199: 2.75 OZ | K199: 300 | L199: 19.47 | M199: =IF(L199*K199= 0,"",L199*K199) -> 5841 | N199: =IF(L199/I199= 0,"",L199/I199) -> 0.5408333333 | O199: 4221008 | P199: HERSHEY'S | Q199: 36 / 2.75 OZ | S199: 4221008 / STICK BAR STRAWBERRY SCOOTER
B200: 195 | C200: F1066 | D200: ICE CREAM SS BAR VANILLA | E200: ICE CREAM BAR VANILLA REDUCED FAT MUST BE SMART SNACK COMPLIANT <200 CALORIES < 35% FAT CALORIES < 230 MG SODIUM < 10% SATURATED FAT <35% OF WEIGHT FROM SUGARS | F200: SPECIFY | H200: CS | I200: 96 | J200: 3.0 OZ | K200: 100 | L200: 46.08 | M200: 4608 | N200: 0.48 | O200: 779838 | P200: BLUE BUNNY | Q200: 4 / 2 DZ | S200: 779838 / ICE CREAM SANDWICH LOFAT
B201: 196 | C201: F1067 | D201: ICE CREAM SS CUP CHOCOLATE SUNDAE | E201: LOW FAT CHOCOLATE SUNDAE DESSERT CUP | F201: HERSHEY'S OR APPROVED EQUIVALENT | G201: 31662 | H201: CS | I201: 48 | J201: 3 OZ | K201: 400 | L201: 24.27 | M201: 9708 | N201: 0.505625 | O201: 4221052 | P201: HERSHEYS | Q201: 48 / 3 OZ | S201: 4221052 / DESSERT CUPS, CHOCOLAT SNDAE
... 211 more rows

Sheet Shamrock (hidden)
B1: ROSWELL INDEPENDENT SCHOOL DISTRICT | I1: Vendor Name: | L1: Shamrock Foods Company
B2: CAFETERIA FOOD BID 23-06 FOR SCHOOL YEAR 2023-24 | I2: Vendor Contact | L2: Jessa Zuck (Bid) & Chimene Quillen (Sales)
B3: MUST BE RECEIVED BY MAY 4, 2023 ON CD-R OR FLASH DRIVE SEALED WITH SUPPORTING DOCUMENTS | I3: Date | L3: 2023-05-01
B4: ITEM | C4: STOCK ID | D4: ITEM | E4: DESCRIPTION | F4: Approved Brand | G4: Product Code or UPC | H4: BID UNIT | I4: CASE PACK | K4: EST USAGE | L4: BID UNIT PRICE | M4: Extended Total | N4: per UNIT price | O4: VENDOR STOCK NO | P4: BRAND NAME | Q4: PACK SIZE | R4: SPECIAL ORDER YES NO | S4: BIDDERS NOTES
B6: 1 | C6: D1000 | D6: APPLESAUCE CANNED | E6: APPLESAUCE GRADE B FANCY NATURAL COLOR UNSWEETENED MUST MEET BUY AMERICAN REQUIREMENTS | F6: SPECIFY | H6: CS | I6: 6 | J6: 10 CN | K6: 400 | L6: 42.3765 | M6: =IF(L6*K6= 0,"",L6*K6) -> 16950.6 | N6: =IF(L6/I6= 0,"",L6/I6) -> 7.06275 | O6: 4647841 | P6: BHVSD | Q6: 6/10/CN | R6: N | S6: APPLESAUCE, UNSWTND FCY
B7: 2 | C7: D1001 | D7: APPLESAUCE CUPS CINNAMON | E7: CINNAMON UNSWEETENED APPLESAUCE MUST PROVIDE 1/2 CUP FRUIT EQUIVALENT UNDER THE NSLP. 100% ALL NATURAL INGREDIENTS SHELF-STABLE FOR 18 MONTHS NO HIGH FRUCTOSE CORN SYRUP OR ADDED SUGAR FAT FREE 100% VITAMIN C | F7: SPECIFY | H7: CS | I7: 96 | J7: 4.5 OZ | K7: 600 | L7: 37.32855 | M7: 22397.13 | N7: 0.3888390625 | O7: 4017971 | P7: MUSLM | Q7: 96/4.5/OZ | R7: N | S7: APPLESAUCE, CINN UNSWTND CUP
B8: 3 | C8: D1002 | D8: APPLESAUCE CUPS PEACH | E8: PEACH UNSWEETENED APPLESAUCE MUST PROVIDE 1/2 CUP FRUIT EQUIVALENT UNDER THE NSLP. 100% ALL NATURAL INGREDIENTS SHELF-STABLE FOR 18 MONTHS NO HIGH FRUCTOSE CORN SYRUP OR ADDED SUGAR FAT FREE 100% VITAMIN C | F8: SPECIFY | H8: CS | I8: 96 | J8: 4.5 OZ | K8: 600 | L8: No Bid | O8: NO BID | P8: NO BID | Q8: NO BID | R8: NO BID | S8: NO BID
B9: 4 | C9: D1003 | D9: APPLESAUCE CUPS PLAIN | E9: PLAIN UNSWEETENED APPLESAUCE MUST PROVIDE 1/2 CUP FRUIT EQUIVALENT UNDER THE NSLP. 100% ALL NATURAL INGREDIENTS SHELF-STABLE FOR 18 MONTHS NO HIGH FRUCTOSE CORN SYRUP OR ADDED SUGAR FAT FREE 100% VITAMIN C | F9: SPECIFY | H9: CS | I9: 96 | J9: 4.5 OZ | K9: 600 | L9: 37.32855 | M9: 22397.13 | N9: 0.3888390625 | O9: 4017941 | P9: MUSLM | Q9: 1/96/PK | R9: N | S9: APPLESAUCE, CUP UNSWTND 4.5Z
B10: 5 | C10: D1004 | D10: APPLESAUCE CUPS STRAWBERRY | E10: PLAIN UNSWEETENED APPLESAUCE MUST PROVIDE 1/2 CUP FRUIT EQUIVALENT UNDER THE NSLP. 100% ALL NATURAL INGREDIENTS SHELF-STABLE FOR 18 MONTHS NO HIGH FRUCTOSE CORN SYRUP OR ADDED SUGAR FAT FREE 100% VITAMIN C | F10: SPECIFY | H10: CS | I10: 96 | J10: 4.5 OZ | K10: 600 | L10: No Bid | O10: NO BID | P10: NO BID | Q10: NO BID | R10: NO BID | S10: NO BID
B11: 6 | C11: CTF7049 | D11: AVACADO PULP | E11: AVACADO PULP FROZEN CATERING | F11: SPECIFY | H11: CS | I11: 12 | J11: 1LBS | K11: 70 | L11: 50.8963 | M11: 3562.741 | N11: 4.241358333 | O11: 3927541 | P11: HVTFA | Q11: 12/1/LB | R11: N | S11: AVOCADO, PULP
B12: 7 | C12: F1000 | D12: BACON PIECES | E12: BACON ENDS & PIECES | F12: SPECIFY | H12: CS | I12: 12 | J12: 3 LB | K12: 425 | L12: 37.0175 | M12: 15732.4375 | N12: 3.084791667 | O12: 3050981 | P12: SMITH | Q12: 2/5/LB | R12: N | S12: BACON, ENDS & PCS DICED APPROX .5"
B13: 8 | C13: F1001 | D13: BACON PRE-COOKED | E13: FULLY COOKED AND READY TO EAT - SIMPLY WARM & SERVE 100% REAL BACON | F13: HORMEL OR APPROVED EQUIVALENT | G13: 3729 | H13: CS | I13: 1 | J13: 300 | K13: 500 | L13: 34.99535 | M13: 17497.675 | N13: 34.99535 | O13: 4630091 | P13: PRCRO | Q13: 2/150/PK | R13: N | S13: BACON, CKD 300 SLI
B14: 9 | C14: CTF7050 | D14: BACON SLICED THICK | E14: BACON THICK SLICED CATERING | F14: SPECIFY | H14: CS | I14: 15 | J14: LB | K14: 30 | L14: 48.45425 | M14: 1453.6275 | N14: 3.230283333 | O14: 4914511 | P14: PRCRD | Q14: 1/15/LB | R14: N | S14: BACON, SGL APPLWD SMKD 10-12 SLI
B15: 10 | C15: CTF7051 | D15: BACON SLICED THIN | E15: BACON THIN SLICED CATERNG | F15: SPECIFY | H15: CS | I15: 15 | J15: LB | K15: 15 | L15: 42.9845 | M15: 644.7675 | N15: 2.865633333 | O15: 4433951 | P15: PRCRF | Q15: 1/15/LB | R15: N | S15: BACON, SLAB HKRY SMKD 18-22 SLI
B16: 11 | C16: F1002 | D16: BAGEL BLUEBERRY | E16: BAGEL WG BLUEBERRY SLICED IW MUST BE WHOLE GRAIN RICH AND PROVIDE 2.0OZ GRAIN EQUIVALENTS. PORTION TO PROVIDE AT LEAST 115 CALORIES WITH NO MORE THAN 2 GRAMS OF FAT. | F16: BAKE CRAFTERS OR APPROVED EQUIVALENT | G16: 696 | H16: CS | I16: 84 | J16: 2 OZ | K16: 450 | L16: 35.72465 | M16: 16076.0925 | N16: 0.4252934524 | O16: 4700071 | P16: BKCRF | Q16: 84/2/OZ | R16: Y | S16: BAGEL, BLUEBRY SLI IW WG
B17: 12 | C17: F1003 | D17: BAGEL PLAIN | E17: BAGEL WG BLUEBERRY IW MUST BE WHOLE GRAIN RICH AND PROVIDE 2.0OZ GRAIN EQUIVALENTS. PORTION TO PROVIDE AT LEAST 115 CALORIES WITH NO MORE THAN 2 GRAMS OF FAT. | F17: BAKE CRAFTERS OR APPROVED EQUIVALENT | G17: 982 | H17: CS | I17: 84 | J17: 2 OZ | K17: 450 | L17: 30.17755 | M17: 13579.8975 | N17: 0.3592565476 | O17: 3162701 | P17: LENDR | Q17: 72/2/OZ | R17: N | S17: BAGEL, WHITE WHEAT WG SLI IW
B18: 13 | C18: D1005 | D18: BAKING SODA | E18: SODIUM BICARBONATE | F18: SPECIFY | H18: CS | I18: 24 | J18: 1 LBS | K18: 60 | L18: 26.473 | M18: 1588.38 | N18: 1.103041667 | O18: 3077601 | P18: KATYO | Q18: 24/1/LB | R18: N | S18: BAKING SODA, 1LB GLUTEN FREE
B19: 14 | C19: F1004 | D19: BAR BREAKFAST APPLE | E19: BREAKFAST BAR APPLE THAT MEET 2OZ WG AND 1/2C FRUIT FOR CHILD NUTRITIONAL MEAL PATTERN | F19: DAVE'S OR APPROVED EQUIVALENT | G19: 4014 | H19: CS | I19: 64 | J19: 3 OZ | K19: 1000 | L19: 44.7525 | M19: 44752.5 | N19: 0.6992578125 | O19: 3453251 | P19: DVBKY | Q19: 64/3/OZ | R19: Y | S19: BREAKFAST BAR, APPLE WG
B20: 15 | C20: F1005 | D20: BAR BREAKFAST BANANA CHOCOLATE | E20: INDIVIDUALLY WRAPPED 51% WHOLE GRAIN BANANA CHOCOLATE CHUNK | F20: BeneFIT OR APPROVED EQUIVALENT | G20: 40402 | H20: CS | I20: 48 | J20: 2.5 OZ | K20: 1650 | L20: 21.5475 | M20: 35553.375 | N20: 0.44890625 | O20: 2883711 | P20: READI | Q20: 1/48/PK | R20: N | S20: BREAKFAST BAR, BANANA CHOC CHUNK
B21: 16 | C21: F1006 | D21: BAR BREAKFAST BLUEBERRY | E21: BREAKFAST BAR BLUEBERRY THAT MEET 2OZ WG AND 1/2C FRUIT FOR CHILD NUTRITIONAL MEAL PATTERN | F21: DAVE'S OR APPROVED EQUIVALENT | G21: 4014 | H21: CS | I21: 64 | J21: 3 OZ | K21: 1000 | L21: 44.7525 | M21: 44752.5 | N21: 0.6992578125 | O21: 4986291 | P21: DVBKY | Q21: 64/3/OZ | R21: Y | S21: BREAKFAST BAR, BLUEBRY WG IW
B22: 17 | C22: F1007 | D22: BAR BREAKFAST COCOA CHIP | E22: INDIVIDUALLY WRAPPED 51% WHOLE GRAIN COCOA CHIP | F22: BeneFIT OR APPROVED EQUIVALENT | G22: 40406 | H22: CS | I22: 48 | J22: 2.5 OZ | K22: 1650 | L22: 22.6525 | M22: 37376.625 | N22: 0.4719270833 | O22: 4012001 | P22: READI | Q22: 48/2.5/OZ | R22: Y | S22: BREAKFAST BAR, COCOA CHIP WG 2.5Z IW
B23: 18 | C23: F1008 | D23: BAR BREAKFAST OATMEAL CHOCOLATE | E23: INDIVIDUALLY WRAPPED 51% WHOLE GRAIN OATMEAL CHOCOLATE CHIP | F23: BeneFIT OR APPROVED EQUIVALENT | G23: 40401 | H23: CS | I23: 48 | J23: 2.5 oz | K23: 1650 | L23: 21.5475 | M23: 35553.375 | N23: 0.44890625 | O23: 2883731 | P23: READI | Q23: 48/2.5/OZ | R23: N | S23: BREAKFAST BAR, OATMEAL CHOC CHIP
B24: 19 | C24: F1009 | D24: BAR OATMEAL BLUEBERRY | E24: BLUEBERRY OATMEAL BARS 2.04 OZ 51% WHOLE GRAIN MEET 2 OZ GRAIN EQUIVALENT | F24: DARLINGTON SNACKS OR APPROVED EQUIVALENT | G24: 75600 | H24: CS | I24: 160 | J24: 2.4 OZ | K24: 1000 | L24: No Bid | O24: NO BID | P24: NO BID | Q24: NO BID | R24: NO BID | S24: NO BID
B25: 20 | C25: C1000 | D25: BASE BEEF | E25: GRADE A TO CONTAIN BEEF LOW SODIUM- PASTE NON-CAKING READY TO DISSOLVE BEEF FLAVORED NO MSG | F25: SPECIFY | H25: CS | I25: 12 | J25: 1 LBS | K25: 200 | L25: 63.296 | M25: 12659.2 | N25: 5.274666667 | O25: 2746761 | P25: CCLGL | Q25: 6/1/LB | R25: N | S25: SOUP BASE, BEEF LS NO MSG
B26: 21 | C26: C1001 | D26: BASE CHICKEN | E26: GRADE A TO CONTAIN CHICKEN LOW SODIUM - PASTE NON-CAKING READY TO DISSOLVE CHICKEN FLAVORED NO MSG | F26: SPECIFY | H26: CS | I26: 12 | J26: 1 LBS | K26: 200 | L26: 65.7216 | M26: 13144.32 | N26: 5.4768 | O26: 1962281 | P26: MINOR | Q26: 6/1/LB | R26: N | S26: SOUP BASE, CHICKEN NO MSG LS
B27: 22 | C27: CTF7009 | D27: BASE CHICKEN KNORR | E27: CHICKEN FLAVORED BOUILLON CATERING | F27: KNORR OR APPROVED EQUIVALENT | G27: 116300 | H27: BTL | I27: 1 | J27: 7.9 LB | K27: 5 | L27: 27.6752 | M27: 138.376 | N27: 27.6752 | O27: 1962213 | P27: KNORR | Q27: 1/7.9/LB | R27: N | S27: SOUP BASE, CHICKEN CALDO DE POLLO
B28: 23 | C28: C1002 | D28: BASE HAM | E28: GRADE A TO CONTAIN HAM LOW SODIUM - PASTE NON-CAKING READY TO DISSOLVE BEEF FLAVORED NO MSG | F28: SPECIFY | H28: CS | I28: 12 | J28: 1 LBS | K28: 300 | L28: 73.6672 | M28: 22100.16 | N28: 6.138933333 | O28: 1978201 | P28: CCLGL | Q28: 6/1/LB | R28: N | S28: SOUP BASE, HAM NO MSG GOLD LABEL
B29: 24 | C29: D1006 | D29: BEANS BAKED | E29: REDUCED SODIUM VEGETARIAN BAKED BEANS | F29: BUSHS BEST OR APPROVED EQUIVALENT | H29: CS | I29: 6 | J29: #10 CANS | K29: 1500 | L29: 45.124 | M29: 67686 | N29: 7.520666667 | O29: 4074831 | P29: BUSH | Q29: 6/115/OZ | R29: Y | S29: BEAN, BAKED VEGETARIAN RS
B30: 25 | C30: D1007 | D30: BEANS GARBANZO | E30: BRINE PACK. GARBANZO BEANS WATER SALT VINEGAR DISODIUM EDTA (TO PROMOTE COLOR AND RETENTION) AND CALCIUM CHLORIDE (A FIRMING AGENT). | F30: SPECIFY | H30: CS | I30: 6 | J30: 10 LB | K30: 65 | L30: 34.782 | M30: 2260.83 | N30: 5.797 | O30: 1909921 | P30: BHVSD | Q30: 6/10/CN | R30: N | S30: BEAN, GARBANZO FCY GRD A
B31: 26 | C31: CTF7010 | D31: BEANS KIDNEY | E31: CATERING | H31: CS | I31: 6 | J31: #10 CAN | K31: 50 | L31: 36.872 | M31: 1843.6 | N31: 6.145333333 | O31: 4921141 | P31: BHVSD | Q31: 6/10/CN | R31: N | S31: BEAN, KIDNEY DRK RED HVY PK IN SCE W-SGR
B32: 27 | C32: D1008 | D32: BEANS PINTO CANNED | E32: PINTO BEANS WHOLE STYLE SEASONED VEGETARIAN CANNED IN BRINE US GRADE B LOW SODIUM (140 MILLIGRAMS OF SODIUM OR LESS PER SERVING) | F32: BUSH'S OR APPROVED EQUIVALENT | H32: CS | I32: 6 | J32: 10 CN | K32: 1300 | L32: 34.199 | M32: 44458.7 | N32: 5.699833333 | O32: 4241401 | P32: BHVSD | Q32: 6/10/CN | R32: N | S32: BEAN, PINTO FCY LS
B33: 28 | C33: D1009 | D33: BEANS PINTO DRY | E33: US #1 GRADE A CURRENT CROP 98% CLEAN FREE OF WEEVILS DIRT AND ROCKS. TRIPLE CLEANED. | F33: SPECIFY | H33: LB | I33: 50 | J33: LBS | K33: 250 | L33: 40.414 | M33: 10103.5 | N33: 0.80828 | O33: 2460591 | P33: BHVST | Q33: 1/50/LB | R33: N | S33: BEAN, PINTO PREWASHED
B34: 29 | C34: D1010 | D34: BEANS RANCH | E34: PINTO BEANS WATER TOMATO PUREE LESS THAN 2% BLEND OF VEGETABLE OILS AND ANIMAL FAT SALT CHILI PEPPERS SUGAR PAPRIKA VINEGAR SPICES ONION POWDER GARLIC POWDER NATURAL FLAVORINGS SOY LECITHIN LOW SODIUM (140 MILLIGRAMS OF SODIUM OR LESS PER SERVING) | F34: RANCH STYLE OR APPROVED EQUIVALENT | G34: 4690000116 | H34: CS | I34: 6 | J34: 10 CN | K34: 300 | L34: 48.114 | M34: 14434.2 | N34: 8.019 | O34: 1113281 | P34: RSTYL | Q34: 6/10/CN | R34: N | S34: BEAN, ORIG RANCH STYL
B35: 30 | C35: D1011 | D35: BEANS REFRIED | E35: DEHYDRATED JUST ADD WATER TO COOK AND SERVE UNSEASONED. US GRADE A | F35: SANTIAGO OR APPROVED EQUIVALENT | G35: 10166 | H35: CS | I35: 6 | J35: 28.1 OZ | K35: 300 | L35: No Bid | O35: NO BID | P35: NO BID | Q35: NO BID | R35: NO BID | S35: NO BID
B36: 31 | C36: CTF7052 | D36: BEEF BRISKET | E36: BEEF PACKER TRIM VACCUUM PACKED LARGE 14-22 LB CATERING | F36: SPECIFY | H36: LB | I36: 1 | J36: LB | K36: 2000 | L36: 6.5664 | M36: 13132.8 | N36: 6.5664 | O36: 946981 | P36: JITEV | Q36: 2/15/LBAV | R36: N | S36: BEEF, BRISKET BNLS 2PC
B37: 32 | C37: CTF7053 | D37: BEEF CHICKEN FRIED STEAK | E37: EXCLUSIVE CUT™ WHOLE MUSCLE BEEF. BATTERED WITH A BUTTERMILK BLEND BREADED WITH A FLOUR-BASED BREADING. CATERING | F37: ADVANCE/PIERRE OR APPROVED EQUIVALENT | G37: 4541 | H37: CS | I37: 40 | J37: 4 OZ | K37: 25 | L37: 63.6259 | M37: 1590.6475 | N37: 1.5906475 | O37: 2575701 | P37: ADVNC | Q37: 40/4/OZ | R37: N | S37: BEEF, FRITTER WHL MSCL NATRL 4X1
B38: 33 | C38: F1010 | D38: BEEF FAJITA STRIPS | E38: FORMED BEEF SEASONED FULLY COOKED AND SLICED INTO 3/8-INCH STRIPS. SOY ADDED. CHAR MARKED. | F38: ADVANCE/PIERRE OR APPROVED EQUIVALENT | G38: 56001 | H38: CS | I38: 2 | J38: 5 LB | K38: 100 | L38: No Bid | O38: NO BID | P38: NO BID | Q38: NO BID | R38: NO BID | S38: NO BID
B39: 34 | C39: F1011 | D39: BEEF GROUND 85/15 | E39: 100 % BEEF, GROUND, RAW, FROZEN, UNSEASONED FINE GRIND 85/15 LEAN/FAT RATIO, NO FILLERS, MEET NEW MEXICO GROWN REQUIREMENTS, LESS THAN 100MG SODIUM PER 3OZ SERVING, INDIVIDUALLY WRAPPED 5 PACKS/10 POUNDS | F39: NEW MEXICO'S BEST OR APPROVED EQUIVALENT | G39: NMB8515GB | H39: CS | I39: 5 | J39: 10# | K39: 2000 | L39: 65.1996 | M39: 130399.2 | N39: 13.03992 | O39: 601521 | P39: GCSIG | Q39: 2/5/LB | R39: N | S39: BEEF, GRND BULK 85/15 FZN
B40: 35 | C40: F1012 | D40: BEEF PATTY | E40: FULLY COOKED BEEF PATTIES, EACH 3.00 OZ FULLY COOKED BEEF PATTY PROVIDES 2.50 OZ EQUIVALENT MEAT FOR NSL, NO FILLERS, MEET NEW MEXICO GROWN REQUIREMENTS, LESS THAN 100MG SODIUM PER 3OZ SERVING | F40: NEW MEXICO'S BEST OR APPROVED EQUIVALENT | G40: NMB8020BPSFC | H40: CS | I40: 195 | J40: 3 OZ | K40: 600 | L40: 202.06 | M40: 121236 | N40: 1.036205128 | O40: 3416501 | P40: ADVPI | Q40: 1/200/PK | R40: N | S40: BEEF, PTY STK FLBRLD 2.4Z FFSD
B41: 36 | C41: F1013 | D41: BEEF PHILLY STEAK | E41: FULLY COOKED COOKED SLICED STEAK LESS THAN 230MG SODIUM PER SERVING | F41: ADVANCE/PIERRE OR APPROVED EQUIVALENT | G41: 69249 | H41: CS | I41: 170 | J41: 2.82 OZ | K41: 200 | L41: No Bid | O41: NO BID | P41: NO BID | Q41: NO BID | R41: NO BID | S41: NO BID
B42: 37 | C42: F1014 | D42: BEEF SHREDS | E42: BEEF SHREDS, EACH 2.36OZ MEET 2M/MA FOR NSLP NO FILLERS, MEET NEW MEXICO GROWN REQUIREMENTS, LESS THAN 100MG SODIUM PER 3OZ SERVING | F42: NEW MEXICO'S BEST OR APPROVED EQUIVALENT | G42: NMBBSFC | H42: CS | I42: 5 | J42: 10 LB | K42: 600 | L42: No Bid | O42: NO BID | P42: NO BID | Q42: NO BID | R42: NO BID | S42: NO BID
B43: 38 | C43: F1015 | D43: BEEF STEAK FINGERS WG | E43: BEEF STRIP, FULLY COOKED, BREADED, NO FILLERS, MEET NEW MEXICO GROWN REQUIREMENTS, LESS THAN 100MG SODIUM PER 3.6 OZ SERVING | F43: NEW MEXICO'S BEST OR APPROVED EQUIVALENT | G43: NMB8020BSSBSFC | H43: CS | I43: 534 | J43: .9 oz | K43: 450 | L43: 108 | M43: 48600 | N43: 0.202247191 | O43: 4084601 | P43: ADVPI | Q43: 500/.97/OZ | R43: N | S43: BEEF, FINGER BRD WG FFSD
B44: 39 | C44: F1016 | D44: BEEF STEAK PATTIE BREADED | E44: BEEF PATTY, BREADED, FULLY COOKED, EACH 3.2 OZ PATTY PROVIDES 2OZ EQUIVALENT MEAT/MEAT ALTERNATE FOR NSLP, NO FILLERS, MEET NEW MEXICO GROWN REQUIREMENTS, LESS THAN 100MG SODIUM PER 3.2 OZ SERVING | F44: NEW MEXICO'S BEST OR APPROVED EQUIVALENT | G44: NMB8020BPBSFC | H44: CS | I44: 150 | J44: 3.2 oz | K44: 400 | L44: 114.06 | M44: 45624 | N44: 0.7604 | O44: 3548321 | P44: ADVPI | Q44: 150/3.2/OZ | R44: N | S44: BEEF, PTY BRD 3.2Z WG FFSD
B45: 40 | C45: F1017 | D45: BISCUIT WG | E45: HONEY WHOLE WHEAT HEAT & SERVE PRE-SLICED MEET 2 OZ/GR | F45: BRIDGEFORD OR APPROVED EQUIVALENT | G45: 6270 | H45: CS | I45: 100 | J45: 2.25 OZ | K45: 400 | L45: 32.10025 | M45: 12840.1 | N45: 0.3210025 | O45: 4062181 | P45: BRGFD | Q45: 1/100/PK | R45: Y | S45: BISCUIT, HNY WHL WHEAT SLI
B46: 41 | C46: CTF7054 | D46: BISCUIT WHITE BUTTERMILK | E46: BISCUIT OLD SOUTH BUTTERMILK PRE-SLICED FULLY COOOKED 2.25 OZ CATERING | F46: BRIDGEFORD OR APPROVED EQUIVALENT | G46: 6170 | H46: CS | I46: 100 | J46: 2.25 OZ | K46: 300 | L46: 30.00075 | M46: 9000.225 | N46: 0.3000075 | O46: 3139191 | P46: BRGFD | Q46: 100/2.25/Z | R46: N | S46: BISCUIT, BTRMLK OLD SOUTH SLI 3" RND
B47: 42 | C47: F1018 | D47: BOLI STRAWBERRY | E47: BOLI STRAWBERRY WG IW EACH 3.24 OZ PROVIDES 2.00 OZ EQ GRAINS OR NSP | F47: TASTY BRAND OR APPROVED EQUIVALENT | G47: 53205 | H47: CS | I47: 96 | J47: 3.24 OZ | K47: 850 | L47: 62.17835 | M47: 52851.5975 | N47: 0.6476911458 | O47: 4736861 | P47: TSTYB | Q47: 96/3.24/OZ | R47: N | S47: ENTRE, STRAWBERRYBOLI WG IW
B48: 43 | C48: F1019 | D48: BOLI SWEET | E48: BOLI STRAWBERRY WG IW EACH 3.24 OZ PROVIDES 2.00 OZ EQ GRAINS OR NSP | F48: TASTY BRAND OR APPROVED EQUIVALENT | G48: 53204 | H48: CS | I48: 96 | J48: 3.24 OZ | K48: 850 | L48: 62.17835 | M48: 52851.5975 | N48: 0.6476911458 | O48: 4736861 | P48: TSTYB | Q48: 96/3.24/OZ | R48: N | S48: ENTRE, STRAWBERRYBOLI WG IW
B49: 44 | C49: F1020 | D49: BOLILLO CHORIZO & CHEESE | E49: BOLLIOS, CHORIZO & CHEESE, BULK, EACH BOLILLO MUST MEET 1.5OZ GRAIN AND 1 M/MA FOR STUDENT NUTRITION PROGRAM | F49: ARDELLA'S OR APPROVED EQUIVALENT | G49: 10014 | H49: CS | I49: 72 | J49: 3.35 OZ | K49: 900 | L49: No Bid | O49: NO BID | P49: NO BID | Q49: NO BID | R49: NO BID | S49: NO BID
B50: 45 | C50: F1021 | D50: BREAD BANANA SLICE | E50: 3.4OZ (96G) FROZEN IW THAW & SERVE CONTAINS ZERO TRANS-FAT > 51% WHOLE WHEAT FLOUR NON-DAIRY NO ARTIFICIAL COLORS FLAVORS OR PRESERVATIVES. MUST CONFORM TO USDA CHILD NUTRITION PROGRAM SPECIFICATIONS AND MEET 2 SERVINGS OF GRAIN. | F50: SUPER BAKERY OR APPROVED EQUIVALENT | G50: 6071 | H50: CS | I50: 70 | J50: 3.4 OZ | K50: 1200 | L50: 49.6587 | M50: 59590.44 | N50: 0.70941 | O50: 4895961 | P50: SBAKR | Q50: 75/3.4/OZ | R50: N | S50: BREAD, BANANA SLI 3.4Z WG IW
B51: 46 | C51: F1022 | D51: BREAD LEMON | E51: 3.4OZ (96G) FROZEN IW THAW & SERVE CONTAINS ZERO TRANS-FAT > 51% WHOLE WHEAT FLOUR NON-DAIRY NO ARTIFICIAL COLORS FLAVORS OR PRESERVATIVES. MUST CONFORM TO USDA CHILD NUTRITION PROGRAM SPECIFICATIONS AND MEET 2 SERVINGS OF GRAIN. | F51: SUPER BAKERY OR APPROVED EQUIVALENT | G51: 7507 | H51: CS | I51: 70 | J51: 3.4OZ | K51: 1200 | L51: 53.40465 | M51: 64085.58 | N51: 0.7629235714 | O51: 4896011 | P51: SBAKR | Q51: 75/3.4/OZ | R51: Y | S51: BREAD, LEMON SLI 3.4Z WG IW
B52: 47 | C52: F1023 | D52: BREADSTICK | E52: WHITE WHOLE WHEAT CHEESY GARLIC BREADSTICK DOUGH FROZEN RAW PROOF AND BAKE WHOLE GRAIN FLOUR CHEESE AND GARLIC FLAVORED. EACH STICK MUST PROVIDE A MINUMIM OF 1GB COMPONENT FOR NSLP | F52: BRIDGEFORD OR APPROVED EQUIVALENT | G52: 6787 | H52: CS | I52: 320 | J52: 1.125 oz | K52: 1500 | L52: 38.3435 | M52: 57515.25 | N52: 0.1198234375 | O52: 3518271 | P52: BRGFD | Q52: 320/1.13/Z | R52: N | S52: DOUGH, BREADSTICK WG CHSY GARLC
B53: 48 | C53: F1024 | D53: BREADSTICK CHEESE FILLED WG | E53: BREAKSTICK CHEESE FILLED WG EACH BREADSTICK MEETS 1M/MA FOR CHILD NUTRITION MEAL PATTERN | F53: CLASSIC DELIGHT OR APPROVED EQUIVALENT | G53: A33045 | H53: CS | I53: 112 | J53: 2 OZ | K53: 800 | L53: 68.88 | M53: 55104 | N53: 0.615 | O53: 3376321 | P53: BEACO | Q53: 1/200/PK | R53: N | S53: BREADSTICK, CHSE STFD 51% WG
B54: 49 | C54: F1025 | D54: BREAKFAST ROUNDS | E54: CINNAMON AND BROWN SUGAR BREAKFAST ROUND IW MUST MEET 2 GRAIN FOR SBP | F54: UBR/RICH'S OR APPROVED EQUIVALENT | G54: 8733 | H54: CS | I54: 126 | J54: 2.2 OZ | K54: 1000 | L54: 58.5871 | M54: 58587.1 | N54: 0.4649769841 | O54: 3041351 | P54: UBR | Q54: 126/2.2/OZ | R54: N | S54: BREAKFAST BAR, CINN ULTIMATE RND
B55: 50 | C55: F1026 | D55: BURRITO | E55: BEEF BEAN AND CHEESE BURRITO. A RED CHILI BEEF BEAN AND TEXTURED VEGETABLE PROTEIN FILLING WRAPPED IN A FLOUR TORTILLA. BURRITOS SHALL BE UNIFORMLY ROLLED WITH A UNIFORM DISTRIBUTION OF FILLING. NO EXESSIVELY FLATTENED OR IRREGULAR SHAPED PRODUCT. | F55: BUTCHERBOY/POSADA OR APPROVED EQUIVALENT | G55: 1020001 | H55: CS | I55: 72 | J55: 4 OZ | K55: 1000 | L55: No Bid | O55: NO BID | P55: NO BID | Q55: NO BID | R55: NO BID | S55: NO BID
B56: 51 | C56: F1027 | D56: BURRITO BEAN & CHEESE de CHILE RELLENO | E56: BURRITO -FROZEN BEAN & CHEESE DE CHILE RELLENO-REFRIED BEANS TOPPED WITH MEXICAN STYLE RICE WITH RED SALSA WITH POBLANO CHILE AND PEPPER JACK CHEESE ON A WHOLEWHEAT FLOUR TORTILLA. EACH 7.66 OZ. BURRITO PROVIDES 2.00 OZ MEAT ALTERNATE AND 1/8 CUP OTHER VEGETABLE AND 2.25 OZ EQV GRAIN OR 1.00 OZ MEAT ALTERNATE AND 1/8 CUPOTHER VEGETABLE AND 1/4 CUP LEGUME VEGETABLE AND 2.25 OZ EQV GRAIN TOWARDS THE NSLP, WHOLE GRAIN RICH FLOUR TORTILLA. CN LABELED. BURRITOS ARE HAND-WRAPPED INOVENABLE FOIL SHEETS. 36 COUNT. PREPARATION INSTRUCTIONS INCLUDED ON BOX. NO MORE THAN 700 MG SODIUM, LESS THAN 15% CALORIES FROM SATURATED FAT, 0 TRANS FAT. NOLESS THAN 400 KCAL. HAND HELD, FULLY COOKED. HEAT & SERVE.-VEGETARIAN. CABO PRIMO BRAND 71683 | F56: LOS CABOS OR APPROVED EQUIVALENT | G56: 71683 | H56: CS | I56: 36 | J56: 7.66 OZ | K56: 600 | L56: 73.78085 | M56: 44268.51 | N56: 2.049468056 | O56: 4373531 | P56: CABO | Q56: 36/7.66/OZ | R56: N | S56: BURRITO, BEAN & CHSE GRN CHILE SHRD IW
B57: 52 | C57: F1028 | D57: BURRITO PRE-FRIED BULK | E57: 4.75 OZ. CHEESE BEEF BEAN & RED CHILI BURRITO FULLY COOKED GROUND BEEF RED CHILI SAUCE AMERICAN CHEESE PINTO BEANS WRAPPED IN A WHOLE GRAIN RICH BLEND OF WHEAT AND CORN FLOUR TORTILLA 16g PROTEIN PER SERVING CN LABELED - SERVES 2 OZ. M/MA & 2 OZ. EQUIVALENT GRAINS PRE-FRIED | F57: FERNANDO'S OR APPROVED EQUIVALENT | G57: 21072 | H57: CS | I57: 72 | J57: 4.75 oz | K57: 1000 | L57: 77.3279 | M57: 77327.9 | N57: 1.073998611 | O57: 2318741 | P57: FRNDO | Q57: 72/4.75/OZ | R57: N | S57: BURRITO, BEEF BEAN CHSE RED
B58: 53 | C58: D1012 | D58: BUTTER ALTERNATIVE | E58: PHASE® ZERO TRANS NO SODIUM LIQUID BUTTER ALTERNATIVE | F58: PHASE OR APPROVED EQUIVALENT | G58: 13688 | H58: CS | I58: 3 | J58: GAL | K58: 200 | L58: No Bid | O58: NO BID | P58: NO BID | Q58: NO BID | R58: NO BID | S58: NO BID
B59: 54 | C59: C1008 | D59: BUTTERMILK BAKING 1% | E59: BUTTERMILK BAKING 1% | F59: SPECIFY | H59: CS | I59: 4 | J59: GAL | K59: 100 | L59: 19.4096 | M59: 1940.96 | N59: 4.8524 | O59: 4783481 | P59: SHAMF | Q59: 6/.5/GL | R59: N | S59: BUTTERMILK, 1% LF
B60: 55 | C60: D1013 | D60: CEREAL BLUEBERRY CHEX 2OZ | E60: BLUEBERRY CHEX AND SWEETENED RICE GLUTEN-FREE CEREAL. THIS READY-TO-EAT CUP PROVIDES CONVENIENT PORTION CONTROL AND ROOM FOR MILK. WHOLE GRAIN RICE – FIRST INGREDIENT. MEETS 2 OUNCE EQUIVALENT GRAINS USDA SMART SNACK CRITERIA AND IS CACFP ELIGIBLE. | F60: GENERAL MILLS OR APPROVED EQUIVALENT | G60: 17262000 | H60: CS | I60: 60 | J60: 2 OZ | K60: 500 | L60: 36.0924 | M60: 18046.2 | N60: 0.60154 | O60: 4729731 | P60: GNRLM | Q60: 60/2/OZ | R60: Y | S60: CEREAL, CHEX BLUEBRY 2Z WG
B61: 56 | C61: D1014 | D61: CEREAL CHEERIOS 1 OZ | E61: READY TO EAT CEREALS: BOWL PACK WHOLE GRAIN OATS RINGS. MUST MEET 1G EQUIVALENCY FOR SBP | F61: GENERAL MILLS OR APPROVED EQUIVALENT | G61: 32262000 | H61: CS | I61: 96 | J61: 1 oz | K61: 250 | L61: 27.54 | M61: 6885 | N61: 0.286875 | O61: 3349041 | P61: GNRLM | Q61: 96/1.0/OZ | R61: N | S61: CEREAL, CHEERIOS TALL WG BOWLPAK
B62: 57 | C62: D1015 | D62: CEREAL CINNAMON CHEX 1 OZ | E62: CINNAMON CHEX™ IS MADE WITH REAL CINNAMON AND SWEETENED RICE GLUTEN-FREE CEREAL. THIS READY-TO-EAT CUP PROVIDES CONVENIENT PORTION CONTROL AND ROOM FOR MILK. WHOLE GRAIN RICE – FIRST INGREDIENT. MEETS 2 OUNCE EQUIVALENT GRAINS USDA SMART SNACK CRITERIA AND IS CACFP ELIGIBLE. | F62: GENERAL MILLS OR APPROVED EQUIVALENT | G62: 14883000 | H62: CS | I62: 60 | J62: 2 OZ | K62: 500 | L62: 34.1172 | M62: 17058.6 | N62: 0.56862 | O62: 4462231 | P62: GNRLM | Q62: 60/2/OZ | R62: N | S62: CEREAL, CINN CHEX SSRV
B63: 58 | C63: D1016 | D63: CEREAL CINNAMON TOAST 1 OZ | E63: READY TO EAT CEREALS: BOWL PACK WHOLE GRAIN 25% LESS SUGAR CINNAMON TOAST SQUARES. MUST MEET 1G EQUIVALENCY FOR SBP | F63: GENERAL MILLS OR APPROVED EQUIVALENT | G63: 294440000 | H63: CS | I63: 96 | J63: 1 OZ | K63: 250 | L63: 27.54 | M63: 6885 | N63: 0.286875 | O63: 2225631 | P63: GNRLM | Q63: 1/96/PK | R63: N | S63: CEREAL, CINN TOAST REDUCED SGR
B64: 59 | C64: D1017 | D64: CEREAL CINNAMON TOAST 2OZ | E64: READY TO EAT CEREALS: BOWL PACK WHOLE GRAIN 25% LESS SUGAR CINNAMON TOAST SQUARES. MUST MEET 2G EQUIVALENCY FOR SBP | F64: GENERAL MILLS OR APPROVED EQUIVALENT | G64: 148861000 | H64: CS | I64: 60 | J64: 2 OZ | K64: 1000 | L64: 27.54 | M64: 27540 | N64: 0.459 | O64: 4011581 | P64: GNRLM | Q64: 96/1/OZ | R64: N | S64: CEREAL, CINN TOAST BWL
B65: 60 | C65: D1018 | D65: CEREAL COCOA PUFFS 2OZ | E65: READY TO EAT CEREALS: BOWL PACK WHOLE GRAIN COCOA PUFFS REDUCED SUGAR MUST MEET 2 GRAIN EQUIVALENCY FOR SBP | F65: GENERAL MILLS OR APPROVED EQUIVALENT | G65: 148854000 | H65: CS | I65: 60 | J65: 2 OZ | K65: 1000 | L65: 34.1172 | M65: 34117.2 | N65: 0.56862 | O65: 2664721 | P65: GNRLM | Q65: 1/60/PK | R65: Y | S65: CEREAL, CINN TOAST CRUNCH CUP
B66: 61 | C66: D1019 | D66: CEREAL CREAM OF WHEAT | E66: HOT CEREALS: ENRICHED PLAIN BULK QUICK COOK CREAM OF WHEAT WHOLE GRAIN. MUST MEET 1G EQUIVALENCY FOR SBP | F66: SPECIFY | H66: CS | I66: 12 | J66: 28 OZ | K66: 10 | L66: 59.928 | M66: 599.28 | N66: 4.994 | O66: 1919081 | P66: CRMWT | Q66: 12/28/OZ | R66: N | S66: CEREAL, CRM OF WHEAT QUICK
B67: 62 | C67: D1020 | D67: CEREAL LUCKY CHARMS 2OZ | E67: READY TO EAT CEREALS: BOWL PACK WHOLE GRAIN WITH MARSHMALLOWS ASSORTED BERRY PUFFS REDUCED SUGAR. MUST MEET 2G EQUIVALENCY FOR SBP | F67: GENERAL MILLS OR APPROVED EQUIVALENT | G67: 148847000 | H67: CS | I67: 60 | J67: 2 OZ | K67: 200 | L67: 34.1172 | M67: 6823.44 | N67: 0.56862 | O67: 4461851 | P67: GNRLM | Q67: 60/2/OZ | R67: N | S67: CEREAL, LUCKY CHARMS SSRV
B68: 63 | C68: D1021 | D68: CEREAL OATMEAL | E68: OATS ROLLED INSTANT ENRICHED DRY | F68: SPECIFY | H68: CS | I68: 12 | J68: 42 OZ | K68: 20 | L68: 44.66 | M68: 893.2 | N68: 3.721666667 | O68: 4022711 | P68: HSPTL | Q68: 12/42/OZ | R68: N | S68: CEREAL, QUICK OATS
B69: 64 | C69: D1022 | D69: CEREAL RICE KRISPIES BULK | E69: RICE BULK WHOLE GRAIN PLAIN PUFFS. MUST MEET 1G EQUIVALENCY FOR SBP | F69: SPECIFY | H69: CS | I69: 4 | J69: 35 OZ | K69: 900 | L69: 28.9872 | M69: 26088.48 | N69: 7.2468 | O69: 1919851 | P69: RKRSP | Q69: 4/27/OZ | R69: N | S69: CEREAL, RICE KRISPIES
B70: 65 | C70: C1009 | D70: CHEESE AMERICAN SLICED | E70: CHEESE AMERICAN PROCESSED SLICED 1/2 OUNCE EACH UNWRAPPED. REDUCED FAT REDUCED SODIUM PRE-SLICED YELLOW AMERICAN PROCESSED CHEESE. IMITATION OR CHEESE BLENDS NOT ACCEPTED. FAT GRAMS NOT TO EXCEED 2G PER SLICE SODIUM NOT TO EXCEED 210MG PER SLICE. 1 SLICE/.5OZ .5OZMMA 6/5#LAND O LAKES PREFERRED - AVAILABLE FOR NET OFF INVOICE. FOR NOI PRICING | F70: BONGARDS OR APPROVED EQUIVALENT | G70: 111371 | H70: CS | I70: 6 | J70: 5 LB | K70: 675 | L70: 53.47 | M70: =IF(L70*K70= 0,"",L70*K70) -> 36092.25 | N70: =IF(L70/I70= 0,"",L70/I70) -> 8.911666667 | O70: 3550991 | P70: BNGRD | Q70: 4/5/LB | R70: N | S70: CHEESE, AMER PROC RF 160CT
B71: 66 | C71: C1010 | D71: CHEESE CHEDDAR SHREDDED | E71: CHEESE CHEDDAR SHREDDED REDUCED FAT REDUCED SODIUM MILD NO IMITATION ENZYMES AND ARTIFICIAL COLORING MAY BE ADDED. PASTEURIZED PLEASING ODOR AND FLAVOR SATISFACTORY MELTABILITY. FAT GRAMS NOT TO EXCEED 4.5G SODIUM NOT TO EXCEED 90MG. 4/5# AVAILABLE FOR NET OFF INVOICE. FOR NOI PRICING | F71: BONGARDS OR APPROVED EQUIVALENT | G71: 755191 | H71: CS | I71: 4 | J71: 5 LB | K71: 600 | L71: 60.65 | M71: 36390 | N71: 15.1625 | O71: 3550481 | P71: BNGRD | Q71: 4/5/LB | R71: N | S71: CHEESE, CHDR SHRD FTHR RF
B72: 67 | C72: CTF7000 | D72: CHEESE COTTAGE | E72: COTTAGE CHEESE SMALL CURD CATERING | F72: SPECIFY | H72: CS | I72: 1 | J72: 5 LB | K72: 75 | L72: 25.8832 | M72: 1941.24 | N72: 25.8832 | O72: 1951401 | P72: SHAMF | Q72: 2/5/LB | R72: N | S72: COTTAGE CHEESE, LF 2% PLS TUB
B73: 68 | C73: CTF7001 | D73: CHEESE CREAM BLOCK | E73: CREAM CHEESE BLOCK CATERING | F73: SPECIFY | H73: CS | I73: 10 | J73: 3 LB | K73: 20 | L73: 87.3712 | M73: 1747.424 | N73: 8.73712 | O73: 3574471 | P73: SHAMF | Q73: 10/3/LB | R73: N | S73: CHEESE, CREAM LOAF RBST FREE
B74: 69 | C74: C1011 | D74: CHEESE CREAM PLAIN PC | E74: .75 OZ PLAIN CREAM CHEESE PLASTIC PORTION CONTROL CUP | F74: KRAFT OR APPROVED EQUIVALENT | G74: 61089 | H74: CS | I74: 100 | J74: .75 OZ | K74: 900 | L74: 26.432 | M74: 23788.8 | N74: 0.26432 | O74: 3574441 | P74: SHAMF | Q74: 100/1/OZ | R74: N | S74: CHEESE, CREAM CUP 1Z RBST FREE
B75: 70 | C75: C1012 | D75: CHEESE CREAM STRAWBERRY PC | E75: 1OZ STRAWBERRY CREAM CHEESE CUP. PLASTIC PORTION CONTROL CUP. | F75: KRAFT OR APPROVED EQUIVALENT | G75: 72683 | H75: CS | I75: 100 | J75: 1 OZ | K75: 900 | L75: 38.8048 | M75: 34924.32 | N75: 0.388048 | O75: 9525491 | P75: KRAFT | Q75: 100/1/OZ | R75: N | S75: CHEESE, CREAM STRAWBRY PC CUP
B76: 71 | C76: C1013 | D76: CHEESE FETA | E76: FETA CHEESE CRUMBLES | F76: SPECIFY | H76: CS | I76: 4 | J76: 2.5 LB | K76: 50 | L76: 38.08 | M76: 1904 | N76: 9.52 | O76: 4709761 | P76: VLAFO | Q76: 4/2.5/LB | R76: N | S76: CHEESE, FETA CRMBL 2.5LB
B77: 72 | C77: C1014 | D77: CHEESE MOZZARELLA SHREDDED | E77: CHEESE MOZZARELLA SHREDDED: PART-SKIM 100% MOZZARELLA SHREDDED. FAT GRAMS NOT TO EXCEED 6G SODIUM NOT TO EXCEED 160MG. 1OZ SERVING MUST EQUAL 1OZ M/MA. 4/5# | F77: LAND O'LAKES OR APPROVED EQUIVALENT | G77: 41698 | H77: CS | I77: 4 | J77: 5 LB | K77: 270 | L77: 70.76 | M77: 19105.2 | N77: 17.69 | O77: 2987331 | P77: LOL | Q77: 4/5/LB | R77: N | S77: CHEESE, MOZZ SHRD LMPS
B78: 73 | C78: C1015 | D78: CHEESE PEPPER JACK SLICES | E78: CHEESE SLICED PEPPER JACK NO IMITATION REDUCED FAT LOW SODIUM LOW FAT 160 CT | F78: SPECIFY | H78: CS | I78: 4 | J78: 5 LB | K78: 50 | L78: 67.3008 | M78: 3365.04 | N78: 16.8252 | O78: 4863561 | P78: CBLSO | Q78: 4/5/LB | R78: N | S78: CHEESE, PEPR JACK RED & JALP 120 SLICES
B79: 74 | C79: C1016 | D79: CHEESE PROVOLONE SLICES | E79: CHEESE SLICED NO IMITATION REDUCED FAT & SODIUM 160 CT | F79: SPECIFY | H79: CS | I79: 4 | J79: 5 LB | K79: 50 | L79: 40.1184 | M79: 2005.92 | N79: 10.0296 | O79: 4470811 | P79: CBLSO | Q79: 4/2.5/LB | R79: N | S79: CHEESE, PROV NATRL SLI .75Z
B80: 75 | C80: F1029 | D80: CHEESE STICK BREADED | E80: CHEESE STICKS WG BREADED INDIVIDUALLY FROZEN. 6 STICKS PROVIDE 2 OZ EQUIVALENT MEAT ALTERNATE AND 2 OZ GRAINS. | F80: RICH'S OR APPROVED EQUIVALENT | G80: 65220 | H80: CS | I80: 8 | J80: 3 LB | K80: 500 | L80: 76.7975 | M80: 38398.75 | N80: 9.5996875 | O80: 2561181 | P80: FMRCH | Q80: 8/3/LB | R80: N | S80: APPTZR, CHSE STICK BRD WG RF
B81: 76 | C81: C1017 | D81: CHEESE STICK MARBLE IW | E81: CHEESE REDUCED FAT & SODIUM MARBLE IW FOR NOI PRICING | F81: BONGARDS OR APPROVED EQUIVALENT | G81: 402931 | H81: CS | I81: 168 | J81: 1 OZ | K81: 300 | L81: 43.81 | M81: 13143 | N81: 0.2607738095 | O81: 3550471 | P81: BNGRD | Q81: 168/1/OZ | R81: Y | S81: CHEESE, MARBLE JACK STICK
B82: 77 | C82: C1018 | D82: CHEESE STRING IW | E82: CHEESE: WHITE REDUCED FAT & SODIUM PORTION STICKS STRING PASTEURIZED LOW MOISTURE PART SKIM MOZZARELLA IW FOR NOI PRICING | F82: BONGARDS OR APPROVED EQUIVALENT | G82: 402951 | H82: CS | I82: 168 | J82: 1 OZ | K82: 300 | L82: 38.51 | M82: 11553 | N82: 0.2292261905 | O82: 3527261 | P82: BNGRD | Q82: 168/1/OZ | R82: N | S82: CHEESE, MOZZ STRING IW
B83: 78 | C83: C1019 | D83: CHEESE SWISS SLICES | E83: SWISS CHEESE SLICES REDUCED FAT PRESLICED EASY TO SEPARATE. EACH SLICE 14G. 2 SLICES PROVIDES 1 M/MA FOR THE CHILD NUTRITION MEAL PROGRAM. | F83: LAND O'LAKES OR APPROVED EQUIVALENT | H83: CS | I83: 8 | J83: 1.5 LB | K83: 50 | L83: 41.0032 | M83: 2050.16 | N83: 5.1254 | O83: 4470831 | P83: CBLSO | Q83: 6/1.5/LB | R83: N | S83: CHEESE, SWISS NATRL SLI .75Z
B84: 79 | C84: F1030 | D84: CHICKEN ASIAN CHERRY BLOOSOM | E84: FULLY COOKED CHICKEN CHUNKS WHOLE GRAIN SWEET AND SOUR CHERRY ASIAN STYLE | F84: ASIAN FOODS OR APPROVED EQUIVALENT | G84: 72005 | H84: CS | I84: 6 | J84: 7.15 LB | K84: 500 | L84: 172.81 | M84: 86405 | N84: 28.80166667 | O84: 3301761 | P84: GRDRG | Q84: 176/3.9/OZ | R84: Y | S84: CHICKEN, JAPANESE CHERRY BLOSSOM WG
B85: 80 | C85: CTF7055 | D85: CHICKEN BREAST RAW | E85: CHICKEN UNCOOKED BREAST BONELESS SKINLESS WHITE 6 OZ SIZE CATERING | F85: SPECIFY | H85: CS | I85: 4 | J85: 5LB | K85: 25 | L85: 73.67035 | M85: 1841.75875 | N85: 18.4175875 | O85: 4801921 | P85: RCSIG | Q85: 48/6/OZ | R85: N | S85: CHICKEN, BRST B&S IF ALL NATRL
B86: 81 | C86: D1023 | D86: CHICKEN BROTH | E86: 100% NATURAL CHICKEN BROTH LOW SODIUM THANKSGIVING ONLY | F86: SWANSON OR APPROVED EQUIVALENT | H86: CS | I86: 12 | J86: 49 oz | K86: 50 | L86: 35.508 | M86: 1775.4 | N86: 2.959 | O86: 4472551 | P86: SWNSN | Q86: 12/32/OZ | R86: N | S86: BROTH, CHICK
B87: 82 | C87: F1031 | D87: CHICKEN DICED | E87: FULLY COOKED DICED NO ADDED SPICES | F87: SPECIFY | H87: CS | I87: 2 | J87: 5 LBS | K87: 300 | L87: 43.66 | M87: 13098 | N87: 21.83 | O87: 4363071 | P87: TYSON | Q87: 2/5/LB | R87: N | S87: CHICKEN, DICED 1/2" LS ALL NATRL FC
B88: 83 | C88: F1032 | D88: CHICKEN DRUMSTICK BBQ | E88: FULLY COOKED BBQ GLAZED DRUMSTICK MUST MEET 2.5OZ M/MA FOR NSLP NO ANTIBIOTICS | F88: TYSON OR APPROVED EQUIVALENT | G88: 10264350928 | H88: CS | I88: 95 | J88: 3.24 OZ | K88: 600 | L88: 90.1 | M88: 54060 | N88: 0.9484210526 | O88: 3913271 | P88: TYSON | Q88: 1/30/LB | R88: N | S88: CHICKEN, DRUMSTICK GLZED FC
B89: 84 | C89: F1033 | D89: CHICKEN DRUMSTICK BREADED | E89: FULLY COOKED BREADED DRUMSTICK MUST MEET 2 M/MA AND .75 OZ GRAIN FOR NSLP | F89: TYSON OR APPROVED EQUIVALENT | G89: 16660100928 | H89: CS | I89: 92 | J89: 3.31 OZ | K89: 700 | L89: 93.66 | M89: 65562 | N89: 1.018043478 | O89: 3552991 | P89: TYSON | Q89: 1/29/LB | R89: Y | S89: CHICKEN, DRUMSTICK BI BRD WG FC
B90: 85 | C90: F1034 | D90: CHICKEN FAJITA STRIPS | E90: FAJITA STRIPS CHICKEN SEASONED FULLY COOKED. EACH 2.47 OZ MEETS 2OZ M/MA FOR NSLP. | F90: PILGRIM'S OR APPROVED EQUIVALENT | G90: 1250 | H90: CS | I90: 159 | J90: 3 OZ | K90: 800 | L90: 118.88 | M90: 95104 | N90: 0.747672956 | O90: 4361021 | P90: GLDKF | Q90: 1/30/LB | R90: N | S90: CHICKEN, FAJITA STRIP DARK WHT FC CN
B91: 86 | C91: F1035 | D91: CHICKEN FILET | E91: FULLY COOKED WHOLE MUSCLE CHICKEN FILETS-CN LABELED EACH SERVING PROVIDED 2OZ M/MA AND 1 OZ GRAIN FOR NSLP | F91: PILGRIM'S OR APPROVED EQUIVALENT | G91: 7516 | H91: CS | I91: 122 | J91: 3.95 OZ | K91: 100 | L91: 141.25 | M91: 14125 | N91: 1.157786885 | O91: 3550681 | P91: PIERC | Q91: 1/30/LB | R91: N | S91: CHICKEN, BRST BRD WG FLT NOI
B92: 87 | C92: F1036 | D92: CHICKEN NUGGET | E92: FULLY COOKED WG BREADED CN LABELED WHOLE MUSCLE 5 NUGGETS PROVIDE 2 OZ MEAT/MEAT ALTERNATIVE AND 1 GRAIN SERVING FOR NSLP COMMERICAL BACK-UP OF COMMODITY PRODUCT OR FOR NOI PRICING | F92: GOLK KIST FARMS OR APPROVED EQUIVALENT | G92: 7518 | H92: CS | I92: 101 | J92: 3.9 OZ | K92: 600 | L92: 120.01 | M92: 72006 | N92: 1.188217822 | O92: 3550751 | P92: GLDKF | Q92: 1/30/LB | R92: N | S92: CHICKEN, NUGGET BITE BRD WG NOI
B93: 88 | C93: F1037 | D93: CHICKEN PATTY BREADED | E93: FULLY COOKED WG BREADED CN LABELED EACH PATTY PROVIDES 2 OZ MEAT/MEAT ALTERNATIVE AND 1 GRAIN SERVING. | F93: GOLD KIST FARMS OR APPROVED EQUIVALENT | G93: 665400 | H93: CS | I93: 158 | J93: 3.03 OZ | K93: 450 | L93: 85.41 | M93: 38434.5 | N93: 0.5405696203 | O93: 3807031 | P93: GLDKF | Q93: 1/156/PK | R93: N | S93: CHICKEN, PTY BRD WG HMSTYL FC
B94: 89 | C94: F1038 | D94: CHICKEN PATTY BREADED SPICY | E94: FULLY COOKED HOT N SPICY BREADED CHICKEN BREAST FILETS | F94: TYSON OR APPROVED EQUIVALENT | G94: 10383140928 | H94: CS | I94: 40 | J94: 3.95 OZ | K94: 300 | L94: 45.75 | M94: 13725 | N94: 1.14375 | O94: 2634181 | P94: TYSRD | Q94: 2/5/LB | R94: N | S94: CHICKEN, BRST BRD FLT SPCY FC
B95: 90 | C95: F1039 | D95: CHICKEN PATTY GRILLED | E95: FULLY COOKED GRILLED CHICKEN BREASTS 4OZ PATTY NO ANTIBIOTICS | F95: TYSON OR APPROVED EQUIVALENT | G95: 10000039685 | H95: CS | I95: 40 | J95: 3.95 OZ | K95: 300 | L95: 43.63645 | M95: 13090.935 | N95: 1.09091125 | O95: 1907491 | P95: TYSON | Q95: 40/4/OZ | R95: N | S95: CHICKEN, BRST B&S TNDR PRSSD SAVORY
B96: 91 | C96: F1040 | D96: CHICKEN POPCORN SMACKERS WG | E96: WHOLE GRAIN BREADED FULLY COOKED CN LABELED POPCORN CHICKEN PRODUCED FROM USDA 100103 DARK MEAT COMMODITY CHICKEN. NO ADDED SOY PROTEIN. BATTER BREADED WITH WHOLE GRAIN AND ENRICHED WHEAT FLOUR. TEN POPCORN PIECES @ 0.43 OZ EACH GUARANTEED BY CN LABEL TO PROVIDE 2 OUNCES MEAT/MEAT ALTERNATIVE AND 1 GRAIN SERVINGS. PRODUCT TO PROVIDE ZERO GRAMS TRANS FATS. CONTAINS: MILK SOY WHEAT. COMMERICAL BACK-UP OF COMMODITY PRODUCT OR FOR NOI PRICING | F96: GOLD KIST FARMS OR APPROVED EQUIVALENT | G96: 110458 | H96: CS | I96: 104 | J96: 4.23 OZ | K96: 900 | L96: 96.1 | M96: 86490 | N96: 0.9240384615 | O96: 3911851 | P96: GLDKF | Q96: 108/4.3/OZ | R96: N | S96: CHICKEN, POPCORN WG DRK MEAT NOI CN
B97: 92 | C97: F1041 | D97: CHICKEN STRIP WG | E97: WHOLE GRAIN HOMESTYLE BREADED FULLY-COOKED CN LABELED CHICKEN STRIPS PRODUCED FROM USDA 100103 NATURAL PROPORTION WHITE AND DARK MEAT COMMODITY CHICKEN WITH ISOLATED SOY PROTEIN. STRIPS ARE BATTER BREADED WITH WHOLE GRAIN WHEAT FLOUR HOMESTYLE BREADING. THREE STRIPS PROVIDE 2 OZ. MEAT/MEAT ALTERNATIVE AND 1 GRAIN SERVING. PRODUCT TO PROVIDE ZERO GRAMS TRANS FATS. COMMERICAL BACK-UP OF COMMODITY PRODUCT OR FOR NOI PRICING | F97: GOLD KIST FARMS OR APPROVED EQUIVALENT | G97: 7527 | H97: CS | I97: 107 | J97: 4.50 OZ | K97: 900 | L97: 113.26 | M97: 101934 | N97: 1.058504673 | O97: 3627191 | P97: TYSON | Q97: 4/7.5/LB | R97: N | S97: CHICKEN, TNDRLOIN GLDN CRISPY WG 1.41Z
B98: 93 | C98: D1024 | D98: CHILI HOT DOG | E98: HOT DOG CHILI. HEARTY CHUNKS OF LEAN BEEF AND PLUMP TENDER BEANS | F98: LIBBY'S OR APPROVED EQUIVALENT | H98: CS | I98: 6 | J98: #10 CANS | K98: 800 | L98: 94.908 | M98: 75926.4 | N98: 15.818 | O98: 4402481 | P98: CHEFM | Q98: 6/10/CN | R98: N | S98: CHILI, HOT DOG
B99: 94 | C99: D1025 | D99: CHIPS BAKED CHEETOS CRUNCHY | E99: CHIPS BAKED CRUNCHY CHEETOS | F99: FRITO LAY OR APPROVED EQUIVALENT | G99: 000-28400-21642-5 | H99: CS | I99: 104 | J99: .875 OZ | K99: 472 | L99: No Bid | O99: NO BID | P99: NO BID | Q99: NO BID | R99: NO BID | S99: NO BID
B100: 95 | C100: D1026 | D100: CHIPS BAKED DORITOS | E100: CHIPS BAKED DORITOS NACHO CHEESE | F100: FRITO LAY OR APPROVED EQUIVALENT | G100: 000-28400-20002-8 | H100: CS | I100: 88 | J100: .75 OZ | K100: 549 | L100: No Bid | O100: NO BID | P100: NO BID | Q100: NO BID | R100: NO BID | S100: NO BID
B101: 96 | C101: D1027 | D101: CHIPS BAKED LAYS BBQ | E101: CRISPS BAKED LAYS BBQ FLAVOR | F101: FRITO LAY OR APPROVED EQUIVALENT | G101: 000-28400-32078-8 | H101: CS | I101: 60 | J101: .875 OZ | K101: 100 | L101: 22.858 | M101: 2285.8 | N101: 0.3809666667 | O101: 2435681 | P101: LAYS | Q101: 60/0.88/OZ | R101: N | S101: CHIP, BAKED POTATO BBQ CRISPS
B102: 97 | C102: D1028 | D102: CHIPS BAKED LAYS SC/ONION | E102: CRISPS BAKED LAYS SOUR CREAM & ONION | F102: FRITO LAY OR APPROVED EQUIVALENT | G102: 00028400-04702-9 | H102: CS | I102: 60 | J102: .875 OZ | K102: 400 | L102: 36.234 | M102: 14493.6 | N102: 0.6039 | O102: 2859971 | P102: LAYS | Q102: 64/1.12/OZ | R102: N | S102: CHIP, BAKED POTATO SRCRM ONION
B103: 98 | C103: D1029 | D103: CHIPS FRITOS | E103: ENRICHED REDUCED FAT CORN CHIPS WHOLE GRAIN | F103: FRITO LAY OR APPROVED EQUIVALENT | G103: 000-28400-57766-3 | H103: CS | I103: 8 | J103: 1 LB | K103: 1900 | L103: No Bid | O103: NO BID | P103: NO BID | Q103: NO BID | R103: NO BID | S103: NO BID
B104: 99 | C104: CTF7011 | D104: CHIPS KETTLE VARIETY | E104: VARIETY PACK OF KETTLE CHIPS CATERING | F104: SPECIFY | H104: CS | I104: 30 | J104: 1.5 OZ | K104: 25 | L104: 40.788 | M104: 1019.7 | N104: 1.3596 | O104: 4751731 | P104: MISVI | Q104: 2/30/PK | R104: N | S104: CHIP, POTATO VRTYPK MISS VICKIES 2/30CT
B105: 100 | C105: D1030 | D105: CHIPS SS CHEETO RED HOT | E105: CHIPS IND. PKG. RED HOT FRITO LAY BAKED: ENRICHED CORNMEAL PUFF STICK FLAVORED WITH RED HOT CHEESE SEASONING. 104/.875 OZ | F105: CHEETO'S OR APPROVED EQUIVALENT | G105: 62984 | H105: CS | I105: 104 | J105: .875 OZ | K105: 400 | L105: 44.814 | M105: 17925.6 | N105: 0.4309038462 | O105: 4051041 | P105: CHETO | Q105: 104/0.9/OZ | R105: N | S105: SNACK, CHEETOS CRUNCHY FLAMIN HOT BKD WG
B106: 101 | C106: D1031 | D106: CHIPS SS DORITOS COOL RANCH | E106: CHIPS IND. PKG. REDUCED FAT COOL RANCH FLAVORED CORN: BAKED TRIANGLE SHAPED CORN TORTILLA PIECES FLAVORED WITH RANCH SEASONING. 72/1 OZ. | F106: DORITOS OR APPROVED EQUIVALENT | G106: 36096 | H106: CS | I106: 72 | J106: 1 OZ | K106: 400 | L106: 29.216 | M106: 11686.4 | N106: 0.4057777778 | O106: 3366971 | P106: DORTO | Q106: 72/1/OZ | R106: N | S106: CHIP, TORTILLA RF COOL RANCH
B107: 102 | C107: D1032 | D107: CHIPS SS DORITOS NACHO CHEESE | E107: CHIPS REDUCED FAT NACHO CHEESE FLAVOR. WG | F107: DORITOS OR APPROVED EQUIVALENT | G107: 31748 | H107: CS | I107: 72 | J107: 1 OZ | K107: 400 | L107: 31.757 | M107: 12702.8 | N107: 0.4410694444 | O107: 2448781 | P107: DORTO | Q107: 72/1/OZ | R107: N | S107: CHIP, TORTILLA NACHO CHSE RF WG
B108: 103 | C108: D1033 | D108: CHIPS SS POTATO | E108: CHIPS IND. PKG. BAKED REG. FLAVORED: BAKED POTATO PIECES SALTED PLAIN. NO MORE THAN 7.5 GRAMS OF FAT PER BAG. | F108: LAYS OR APPROVED EQUIVALENT | G108: 33625 | H108: CS | I108: 60 | J108: .875 OZ | K108: 300 | L108: No Bid | O108: NO BID | P108: NO BID | Q108: NO BID | R108: NO BID | S108: NO BID
B109: 104 | C109: D1034 | D109: CHIPS SS PUFF CHEESE | E109: CHIPS PUFFS RF WG | F109: CHEETO'S OR APPROVED EQUIVALENT | G109: 21910 | H109: CS | I109: 72 | J109: .7 OZ | K109: 300 | L109: 24.189 | M109: 7256.7 | N109: 0.3359583333 | O109: 3366951 | P109: CHETO | Q109: 72/0.7/OZ | R109: Y | S109: SNACK, CHEETOS PUFFS RF
B110: 105 | C110: D1035 | D110: CHIPS SS SOUR CREAM/ONION | E110: CHIPS IND. PKG. BAKED SOUR CRM. & ONION FLAVORED: BAKED POTATO PIECES FLAVORED WITH SOUR CREAM AND ONION SEASONING. 60/.875 OZ. WG | F110: LAYS OR APPROVED EQUIVALENT | G110: 33627 | H110: CS | I110: 60 | J110: .875 OZ | K110: 300 | L110: No Bid | O110: NO BID | P110: NO BID | Q110: NO BID | R110: NO BID | S110: NO BID
B111: 106 | C111: D1036 | D111: CHIPS TORTILLA ROUNDS | E111: ROUND SHAPED TORTILLA CHIP WHOLE GRAIN PREPARED FROM ENRICHED YELLOW CORN. TRANSFAT FREE 1 OZ MUST MEET 1 GR | F111: SPECIFY | H111: CS | I111: 6 | J111: 2 LB | K111: 2500 | L111: 20.317 | M111: 50792.5 | N111: 3.386166667 | O111: 4004141 | P111: TOSTO | Q111: 8/16/OZ | R111: N | S111: CHIP, TORTILLA RND BULK WG
B112: 107 | C112: CTF7012 | D112: CHOCOLATE ENROBER | E112: CHOCOLATE FLAVORED ENROBER COATING IS A RICH CHOCOLATE COATING THAT HARDENS AT ROOM TEMPERATURE. THE PRODUCT IS IN A HARDENED CANDY STATE IN THE UNHEATED CAN. CATERING | F112: SPECIFY | H112: CS | I112: 3 | J112: 10 CN | K112: 15 | L112: No Bid | O112: NO BID | P112: NO BID | Q112: NO BID | R112: NO BID | S112: NO BID
B113: 108 | C113: F1042 | D113: CHORIZO BULK | E113: SAUSAGE CHORIZO BULK MILD SEASONING LIGHT COLORED BULK | F113: SPECIFY | H113: CS | I113: 10 | J113: LB | K113: 450 | L113: 45.16135 | M113: 20322.6075 | N113: 4.516135 | O113: 3095341 | P113: GCSIG | Q113: 2/5/LB | R113: N | S113: CHORIZO, PORK BULK MILD
B114: 109 | C114: CTF7013 | D114: COCOA | E114: UNSWEETENED COCOA 22/24% BUTTER FAT CATERING | F114: SPECIFY | H114: CS | I114: 4 | J114: 2.5KG | K114: 20 | L114: 30.13 | M114: 602.6 | N114: 7.5325 | O114: 4960381 | P114: TRRSS | Q114: 1/2.2/LB | R114: N | S114: COCOA, PWDR UNSWTND DUTCH 22-24%
B115: 110 | C115: D1037 | D115: COFFEE DECAF | E115: FOLGERS FILTER PACK COFFEE ULTRA DRY ROAST | F115: FOLGERS OR APPROVED EQUIVALENT | H115: CS | I115: 80 | J115: .9 OZ | K115: 20 | L115: 61.9696 | M115: 1239.392 | N115: 0.77462 | O115: 1261171 | P115: FOLGR | Q115: 80/.9/OZ | R115: N | S115: COFFEE, DECAF FLAV FILTER PK
B116: 111 | C116: D1038 | D116: COFFEE REGULAR | E116: FOLGERS FILTER PACK COFFEE ULTRA DRY ROAST | F116: FOLGERS OR APPROVED EQUIVALENT | H116: CS | I116: 160 | J116: .9 OZ | K116: 50 | L116: 104.2048 | M116: 5210.24 | N116: 0.65128 | O116: 1262201 | P116: FOLGR | Q116: 160/.9/OZ | R116: N | S116: COFFEE, SPEC RST FILTER PK
B117: 112 | C117: F1043 | D117: COOKIE DOUGH CARNIVAL WG | E117: COOKIE DOUGH CARNIVAL: 1.85OZ FROZEN WGR MADE WITH A MIXTURE OF CHOCOLATE CHIPS AND COLORFUL COATED CANDIES PRE-PORTIONED READY TO BAKE FAT GRAMS TO NOT EXCEED 6G SODIUM MG NOT TO EXCEED 120 MG CASE PACK 240 1.5OZ DECA | F117: OTIS SPUNKMEYER OR APPROVED EQUIVALENT | G117: 55688 | H117: CS | I117: 250 | J117: 1.5 OZ | K117: 75 | L117: 60.3551 | M117: 4526.6325 | N117: 0.2414204 | O117: 3007451 | P117: DELES | Q117: 240/1.5/OZ | R117: Y | S117: DOUGH, COOKIE CARNIVAL 51% WG 1.5Z
B118: 113 | C118: CTF7056 | D118: COOKIE DOUGH CHOCOLATE CHIP | E118: COOKIE DOUGH CHOCOLATE CHIP CATERING | F118: BRICKFIRE OR APPROVED EQUIVALENT | G118: 2340091 | H118: CS | I118: 170 | J118: 1.5 OZ | K118: 75 | L118: 36.2219 | M118: 2716.6425 | N118: 0.21307 | O118: 2340091 | P118: BRCKO | Q118: 170/1.5/OZ | R118: N | S118: DOUGH, COOKIE CHOC CHIP 1.5Z
B119: 114 | C119: CTF7057 | D119: COOKIE DOUGH OATMEAL RAISIN | E119: COOKIE DOUGH OATMEAL RAISIN CATERING | F119: BRICKFIRE OR APPROVED EQUIVALENT | G119: 2340101 | H119: CS | I119: 170 | J119: 1.5 OZ | K119: 60 | L119: 34.7633 | M119: 2085.798 | N119: 0.20449 | O119: 2340101 | P119: BRCKO | Q119: 170/1.5/OZ | R119: N | S119: DOUGH, COOKIE OATMEAL RASN 1.5Z
B120: 115 | C120: F1044 | D120: COOKIE DOUGH RF CHOCOLATE BROWNIE | E120: COOKIE DOUGH REDUCED FAT CHOCOLATE BROWNIE DECA | F120: OTIS SPUNKMEYER OR APPROVED EQUIVALENT | G120: 55689 | H120: CS | I120: 240 | J120: 1.5 OZ | K120: 100 | L120: 57.1727 | M120: 5717.27 | N120: 0.2382195833 | O120: 3007441 | P120: DELES | Q120: 240/1.5/OZ | R120: N | S120: DOUGH, COOKIE CHOC BROWNIE 51% WG 1.5Z
B121: 116 | C121: F1045 | D121: COOKIE DOUGH RF CHOCOLATE CHIP | E121: COOKIE DOUGH REDUCED FAT CHOCOLATE CHIP DECA | F121: OTIS SPUNKMEYER OR APPROVED EQUIVALENT | G121: 55680 | H121: CS | I121: 240 | J121: 1.5 OZ | K121: 300 | L121: 57.1727 | M121: 17151.81 | N121: 0.2382195833 | O121: 3007481 | P121: DELES | Q121: 240/1.5/OZ | R121: Y | S121: DOUGH, COOKIE CHOC CHIP 51% WG 1.5Z
B122: 117 | C122: F1046 | D122: COOKIE DOUGH RF OATMEAL RAISIN | E122: COOKIE DOUGH REDUCED FAT OATMEAL RAISIN DECA | F122: OTIS SPUNKMEYER OR APPROVED EQUIVALENT | G122: 55683 | H122: CS | I122: 240 | J122: 1.5 OZ | K122: 50 | L122: 57.1727 | M122: 2858.635 | N122: 0.2382195833 | O122: 3007471 | P122: DELES | Q122: 240/1.5/OZ | R122: Y | S122: DOUGH, COOKIE OATMEAL RASN 51% WG 1.5Z
B123: 118 | C123: F1047 | D123: COOKIE DOUGH RF SUGAR | E123: COOKIE DOUGH SUGAR REDUCED FAT DECA | F123: OTIS SPUNKMEYER OR APPROVED EQUIVALENT | G123: 55684 | H123: CS | I123: 240 | J123: 1.5 OZ | K123: 45 | L123: 57.1727 | M123: 2572.7715 | N123: 0.2382195833 | O123: 3007461 | P123: DELES | Q123: 240/1.5/OZ | R123: Y | S123: DOUGH, COOKIE SGR 51% WG 1.5Z
B124: 119 | C124: CTF7058 | D124: COOKIE DOUGH SUGAR | E124: COOKIE DOUGH SUGAR CATERING | F124: BRICKFIRE OR APPROVED EQUIVALENT | G124: 2340111 | H124: CS | I124: 170 | J124: 1.5 OZ | K124: 60 | L124: 34.6749 | M124: 2080.494 | N124: 0.20397 | O124: 2340111 | P124: BRCKO | Q124: 170/1.5/OZ | R124: N | S124: DOUGH, COOKIE SGR 1.5Z
B125: 120 | C125: CTF7059 | D125: COOKIE DOUGH WHITE MACADAMIA NUT | E125: COOKIE DOUGH WHITE MACADAMIA NUT CATERING | F125: BRICKFIRE OR APPROVED EQUIVALENT | G125: 2340361 | H125: CS | I125: 170 | J125: 1.5 OZ | K125: 60 | L125: 43.8685 | M125: 2632.11 | N125: 0.25805 | O125: 2340361 | P125: BRCKO | Q125: 170/1.5/OZ | R125: N | S125: DOUGH, COOKIE WHT CHOC MACNUT 1.5Z
B126: 121 | C126: F1048 | D126: COOKIE GINGER BREAD | E126: COOKIE GINGER BREAD IW MEETS 2 GRAIN REQUIREMENT FOR NSP | F126: SPECIFY | H126: CS | I126: 140 | J126: 2 OZ | K126: 500 | L126: No Bid | O126: NO BID | P126: NO BID | Q126: NO BID | R126: NO BID | S126: NO BID
B127: 122 | C127: F1049 | D127: CORNDOG | E127: CORNDOG CHICKEN FRANK WHOLE GRAIN P/C 8/1 60 CT CN LABELED TO MEET 2 OZ MEAT REQUIREMENT | F127: FOSTER FARMS OR APPROVED EQUIVALENT | G127: 95150 | H127: CS | I127: 72 | J127: 4 OZ | K127: 2000 | L127: 45.3492 | M127: 90698.4 | N127: 0.62985 | O127: 2345531 | P127: FFARM | Q127: 72/4/OZ | R127: N | S127: CORN DOG, CHICK LF WG CN
B128: 123 | C128: D1039 | D128: CORNSTARCH | E128: CORNSTARCH | F128: SPECIFY | H128: CS | I128: 24 | J128: 1 LB | K128: 45 | L128: 39.0544 | M128: 1757.448 | N128: 1.627266667 | O128: 3203311 | P128: KATYO | Q128: 24/1/LB | R128: N | S128: STARCH, CORN 1LB
B129: 124 | C129: D1040 | D129: CRACKERS ANIMAL | E129: CRACKERS ANIMAL SHAPED 0 TRANSFAT WHOLE GRAIN RICH | F129: SPECIFY | H129: CS | I129: 100 | J129: 1 OZ | K129: 300 | L129: No Bid | O129: NO BID | P129: NO BID | Q129: NO BID | R129: NO BID | S129: NO BID
B130: 125 | C130: D1041 | D130: CRACKERS BUG BITES | E130: BUG BITES CINNAMON WHOLE GRAIN RICH | F130: KEEBLER OR APPROVED EQUIVALENT | G130: 30100-55644 | H130: CS | I130: 210 | J130: 1 OZ | K130: 1000 | L130: 52.316 | M130: 52316 | N130: 0.2491238095 | O130: 3065831 | P130: GRHMK | Q130: 210/1.1/OZ | R130: Y | S130: CRACKER, CINN GRAHAM WG BUG BITE 1.1Z
B131: 126 | C131: D1042 | D131: CRACKERS GOLDFISH CHEDDAR | E131: CHEDDAR GOLDFISH WHOLE GRAIN: A 3/4 OUNCE SERVING CONTRIBUTES 1 SERVING OF GRAINS/BREADS TO THE USDA CHILD NUTRITION PROGRAMS WHOLE GRAIN RICH | F131: PEPPERIDGE FARMS OR APPROVED EQUIVALENT | G131: 18105 | H131: CS | I131: 300 | J131: 0.75 OZ | K131: 500 | L131: 65.274 | M131: 32637 | N131: 0.21758 | O131: 2904951 | P131: PFARM | Q131: 300/.75/OZ | R131: N | S131: CRACKER, GOLDFISH WG
B132: 127 | C132: D1043 | D132: CRACKERS GOLDFISH GIANT CINNAMON | E132: CRACKERS GIANT GOLDFISH CINNAMON WHOLE GRAIN RICH | F132: PEPPERIDGE FARMS OR APPROVED EQUIVALENT | G132: 15094 | H132: CS | I132: 300 | J132: .9 OZ | K132: 300 | L132: 56.045 | M132: 16813.5 | N132: 0.1868166667 | O132: 4384141 | P132: PFARM | Q132: 300/.9/OZ | R132: Y | S132: CRACKER, GOLDFISH CINN GRAHAM GIANT WG
B133: 128 | C133: D1044 | D133: CRACKERS GOLDFISH GIANT HONEY OAT | E133: CRACKER WHOLE GRAIN GIANT HONEY OAT GRAHAM 2 EA WHOLE GRAIN RICH | F133: PEPPERIDGE FARMS OR APPROVED EQUIVALENT | G133: 18432 | H133: CS | I133: 300 | J133: .9 OZ | K133: 300 | L133: 53.383 | M133: 16014.9 | N133: 0.1779433333 | O133: 4368621 | P133: PFARM | Q133: 300/9/OZ | R133: Y | S133: CRACKER, GOLDFISH VANILLA GIANT
B134: 129 | C134: D1045 | D134: CRACKERS GRAHAM 3-PK | E134: GRAHAM 3-PK WHOLE GRAIN RICH | F134: SPECIFY | H134: CS | I134: 150 | J134: 3 PK | K134: 2500 | L134: 27.192 | M134: =IF(L134*K134= 0,"",L134*K134) -> 67980 | N134: =IF(L134/I134= 0,"",L134/I134) -> 0.18128 | O134: 3343541 | P134: GRHMK | Q134: 150/3/PK | R134: N | S134: CRACKER, GRAHAM HNY W-CALCIUM 3PK IW
B135: 130 | C135: CTF7014 | D135: CRACKERS MEDLEY MIX | E135: CRACKER MEDLEY - TOASTEDS® WHEAT SESAME AND BUTTER CRISP CLUB® TOWN HOUSE® AND KEEBLER® WHOLE GRAIN WHEAT 25 SLEEVES CATERING | F135: KEEBLER OR APPROVED EQUIVALENT | G135: 30100 37739 | H135: CS | I135: 25 | J135: SLEEVES | K135: 5 | L135: 34.716 | M135: 173.58 | N135: 1.38864 | O135: 1924391 | P135: KELLG | Q135: 1/7.5/LB | R135: N | S135: CRACKER, ASSORT MEDLEY BULK
B136: 131 | D136: CRACKERS SALTINE IW | E136: SALTINE CRACKERS PC WHOLE GRAIN OR ENRICHED FLOUR TO MEET BREAD REQ. FOR NSLP 500/2 CT | F136: NABISCO OR APPROVED EQUIVALENT | H136: CS | I136: 500 | J136: 2 CT | K136: 500 | L136: 20.35 | M136: 10175 | N136: 0.0407 | O136: 2546151 | P136: BRCKO | Q136: 1/500/PK | R136: N | S136: CRACKER, SALTINE 2PK
B137: 132 | C137: CTF7002 | D137: CREAMER NON-DAIRY | E137: NON-DAIRY CREAMER INIVIDUAL PACK LIQUID CATERING | F137: SPECIFY | H137: CS | I137: 400 | J137: EA | K137: 45 | L137: 12.765 | M137: 574.425 | N137: 0.0319125 | O137: 2955431 | P137: CMATE | Q137: 1/180/PK | R137: N | S137: CREAMER, ORIG ND LIQ .38Z
B138: 133 | C138: CTF7003 | D138: CREAMER NON-DAIRY CARAMEL MACCHIATO | E138: NON-DAIRY CREAMER CARAMEL MACCHIATO INIVIDUAL PACK LIQUID CATERING | F138: SPECIFY | H138: CS | I138: 288 | J138: 1ML | K138: 35 | L138: 16.974 | M138: 594.09 | N138: 0.0589375 | O138: 2529371 | P138: INTDE | Q138: 1/288/PK | R138: N | S138: CREAMER, CARAMEL MACCHIATTO ASEPTIC PC
B139: 134 | C139: CTF7004 | D139: CREAMER NON-DAIRY FRENCH VANILLA | E139: NON-DAIRY CREAMER FRENCH VANILLA INIVIDUAL PACK LIQUID CATERING | F139: SPECIFY | H139: CS | I139: 288 | J139: 1ML | K139: 35 | L139: 16.974 | M139: 594.09 | N139: 0.0589375 | O139: 1250891 | P139: INTDE | Q139: 1/288/PK | R139: N | S139: CREAMER, FRENCH VANILLA ASEPTIC PC
B140: 135 | C140: CTF7005 | D140: CREAMER NON-DAIRY HAZEL NUT | E140: NON-DAIRY CREAMER HAZEL NUT INIVIDUAL PACK LIQUID CATERING | F140: SPECIFY | H140: CS | I140: 288 | J140: 1ML | K140: 35 | L140: 16.974 | M140: 594.09 | N140: 0.0589375 | O140: 1853171 | P140: INTDE | Q140: 1/288/PK | R140: N | S140: CREAMER, HAZELNUT ASEPTIC PC
B141: 136 | C141: F1050 | D141: CROISSANT | E141: CROISSANTS WG MARGARINE RF ROUND FULLY SLICED MUST PROVIDE 2.0 OZ GRAIN EQUIVALENTS. PORTION TO PROVIDE AT LEAST 145.0 CALORIES WITH NO MORE THAN 6 GRAMS OF FAT. | F141: BAKE CRAFTERS OR APPROVED EQUIVALENT | G141: 3286 | H141: CS | I141: 80 | J141: 2.2 OZ | K141: 800 | L141: No Bid | O141: NO BID | P141: NO BID | Q141: NO BID | R141: NO BID | S141: NO BID
B142: 137 | C142: CTF7060 | D142: CROISSANT CATERING 30Z | E142: FULLY COOKED FLAKEY BUTTERY CRUST PRESLICED ROUND SHAPED ROLL 3 OZ CATERING | F142: SPECIFY | H142: CS | I142: 32 | J142: 3 OZ | K142: 40 | L142: 34.7412 | M142: 1389.648 | N142: 1.0856625 | O142: 4623351 | P142: BRCKD | Q142: 1/32/PK | R142: N | S142: CROISSANT, BUTTER SLI CLOSED 3Z
B143: 138 | C143: CTF7061 | D143: CROISSANT CATERING 5OZ | E143: FULLY COOKED FLAKEY BUTTERY CRUST PRESLICED ROUND SHAPED ROLL 5 OZ CATERING | F143: SPECIFY | H143: CS | I143: 24 | J143: 5 OZ | K143: 25 | L143: No Bid | O143: NO BID | P143: NO BID | Q143: NO BID | R143: NO BID | S143: NO BID
B144: 139 | C144: CTF7015 | D144: CROUTONS | E144: CROUTONS/ HERB SEASONED ENRICHED SMALL CUBE CATERING | F144: SPECIFY | H144: CS | I144: 10 | J144: LB | K144: 150 | L144: 24.3321 | M144: 3649.815 | N144: 2.43321 | O144: 3182001 | P144: KATYO | Q144: 4/2.5/LB | R144: N | S144: CROUTON, HMSTYL SEASN
B145: 140 | C145: F1051 | D145: CRUMB SQUARE IW | E145: CRUMB SQUARE IW WHOLE GRAIN MEETS 2 OZ WG SERVING FOR SBP | F145: DAVE'S OR APPROVED EQUIVALENT | G145: 360 | H145: CS | I145: 28 | J145: 3.6 OZ | K145: 2120 | L145: 20.8845 | M145: 44275.14 | N145: 0.745875 | O145: 4066401 | P145: DVBKY | Q145: 28/3.6/OZ | R145: N | S145: SNACK, CRUMB SQ WG
B146: 141 | C146: F1052 | D146: DONUT MINI CHOCOLATE | E146: 51% WG MINI DONUTS - CHOCOLATE. 72 - 3.3OZ FROZEN INDIVIDUALLY WRAPPED THAW & SERVE NICKEL STACK SIX PACKS OF 1/2 OZ CHOCOLATE ENROBED WHOLE GRAIN DONUTS. MUST CONFORM TO USDA CHILD NUTRITION PROGRAM SPECIFICATIONS AND MEET 2OZ GRAIN EQUIVALENT. | F146: SUPER BAKERY OR APPROVED EQUIVALENT | G146: 7786 | H146: CS | I146: 72 | J146: 3.3 OZ | K146: 1700 | L146: 73.47145 | M146: 124901.465 | N146: 1.020436806 | O146: 4051581 | P146: SBAKR | Q146: 72/3.3/OZ | R146: N | S146: DONUT, CHOC MINI ENROBED 51% WG
B147: 142 | C147: F1053 | D147: DONUT MINI POWDERED SUGAR | E147: 51% WG MINI DONUTS - POWDERED SUGAR 72 - 3.3OZ FROZEN INDIVIDUALLY WRAPPED THAW & SERVE NICKEL STACK SIX PACKS OF 1/2 OZ CHOCOLATE ENROBED WHOLE GRAIN DONUTS. MUST CONFORM TO USDA CHILD NUTRITION PROGRAM SPECIFICATIONS AND MEET 2OZ GRAIN EQUIVALENT. | F147: SUPER BAKERY OR APPROVED EQUIVALENT | G147: 7787 | H147: CS | I147: 72 | J147: 3.3 OZ | K147: 1700 | L147: 65.3497 | M147: 111094.49 | N147: 0.9076347222 | O147: 4051591 | P147: SBAKR | Q147: 72/3/OZ | R147: Y | S147: DONUT, PWDRED SGR MINI 51%WG
B148: 143 | C148: F1054 | D148: DOUGH CRUST | E148: COBBLER CRUST DOUGH SHEET FROZEN | F148: SPECIFY | H148: CS | I148: 24 | J148: 1 LB | K148: 200 | L148: 51.39355 | M148: 10278.71 | N148: 2.141397917 | O148: 2624521 | P148: PILLS | Q148: 12/14/OZ | R148: N | S148: CRUST, PIE 9" 2CT
B149: 144 | C149: C1020 | D149: DRESSING GAL COLESLAW | E149: DRESSING COLESLAW REDUCED FAT | F149: SPECIFY | H149: CS | I149: 4 | J149: GAL | K149: 25 | L149: 59.2592 | M149: 1481.48 | N149: 14.8148 | O149: 2566941 | P149: KATYO | Q149: 4/1/GL | R149: N | S149: DRESSING, COLESLAW
B150: 145 | C150: C1021 | D150: DRESSING GAL RANCH REDUCED FAT | E150: DRESSING SALAD REDUCED FAT | F150: KEN'S OR APPROVED EQUIVALENT | G150: 100-413350-60816 | H150: CS | I150: 4 | J150: 1 GAL | K150: 600 | L150: 61.0064 | M150: 36603.84 | N150: 15.2516 | O150: 3368771 | P150: KENFD | Q150: 4/1/GL | R150: N | S150: DRESSING, RANCH LT
B151: 146 | C151: CTF7016 | D151: DRESSING ITALIAN | E151: ITALIAN DRESSING GOLDEN CATERING | F151: SPECIFY | H151: CS | I151: 4 | J151: GAL | K151: 10 | L151: 52.2704 | M151: 522.704 | N151: 13.0676 | O151: 1550511 | P151: KRAFT | Q151: 4/1/GL | R151: N | S151: DRESSING, ITAL GLDN
B152: 147 | C152: D1046 | D152: DRESSING PC ASIAN | E152: DRESSING ASIAN LIGHT PC | F152: SPECIFY | H152: CS | I152: 60 | J152: 1.5 OZ | K152: 15 | L152: 22.1424 | M152: 332.136 | N152: 0.36904 | O152: 2565711 | P152: KENFD | Q152: 60/1.5/OZ | R152: Y | S152: DRESSING, ASIAN ORIENTAL 1.5Z
B153: 148 | C153: D1047 | D153: DRESSING PC BALSAMIC VINAIGRETTE | E153: DRESSING BALSAMIC VINAIGRETTE LIGHT | F153: SPECIFY | H153: CS | I153: 60 | J153: 1.5 OZ | K153: 15 | L153: 19.3424 | M153: 290.136 | N153: 0.3223733333 | O153: 2077881 | P153: KENFD | Q153: 60/1.5/OZ | R153: N | S153: DRESSING, VINGRT BALSAMIC
B154: 149 | C154: D1048 | D154: DRESSING PC FRENCH | E154: DRESSING SALAD REDUCED FAT FRENCH | F154: SPECIFY | H154: CS | I154: 60 | J154: 1.5 OZ | K154: 5 | L154: 17.2704 | M154: 86.352 | N154: 0.28784 | O154: 2274081 | P154: KENFD | Q154: 60/1.5/OZ | R154: Y | S154: DRESSING, FRENCH CALIF FF
B155: 150 | C155: D1049 | D155: DRESSING PC GREEK | E155: DRESSING SALAD GREEK | F155: SPECIFY | H155: CS | I155: 60 | J155: 1.5 OZ | K155: 5 | L155: 20.0368 | M155: 100.184 | N155: 0.3339466667 | O155: 2735491 | P155: MARZT | Q155: 60/1.5/OZ | R155: N | S155: DRESSING, VINGRT GREEK 1.5Z
B156: 151 | C156: D1050 | D156: DRESSING PC ITALIAN | E156: DRESSING SALAD REDUCED FAT ITALIAN | F156: SPECIFY | H156: CS | I156: 60 | J156: 1.5 OZ | K156: 5 | L156: 16.9904 | M156: 84.952 | N156: 0.2831733333 | O156: 4329611 | P156: KATYO | Q156: 60/1.5/OZ | R156: N | S156: DRESSING, ITAL GLDN PC 1.5Z
B157: 152 | C157: D1051 | D157: DRESSING PC RANCH 12MG | E157: RANCH DRESSING REDUCED FAT PC | F157: SPECIFY | H157: CS | I157: 500 | J157: 12 MG | K157: 1000 | L157: 24.6288 | M157: 24628.8 | N157: 0.0492576 | O157: 4317091 | P157: FLAVF | Q157: 200/12/GM | R157: N | S157: DRESSING, RANCH FF 12GM
B158: 153 | C158: D1052 | D158: DRESSING PC RANCH RF 1.5OZ | E158: DRESSING SALAD REDUCED FAT PC RANCH | F158: SPECIFY | H158: CS | I158: 60 | J158: 1.5 OZ | K158: 100 | L158: 19.5104 | M158: 1951.04 | N158: 0.3251733333 | O158: 1386171 | P158: KENFD | Q158: 60/1.5/OZ | R158: N | S158: DRESSING, RANCH BTRMLK
B159: 154 | C159: D1053 | D159: DRESSING PC RASPBERRY VINAIGRETTE | E159: KRAFT RASPBERRY VINAIGRETTE FAT FREE DRESSING HAS THE SWEET TART FLAVOR OF RASPBERRIES IN A FAT FREE VINAIGRETTE. | F159: KRAFT | G159: 002-10006714400 | H159: CS | I159: 60 | J159: 1.5 OZ | K159: 50 | L159: 23.576 | M159: 1178.8 | N159: 0.3929333333 | O159: 1574221 | P159: KRAFT | Q159: 60/1.5/OZ | R159: N | S159: DRESSING, VINGRT RASPBRY FF 1.5Z
B160: 155 | C160: CTF7017 | D160: DRESSING RASPBERRY VINAIGRETTE | E160: KRAFT RASPBERRY VINAIGRETTE FAT FREE DRESSING HAS THE SWEET TART FLAVOR OF RASPBERRIES IN A FAT FREE VINAIGRETTE. CATERING | F160: KRAFT OR APPROVED EQUIVALENT | G160: 21000647422 | H160: CS | I160: 4 | J160: 1 GAL | K160: 5 | L160: 67.5808 | M160: 337.904 | N160: 16.8952 | O160: 2398211 | P160: KENFD | Q160: 4/1/GL | R160: N | S160: DRESSING, VINGRT RASPBRY FF
B161: 156 | C161: C1022 | D161: EGG BOIL N BAG | E161: EGGS RAW LIQUID WHOLE EGGS BOIL N BAG PASTURIZED | F161: SPECIFY | H161: CS | I161: 6 | J161: 5 LB | K161: 600 | L161: 60.9076 | M161: 36544.56 | N161: 10.15126667 | O161: 2553291 | P161: FRMDO | Q161: 6/5/LB | R161: N | S161: EGG, LIQ SCRAMBLE MIX BAG
B162: 157 | C162: C1023 | D162: EGG PREBOILED | E162: HARD COOKED PEELED EGGS | F162: SPECIFY | H162: CS | I162: 8 | J162: 12 CT | K162: 500 | L162: 40.1396 | M162: 20069.8 | N162: 5.01745 | O162: 2553191 | P162: FRMDO | Q162: 12/12/PK | R162: N | S162: EGG, CKD HARD WHL PLD BAG
B163: 158 | C163: F1055 | D163: EGGSTRAGANZA | E163: EACH 2.00 OZ. SERVING (BY WEIGHT) OF THE BLEND OF SCRAMBLED EGGS, CHEESE, AND BACON PIECES PROVIDES 1.75 OZ. EQUIVALENT MEAT ALTERNATE FOR THE CHILD NUTRITION MEAL PATTERN REQUIREMENTS. | F163: SUNNY FRESH OR APPROVED EQUIVALENT | G163: 40828 | H163: CS | I163: 4 | J163: 5 LB | K163: 735 | L163: 97.91 | M163: 71963.85 | N163: 24.4775 | O163: 4340181 | P163: SUNFR | Q163: 4/5/LB | R163: Y | S163: EGG, SCRAMBLE CKD BACON CHSE
B164: 159 | C164: CTF7018 | D164: FILLING PIE CHERRY | E164: CHERRY CATERING | F164: SPECIFY | H164: CS | I164: 3 | J164: #10 | K164: 15 | L164: 92.4945 | M164: 1387.4175 | N164: 30.8315 | O164: 3660431 | P164: KATYS | Q164: 6/10/CN | R164: N | S164: FILLING, PIE CHERRY
B165: 160 | C165: CTF7019 | D165: FILLING PIE PEACH | E165: PEACH CATERING | F165: SPECIFY | H165: CS | I165: 3 | J165: #10 | K165: 15 | L165: 79.4995 | M165: 1192.4925 | N165: 26.49983333 | O165: 3660441 | P165: KATYO | Q165: 6/10/CN | R165: N | S165: FILLING, PIE PEACH
B166: 161 | C166: D1054 | D166: FLOUR | E166: FLOUR ALL PURPOSE ENRICHED 50# U.S. NO. 2 GRADE OR BETTER BLEACHED WHEAT FLOUR ENRICHED WITH THIAMIN RIBOFLAVIN NIACIN FOLIC ACID IRON AND MAY HAVE ADDED CALCIUM | F166: SPECIFY | H166: BAG | I166: 50 | J166: LB | K166: 30 | L166: 22.792 | M166: 683.76 | N166: 0.45584 | O166: 4831591 | P166: KATYO | Q166: 1/50/LB | R166: N | S166: FLOUR, AP ENR BLEACHED MALTED 50LB
B167: 162 | C167: D1055 | D167: FOOD COLOR GREEN | E167: FOOD COLORING GREEEN | F167: SPECIFY | H167: EA | I167: 1 | J167: 16 OZ | K167: 7 | L167: 7.1645 | M167: 50.1515 | N167: 7.1645 | O167: 3992831 | P167: DURKE | Q167: 1/16/OZ | R167: N | S167: FOOD COLOR, GREEN
B168: 163 | C168: D1056 | D168: FOOD RELEASE | E168: RELEASE FOOD/PAN CONTAINS NO WATER ALCOHOL OR ARTIFICIAL FLAVORS HIGH SMOKE POINT >450° F | F168: SPECIFY | H168: CS | I168: 6 | J168: 17 OZ | K168: 75 | L168: 22.9488 | M168: 1721.16 | N168: 3.8248 | O168: 4799501 | P168: EVRLD | Q168: 6/17/OZ | R168: N | S168: COATING, PAN SPRAY CANOLA ULTRA
B169: 164 | C169: F1056 | D169: FRENCH TOAST STICKS BULK | E169: FRENCH TOAST STICKS WHOLE GRAIN CINNAMON GLAZED EACH SERVING 3 STICKS/2.90 OZ EQUALS 1 M/MA 1 GR. | F169: SUNNY FRESH OR APPROVED EQUIVALENT | G169: 40497 | H169: CS | I169: 100 | J169: 2.9 oz | K169: 900 | L169: 48.57115 | M169: 43714.035 | N169: 0.4857115 | O169: 3631851 | P169: PAPET | Q169: 85/2.9/OZ | R169: N | S169: FRENCH TOAST, STICK CINN GLZD CN
B170: 165 | C170: CTF7020 | D170: FRUIT CHERRY MARASCHINO HALVES | E170: CHERRIES MARACHINO HALVES CATERING | F170: PENNANT OR APPROVED EQUIVALENT | H170: CS | I170: 4 | J170: .5 GAL | K170: 100 | L170: 60.5245 | M170: 6052.45 | N170: 15.131125 | O170: 2622451 | P170: BHVSO | Q170: 4/.5/GL | R170: N | S170: CHERRY, MARA LG HLVS
B171: 166 | C171: D1057 | D171: FRUIT COCKTAIL | E171: FRUIT COCKTAIL GRADE B CHOICE EXTRA LIGHT SYRUP MUST MEET BUY AMERICAN REQUIREMENTS | F171: SENACA, DEL MONTE, LIBBY'S, DOLE | H171: CS | I171: 6 | J171: 10 CN | K171: 1500 | L171: 57.684 | M171: 86526 | N171: 9.614 | O171: 3530581 | P171: BHVSO | Q171: 6/10/CN | R171: N | S171: FRUIT COCKTAIL, XLS DMST CHO
B172: 167 | C172: C1024 | D172: FRUIT CRANBERRIES DRIED | E172: SOFT AND MOIST DRIED CRANBERRIES | F172: SPECIFY | H172: CS | I172: 10 | J172: LB | K172: 150 | L172: 26.455 | M172: 3968.25 | N172: 2.6455 | O172: 1959091 | P172: OCSPY | Q172: 1/10/LB | R172: N | S172: CRANBERRY, DRIED SWT CRAISINS
B173: 168 | C173: C1025 | D173: FRUIT DRIED IW | E173: FRUIT DRIED INDIVIDUALLY PACKAGES PEANUT FREE 16% CRANBERRYM 29% NATURAL RAISINS 24% GOLDEN RAISINS 28% PINEAPPLE 3% DRIED APPLE | F173: NATIONAL FOOD GROUP OR APPROVED EQUIVALENT | G173: 609271 | H173: CS | I173: 144 | J173: 1.3 OZ | K173: 650 | L173: No Bid | O173: NO BID | P173: NO BID | Q173: NO BID | R173: NO BID | S173: NO BID
B174: 169 | C174: F1057 | D174: FRUIT MANGO DICED | E174: MANOS DICED IQF US GRADE A UNSWEETENED MUST MEET BUY AMERICAN REQUIREMENTS | F174: SENACA, DEL MONTE, LIBBY'S, DOLE | H174: CS | I174: 2 | J174: 5 LB | K174: 450 | L174: 30.837 | M174: 13876.65 | N174: 15.4185 | O174: 2893441 | P174: DOLE | Q174: 2/5/LB | R174: N | S174: MANGO, DICED 3/8" IQF
B175: 170 | C175: D1058 | D175: FRUIT ORANGE MANDARIN | E175: MANDARIN ORANGE SLICES NATURAL JUICES NO SUGAR ADDED GRADE B CHOICE MUST MEET BUY AMERICAN REQUIREMENTS | F175: SENACA, DEL MONTE, LIBBY'S, DOLE | H175: CS | I175: 6 | J175: 10 CN | K175: 850 | L175: 45.716 | M175: 38858.6 | N175: 7.619333333 | O175: 2246851 | P175: BHVSD | Q175: 6/10/CN | R175: N | S175: ORANGE, MANDARIN WHL SEG LS IMP
B176: 171 | C176: D1059 | D176: FRUIT PEACHES DICED | E176: PEACHES YELLOW CLING GRADE B CHOICE DICED NATURAL JUICES MIN DRAIN VT 71 OZ NO IRREGULAR MUST MEET BUY AMERICAN REQUIREMENTS | F176: SENACA, DEL MONTE, LIBBY'S, DOLE | H176: CS | I176: 6 | J176: 10 CN | K176: 1500 | L176: 56.331 | M176: 84496.5 | N176: 9.3885 | O176: 3530541 | P176: BHVSO | Q176: 6/10/CN | R176: N | S176: PEACH, DICED YLW CLING XLS CHO DMST
B177: 172 | C177: D1060 | D177: FRUIT PEARS DICED | E177: PEARS DICED GRADE B CHOICE NATURAL JUICES MUST MEET BUY AMERICAN REQUIREMENTS | F177: SENACA, DEL MONTE, LIBBY'S, DOLE | H177: CS | I177: 6 | J177: 10 CN | K177: 500 | L177: 71.995 | M177: 35997.5 | N177: 11.99916667 | O177: 4508401 | P177: BHVSO | Q177: 6/10/CN | R177: N | S177: PEAR, DICED IN JCE DMST CHO
B178: 173 | C178: D1061 | D178: FRUIT PINEAPPLE | E178: PINEAPPLE TIDBITS IN JUICE GRADE B CHOICE SOLID PAK IN NATURAL JUICE MUST MEET BUY AMERICAN REQUIREMENTS | F178: SENACA, DEL MONTE, LIBBY'S, DOLE | H178: CS | I178: 6 | J178: 10 CN | K178: 2500 | L178: 40.161 | M178: 100402.5 | N178: 6.6935 | O178: 2755981 | P178: BHVSF | Q178: 6/10/CN | R178: N | S178: PINEAPPLE, TIDBIT IN JCE STND IMP
B179: 174 | C179: F1058 | D179: FRUIT STRAWBERRIES SLICED | E179: STRAWBERRYS SLICED IQF US GRADE A UNSWEETENED | F179: SPECIFY | H179: CS | I179: 1 | J179: 30 LB | K179: 700 | L179: 65.82485 | M179: 46077.395 | N179: 65.82485 | O179: 4785591 | P179: BHVSO | Q179: 1/30/LB | R179: N | S179: STRAWBERRY, SLI BULK IQF
B180: 175 | C180: F1059 | D180: FRUIT STRAWBERRIES WHOLE | E180: STRAWBERRYS SLICED IQF US GRADE A WHOLE UNSWEETENED | F180: SPECIFY | H180: BKT | I180: 1 | J180: 30 LB | K180: 100 | L180: 72.16755 | M180: 7216.755 | N180: 72.16755 | O180: 4491221 | P180: BHVSO | Q180: 1/30/LB | R180: N | S180: STRAWBERRY, WHL BULK GRD A IQF USA
B181: 176 | C181: D1062 | D181: GELATIN CHERRY | E181: GELATIN MIX DRY | F181: SPECIFY | H181: CS | I181: 12 | J181: 24 OZ | K181: 75 | L181: 40.19035 | M181: 3014.27625 | N181: 3.349195833 | O181: 2204281 | P181: KATYO | Q181: 12/24/OZ | R181: N | S181: GELATIN, CHERRY
B182: 177 | C182: D1063 | D182: GELATIN LIME | E182: GELATIN MIX DRY | F182: SPECIFY | H182: CS | I182: 12 | J182: 24 OZ | K182: 15 | L182: 42.66465 | M182: 639.96975 | N182: 3.5553875 | O182: 2204311 | P182: KATYO | Q182: 12/24/OZ | R182: N | S182: GELATIN, LIME
B183: 178 | C183: D1064 | D183: GELATIN ORANGE | E183: GELATIN MIX DRY | F183: SPECIFY | H183: CS | I183: 12 | J183: 24 OZ | K183: 15 | L183: 39.8385 | M183: 597.5775 | N183: 3.319875 | O183: 2204321 | P183: KATYO | Q183: 12/24/OZ | R183: N | S183: GELATIN, ORANGE
B184: 179 | C184: D1065 | D184: GELATIN STRAWBERRY | E184: GELATIN MIX DRY | F184: SPECIFY | H184: CS | I184: 12 | J184: 24 OZ | K184: 75 | L184: 39.8385 | M184: 2987.8875 | N184: 3.319875 | O184: 2204241 | P184: KATYO | Q184: 12/24/OZ | R184: N | S184: GELATIN, STRAWBRY
B185: 180 | C185: F1060 | D185: GF BAGEL PLAIN | E185: PLAIN BAGEL GLUTEN FREE | F185: SPECIFY | H185: CS | I185: 6 | J185: 4 EA | K185: 200 | L185: 28.5753 | M185: 5715.06 | N185: 4.76255 | O185: 4270401 | P185: CANBA | Q185: 6/4/PK | R185: N | S185: BAGEL, PLAIN GF
B186: 181 | C186: C1026 | D186: GF BREAD WHITE SLICED | E186: WHITE BREAD SLICED GLUTEN FREE | F186: SPECIFY | H186: CS | I186: 6 | J186: 24 OZ | K186: 300 | L186: 59.08435 | M186: 17725.305 | N186: 9.847391667 | O186: 4312551 | P186: UDIS | Q186: 6/24/OZ | R186: N | S186: BREAD, SNDWCH MULTIGRAIN GF
B187: 182 | C187: C1027 | D187: GF BUN HAMBURGER | E187: HAMBURGER BUNS GLUTEN FREE | F187: SPECIFY | H187: CS | I187: 6 | J187: 12 CT | K187: 200 | L187: 33.38205 | M187: 6676.41 | N187: 5.563675 | O187: 3114851 | P187: UDIS | Q187: 1/24/PK | R187: N | S187: BUN, HAMBURGER CLASC 4" IW GF
B188: 183 | C188: F1061 | D188: GF MUFFIN CHOCOLATE IW | E188: MUFFIN CHOCOLATE GLUTEN FREE IW | F188: SPECIFY | H188: CS | I188: 36 | J188: 3.6 EA | K188: 200 | L188: 51.8305 | M188: 10366.1 | N188: 1.439736111 | O188: 3171971 | P188: UDIS | Q188: 36/3.6/OZ | R188: N | S188: MUFFIN, DBL CHOC GLUTEN FREE 3.6Z IW
B189: 184 | C189: F1062 | D189: GF MUFFIN ENGLISH | E189: ENGLISH MUFFINS GLUTEN FREE | F189: SPECIFY | H189: CS | I189: 24 | J189: 2 OZ | K189: 300 | L189: No Bid | O189: NO BID | P189: NO BID | Q189: NO BID | R189: NO BID | S189: NO BID
B190: 185 | C190: D1066 | D190: GF PASTA PENNE | E190: PASTA PENNE GLUTEN FREE | F190: SPECIFY | H190: CS | I190: 8 | J190: 12 OZ | K190: 200 | L190: 17.996 | M190: 3599.2 | N190: 2.2495 | O190: 2755411 | P190: HARTL | Q190: 6/12/OZ | R190: N | S190: PASTA, PENNE GLUTEN FREE
B191: 186 | C191: D1067 | D191: GF PASTA SPAGHETTI | E191: PASTA SPAGHETTI GLUTEN FREE | F191: SPECIFY | H191: CS | I191: 12 | J191: 12 OZ | K191: 200 | L191: 26.246 | M191: 5249.2 | N191: 2.187166667 | O191: 4940731 | P191: GAROF | Q191: 12/12/OZ | R191: N | S191: PASTA, SPAGHETTI GF
B192: 187 | C192: CTF7021 | D192: GLAZE STAWBERRY | E192: STRAWBERRY GLAZE CATERING | F192: SPECIFY | H192: CS | I192: 1 | J192: 20LB | K192: 25 | L192: 50.65505 | M192: 1266.37625 | N192: 50.65505 | O192: 3257921 | P192: LUCKY | Q192: 6/120/OZ | R192: N | S192: GLAZE, STRAWBRY
B193: 188 | C193: D1068 | D193: GRANOLA BULK | E193: GRANOLA BULK | F193: SPECIFY | H193: CS | I193: 4 | J193: 50 OZ | K193: 250 | L193: 57.013 | M193: 14253.25 | N193: 14.25325 | O193: 2863041 | P193: NATVL | Q193: 4/50/OZ | R193: N | S193: CEREAL, GRANOLA TSTD OATS
B194: 189 | C194: D1069 | D194: GRAVY BROWN | E194: GRAVY BROWN LIGHT | F194: PIONEER OR APPROVED EQUIVALENT | G194: 94541 | H194: CS | I194: 6 | J194: 13 OZ | K194: 700 | L194: 25.487 | M194: 17840.9 | N194: 4.247833333 | O194: 4332921 | P194: PIONR | Q194: 6/11.3/OZ | R194: N | S194: GRAVY MIX, BROWN LT PWDR
B195: 190 | C195: D1070 | D195: GRAVY COUNTRY | E195: COUNTRY SKILLET CREAM GRAVY | F195: PIONEER OR APPROVED EQUIVALENT | G195: 96115 | H195: CS | I195: 6 | J195: 24 OZ | K195: 725 | L195: 5.64655 | M195: 4093.74875 | N195: 0.9410916667 | O195: 3196151 | P195: CBLSF | Q195: 2/7/LBAV | R195: N | S195: CORNED BEEF, BTM RND SPLIT CKD F2F
B196: 191 | C196: CTF7062 | D196: HAM BUFFET | E196: HAM WATER ADDED CURED BONELESS AND FULLY COOKED. HAM IS 97% FAT FREE (3% FAT) AND APPROXIMATELY 4 TO 4½ INCHES IN DIAMETER. FROZEN PRODUCT. CATERING | F196: SPECIFY | H196: CS | I196: 1 | J196: LB | K196: 100 | L196: 2.4752 | M196: 247.52 | N196: 2.4752 | O196: 2324041 | P196: CBLSO | Q196: 2/12/LBAV | R196: N | S196: HAM, BUFFET SMKD BNLS WA
B197: 192 | C197: F1063 | D197: HOT DOGS BEEF | E197: BEEF FRANKS LOWER SODIUM 8/1 6" CN LABELED TO MEET 2 OZ MEAT REQUIREMENT | F197: JOHN MORRELL OR APPROVED EQUIVALENT | G197: 100-701000-28560 | H197: CS | I197: 80 | J197: 2 OZ | K197: 600 | L197: 33.7025 | M197: 20221.5 | N197: 0.42128125 | O197: 2449031 | P197: PRCRD | Q197: 1/10/LB | R197: N | S197: FRANKS, ALL BEEF 6" 8X1 ROLLER GRILL
B198: 193 | C198: F1064 | D198: ICE CREAM SS BAR CARAMEL | E198: STICK BAR REDUCED FAT SALTY CARAMEL BROWNIE CRUNCH BAR | F198: HERSHEY'S OR APPROVED EQUIVALENT | G198: 31167 | H198: CS | I198: 36 | J198: 2.75 OZ | K198: 200 | L198: No Bid | M198: =IF(L198*K198= 0,"",L198*K198) ->  | N198: =IF(L198/I198= 0,"",L198/I198) ->  | O198: NO BID | P198: NO BID | Q198: NO BID | R198: NO BID | S198: NO BID
B199: 194 | C199: F1065 | D199: ICE CREAM SS BAR STRAWBERRY | E199: STICK BAR STRAWBERRY SCOOTER | F199: HERSHEY'S OR APPROVED EQUIVALENT | G199: 31166 | H199: CS | I199: 36 | J199: 2.75 OZ | K199: 300 | L199: No Bid | O199: NO BID | P199: NO BID | Q199: NO BID | R199: NO BID | S199: NO BID
B200: 195 | C200: F1066 | D200: ICE CREAM SS BAR VANILLA | E200: ICE CREAM BAR VANILLA REDUCED FAT MUST BE SMART SNACK COMPLIANT <200 CALORIES < 35% FAT CALORIES < 230 MG SODIUM < 10% SATURATED FAT <35% OF WEIGHT FROM SUGARS | F200: SPECIFY | H200: CS | I200: 96 | J200: 3.0 OZ | K200: 100 | L200: No Bid | O200: NO BID | P200: NO BID | Q200: NO BID | R200: NO BID | S200: NO BID
B201: 196 | C201: F1067 | D201: ICE CREAM SS CUP CHOCOLATE SUNDAE | E201: LOW FAT CHOCOLATE SUNDAE DESSERT CUP | F201: HERSHEY'S OR APPROVED EQUIVALENT | G201: 31662 | H201: CS | I201: 48 | J201: 3 OZ | K201: 400 | L201: No Bid | O201: NO BID | P201: NO BID | Q201: NO BID | R201: NO BID | S201: NO BID
... 211 more rows

Sheet Sysco (hidden)
B1: ROSWELL INDEPENDENT SCHOOL DISTRICT | I1: Vendor Name: | L1: Sysco New Mexico
B2: CAFETERIA FOOD BID 23-06 FOR SCHOOL YEAR 2023-24 | I2: Vendor Contact | L2: Tony Campos
B3: MUST BE RECEIVED BY MAY 4, 2023 ON CD-R OR FLASH DRIVE SEALED WITH SUPPORTING DOCUMENTS | I3: Date | L3: 2023-05-03
B4: ITEM | C4: STOCK ID | D4: ITEM | E4: DESCRIPTION | F4: Approved Brand | G4: Product Code or UPC | H4: BID UNIT | I4: CASE PACK | K4: EST USAGE | L4: BID UNIT PRICE | M4: Extended Total | N4: per UNIT price | O4: VENDOR STOCK NO | P4: BRAND NAME | Q4: PACK SIZE | R4: SPECIAL ORDER YES NO | S4: BIDDERS NOTES
B6: 1 | C6: D1000 | D6: APPLESAUCE CANNED | E6: APPLESAUCE GRADE B FANCY NATURAL COLOR UNSWEETENED MUST MEET BUY AMERICAN REQUIREMENTS | F6: SPECIFY | H6: CS | I6: 6 | J6: 10 CN | K6: 400 | L6: 45.47021277 | M6: =IF(L6*K6= 0,"",L6*K6) -> 18188.08511 | N6: =IF(L6/I6= 0,"",L6/I6) -> 7.578368794 | O6: 4536983 | P6: MUSSLMN | Q6: 6/#10 | R6: N
B7: 2 | C7: D1001 | D7: APPLESAUCE CUPS CINNAMON | E7: CINNAMON UNSWEETENED APPLESAUCE MUST PROVIDE 1/2 CUP FRUIT EQUIVALENT UNDER THE NSLP. 100% ALL NATURAL INGREDIENTS SHELF-STABLE FOR 18 MONTHS NO HIGH FRUCTOSE CORN SYRUP OR ADDED SUGAR FAT FREE 100% VITAMIN C | F7: SPECIFY | H7: CS | I7: 96 | J7: 4.5 OZ | K7: 600 | O7: No Bid
B8: 3 | C8: D1002 | D8: APPLESAUCE CUPS PEACH | E8: PEACH UNSWEETENED APPLESAUCE MUST PROVIDE 1/2 CUP FRUIT EQUIVALENT UNDER THE NSLP. 100% ALL NATURAL INGREDIENTS SHELF-STABLE FOR 18 MONTHS NO HIGH FRUCTOSE CORN SYRUP OR ADDED SUGAR FAT FREE 100% VITAMIN C | F8: SPECIFY | H8: CS | I8: 96 | J8: 4.5 OZ | K8: 600 | O8: No Bid
B9: 4 | C9: D1003 | D9: APPLESAUCE CUPS PLAIN | E9: PLAIN UNSWEETENED APPLESAUCE MUST PROVIDE 1/2 CUP FRUIT EQUIVALENT UNDER THE NSLP. 100% ALL NATURAL INGREDIENTS SHELF-STABLE FOR 18 MONTHS NO HIGH FRUCTOSE CORN SYRUP OR ADDED SUGAR FAT FREE 100% VITAMIN C | F9: SPECIFY | H9: CS | I9: 96 | J9: 4.5 OZ | K9: 600 | L9: 46.72340426 | M9: 28034.04255 | N9: 0.4867021277 | O9: 4161475 | P9: MUSSLMN | Q9: 72/4.5 OZ | R9: N
B10: 5 | C10: D1004 | D10: APPLESAUCE CUPS STRAWBERRY | E10: PLAIN UNSWEETENED APPLESAUCE MUST PROVIDE 1/2 CUP FRUIT EQUIVALENT UNDER THE NSLP. 100% ALL NATURAL INGREDIENTS SHELF-STABLE FOR 18 MONTHS NO HIGH FRUCTOSE CORN SYRUP OR ADDED SUGAR FAT FREE 100% VITAMIN C | F10: SPECIFY | H10: CS | I10: 96 | J10: 4.5 OZ | K10: 600 | L10: 44.80851064 | M10: 26885.10638 | N10: 0.4667553191 | O10: 7469570 | P10: MUSSLMN | Q10: 72/4.5 OZ | R10: N
B11: 6 | C11: CTF7049 | D11: AVACADO PULP | E11: AVACADO PULP FROZEN CATERING | F11: SPECIFY | H11: CS | I11: 12 | J11: 1LBS | K11: 70 | L11: 45.91170213 | M11: 3213.819149 | N11: 3.825975177 | O11: 8337503 | P11: CASAIMP | Q11: 8/2#TRAY | R11: N
B12: 7 | C12: F1000 | D12: BACON PIECES | E12: BACON ENDS & PIECES | F12: SPECIFY | H12: CS | I12: 12 | J12: 3 LB | K12: 425 | L12: 42.5393617 | M12: 18079.22872 | N12: 3.544946809 | O12: 7010588 | P12: WRIGHT | Q12: 6/3 LB | R12: N
B13: 8 | C13: F1001 | D13: BACON PRE-COOKED | E13: FULLY COOKED AND READY TO EAT - SIMPLY WARM & SERVE 100% REAL BACON | F13: HORMEL OR APPROVED EQUIVALENT | G13: 3729 | H13: CS | I13: 1 | J13: 300 | K13: 500 | L13: 56.07446809 | M13: 28037.23404 | N13: 56.07446809 | O13: 90811 | P13: SMTHFLD | Q13: 2/150SLI | R13: N
B14: 9 | C14: CTF7050 | D14: BACON SLICED THICK | E14: BACON THICK SLICED CATERING | F14: SPECIFY | H14: CS | I14: 15 | J14: LB | K14: 30 | L14: 57.89712766 | M14: 1736.91383 | N14: 3.859808511 | O14: 61770 | P14: HORMEL | Q14: 1/15 LB | R14: N
B15: 10 | C15: CTF7051 | D15: BACON SLICED THIN | E15: BACON THIN SLICED CATERNG | F15: SPECIFY | H15: CS | I15: 15 | J15: LB | K15: 15 | L15: 52.62765957 | M15: 789.4148936 | N15: 3.508510638 | O15: 5543233 | P15: SMTHFLD | Q15: 1/15 LB | R15: N
B16: 11 | C16: F1002 | D16: BAGEL BLUEBERRY | E16: BAGEL WG BLUEBERRY SLICED IW MUST BE WHOLE GRAIN RICH AND PROVIDE 2.0OZ GRAIN EQUIVALENTS. PORTION TO PROVIDE AT LEAST 115 CALORIES WITH NO MORE THAN 2 GRAMS OF FAT. | F16: BAKE CRAFTERS OR APPROVED EQUIVALENT | G16: 696 | H16: CS | I16: 84 | J16: 2 OZ | K16: 450 | L16: 23.59574468 | M16: 10618.08511 | N16: 0.2809017224 | O16: 1717440 | P16: MUFNTWN | Q16: 84/2 OZ | R16: N
B17: 12 | C17: F1003 | D17: BAGEL PLAIN | E17: BAGEL WG BLUEBERRY IW MUST BE WHOLE GRAIN RICH AND PROVIDE 2.0OZ GRAIN EQUIVALENTS. PORTION TO PROVIDE AT LEAST 115 CALORIES WITH NO MORE THAN 2 GRAMS OF FAT. | F17: BAKE CRAFTERS OR APPROVED EQUIVALENT | G17: 982 | H17: CS | I17: 84 | J17: 2 OZ | K17: 450 | L17: 33.70212766 | M17: 15165.95745 | N17: 0.4012158055 | O17: 4391930 | P17: BAKCRFT | Q17: 84/2 OZ | R17: N
B18: 13 | C18: D1005 | D18: BAKING SODA | E18: SODIUM BICARBONATE | F18: SPECIFY | H18: CS | I18: 24 | J18: 1 LBS | K18: 60 | L18: 14.36914894 | M18: 862.1489362 | N18: 0.598714539 | O18: 4950598 | P18: SYS CLS | Q18: 12/24 OZ | R18: N
B19: 14 | C19: F1004 | D19: BAR BREAKFAST APPLE | E19: BREAKFAST BAR APPLE THAT MEET 2OZ WG AND 1/2C FRUIT FOR CHILD NUTRITIONAL MEAL PATTERN | F19: DAVE'S OR APPROVED EQUIVALENT | G19: 4014 | H19: CS | I19: 64 | J19: 3 OZ | K19: 1000 | L19: 33.92765957 | M19: 33927.65957 | N19: 0.5301196809 | O19: 8610067 | P19: READIBK | Q19: 48/2.5 OZ | R19: N
B20: 15 | C20: F1005 | D20: BAR BREAKFAST BANANA CHOCOLATE | E20: INDIVIDUALLY WRAPPED 51% WHOLE GRAIN BANANA CHOCOLATE CHUNK | F20: BeneFIT OR APPROVED EQUIVALENT | G20: 40402 | H20: CS | I20: 48 | J20: 2.5 OZ | K20: 1650 | L20: 20.74468085 | M20: 34228.7234 | N20: 0.4321808511 | O20: 8610051 | P20: READIBK | Q20: 48/2.5 OZ | R20: N
B21: 16 | C21: F1006 | D21: BAR BREAKFAST BLUEBERRY | E21: BREAKFAST BAR BLUEBERRY THAT MEET 2OZ WG AND 1/2C FRUIT FOR CHILD NUTRITIONAL MEAL PATTERN | F21: DAVE'S OR APPROVED EQUIVALENT | G21: 4014 | H21: CS | I21: 64 | J21: 3 OZ | K21: 1000 | L21: 42.92553191 | M21: 42925.53191 | N21: 0.6707114362 | O21: 2837577 | P21: DAVE'S | Q21: 64/3 OZ | R21: N
B22: 17 | C22: F1007 | D22: BAR BREAKFAST COCOA CHIP | E22: INDIVIDUALLY WRAPPED 51% WHOLE GRAIN COCOA CHIP | F22: BeneFIT OR APPROVED EQUIVALENT | G22: 40406 | H22: CS | I22: 48 | J22: 2.5 OZ | K22: 1650 | L22: 21.80851064 | M22: 35984.04255 | N22: 0.4543439716 | O22: 4260523 | P22: J&J SNK | Q22: 48/2.5OZ | R22: N
B23: 18 | C23: F1008 | D23: BAR BREAKFAST OATMEAL CHOCOLATE | E23: INDIVIDUALLY WRAPPED 51% WHOLE GRAIN OATMEAL CHOCOLATE CHIP | F23: BeneFIT OR APPROVED EQUIVALENT | G23: 40401 | H23: CS | I23: 48 | J23: 2.5 oz | K23: 1650 | L23: 20.74468085 | M23: 34228.7234 | N23: 0.4321808511 | O23: 8559417 | P23: READIBK | Q23: 48/2.5 OZ | R23: N
B24: 19 | C24: F1009 | D24: BAR OATMEAL BLUEBERRY | E24: BLUEBERRY OATMEAL BARS 2.04 OZ 51% WHOLE GRAIN MEET 2 OZ GRAIN EQUIVALENT | F24: DARLINGTON SNACKS OR APPROVED EQUIVALENT | G24: 75600 | H24: CS | I24: 160 | J24: 2.4 OZ | K24: 1000 | L24: 77.23404255 | M24: 77234.04255 | N24: 0.482712766 | O24: 7154596 | P24: APPLWAY | Q24: 160/2.4 OZ | R24: N
B25: 20 | C25: C1000 | D25: BASE BEEF | E25: GRADE A TO CONTAIN BEEF LOW SODIUM- PASTE NON-CAKING READY TO DISSOLVE BEEF FLAVORED NO MSG | F25: SPECIFY | H25: CS | I25: 12 | J25: 1 LBS | K25: 200 | L25: 35.15957447 | M25: 7031.914894 | N25: 2.929964539 | O25: 7193534 | P25: CSTMCUL | Q25: 6/1 LB | R25: N
B26: 21 | C26: C1001 | D26: BASE CHICKEN | E26: GRADE A TO CONTAIN CHICKEN LOW SODIUM - PASTE NON-CAKING READY TO DISSOLVE CHICKEN FLAVORED NO MSG | F26: SPECIFY | H26: CS | I26: 12 | J26: 1 LBS | K26: 200 | L26: 31.65957447 | M26: 6331.914894 | N26: 2.638297872 | O26: 7193578 | P26: CSTMCUL | Q26: 6/1 LB | R26: N
B27: 22 | C27: CTF7009 | D27: BASE CHICKEN KNORR | E27: CHICKEN FLAVORED BOUILLON CATERING | F27: KNORR OR APPROVED EQUIVALENT | G27: 116300 | H27: BTL | I27: 1 | J27: 7.9 LB | K27: 5 | L27: 2.065 | M27: 10.325 | N27: 2.065 | O27: 4714467 | P27: KNORR | Q27: 1/7.9 OZ | R27: N
B28: 23 | C28: C1002 | D28: BASE HAM | E28: GRADE A TO CONTAIN HAM LOW SODIUM - PASTE NON-CAKING READY TO DISSOLVE BEEF FLAVORED NO MSG | F28: SPECIFY | H28: CS | I28: 12 | J28: 1 LBS | K28: 300 | L28: 46.17021277 | M28: 13851.06383 | N28: 3.84751773 | O28: 5154752 | P28: CSTMCUL | Q28: 6/1 LB | R28: N
B29: 24 | C29: D1006 | D29: BEANS BAKED | E29: REDUCED SODIUM VEGETARIAN BAKED BEANS | F29: BUSHS BEST OR APPROVED EQUIVALENT | H29: CS | I29: 6 | J29: #10 CANS | K29: 1500 | L29: 46.73404255 | M29: 70101.06383 | N29: 7.789007092 | O29: 3560143 | P29: BUSHBST | Q29: 6/#10 | R29: N
B30: 25 | C30: D1007 | D30: BEANS GARBANZO | E30: BRINE PACK. GARBANZO BEANS WATER SALT VINEGAR DISODIUM EDTA (TO PROMOTE COLOR AND RETENTION) AND CALCIUM CHLORIDE (A FIRMING AGENT). | F30: SPECIFY | H30: CS | I30: 6 | J30: 10 LB | K30: 65 | L30: 29.81914894 | M30: 1938.244681 | N30: 4.969858156 | O30: 75048 | P30: BUSH | Q30: 6/#10 | R30: N
B31: 26 | C31: CTF7010 | D31: BEANS KIDNEY | E31: CATERING | H31: CS | I31: 6 | J31: #10 CAN | K31: 50 | L31: 29.81914894 | M31: 1490.957447 | N31: 4.969858156 | O31: 0075079 | P31: BUSH | Q31: 6/#10 | R31: N
B32: 27 | C32: D1008 | D32: BEANS PINTO CANNED | E32: PINTO BEANS WHOLE STYLE SEASONED VEGETARIAN CANNED IN BRINE US GRADE B LOW SODIUM (140 MILLIGRAMS OF SODIUM OR LESS PER SERVING) | F32: BUSH'S OR APPROVED EQUIVALENT | H32: CS | I32: 6 | J32: 10 CN | K32: 1300 | L32: 29.81914894 | M32: 38764.89362 | N32: 4.969858156 | O32: 79584 | P32: BUSH | Q32: 6/#10 | R32: N
